Workbook

Sheet Funktion-IQA (hidden)
B55: Stand: | C55: ='Grunddaten-IVA'!E36 -> 2020-10-30 | D55: Änderungen vorbehalten

Sheet Vorauswahl
A4: =Übersetzung!F5 -> Auslegung Kampmann Industrieluftdurchlässe
A6: =Übersetzung!F106 -> Bitte wählen Sie einen Durchlasstypen
A8: =Übersetzung!F107 -> Durch Klick auf einen Durchlass glangen sie direkt zur technischen Auslegung
H24: 5 | I24: min. Abmessung Frontblende rund | K24: mm
F49: =IF(#REF!<1000,CONCATENATE(0,#REF!),#REF!) -> 
F50: =IF(J19=78,"080",100) -> 100
N127: 2
N128: =N127 -> 2
A135: =Übersetzung!F44 -> Änderungen vorbehalten
A136: =Übersetzung!F45 -> Stand: | B136: ='Grunddaten-IQA'!$H$36 -> 2020-10-30

Sheet Xhor_IVA (hidden)
A2: Rechenmodell zur Berechnung der horizontalen Wurfweite des IVA
A4: Grundproblem: | B4: Innerhalb des Auslegungstools wurden bis zum 20.08.2019 die horizontalen Wurfweiten des IVA bis Unterkante des Durchlasses angegeben. Entsprechende Messungen hierzu wurden durchgeführt.
B5: Im Vorfeld durchgeführte Prognosen zu dem selben Thema hatten zur Folge, dass erhebliche Abweichungen (teilweise bis um den Faktor 6 bei kleinen DN´s) zwischen Tool und den Prognosen auftraten.
B6: Die Prognosen der horizontalen Wurfweite basierten auf Katalogunterlagen von Krantz, in welchen der Temperatureinfluss der Zuluft nicht berücksichtigt wurde.
A7: Lösungsvorschlag: | B7: Erweiterung des bestehenden Modells.
A8: Ansatz: | B8: Aus messtechnischen Untersuchungen ist das Xkrit für die einzelnen Duchlässe bekannt, es wird jedoch lediglich die horizontale Komponente des Strahls bis zum Abknicken und dem Verlauf bis zur Unterkante des Durchlasses beschrieben.
B9: An diesem Punkt findet eine Erweiterung des Rechenmosells statt, basierend auf einem sich einstellenden Winkelzusammenhang, welcher für die Durchlässe IVA-TH beschrieben wurde.
B10: Bei diesem wurde der Strahlverlauf in einen horizontalen und einen schräg verlaufenden Anteil aufgeteilt.
B11: Als Eingangsgrößen dienen hierbei die Austrittsgeschwindigkeit der Luft, welcher in vergleichbaren Größenordnungen liegt.
B12: Um nicht Gefahr zu laufen, dass der schräge Anteil der Strömung unrealistisch lang wird, werden 2 Begrenzungen durchgeführt: Begrenzung der Höhendifferenz auf 5m und des Winkels auf 35° (DT ca. 4K) (damit die Länge des schrägen Anteils in gewissen Grenzen bleibt)
B15: Berechnungskonstanten alpha
B16: k1 | C16: 1578.039907
B17: k2 | C17: 0.007661945955
B18: k3 | C18: -2.13620984
B19: k4 | C19: -1522.452767
B22: Eingangsgrößen | E22: Eingangsgröße
B23: Mantelfläche | C23: =PI()*('Grunddaten-IVA'!E33/1000)*('Grunddaten-IVA'!D33/1000) -> 1.054673495 | E23: xkrit | F23: ='Grunddaten-IVA'!$P$33 -> 2.394684367
B24: vaus | C24: =Einheiten!$E$58/Xhor_IVA!C23/3600 -> 1.053511932 | E24: Montagehöhe | F24: =Einheiten!$E$63 -> 3
B25: Delta T | C25: =Einheiten!$E$60-Einheiten!$E$59 -> 8 | E25: OK A-Ber | F25: =Einheiten!$E$64 -> 1.8
B27: Ausgabe: alpha im Knickpunkt | E27: Ausgabe: horizontaler Strahlweg
B28: alpha = | C28: =IF($C$16*($C$24/$C$25)^$C$17+$C$24^$C$18+$C$19>45,45,$C$16*($C$24/$C$25)^$C$17+$C$24^$C$18+$C$19) -> 32.15920807 | E28: Höhendifferenz | F28: =IF(F24-F25>5,5,F24-F25) -> 1.2
E29: schräger Anteil | F29: =TAN(C28*PI()/180)*F28 -> 0.7544877181
E30: Xhor | F30: =IF(C25=0,"",F23+F29) -> 3.149172085

Sheet Hinweise zum Programm (hidden)
A1: Hinweise zur Bedienung
A3: Allgemeine Hinweise:
A4: Das Auslegungstool Industrie dient als Hilfsmittel zur Technischen Planung von Industrieluftdurchlässen der Marke emcoair.
A6: Auslegung:
A7: Im Tabellenblatt "Auslegung" erfolgt die Festlegung des gewünschten Auslasstyps. Bei Eingabe der Vorgabedaten, wie z.B. dem benötigten Luftvolumenstrom werden die technischen Daten des gewählten Luftdurchlasses berechnet.
A9: Bedienung:
A10: Die im Tabellenblatt "Auslegung" ermittelten Strömungsgeschwindigkeiten gelten für einen deckenbündig montierten Luftdurchlass mit horizontaler Ausblascharakteristik.
A12: Funktion:
A13: Im Tabellenblatt "Funktion" finden Sie eine kurze Funktionsbeschreibung des jeweiligen Luftdurchlasses.
A16: Hinweise zur Funktion:
A17: Für eine ordnungsgemäße Funktion des Auslegungstools muss die Ausführung von Makros und MS Excel aktiviert sein. Die Aktivierung von Makros erfolgt im Menü Makrosicherheit.
A18: Einstellung unter MS Excel 97-2003: Extras → Makro → Sicherheit
A19: Einstellung unter MS Excel 2007 und 2010: Entwicklertools* → Makrosicherheit
A20: *Das Menü Entwicklertools muss unter Umständen eingefügt werden unter Excel-Optionen

Sheet vx_vy LDI (hidden)
A2: Konstantensammlung LDI
A4: Nenndurchmesser | C4: Mindestabstand | E4: Klappenwinkel Kühlfall | L4: Klappenwinkel Heizfall | R4: Vertikale Eindringtiefe
C5: K1 | D5: K2 | E5: K1 | F5: K2 | G5: K3 | H5: K4 | I5: K5 | J5: K6 | K5: K7 | L5: K1 | M5: K2 | N5: K3 | O5: K4 | P5: K5 | Q5: K6 | R5: K1 | S5: K2 | T5: K3
A6: 250 | C6: 0.8491637264 | D6: 0.02107514911 | E6: 0.867781341 | F6: 0.01544988426 | G6: -64.90266453 | H6: -5.294149761 | I6: -0.6482051132 | J6: 8.124418435 | K6: 63.49008721 | L6: -0.5388025404 | M6: -0.7593385012 | N6: 10.17771395 | O6: -4.568902423 | P6: -1.501344461 | Q6: 47.07791902 | R6: 3.64204557 | S6: 0.5013039206 | T6: 1.153634334
A7: 315 | C7: 0.9901960334 | D7: 0.02206104577 | E7: 0.8580533449 | F7: 2.517067238 | G7: -66.85804329 | H7: -4.618075008 | I7: -0.4955975394 | J7: 4.559304808 | K7: 64.02825583 | L7: -0.6595316014 | M7: -1.77431476 | N7: 25.27146066 | O7: -4.958088455 | P7: -8.786045336 | Q7: 38.46165543 | R7: 3.979846757 | S7: 0.5025136777 | T7: 1.147382048
A8: 400 | C8: 1.158652266 | D8: -0.004294709686 | E8: 0.9251597785 | F8: 4.515716462 | G8: -65.18318551 | H8: -3.100962549 | I8: -0.3456337775 | J8: 2.079693192 | K8: 58.31920969 | L8: -0.5340300444 | M8: -1.48247148 | N8: 16.66415878 | O8: -4.49845045 | P8: 0.1547718706 | Q8: 31.28727022 | R8: 4.393960528 | S8: 0.5066591201 | T8: 1.146627871
A9: 500 | C9: 1.349394178 | D9: -0.01281465598 | E9: 0.8528462927 | F9: 22.42321074 | G9: -63.32841497 | H9: -2.077600312 | I9: -0.6330149568 | J9: -7.747361652 | K9: 45.67734049 | L9: -0.7948221002 | M9: -2.535975019 | N9: 26.08221644 | O9: -4.757290055 | P9: 0.0009213357251 | Q9: 17.92062364 | R9: 4.723627121 | S9: 0.5008359044 | T9: 1.153230604
A10: 630 | C10: 1.566210817 | D10: 0.02544583225 | E10: 0.8691915879 | F10: 6.944726505 | G10: -65.76518791 | H10: -1.429703348 | I10: -0.1434315867 | J10: -0.7050011148 | K10: 54.74890222 | L10: -0.9612141294 | M10: -2.190871961 | N10: 25.70623393 | O10: -4.004543018 | P10: 0.0009212078597 | Q10: 12.59826866 | R10: 5.386942111 | S10: 0.502128946 | T10: 1.138318712
A11: 800 | C11: 1.837455458 | D11: 0.01375912075 | E11: 0.8793675916 | F11: 4.227669818 | G11: -66.98818517 | H11: -1.041871782 | I11: -0.06878246846 | J11: 0.2482754165 | K11: 55.68435 | L11: -1.399817511 | M11: -0.7159701098 | N11: 15.26245867 | O11: -2.49301727 | P11: 0.0009204936794 | Q11: 21.71099136 | R11: 5.937363436 | S11: 0.5013333062 | T11: 1.147620787
A14: DT Kühl | B14: =Einheiten!$E$22-Einheiten!$E$21 -> 8
A15: h | B15: =Einheiten!$E$25-Einheiten!$E$26 -> 6.2
A16: alpha Kühl | B16: =Einheiten!E19 -> 50
A17: wx | B17: =E32 -> 0.1671271525
A18: DT Heiz | B18: =Einheiten!E23-Einheiten!E24 -> 10
A19: Alpha Heiz | B19: =Einheiten!E20 -> 25
C23: Dmin | D23: Alpha Tool | E23: wx | F23: ymax | H23: Alpha Tool: empfohlener Winkel im Kühlfall, Kesslertech-Tool | R23: Winkelkorrektur Eindringtiefe | U23: Datenherkunft hierfür sind Ergebnisse der vertikalen Eindringtiefe LDI 250 aus Diplomarbeit TU.
A24: DN | B24: v | C24: =('Auslegung-L'!D29/(PI()*('Auslegung-L'!$D$20/1000)^2/4))/3600 -> 3.564400618 | R24: k1 | S24: -0.0101932932
A25: 250 | C25: =$C$6*C24+$D$6 -> 3.04783486 | D25: =$E6*$B$14+$F6*C$24+$G6*$B$17+$H6*$B$15+$I6*C25^2+$J6*C25+$K6 -> 45.55719717 | E25: =($B$16-$E$6*$B$14-$F$6*$C$24-$H$6*$B$15-$I$6*$C$26^2-$J$6*$C$26-$K$6)/$G$6 -> 0.1285262951 | F25: =($R6*C$24^$T6/($B$18^$S6))*($S$24*$B$19+$S$25) -> 4.531697392 | R25: k2 | S25: 1.165644566
A26: 315 | C26: =$C$7*C24+$D$7 -> 3.551516399 | D26: 50 | E26: =($B$16-$E$7*$B$14-$F$7*$C$24-$H$7*$B$15-$I$7*$C$26^2-$J$7*$C$26-$K$7)/$G$7 -> 0.1671271525 | F26: 4.89915231
A27: 400 | C27: =$C$8*C24+$D$8 -> 4.125606143 | D27: 54.39355421 | E27: =($B$16-$E$8*$B$14-$F$8*$C$24-$H$8*$B$15-$I$8*$C$26^2-$J$8*$C$26-$K$8)/$G$8 -> 0.2395838021 | F27: 5.352405455
A28: 500 | C28: =$C$9*C24+$D$9 -> 4.796966784 | D28: 57.23032319 | E28: =($B$16-$E$9*$B$14-$F$9*$C$24-$H$9*$B$15-$I$9*$C$26^2-$J$9*$C$26-$K$9)/$G$9 -> 0.5375947813 | F28: 5.880798466
A29: 630 | C29: =$C$10*C24+$D$10 -> 5.608048636 | D29: 58.13627903 | E29: =($B$16-$E$10*$B$14-$F$10*$C$24-$H$10*$B$15-$I$10*$C$26^2-$J$10*$C$26-$K$10)/$G$10 -> 0.3539729481 | F29: 6.561132261
A30: 800 | C30: =$C$11*C24+$D$11 -> 6.563186491 | D30: 58.7998943 | E30: =($B$16-$E$11*$B$14-$F$11*$C$24-$H$11*$B$15-$I$11*$C$26^2-$J$11*$C$26-$K$11)/$G$11 -> 0.3186080798 | F30: 7.330952027
A31: 1 | B31: 2 | C31: 3 | D31: 4 | E31: 5 | F31: 6
A32: Auswahl: | B32: ='Auslegung-L'!D20 -> 315 | C32: =VLOOKUP($B$32,$A$25:$E$30,C31,FALSE) -> 3.551516399 | D32: =VLOOKUP($B$32,$A$25:$E$30,D31,FALSE) -> 50 | E32: 0.1671271525 | F32: =VLOOKUP($B$32,$A$25:$F$30,F31,FALSE) -> 4.89915231

Sheet Auslegung-L (hidden)
A1: =Übersetzung!F5 -> Auslegung Kampmann Industrieluftdurchlässe
A3: =Übersetzung!F6 -> Eingabefelder sind gelb gekennzeichnet
A4: =Übersetzung!F7 -> Ergebnisfelder sind blau gekennzeichnet
A6: =Übersetzung!F8 -> Vorgaben
A7: =Übersetzung!F9 -> Lüftungstechnik | B7: =Übersetzung!F10 -> Symbol | C7: =Übersetzung!F11 -> Einheit | D7: =Übersetzung!F12 -> Wert
A8: Bezeichung | B8: Symbol | C8: Einheit
B9: L | C9: mm
B10: L | C10: mm
B11: L | C11: mm
A12: =Übersetzung!F13 -> Durchlass Typ | D12: LDI
D13: LDI
D18: 630
A20: =Übersetzung!F46 -> Nenndurchmesser | B20: DN | C20: [-] | D20: 315
D21: 250
D22: 315
D23: 400
D24: 500
D25: 630
D26: 800
D28: =IF(OR($D$12="VLV",$D$12="VLD"),"",IF($D$12="WKD 380","",IF($D$12="WKD 381-1","",IF(OR($D$12="WKD 381-2",$D$12="WKD 381-3"),"",IF($D$12="IVA",630,""))))) -> 
A29: =Übersetzung!F16 -> Luftvolumenstrom | B29: V·SUP | C29: =Einheiten!L7 -> m³/h | D29: 1000
A30: =Übersetzung!F69 -> Klappenwinkel Kühlfall / Heizfall | B30: aK / aH | C30: [°] | D30: 50 | E30: 25
D31: 60 | E31: 15
D32: 55 | E32: 20
D33: 50 | E33: 25
E34: 30
A37: =Übersetzung!F18 -> Temperatur Zuluft | B37: tSUP | C37: =Einheiten!$L$9 -> °C | D37: 16 | E37: 30
A38: =Übersetzung!F19 -> Temperatur Raum | B38: tRaum | C38: =Einheiten!$L$9 -> °C | D38: 24 | E38: 20
A39: =Übersetzung!F20 -> Raumdaten
A40: =Übersetzung!F21 -> Montagehöhe | B40: H1 | C40: =Einheiten!L5 -> m | D40: 8
A41: =Übersetzung!F22 -> Obergrenze Aufenthaltsbereich | B41: H2 | C41: =Einheiten!$L$5 -> m | D41: 1.8
A42: =Übersetzung!F23 -> Raumlänge | B42: LR | C42: =Einheiten!$L$5 -> m | D42: 21
A43: =Übersetzung!F24 -> Raumbreite | B43: BR | C43: =Einheiten!$L$5 -> m | D43: 12.7
A44: =Übersetzung!F25 -> Raumhöhe | B44: HR | C44: =Einheiten!$L$5 -> m | D44: 14
A45: Abstand Durchlass zur nächstgelegenen Wand | B45: a | C45: m | D45: 5
A46: kleinster Abstand zwischen 2 Durchlässen | B46: smin | C46: m | D46: 8
A48: Akustikdaten
A49: Raumart nach VDI 2081 | D49: Großraumbüro | I49: 7 | J49: Maximaler Volumenstrom | K49: ='Grunddaten-L'!$I$33 -> 1700 | L49: m³/h
C50: Einzelbüro | I50: 5 | J50: min. Abmessung Frontblende rund | L50: mm
C51: Großraumbüro
C52: Werkstätten
C53: Ruheraum, Pausenraum
C54: Untersuchungsraum Krankenhaus
C55: Rundfunk-, Fernsehstudio
C56: Chemielabor
C57: Wasch- und WC-Raum, Umkleide
C58: Schwimmbad
C59: EDV-Raum
C60: Konzertsaal
C61: Lesesaal
C62: Museum
C63: Küche
C64: Theater, Kino
C65: Klassen- Seminarraum
C66: Gaststätte
C67: kein Typ
C68: Konferenzraum
C69: Hotelzimmer
C70: Hörsaal
C71: Bettenzimmer Krankenhaus
C72: Verkaufsraum
C73: Sporthalle
A74: Betrachteter Durchlass | D74: Zuluft
D75: Zuluft
D76: Abluft
A77: Abstand zur Schallquelle | B77: r | C77: m | D77: 3
A78: =Übersetzung!F26 -> Berechnung strömungstechnische und Akustische Daten | D78: =Übersetzung!F101 -> Kühlfall | E78: =Übersetzung!F102 -> Heizfall
A79: =Übersetzung!F27 -> Totaldruckverlust | B79: Dpt | C79: =Einheiten!L8 -> Pa | D79: =IF(Einheiten!F2=3,FIXED(Einheiten!E31,3,TRUE),FIXED(Einheiten!E31,0,TRUE)) -> 44 | E79: =IF(Einheiten!$F$2=3,FIXED(Einheiten!E32,3,TRUE),FIXED(Einheiten!E32,0,TRUE)) -> 18
A80: =Übersetzung!F49 -> kleinster Abstand zwischen 2 Durchlässen | B80: dmin | C80: =Einheiten!L5 -> m | D80: =Einheiten!E33 -> 3.551516399 | J80: =Übersetzung!F70 -> Abmessungen
A81: Laufweg bis Fußbodenbereich | B81: xx | C81: m | D81: =xkr._vx!L24 -> 18.5
A82: Laufweg bis Aufenthaltsbereich nach Stoßpunkt | B82: xx+y | C82: m
A83: Laufweg bis Aufenthaltsbereich nach xkrit | B83: xxkr | C83: m
A84: =Übersetzung!F63 -> Mittlere Geschwindigkeit im Aufenthaltsbereich | B84: vx1 | C84: =Einheiten!L6 -> m/s | D84: =IF(Einheiten!E34<0.1,"<0,1",Einheiten!E34) -> 0.1671271525 | I84: 1 | J84: =Übersetzung!F71 -> Anschlussdurchmesser LDI | K84: =IF(Einheiten!$F$2=3,FIXED('Grunddaten-L'!$J$33,1,TRUE),FIXED('Grunddaten-L'!$J$33,0,TRUE)) -> 318 | L84: =Einheiten!$L$10 -> mm
A85: =IF(D37>D38,"","Zugluftrisiko am Fußboden**") -> Zugluftrisiko am Fußboden** | B85: DR1 | C85: % | I85: 2 | J85: Höhe Anschlusskasten | K85: ='Grunddaten-L'!N33 -> 470 | L85: =Einheiten!$L$10 -> mm
A86: =Übersetzung!F54 -> Vertikale Eindringtiefe | B86: vx2 | C86: =Einheiten!L5 -> m | E86: =Einheiten!E35 -> 4.89915231 | I86: 2 | J86: =Übersetzung!F73 -> Außendurchmesser, einfache Düsenkontur | K86: =IF(Einheiten!$F$2=3,FIXED('Grunddaten-L'!$J$33,1,TRUE),FIXED('Grunddaten-L'!$J$33,0,TRUE)) -> 318 | L86: =Einheiten!$L$10 -> mm
A87: =IF(D37>D38,"","Zugluftrisiko im Aufenthaltsbereich**") -> Zugluftrisiko im Aufenthaltsbereich** | B87: DR2 | C87: % | I87: 4 | J87: Minimaler Volumenstrom | K87: ='Grunddaten-L'!$H$33 -> 560 | L87: =Einheiten!$L$10 -> mm
A88: =IF(D37>D38,"","Geschwindigkeit nach Ablösen an Xkr.") -> Geschwindigkeit nach Ablösen an Xkr. | B88: vx3 | C88: m/s | I88: 5 | J88: Maximaler Volumenstrom | K88: ='Grunddaten-L'!$I$33 -> 1700 | L88: =Einheiten!$L$10 -> mm
A89: =IF(D37>D38,"","Zugluftrisiko nach Ablösepunkt**") -> Zugluftrisiko nach Ablösepunkt** | B89: DR3 | C89: % | L89: =Einheiten!$L$10 -> mm
A90: Resultierende Raumkategorie | B90: RAL | C90: [-] | D90: =IF(D74="Zuluft",IF(D37>D38,"",IF(AND($D$85<9.95,$D$87<9.95,OR($D$89="",$D$89<9.95)),"A",IF(AND($D$85<19.95,$D$87<19.95,OR($D$89="",$D$89<19.95)),"B",IF(AND($D$85<29.95,$D$87<29.95,OR($D$89="",$D$89<29.95)),"C","Außerhalb C")))),"") -> A | L90: =Einheiten!$L$10 -> mm
A91: =Übersetzung!F33 -> Schallleistungspegel, Einzeldurchlass | B91: LWA_SUP/ETA | C91: dB(A) | D91: =IF('Lw LDI'!I97<25,"<25",'Lw LDI'!I97) -> 42.72049586 | E91: =IF('Lw LDI'!I115<25,"<25",'Lw LDI'!I115) -> 33.56451822 | I91: 3 | J91: =Übersetzung!F74 -> Außendurchmesser, verlängerte Düsenkontur | K91: =IF(Einheiten!$F$2=3,FIXED('Grunddaten-L'!$F$33,1,TRUE),FIXED('Grunddaten-L'!$F$33,0,TRUE)) -> 580 | L91: =Einheiten!$L$10 -> mm
A92: Schalldruckpegel, Zahlenwert Zuluft + Abluft | E92: =E91+10*LOG('Lw LDI'!$F$5/(4*PI()*'Auslegung-L'!E77^2)+4/('Lw LDI'!$H$5)) ->  | L92: =Einheiten!$L$10 -> mm
A93: =CONCATENATE("Schallldruckpegel in ",D77,"m Entfernung, Einzeldurchlass") -> Schallldruckpegel in 3m Entfernung, Einzeldurchlass | B93: LPA_SUP/ETA | C93: dB(A) | L93: =Einheiten!$L$10 -> mm
A94: Schalldruckpegel rechnerisch | D94: =IF(10*LOG(10^(D92/10)+10^(E92/10))<25,"<25",10*LOG(10^(D92/10)+10^(E92/10))) ->  | L94: =Einheiten!$L$10 -> mm
I95: 4 | J95: =Übersetzung!F75 -> Höhe LDI | K95: =IF(Einheiten!$F$2=3,FIXED('Grunddaten-L'!$D$33,1,TRUE),FIXED('Grunddaten-L'!$D$33,0,TRUE)) -> 175 | L95: =Einheiten!$L$10 -> mm
I96: 5 | J96: =Übersetzung!F76 -> Anschlussdurchmesser opt. RAK | K96: =IF(Einheiten!$F$2=3,FIXED('Grunddaten-L'!$P$33,1,TRUE),FIXED('Grunddaten-L'!$P$33,0,TRUE)) -> 279 | L96: =Einheiten!$L$10 -> mm
I97: 6 | J97: =Übersetzung!F77 -> Außendurchmesser opt. RAK | K97: =IF(Einheiten!$F$2=3,FIXED('Grunddaten-L'!$O$33,1,TRUE),FIXED('Grunddaten-L'!$O$33,0,TRUE)) -> 385 | L97: =Einheiten!$L$10 -> mm
A98: =Übersetzung!F34 -> Oktavspektrum Schallleistung [dB] | B98: LW_Okt | C98: dB | D98: =Übersetzung!F101 -> Kühlfall | E98: =Übersetzung!F102 -> Heizfall | I98: 7 | J98: =Übersetzung!F78 -> Höhe opt. RAK | K98: =IF(Einheiten!$F$2=3,FIXED('Grunddaten-L'!$N$33,1,TRUE),FIXED('Grunddaten-L'!$N$33,0,TRUE)) -> 470 | L98: =Einheiten!$L$10 -> mm
B99: LW_125 | C99: dB | D99: =IF($D$91="<25","",'Lw LDI'!$B$97) -> 46.37466968 | E99: =IF($E$91="<25","",'Lw LDI'!$B$115) -> 20.00077573
B100: LW_250 | C100: dB | D100: =IF($D$91="<25","",'Lw LDI'!$C$97) -> 42.4792186 | E100: =IF($E$91="<25","",'Lw LDI'!$C$115) -> 24.33465687 | J100: =Übersetzung!F81 -> Einsatzbereich
B101: LW_500 | C101: dB | D101: =IF($D$91="<25","",'Lw LDI'!$D$97) -> 40.28469034 | E101: =IF($E$91="<25","",'Lw LDI'!$D$115) -> 27.99299545 | I101: 8 | J101: =Übersetzung!F39 -> Minimaler Volumenstrom | K101: ='Grunddaten-L'!$H$33 -> 560 | L101: =Einheiten!$L$7 -> m³/h
B102: LW_1000 | C102: dB | D102: =IF($D$91="<25","",'Lw LDI'!$E$97) -> 38.05427664 | E102: =IF($E$91="<25","",'Lw LDI'!$E$115) -> 31.01666875 | I102: 9 | J102: =Übersetzung!F40 -> Maximaler Volumenstrom | K102: ='Grunddaten-L'!$I$33 -> 1700 | L102: =Einheiten!$L$7 -> m³/h
B103: LW_2000 | C103: dB | D103: =IF($D$91="<25","",'Lw LDI'!$F$97) -> 33.56226038 | E103: =IF($E$91="<25","",'Lw LDI'!$F$115) -> 25.57106922 | I103: 10 | J103: =Übersetzung!F79 -> minimale Einbauhöhe | K103: ='Grunddaten-L'!$L$33 -> 3.5 | L103: =Einheiten!$L$5 -> m
B104: LW_4000 | C104: dB | D104: =IF($D$91="<25","",'Lw LDI'!$G$97) -> 26.68476958 | E104: =IF($E$91="<25","",'Lw LDI'!$G$115) -> 20.8901192 | I104: 11 | J104: =Übersetzung!F80 -> maximale Einbauhöhe | K104: ='Grunddaten-L'!$M$33 -> 6 | L104: =Einheiten!$L$5 -> m
B105: LW_8000 | C105: dB | D105: =IF($D$91="<25","",'Lw LDI'!$H$97) -> 21.91291027 | E105: =IF($E$91="<25","",'Lw LDI'!$H$115) -> 16.78954218
A107: =Übersetzung!F44 -> Änderungen vorbehalten
A108: =Übersetzung!F45 -> Stand:
A109: ='Grunddaten-L'!E36 -> 2020-10-30

Sheet Funktion-L (hidden)
B55: Stand: | C55: ='Grunddaten-L'!E36 -> 2020-10-30 | D55: Änderungen vorbehalten

Sheet Grunddaten-L (hidden)
A1: Typ | B1: DN | D1: Höhe LDI | E1: Durchmesser SR/SV | F1: Durchmesser ER/EV | G1: Soll-Volumenstrom | H1: V° Auslegung min | I1: V° Auslegung max | J1: Durchmesser Anschluss | K1: Anströmgeschwindigkeit | L1: Montagehöhe minimal | M1: Montagehöhe maximal | N1: Höhe Anschlusskasten | O1: Durchmesser Anschlusskasten | P1: Durchmesser Anschlussstutzen AK | Q1: min. Abmessungen Frontblende rund
B2: Lochbild | D2: l | E2: n | F2: L | G2: V° | H2: V°min | I2: V°max | J2: d | K2: v | L2: hmin | M2: hmax | N2: h | O2: b | P2: b1 | Q2: x
D3: mm | E3: 1 | F3: mm | G3: m³/h | H3: m³/h | I3: m³/h | J3: mm | K3: m/s | L3: m | M3: m | N3: mm | O3: mm | P3: mm | Q3: mm
A4: LDI | B4: 250 | C4: =CONCATENATE(A4,B4) -> LDI250 | D4: 140 | E4: 330 | F4: 480 | G4: =Einheiten!$E$18 -> 1000 | H4: 350 | I4: 1060 | J4: 253 | K4: =G4/(PI()/4*('Grunddaten-L'!J4/1000)^2*3600) -> 5.525436287 | L4: 3 | M4: 5 | N4: 385 | O4: 320 | P4: 223
A5: LDI | B5: 315 | C5: =CONCATENATE(A5,B5) -> LDI315 | D5: 175 | E5: 415 | F5: 580 | G5: =Einheiten!$E$18 -> 1000 | H5: 560 | I5: 1700 | J5: 318 | K5: =G5/(PI()/4*('Grunddaten-L'!J5/1000)^2*3600) -> 3.497465006 | L5: 3.5 | M5: 6 | N5: 470 | O5: 385 | P5: 279
A6: LDI | B6: 400 | C6: LDI400 | D6: 215 | E6: 535 | F6: 750 | G6: =Einheiten!$E$18 -> 1000 | H6: 900 | I6: 2750 | J6: 403 | K6: =G6/(PI()/4*('Grunddaten-L'!J6/1000)^2*3600) -> 2.177697365 | L6: 4.5 | M6: 7 | N6: 590 | O6: 500 | P6: 354
A7: LDI | B7: 500 | C7: LDI500 | D7: 280 | E7: 660 | F7: 925 | G7: =Einheiten!$E$18 -> 1000 | H7: 1400 | I7: 4250 | J7: 503 | K7: =G7/(PI()/4*('Grunddaten-L'!J7/1000)^2*3600) -> 1.397885654 | L7: 5 | M7: 14 | N7: 720 | O7: 600 | P7: 449
A8: LDI | B8: 630 | C8: LDI630 | D8: 355 | E8: 830 | F8: 1160 | G8: =Einheiten!$E$18 -> 1000 | H8: 2200 | I8: 6750 | J8: 633 | K8: =G8/(PI()/4*('Grunddaten-L'!J8/1000)^2*3600) -> 0.8826737228 | L8: 8 | M8: 25 | N8: 840 | O8: 730 | P8: 559
A9: LDI | B9: 800 | C9: LDI800 | D9: 425 | E9: 1100 | F9: 1420 | G9: =Einheiten!$E$18 -> 1000 | H9: 3600 | I9: 10900 | J9: 804 | K9: =G9/(PI()/4*('Grunddaten-L'!J9/1000)^2*3600) -> 0.5471362889 | L9: 10 | M9: 30 | N9: 970 | O9: 900 | P9: 708
D31: 2 | E31: 3 | F31: 4 | G31: 5 | H31: 6 | I31: 7 | J31: 8 | K31: 9 | L31: 10 | M31: 11 | N31: 12 | O31: 13 | P31: 14 | Q31: 15
A33: Auswahl: | B33: Zuluft | C33: =CONCATENATE('Auslegung-L'!$D$12,'Auslegung-L'!$D$20) -> LDI315 | D33: =VLOOKUP($C$33,$C$4:$L$30,D31,FALSE)/Einheiten!$F$15 -> 175 | E33: =VLOOKUP($C$33,$C$4:$L$30,E31,FALSE)/Einheiten!$F$15 -> 415 | F33: =VLOOKUP($C$33,$C$4:$L$30,F31,FALSE)/Einheiten!$F$15 -> 580 | G33: =VLOOKUP($C$33,$C$4:$L$30,G31,FALSE) -> 1000 | H33: =VLOOKUP($C$33,$C$4:$L$30,H31,FALSE)*Einheiten!$F$11 -> 560 | I33: =VLOOKUP($C$33,$C$4:$L$30,I31,FALSE)*Einheiten!F11 -> 1700 | J33: =VLOOKUP($C$33,$C$4:$P$29,J31,FALSE)/Einheiten!$F$15 -> 318 | K33: 3.497465006 | L33: =VLOOKUP($C$33,$C$4:$P$30,L31,FALSE)/Einheiten!$F$5 -> 3.5 | M33: =VLOOKUP($C$33,$C$4:$P$30,M31,FALSE)/Einheiten!$F$5 -> 6 | N33: =VLOOKUP($C$33,$C$4:$N$30,N31,FALSE)/Einheiten!$F$15 -> 470 | O33: =VLOOKUP($C$33,$C$4:$P$29,O31,FALSE)/Einheiten!$F$15 -> 385 | P33: =VLOOKUP($C$33,$C$4:$P$29,P31,FALSE)/Einheiten!$F$15 -> 279 | Q33: =VLOOKUP($C$33,$C$4:$Q$30,Q31,FALSE) -> 0
B34: Abluft | C34: =CONCATENATE('Auslegung-L'!$D$12,'Auslegung-L'!$D$30) -> LDI50 | D34: =VLOOKUP($C$34,$C$4:$L$30,D31,FALSE) ->  | L34: =VLOOKUP($C$34,$C$4:$L$30,L31,FALSE) ->  | M34: =VLOOKUP($C$33,$C$4:$M$30,M31,FALSE) -> 6 | N34: =VLOOKUP($C$34,$C$4:$N$30,N31,FALSE) ->  | O34: =VLOOKUP($C$34,$C$4:$Q$30,O31,FALSE) ->  | P34: =VLOOKUP($C$34,$C$4:$Q$30,P31,FALSE) ->  | Q34: =VLOOKUP($C$34,$C$4:$Q$30,Q31,FALSE) -> 
D36: Stand: | E36: 2020-10-30

Sheet Lw LDI (hidden)
A2: T[s] nach VDI 2081 | E2: Nachhallzeit | F2: Richtungsfaktor | G2: Raumvolumen | H2: äqu. Absorptionsfläche
A3: Raumart | C3: s | E3: t | F3: Q | G3: V | H3: A
A4: Einzelbüro | C4: 0.5 | E4: s | G4: m³ | H4: m²Sabine
A5: Großraumbüro | C5: 0.5 | D5: ='Auslegung-L'!D49 -> Großraumbüro | E5: =VLOOKUP(D5,'Lw LDI'!$A$4:$C$27,3,FALSE) -> 0.5 | F5: 4 | G5: ='Auslegung-L'!D40*'Auslegung-L'!D42*'Auslegung-L'!D43 -> 2133.6 | H5: =0.163*G5/E5 -> 695.5536
A6: Werkstätten | C6: 1.5
A7: Ruheraum, Pausenraum | C7: 1
A8: Untersuchungsraum Krankenhaus | C8: 2
A9: Rundfunk-, Fernsehstudio | C9: 0.5
A10: Chemielabor | C10: 2
A11: Wasch- und WC-Raum, Umkleide | C11: 2
A12: Schwimmbad | C12: 2
A13: EDV-Raum | C13: 1.5
A14: Konzertsaal | C14: 1.5
A15: Lesesaal | C15: 1
A16: Museum | C16: 1.5
A17: Küche | C17: 1.5
A18: Theater, Kino | C18: 1
A19: Klassen- Seminarraum | C19: 1
A20: Gaststätte | C20: 1
A21: kein Typ | C21: x
A22: Konferenzraum | C22: 1
A23: Hotelzimmer | C23: 0.5
A24: Hörsaal | C24: 1
A25: Bettenzimmer Krankenhaus | C25: 1
A26: Verkaufsraum | C26: 1
A27: Sporthalle | C27: 2
D32: Koeffizientensätze Akustik | K32: Koeffizienten Totaldruck
D33: Mittenfrequenz
A34: DN | D34: 125 | E34: 250 | F34: 500 | G34: 1000 | H34: 2000 | I34: 4000 | J34: 8000 | K34: K1 | L34: K2 | M34: DK
A35: 250 | B35: K1 | C35: =CONCATENATE(A35,B35) -> 250K1 | D35: 384.2991642 | E35: 722.737032 | F35: 10.9984454 | G35: -143.4123191 | H35: -93.89121196 | I35: 0.008936434793 | J35: 320.1892701 | K35: 0.05615722996 | L35: 0.07997402746 | M35: 1.1
A36: 250 | B36: K2 | C36: =CONCATENATE(A36,B36) -> 250K2 | D36: 6297.534061 | E36: 11934.38632 | F36: 72.75517383 | G36: -2193.215738 | H36: -1207.023707 | I36: 200.1831924 | J36: 5577.258022 | K36: 0.05615722996 | L36: 0.07997402746 | M36: 1.1
A37: 250 | B37: K3 | C37: 250K3 | D37: -3123.555423 | E37: -5941.269994 | F37: -9.859031999 | G37: 1132.215276 | H37: 641.9891461 | I37: -68.61935973 | J37: -2762.548323 | K37: 0.05615722996 | L37: 0.07997402746 | M37: 1.1
A38: 250 | B38: K4 | C38: 250K4 | D38: 0.9619755189 | E38: 1.822960184 | F38: 0.01818482278 | G38: -0.3330787627 | H38: -0.1813165495 | I38: 0.03765168007 | J38: 0.8507887265 | K38: 0.05615722996 | L38: 0.07997402746 | M38: 1.1
A39: 250 | B39: K5 | C39: 250K5 | D39: -16.90893588 | E39: -32.06415685 | F39: -0.7709696988 | G39: 5.621212233 | H39: 2.933263272 | I39: -1.087105685 | J39: -14.9051953 | K39: 0.05615722996 | L39: 0.07997402746 | M39: 1.1
A40: 315 | B40: K1 | C40: 315K1 | D40: 2.535376454 | E40: 1.13091787 | F40: -0.9506223759 | G40: -14.18573314 | H40: -23.30666565 | I40: -10.27712865 | J40: 11.28119608 | K40: 0.09527795969 | L40: 0.06619213978 | M40: 0.89
A41: 315 | B41: K2 | C41: 315K2 | D41: -243.8151023 | E41: 280.1379239 | F41: 888.7278438 | G41: 727.4494103 | H41: -286.2380478 | I41: 516.6048808 | J41: 1153.744763 | K41: 0.09527795969 | L41: 0.06619213978 | M41: 0.89
A42: 315 | B42: K3 | C42: 315K3 | D42: 146.3102727 | E42: -109.8729879 | F42: -411.3503116 | G42: -324.5560284 | H42: 179.638925 | I42: -227.0649488 | J42: -560.6879516 | K42: 0.09527795969 | L42: 0.06619213978 | M42: 0.89
A43: 315 | B43: K4 | C43: 315K4 | D43: -0.02544402811 | E43: 0.03277590676 | F43: 0.09542776745 | G43: 0.07652743223 | H43: -0.02918079838 | I43: 0.06168349372 | J43: 0.1269292986 | K43: 0.09527795969 | L43: 0.06619213978 | M43: 0.89
A44: 315 | B44: K5 | C44: 315K5 | D44: 0.01879678218 | E44: -0.2834706271 | F44: -0.2014185404 | G44: -0.1162548091 | H44: -0.1638228272 | I44: -0.5648974572 | J44: -0.3926681294 | K44: 0.09527795969 | L44: 0.06619213978 | M44: 0.89
A45: 400 | B45: K1 | C45: 400K1 | D45: -4.962132169 | E45: -35.65522071 | F45: -18.5394903 | G45: -11.85426843 | H45: 7.221632471 | I45: -67.50615782 | J45: -26.11041132 | K45: 0.1807299307 | L45: 0.05631819962 | M45: 0.51
A46: 400 | B46: K2 | C46: 400K2 | D46: 256.9753829 | E46: 458.9705026 | F46: 138.2008755 | G46: 0.154599491 | H46: -212.8941811 | I46: 645.3747226 | J46: 243.2298373 | K46: 0.1807299307 | L46: 0.05631819962 | M46: 0.51
A47: 400 | B47: K3 | C47: 400K3 | D47: -101.855665 | E47: -198.7417228 | F47: -35.66501948 | G47: 36.13113284 | H47: 141.961558 | I47: -293.7056794 | J47: -102.8933485 | K47: 0.1807299307 | L47: 0.05631819962 | M47: 0.51
A48: 400 | B48: K4 | C48: 400K4 | D48: 0.02707971024 | E48: 0.03735881035 | F48: 0.007640266255 | G48: 0.001189482552 | H48: -0.00813983289 | I48: 0.04837151819 | J48: 0.01720966673 | K48: 0.1807299307 | L48: 0.05631819962 | M48: 0.51
A49: 400 | B49: K5 | C49: 400K5 | D49: 0.167466473 | E49: 1.149069876 | F49: 0.4748634245 | G49: -0.2312639032 | H49: -1.427131748 | I49: 2.022328004 | J49: 0.857237285 | K49: 0.1807299307 | L49: 0.05631819962 | M49: 0.51
A50: 500 | B50: K1 | C50: 500K1 | D50: 1.939222029 | E50: 42.36641414 | F50: 29.76778666 | G50: -7.982894892 | H50: -20.47835942 | I50: -8.288576792 | J50: 84.40539462 | K50: 0.1784099939 | L50: 0.0559659048 | M50: 0.53
A51: 500 | B51: K2 | C51: 500K2 | D51: 48.19114169 | E51: -2.087909153 | F51: 24.18127857 | G51: 66.21045916 | H51: 74.22774367 | I51: 50.60119009 | J51: -103.1727294 | K51: 0.1784099939 | L51: 0.0559659048 | M51: 0.53
A52: 500 | B52: K3 | C52: 500K3 | D52: 8.448798549 | E52: 32.23967304 | F52: 19.37021785 | G52: 0.6440957256 | H52: 4.030623058 | I52: 18.07887596 | J52: 83.52017014 | K52: 0.1784099939 | L52: 0.0559659048 | M52: 0.53
A53: 500 | B53: K4 | C53: 500K4 | D53: 0.001755926086 | E53: 0.01625566301 | F53: 0.008853785032 | G53: 0.0008298889423 | H53: 0.003003320885 | I53: 0.01069072449 | J53: 0.02899476866 | K53: 0.1784099939 | L53: 0.0559659048 | M53: 0.53
A54: 500 | B54: K5 | C54: 500K5 | D54: 0.02553067623 | E54: -1.70646835 | F54: -1.002902408 | G54: 0.1934454913 | H54: -0.04579852597 | I54: -0.9625727462 | J54: -3.937624164 | K54: 0.1784099939 | L54: 0.0559659048 | M54: 0.53
A55: 630 | B55: K1 | C55: 630K1 | D55: 64.04726757 | E55: 66.02529424 | F55: 59.2025366 | G55: 75.10173776 | H55: 86.6999598 | I55: 15.71791468 | J55: -52.40964474 | K55: 0.1921639525 | L55: 0.05459150985 | M55: 0.48
A56: 630 | B56: K2 | C56: 630K2 | D56: 56.78436537 | E56: 53.01087588 | F56: 56.31921822 | G56: 61.81811945 | H56: 80.03002929 | I56: 77.21415382 | J56: 59.25134437 | K56: 0.1921639525 | L56: 0.05459150985 | M56: 0.48
A57: 630 | B57: K3 | C57: 630K3 | D57: 2.581817028 | E57: 4.924531075 | F57: 4.975459075 | G57: 6.98031863 | H57: 5.190263109 | I57: 3.001609375 | J57: -1.779722759 | K57: 0.1921639525 | L57: 0.05459150985 | M57: 0.48
A58: 630 | B58: K4 | C58: 630K4 | D58: 0.02112118606 | E58: 0.02281007395 | F58: 0.02034252358 | G58: 0.03021765941 | H58: 0.04085284428 | I58: 0.02057719092 | J58: -0.005833402487 | K58: 0.1921639525 | L58: 0.05459150985 | M58: 0.48
A59: 630 | B59: K5 | C59: 630K5 | D59: -1.944440254 | E59: -2.202912926 | F59: -1.992166 | G59: -2.987655973 | H59: -4.037736539 | I59: -1.672314998 | J59: 1.239408059 | K59: 0.1921639525 | L59: 0.05459150985 | M59: 0.48
A60: 800 | B60: K1 | C60: 800K1 | D60: 8.173448355 | E60: -27.87538366 | F60: -7.670536296 | G60: 21.52641717 | H60: 16.38556075 | I60: -62.61408729 | J60: -47.69689577 | K60: 0.1923101171 | L60: 0.05436023569 | M60: 0.495
A61: 800 | B61: K2 | C61: 800K2 | D61: 182.8602911 | E61: 428.3728985 | F61: 67.34833517 | G61: -334.3949849 | H61: -315.3713318 | I61: 560.0950391 | J61: 375.8825514 | K61: 0.1923101171 | L61: 0.05436023569 | M61: 0.495
A62: 800 | B62: K3 | C62: 800K3 | D62: -65.01280648 | E62: -183.1276104 | F62: -0.1371873499 | G62: 205.5248286 | H62: 196.9632499 | I62: -245.7214676 | J62: -162.4399572 | K62: 0.1923101171 | L62: 0.05436023569 | M62: 0.495
A63: 800 | B63: K4 | C63: 800K4 | D63: 0.02175617432 | E63: 0.03350116432 | F63: 0.002238658303 | G63: -0.0187392275 | H63: -0.01403784954 | I63: 0.04004110833 | J63: 0.02142685884 | K63: 0.1923101171 | L63: 0.05436023569 | M63: 0.495
A64: 800 | B64: K5 | C64: 800K5 | D64: -0.1223525242 | E64: 1.075519631 | F64: 0.2640924673 | G64: -1.616565599 | H64: -1.82313042 | I64: 1.731962491 | J64: 1.62626803 | K64: 0.1923101171 | L64: 0.05436023569 | M64: 0.495
A65: 1 | B65: 2 | C65: 3 | D65: 4 | E65: 5 | F65: 6 | G65: 7 | H65: 8 | I65: 9 | J65: 10 | K65: 11 | L65: 12 | M65: 13
A67: Auswahl | B67: =CONCATENATE($B$83,"K1") -> 315K1 | D67: =VLOOKUP($B67,$C$35:$M$64,B$65,FALSE) -> 2.535376454 | E67: =VLOOKUP($B67,$C$35:$M$64,C$65,FALSE) -> 1.13091787 | F67: -0.9506223759 | G67: -14.18573314 | H67: -23.30666565 | I67: -10.27712865 | J67: 11.28119608 | K67: =VLOOKUP($B67,$C$35:$M$64,I$65,FALSE) -> 0.09527795969 | L67: =VLOOKUP($B67,$C$35:$M$64,J$65,FALSE) -> 0.06619213978 | M67: 0.89
B68: =CONCATENATE($B$83,"K2") -> 315K2 | D68: =VLOOKUP($B68,$C$35:$M$64,B$65,FALSE) -> -243.8151023 | E68: 280.1379239 | F68: 888.7278438 | G68: 727.4494103 | H68: -286.2380478 | I68: 516.6048808 | J68: 1153.744763
B69: =CONCATENATE($B$83,"K3") -> 315K3 | D69: 146.3102727 | E69: -109.8729879 | F69: -411.3503116 | G69: -324.5560284 | H69: 179.638925 | I69: -227.0649488 | J69: -560.6879516
B70: =CONCATENATE($B$83,"K4") -> 315K4 | D70: -0.02544402811 | E70: 0.03277590676 | F70: 0.09542776745 | G70: 0.07652743223 | H70: -0.02918079838 | I70: 0.06168349372 | J70: 0.1269292986
B71: =CONCATENATE($B$83,"K5") -> 315K5 | D71: 0.01879678218 | E71: -0.2834706271 | F71: -0.2014185404 | G71: -0.1162548091 | H71: -0.1638228272 | I71: -0.5648974572 | J71: -0.3926681294
O79: =PI()*0.63^2/4 -> 0.3117245311
O80: =2200/O79 -> 7057.513224
O81: =O80/3600 -> 1.96042034
A82: Auswahl | O82: =0.6*O81^2 -> 2.305948745
A83: DN | B83: ='Auslegung-L'!D20 -> 315 | L83: Kühlfall
A84: V° | B84: =Einheiten!E18 -> 1000
A85: a | B85: =Einheiten!E19 -> 50
A86: DT | B86: -15
A87: v= | B87: =$B$84/(PI()*($B$83/1000)^2/4)/3600 -> 3.564400618
A88: DpTot= | B88: =($K$67*EXP($L$67*$B$85)+$M$67)*$B$87^2 -> 44.44412734 | K88: Summe
A89: LWOCT= | D89: =IF(B93=1,(D$67+D$68*LOG($B$87)+D$69*LOG($B$88)+D$70*$B$85^2+D$71*$B$85)+6,(D$67+D$68*LOG($B$87)+D$69*LOG($B$88)+D$70*$B$85^2+D$71*$B$85)) -> 46.37466968 | E89: =IF(B93=1,(E$67+E$68*LOG($B$87)+E$69*LOG($B$88)+E$70*$B$85^2+E$71*$B$85)+6,(E$67+E$68*LOG($B$87)+E$69*LOG($B$88)+E$70*$B$85^2+E$71*$B$85)) -> 42.4792186 | F89: =IF(B93=1,(F$67+F$68*LOG($B$87)+F$69*LOG($B$88)+F$70*$B$85^2+F$71*$B$85)+5,(F$67+F$68*LOG($B$87)+F$69*LOG($B$88)+F$70*$B$85^2+F$71*$B$85)) -> 40.28469034 | G89: =IF(B93=1,(G$67+G$68*LOG($B$87)+G$69*LOG($B$88)+G$70*$B$85^2+G$71*$B$85)+5,(G$67+G$68*LOG($B$87)+G$69*LOG($B$88)+G$70*$B$85^2+G$71*$B$85)) -> 38.05427664 | H89: =IF(B93=1,(H$67+H$68*LOG($B$87)+H$69*LOG($B$88)+H$70*$B$85^2+H$71*$B$85)+4,(H$67+H$68*LOG($B$87)+H$69*LOG($B$88)+H$70*$B$85^2+H$71*$B$85)) -> 33.56226038 | I89: =IF(B93=1,(I$67+I$68*LOG($B$87)+I$69*LOG($B$88)+I$70*$B$85^2+I$71*$B$85)+4,(I$67+I$68*LOG($B$87)+I$69*LOG($B$88)+I$70*$B$85^2+I$71*$B$85)) -> 26.68476958 | J89: =IF(B93=1,(J$67+J$68*LOG($B$87)+J$69*LOG($B$88)+J$70*$B$85^2+J$71*$B$85)+4,(J$67+J$68*LOG($B$87)+J$69*LOG($B$88)+J$70*$B$85^2+J$71*$B$85)) -> 21.91291027 | K89: =10*LOG(10^(D89/10)+10^(E89/10)+10^(F89/10)+10^(G89/10)+10^(H89/10)+10^(I89/10)+10^(J89/10)) -> 49.08777277
A90: A-Bew= | D90: -16.1 | E90: -8.6 | F90: -3.2 | G90: 0 | H90: 1.2 | I90: 1 | J90: -1.1
A91: LWAOCT= | D91: =D89+D90 -> 30.27466968 | E91: =E89+E90 -> 33.8792186 | F91: 37.08469034 | G91: 38.05427664 | H91: 34.76226038 | I91: 27.68476958 | J91: 20.81291027 | K91: =10*LOG(10^(D91/10)+10^(E91/10)+10^(F91/10)+10^(G91/10)+10^(H91/10)+10^(I91/10)+10^(J91/10)) -> 42.72049586 | Q91: Oktavbänder LDI 630 unbewertet
A92: SLWA= | B92: =K91 -> 42.72049586 | C92: dB(A) | Q92: Klappenwinkel 50°, Messung TH Köln
A93: AK? | B93: 0 | D93: Offset AK: 5 dB, Datenherkunft: Auslegungsprogramme Mitbewerber | Q93: Volumenstrom 3000 m³/h
A94: AK: 1 wenn vorhanden | S94: 63 | T94: 125 | U94: 250 | V94: 500 | W94: 1000 | X94: 2000 | Y94: 4000 | Z94: 8000
A95: =CONCATENATE("Oktavspektren emcoair LDI, DN ",B83,", Volumenstrom ",B84," m³/h"," Klappenwinkel ",B85,"°",IF(B93<>0," mit Anschlusskasten"," ohne Anschlusskasten")) -> Oktavspektren emcoair LDI, DN 315, Volumenstrom 1000 m³/h Klappenwinkel 50° ohne Anschlusskasten | I95: SLW,A | Q95: ohne AK | S95: 48.94816841 | T95: 46.70515757 | U95: 40.7084508 | V95: 39.34258589 | W95: 34.29457067 | X95: 25.83556428 | Y95: 20.63256273 | Z95: 20.48335235 | AA95: =10*LOG(10^(0.1*S95)+10^(0.1*T95)+10^(0.1*U95)+10^(0.1*V95)+10^(0.1*W95)+10^(0.1*X95)+10^(0.1*Y95)) -> 51.72818351
A96: Oktavband, Mittenfrequenz f [Hz] | B96: 125 | C96: 250 | D96: 500 | E96: 1000 | F96: 2000 | G96: 4000 | H96: 8000 | I96: dB(A) | Q96: mit AK | S96: 49.4359415 | T96: 50.13361189 | U96: 43.91639754 | V96: 43.50409997 | W96: 38.27399832 | X96: 28.51593486 | Y96: 22.11177338 | Z96: 21.65823614 | AA96: =10*LOG(10^(0.1*S96)+10^(0.1*T96)+10^(0.1*U96)+10^(0.1*V96)+10^(0.1*W96)+10^(0.1*X96)+10^(0.1*Y96)) -> 53.90204368
A97: =CONCATENATE("Schallleistungspegel, ",IF(B86<0," Kühlfall"," Heizfall")," [dB]") -> Schallleistungspegel, Kühlfall [dB] | B97: =D89 -> 46.37466968 | C97: 42.4792186 | D97: 40.28469034 | E97: =G89 -> 38.05427664 | F97: 33.56226038 | G97: 26.68476958 | H97: 21.91291027 | I97: =10*LOG(10^(H99/10)+10^(B99/10)+10^(C99/10)+10^(D99/10)+10^(E99/10)+10^(F99/10)+10^(G99/10)) -> 42.72049586 | Q97: Differenz (Erhöhung) | S97: =S96-S95 -> 0.4877730872 | T97: =T96-T95 -> 3.42845432 | U97: 3.207946737 | V97: 4.161514084 | W97: 3.979427645 | X97: 2.680370583 | Y97: 1.47921065 | Z97: 1.174883798
A98: A-Bewertung | B98: -16.1 | C98: -8.6 | D98: -3.2 | E98: 0 | F98: 1.2 | G98: 1 | H98: -1.1
A99: Schallleistungspegel, bewertet | B99: =B97+B98 -> 30.27466968 | C99: =C97+C98 -> 33.8792186 | D99: 37.08469034 | E99: 38.05427664 | F99: 34.76226038 | G99: 27.68476958 | H99: 20.81291027
Q100: Volumenstrom 5000 m³/h
A101: DN | B101: =B83 -> 315 | L101: Heizfall | S101: 63 | T101: 125 | U101: 250 | V101: 500 | W101: 1000 | X101: 2000 | Y101: 4000 | Z101: 8000
A102: V° | B102: =B84 -> 1000 | Q102: ohne AK | S102: 62.29004378 | T102: 60.03299179 | U102: 54.20836223 | V102: 54.09096016 | W102: 51.52302542 | X102: 46.56269838 | Y102: 37.46992589 | Z102: 30.23666949 | AA102: =10*LOG(10^(0.1*S102)+10^(0.1*T102)+10^(0.1*U102)+10^(0.1*V102)+10^(0.1*W102)+10^(0.1*X102)+10^(0.1*Y102)) -> 65.33381354
A103: a | B103: =Einheiten!E20 -> 25 | Q103: mit AK | S103: 63.26670425 | T103: 63.29940229 | U103: 57.35088403 | V103: 58.25435322 | W103: 55.5526207 | X103: 49.43476288 | Y103: 39.28922599 | Z103: 31.56730141 | AA103: =10*LOG(10^(0.1*S103)+10^(0.1*T103)+10^(0.1*U103)+10^(0.1*V103)+10^(0.1*W103)+10^(0.1*X103)+10^(0.1*Y103)) -> 67.72842398
A104: DT | B104: -15 | Q104: Differenz (Erhöhung) | S104: =S103-S102 -> 0.9766604675 | T104: =T103-T102 -> 3.266410504 | U104: 3.142521795 | V104: 4.16339306 | W104: 4.029595278 | X104: 2.872064496 | Y104: 1.819300097 | Z104: 1.33063192
A105: v= | B105: =$B$84/(PI()*($B$83/1000)^2/4)/3600 -> 3.564400618 | P105: zu berücksichtigendes Offset | S105: 1 | T105: 3 | U105: 3 | V105: 4 | W105: 4 | X105: 3 | Y105: 2 | Z105: 1
A106: DpTot= | B106: =($K$67*EXP($L$67*$B$103)+$M$67)*$B$105^2 -> 17.64081549 | K106: Summe
A107: LWOCT= | D107: =IF($B$93=1,D153+6,D153) -> 20.00077573 | E107: =IF($B$93=1,E153+6,E153) -> 24.33465687 | F107: =IF($B$93=1,F153+5,F153) -> 27.99299545 | G107: =IF($B$93=1,G153+5,G153) -> 31.01666875 | H107: =IF($B$93=1,H153+4,H153) -> 25.57106922 | I107: =IF($B$93=1,I153+4,I153) -> 20.8901192 | J107: =IF($B$93=1,J153+4,J153) -> 16.78954218 | K107: =10*LOG(10^(D107/10)+10^(E107/10)+10^(F107/10)+10^(G107/10)+10^(H107/10)+10^(I107/10)+10^(J107/10)) -> 34.46567848
A108: A-Bew= | D108: -16.1 | E108: -8.6 | F108: -3.2 | G108: 0 | H108: 1.2 | I108: 1 | J108: -1.1
A109: LWAOCT= | D109: =D107+D108 -> 3.900775726 | E109: =E107+E108 -> 15.73465687 | F109: 24.79299545 | G109: 31.01666875 | H109: 26.77106922 | I109: 21.8901192 | J109: 15.68954218 | K109: =10*LOG(10^(D109/10)+10^(E109/10)+10^(F109/10)+10^(G109/10)+10^(H109/10)+10^(I109/10)+10^(J109/10)) -> 33.56451822
A110: SLWA= | B110: =K109 -> 33.56451822 | C110: dB(A)
A111: Offset AK= | B111: 0 | C111: dB | D111: Offset AK: 5 dB, Datenherkunft: Auslegungsprogramme Mitbewerber
A113: =CONCATENATE("Oktavspektren emcoair LDI, DN ",B101,", Volumenstrom ",B102," m³/h"," Klappenwinkel ",B103,"°",IF(B111<>0," mit Anschlusskasten"," ohne Anschlusskasten")) -> Oktavspektren emcoair LDI, DN 315, Volumenstrom 1000 m³/h Klappenwinkel 25° ohne Anschlusskasten | I113: SLW,A
A114: Oktavband, Mittenfrequenz f [Hz] | B114: 125 | C114: 250 | D114: 500 | E114: 1000 | F114: 2000 | G114: 4000 | H114: 8000 | I114: dB(A)
A115: =CONCATENATE("Schallleistungspegel, ",IF(B104<0," Kühlfall"," Heizfall")," [dB]") -> Schallleistungspegel, Kühlfall [dB] | B115: =D107 -> 20.00077573 | C115: 24.33465687 | D115: 27.99299545 | E115: =G107 -> 31.01666875 | F115: =H107 -> 25.57106922 | G115: 20.8901192 | H115: 16.78954218 | I115: =10*LOG(10^(H117/10)+10^(B117/10)+10^(C117/10)+10^(D117/10)+10^(E117/10)+10^(F117/10)+10^(G117/10)) -> 33.56451822
A116: A-Bewertung | B116: -16.1 | C116: -8.6 | D116: -3.2 | E116: 0 | F116: 1.2 | G116: 1 | H116: -1.1
A117: Schallleistungspegel, bewertet | B117: =B115+B116 -> 3.900775726 | C117: =C115+C116 -> 15.73465687 | D117: 24.79299545 | E117: 31.01666875 | F117: 26.77106922 | G117: 21.8901192 | H117: 15.68954218
A120: Akustikberechnung für Vorauswahltabelle
A121: a | B121: 60
A122: V° | B122: =B84 -> 1000
A123: DN | B123: =B83 -> 315
A125: DN | B125: v | C125: Dptot
A126: 250 | B126: =$B$122/(PI()*(A126/1000)^2/4)/3600 -> 5.658842421 | C126: =($K$35*EXP($L$35*$B$121)+$M$35)*$B$126^2 -> 253.3960414 | D126: =((D$35+D$36*LOG($B$126)+D$37*LOG($C$126)+D$38*$B$121^2+D$39*$B$85)+$B$93)+D$108 -> 217.7899584 | E126: =((E$35+E$36*LOG($B$126)+E$37*LOG($C$126)+E$38*$B$121^2+E$39*$B$85)+$B$93)+E$108 -> 375.3040532 | F126: 65.78101047 | G126: 9.289611258 | H126: 35.88571283 | I126: 67.93590951 | J126: 194.2117923 | K126: =10*LOG(10^(D126/10)+10^(E126/10)+10^(F126/10)+10^(G126/10)+10^(H126/10)+10^(I126/10)+10^(J126/10)) -> 375.3040532
A127: 315 | B127: =$B$122/(PI()*(A127/1000)^2/4)/3600 -> 3.564400618 | C127: =($K$40*EXP($L$40*$B$121)+$M$40)*$B$127^2 -> 75.54338379 | D127: =((D$40+D$41*LOG($B$127)+D$42*LOG($C$127)+D$43*$B$121^2+D$44*$B$85)+$B$93)+D$108 -> 35.99349947 | E127: =((E$40+E$41*LOG($B$127)+E$42*LOG($C$127)+E$43*$B$121^2+E$44*$B$85)+$B$93)+E$108 -> 44.61995174 | F127: 47.2875061 | G127: 47.46256863 | H127: 44.04896614 | I127: 43.22492406 | J127: 31.26269851 | K127: =10*LOG(10^(D127/10)+10^(E127/10)+10^(F127/10)+10^(G127/10)+10^(H127/10)+10^(I127/10)+10^(J127/10)) -> 52.78760442
A128: 400 | B128: 2.210485321 | C128: =($K$45*EXP($L$45*$B$121)+$M$45)*$B$128^2 -> 28.40550168 | D128: =((D$45+D$46*LOG($B$128)+D$47*LOG($C$128)+D$48*$B$121^2+D$49*$B$85)+$B$93)+D$108 -> 25.28571586 | E128: =((E$45+E$46*LOG($B$128)+E$47*LOG($C$128)+E$48*$B$121^2+E$49*$B$85)+$B$93)+E$108 -> 16.94794387 | F128: 25.28150503 | G128: 33.43100871 | H128: 40.74951183 | I128: 4.198761793 | J128: 11.8504784 | K128: 41.71133067
A129: 500 | B129: 1.414710605 | C129: =($K$50*EXP(L50*$B$121)+$M$50)*$B$129^2 -> 11.3195181 | D129: =((D$50+D$51*LOG($B$129)+D$52*LOG($C$129)+D$53*$B$121^2+D$54*$B$85)+$B$93)+D$108 -> 9.60151381 | E129: =((E$50+E$51*LOG($B$129)+E$52*LOG($C$129)+E$53*$B$121^2+E$54*$B$85)+$B$93)+E$108 -> 40.62387137 | F129: 32.35250452 | G129: 15.33151752 | H129: 4.674969332 | I129: 9.74537899 | J129: 63.27645383 | K129: 63.30357229
A130: 630 | B130: 0.8911001545 | C130: =($K$55*EXP(L55*$B$121)+$M$55)*$B$130^2 -> 4.418089995 | D130: =((D$55+D$56*LOG($B$130)+D$57*LOG($C$130)+D$58*$B$121^2+D$59*$B$85)+$B$93)+D$108 -> 25.58401142 | E130: =((E$55+E$56*LOG($B$130)+E$57*LOG($C$130)+E$58*$B$121^2+E$59*$B$85)+$B$93)+E$108 -> 29.91895268 | F130: 30.0175603 | G130: 35.91100736 | H130: 32.42492721 | I130: 5.250412748 | J130: -16.65475044 | K130: 39.03025199
A131: 800 | B131: 0.5526213302 | C131: =($K$60*EXP($L$60*$B$121)+$M$60)*$B$131^2 -> 1.683519878 | D131: =((D$60+D$61*LOG($B$131)+D$62*LOG($C$131)+D$63*$B$121^2+D$64*$B$85)+$B$93)+D$108 -> 2.471210441 | E131: =((E$60+E$61*LOG($B$131)+E$62*LOG($C$131)+E$63*$B$121^2+E$64*$B$85)+$B$93)+E$108 -> -13.85903462 | F131: -6.984846692 | G131: 5.861289171 | H131: 1.680399814 | I131: -30.71965169 | J131: -23.91063947 | K131: =10*LOG(10^(D131/10)+10^(E131/10)+10^(F131/10)+10^(G131/10)+10^(H131/10)+10^(I131/10)+10^(J131/10)) -> 8.657649879
A135: a
A136: 15 | B136: =$B$122/(PI()*($B$123/1000)^2/4)/3600 -> 3.564400618 | C136: =($K$35*EXP($L$35*A136)+$M$35)*$B$136^2 -> 16.34334434 | D136: =((D$35+D$36*LOG($B136)+D$37*LOG($C136)+D$38*$A136^2+D$39*$A136)+$B$93)+D$108 -> 17.22582229 | E136: =((E$35+E$36*LOG($B136)+E$37*LOG($C136)+E$38*$A136^2+E$39*$A136)+$B$93)+E$108 -> 22.17491342 | F136: 28.52299248 | G136: 29.10077871 | H136: 23.2024181 | I136: 20.41372313 | J136: 13.59704308 | K136: =10*LOG(10^(D136/10)+10^(E136/10)+10^(F136/10)+10^(G136/10)+10^(H136/10)+10^(I136/10)+10^(J136/10)) -> 33.18983239 | L136: =MIN($K$136:$K$139) -> 33.18983239
A137: 20 | B137: =$B$122/(PI()*($B$123/1000)^2/4)/3600 -> 3.564400618 | C137: =($K$35*EXP($L$35*A137)+$M$35)*$B$136^2 -> 17.50747605 | D137: =((D$35+D$36*LOG($B137)+D$37*LOG($C137)+D$38*$A137^2+D$39*$A137)+$B$93)+D$108 -> 7.686870239 | E137: 3.331507269 | F137: 27.55587436 | G137: 32.75160393 | H137: 25.32264957 | I137: 19.51671315 | J137: 5.406939669 | K137: =10*LOG(10^(D137/10)+10^(E137/10)+10^(F137/10)+10^(G137/10)+10^(H137/10)+10^(I137/10)+10^(J137/10)) -> 34.61731001 | L137: =SMALL(K136:K139,2) -> 34.43281366
A138: 25 | B138: 3.564400618 | C138: 19.24393098 | D138: 11.30148178 | E138: 9.167322831 | F138: 27.38769809 | G138: 32.41530747 | H138: 25.55939676 | I138: 19.73459851 | J138: 8.849877571 | K138: 34.43281366 | L138: =SMALL(K136:K139,3) -> 34.46567848
A139: 30 | B139: 3.564400618 | C139: 21.83408094 | D139: 20.00077573 | E139: 24.33465687 | F139: 27.99299545 | G139: 31.01666875 | H139: 25.57106922 | I139: 20.8901192 | J139: 16.78954218 | K139: 34.46567848 | L139: =MAX($K$136:$K$139) -> 34.61731001
A140: 35 | B140: 3.564400618 | C140: 25.69762885 | D140: 27.08117895 | E140: 36.08273905 | F140: 29.35060763 | G140: 30.98557512 | H140: 26.73546263 | I140: 22.83600878 | J140: 23.29713052 | K140: 38.78608531
A141: 40 | B141: 3.564400618 | C141: 31.46061661 | D141: 28.79745422 | E141: 37.28780729 | F141: 31.44871334 | G141: 33.6795869 | H141: 29.82234137 | I141: 25.48999056 | J141: 25.06026376 | K141: 40.59833941
A142: 45 | B142: 3.564400618 | C142: 40.05686767 | D142: 25.40093477 | E142: 28.42791897 | F142: 34.28810589 | G142: 39.00760169 | H142: 34.78004852 | I142: 28.85758591 | J142: 22.30122715 | K142: =10*LOG(10^(D142/10)+10^(E142/10)+10^(F142/10)+10^(G142/10)+10^(H142/10)+10^(I142/10)+10^(J142/10)) -> 41.93935669
A143: 50 | B143: 3.564400618 | C143: 52.87930204 | D143: 21.06657874 | E143: 17.44420209 | F143: 37.88196291 | G143: 45.45629549 | H143: 40.75049853 | I143: 33.03051179 | J143: 18.71245508 | K143: 47.43665561
A144: 55 | B144: 3.564400618 | C144: 72.00564237 | D144: 22.75019029 | E144: 17.56719204 | F144: 42.25223932 | G144: 50.50435313 | H144: 46.30405427 | I144: 38.16157574 | J144: 20.44582982 | K144: 52.52158311
A145: 60 | B145: 3.564400618 | C145: 100.5350841 | D145: =((D$35+D$36*LOG($B145)+D$37*LOG($C145)+D$38*$A145^2+D$39*$A145)+$B$93)+D$108 -> 38.57858852 | E145: 44.25479493 | F145: 47.42458623 | G145: 51.20599408 | H145: 49.77039813 | I145: 44.42931055 | J145: 34.68890765 | K145: 55.3988145
B147: 15 | D147: =IF($L$136=$K$136,D136,IF($L$136=$K$137,D137,IF($L$136=$K$138,D138,IF($L$136=$K$139,D139)))) -> 17.22582229 | E147: =IF($L$136=$K$136,E136,IF($L$136=$K$137,E137,IF($L$136=$K$138,E138,IF($L$136=$K$139,E139)))) -> 22.17491342 | F147: 28.52299248 | G147: 29.10077871 | H147: 23.2024181 | I147: 20.41372313 | J147: 13.59704308 | K147: 33.18983239
B148: 20 | D148: =IF($L$137=$K$136,D136,IF($L$137=$K$137,D137,IF($L$137=$K$138,D138,IF($L$137=$K$139,D139)))) -> 11.30148178 | E148: =IF($L$137=$K$136,E136,IF($L$137=$K$137,E137,IF($L$137=$K$138,E138,IF($L$137=$K$139,E139)))) -> 9.167322831 | F148: 27.38769809 | G148: 32.41530747 | H148: 25.55939676 | I148: 19.73459851 | J148: 8.849877571 | K148: 34.43281366
B149: 25 | D149: =IF($L$138=$K$136,D136,IF($L$138=$K$137,D137,IF($L$138=$K$138,D138,IF($L$138=$K$139,D139)))) -> 20.00077573 | E149: =IF($L$138=$K$136,E136,IF($L$138=$K$137,E137,IF($L$138=$K$138,E138,IF($L$138=$K$139,E139)))) -> 24.33465687 | F149: 27.99299545 | G149: 31.01666875 | H149: 25.57106922 | I149: 20.8901192 | J149: 16.78954218 | K149: 34.46567848
B150: 30 | D150: =IF($L$139=$K$136,D136,IF($L$139=$K$137,D137,IF($L$139=$K$138,D138,IF($L$139=$K$139,D139)))) -> 7.686870239 | E150: =IF($L$139=$K$136,E136,IF($L$139=$K$137,E137,IF($L$139=$K$138,E138,IF($L$139=$K$139,E139)))) -> 3.331507269 | F150: 27.55587436 | G150: 32.75160393 | H150: 25.32264957 | I150: 19.51671315 | J150: 5.406939669 | K150: =10*LOG(10^(D150/10)+10^(E150/10)+10^(F150/10)+10^(G150/10)+10^(H150/10)+10^(I150/10)+10^(J150/10)) -> 34.61731001
C152: 1 | D152: 2 | E152: 3 | F152: 4 | G152: 5 | H152: 6 | I152: 7 | J152: 8 | K152: 9 | L152: 10
B153: ='Auslegung-L'!$E$30 -> 25 | D153: =VLOOKUP($B$153,$B$147:$J$150,E152,FALSE) -> 20.00077573 | E153: =VLOOKUP($B$153,$B$147:$J$150,F152,FALSE) -> 24.33465687 | F153: =VLOOKUP($B$153,$B$147:$J$150,G152,FALSE) -> 27.99299545 | G153: 31.01666875 | H153: 25.57106922 | I153: 20.8901192 | J153: 16.78954218 | K153: =VLOOKUP($B$153,$B$147:$K$150,L152,FALSE) -> 34.46567848

Sheet Datenblatt Einzeldurchlass-L (hidden)
A2: =Übersetzung!F86 -> Typ | B2: ='Auslegung-L'!D12 -> LDI | I2: =TODAY() -> 2020-12-07
A3: =Übersetzung!F87 -> Projekt
A5: =Übersetzung!F88 -> Definition:
A6: ='Auslegung-L'!A12 -> Durchlass Typ | B6: ='Auslegung-L'!$D$12 -> LDI | C6: ='Auslegung-L'!A20 -> Nenndurchmesser | F6: ='Auslegung-L'!$D$20 -> 315
A7: Schlitzanzahl: | B7: ='[1]Auslegung-V'!D20 -> 500 | C7: Farbe Abdeckprofil: | E7: ='[1]Auslegung-V'!B85 -> 9010
A8: Innenauskleidung: | B8: ='[1]Auslegung-V'!G99 -> B1 | C8: Drossel fb: | E8: ='[1]Auslegung-V'!B96 -> ohne
A10: =Übersetzung!F94 -> Beschreibung: Luftdurchlass für die Belüftung industrieller Bereiche. In Abhängigkeit des ausgewählten Durchlasses erfolgt eine Umschaltung zwischen Kühl- und Heizbetrieb manuell oder elektrisch.
A11: ='Auslegung-L'!J100 -> Einsatzbereich
A12: ='Auslegung-L'!J101 -> Minimaler Volumenstrom | B12: V°min | C12: ='Grunddaten-L'!$H$33 -> 560 | D12: =Einheiten!$L$7 -> m³/h
A13: ='Auslegung-L'!J102 -> Maximaler Volumenstrom | B13: V°max | C13: ='Grunddaten-L'!$I$33 -> 1700 | D13: =Einheiten!$L$7 -> m³/h
A15: =Übersetzung!F90 -> technische Vorgaben | F15: ='Auslegung-L'!A39 -> Raumdaten
A16: ='Auslegung-L'!A29 -> Luftvolumenstrom | B16: V·SUP | C16: ='Auslegung-L'!$D$29 -> 1000 | D16: =Einheiten!$L$7 -> m³/h | F16: ='Auslegung-L'!A44 -> Raumhöhe | G16: ='Auslegung-L'!$D$44 -> 14 | H16: =Einheiten!$L$5 -> m
A17: =Übersetzung!F95 -> Zulufttemperatur Kühlfall | B17: tZULK | C17: ='Auslegung-L'!D37 -> 16 | D17: =Einheiten!$L$9 -> °C | F17: ='Auslegung-L'!A43 -> Raumbreite | G17: ='Auslegung-L'!$D$43 -> 12.7 | H17: =Einheiten!$L$5 -> m
A18: =Übersetzung!F96 -> Raumtemperatur Kühlfall | B18: tRAUMK | C18: ='Auslegung-L'!D38 -> 24 | D18: =Einheiten!$L$9 -> °C | F18: ='Auslegung-L'!A42 -> Raumlänge | G18: ='Auslegung-L'!$D$42 -> 21 | H18: =Einheiten!$L$5 -> m
A19: =Übersetzung!F97 -> Zulufttemperatur Heizfall | B19: tZULH | C19: ='Auslegung-L'!E37 -> 30 | D19: =Einheiten!$L$9 -> °C | E19: ='Auslegung-L'!A40 -> Montagehöhe | G19: ='Auslegung-L'!D40 -> 8 | H19: =Einheiten!$L$5 -> m
A20: =Übersetzung!F98 -> Raumtemperatur Heizfall | B20: tRAUMH | C20: ='Auslegung-L'!E38 -> 20 | D20: =Einheiten!$L$9 -> °C | E20: ='Auslegung-L'!A41 -> Obergrenze Aufenthaltsbereich | G20: ='Auslegung-L'!D41 -> 1.8 | H20: =Einheiten!$L$5 -> m
A21: =Übersetzung!F99 -> Klappenwinkel Kühlfall | B21: aK | C21: ='Auslegung-L'!$D$30 -> 50 | D21: °
A22: =Übersetzung!F100 -> Klappenwinkel Heizfall | B22: aH | C22: ='Auslegung-L'!E30 -> 25 | D22: °
A24: ='Auslegung-L'!A78 -> Berechnung strömungstechnische und Akustische Daten | C24: ='Auslegung-L'!D98 -> Kühlfall | D24: ='Auslegung-L'!E78 -> Heizfall | F24: =Übersetzung!F84 -> Abmessungen und Einsatzbereich
A25: ='Auslegung-L'!A79 -> Totaldruckverlust | B25: Dp_SUP/ETA | C25: ='Auslegung-L'!$D$79 -> 44 | D25: ='Auslegung-L'!E79 -> 18 | E25: =Einheiten!$L$8 -> Pa | F25: ='Auslegung-L'!J101 -> Minimaler Volumenstrom | H25: ='Grunddaten-L'!H33 -> 560 | I25: =Einheiten!$L$7 -> m³/h
A26: ='Auslegung-L'!A80 -> kleinster Abstand zwischen 2 Durchlässen | B26: Smin | C26: ='Auslegung-L'!D80 -> 3.551516399 | E26: =Einheiten!$L$5 -> m | F26: ='Auslegung-L'!J102 -> Maximaler Volumenstrom | H26: ='Grunddaten-L'!I33 -> 1700 | I26: =Einheiten!$L$7 -> m³/h
A27: ='Auslegung-L'!A84 -> Mittlere Geschwindigkeit im Aufenthaltsbereich | B27: vx1 | C27: ='Auslegung-L'!D84 -> 0.1671271525 | E27: =Einheiten!$L$6 -> m/s | F27: ='Auslegung-L'!J84 -> Anschlussdurchmesser LDI | H27: ='Auslegung-L'!K84 -> 318 | I27: =Einheiten!$L$10 -> mm
A28: ='Auslegung-L'!A86 -> Vertikale Eindringtiefe | B28: Ymax | D28: ='Auslegung-L'!E86 -> 4.89915231 | E28: =Einheiten!$L$5 -> m | F28: ='Auslegung-L'!J86 -> Außendurchmesser, einfache Düsenkontur | H28: ='Auslegung-L'!K86 -> 318 | I28: =Einheiten!$L$10 -> mm
A29: ='[1]Auslegung-V'!A114 -> Zugluftrisiko im Aufenthaltsbereich** | B29: DR2 | C29: ='[1]Auslegung-V'!D112 -> 3.403046682 | E29: % | H29: ='Auslegung-L'!K86 -> 318 | I29: =Einheiten!$L$10 -> mm
A30: ='[1]Auslegung-V'!A115 -> Geschwindigkeit nach Ablösen an Xkr. | B30: vx3 | C30: ='[1]Auslegung-V'!$D$115 -> 0.3066023333 | E30: m/s | H30: ='Auslegung-L'!K87 -> 560 | I30: =Einheiten!$L$10 -> mm
A31: ='[1]Auslegung-V'!A116 -> Zugluftrisiko nach Ablösepunkt** | B31: DR3 | C31: ='[1]Auslegung-V'!D116 -> 19.56692007 | E31: % | H31: ='Auslegung-L'!K88 -> 1700 | I31: =Einheiten!$L$10 -> mm
A32: Raumkategorie** | B32: RAL | C32: ='[1]Auslegung-V'!D117 -> B | E32: ="-/-" -> -/- | H32: ='Auslegung-L'!K89 -> 0 | I32: =Einheiten!$L$10 -> mm
A33: ='Auslegung-L'!A91 -> Schallleistungspegel, Einzeldurchlass | B33: LWA_SUP/ETA | C33: ='Auslegung-L'!D91 -> 42.72049586 | D33: ='Auslegung-L'!E91 -> 33.56451822 | E33: dB(A) | F33: ='Auslegung-L'!J91 -> Außendurchmesser, verlängerte Düsenkontur | H33: ='Auslegung-L'!K91 -> 580 | I33: =Einheiten!$L$10 -> mm
F34: ='Auslegung-L'!J95 -> Höhe LDI | H34: ='Auslegung-L'!K95 -> 175 | I34: =Einheiten!$L$10 -> mm
F35: ='Auslegung-L'!J96 -> Anschlussdurchmesser opt. RAK | H35: ='Auslegung-L'!K96 -> 279 | I35: =Einheiten!$L$10 -> mm
F36: ='Auslegung-L'!J97 -> Außendurchmesser opt. RAK | H36: ='Auslegung-L'!K97 -> 385 | I36: =Einheiten!$L$10 -> mm
F37: ='Auslegung-L'!J98 -> Höhe opt. RAK | H37: ='Auslegung-L'!K98 -> 470 | I37: =Einheiten!$L$10 -> mm
A41: ='Auslegung-L'!A98 -> Oktavspektrum Schallleistung [dB] | B41: f [Hz] | C41: 125 | D41: 250 | E41: 500 | F41: 1000 | G41: 2000 | H41: 4000 | I41: 8000
A42: =Übersetzung!F101 -> Kühlfall | B42: LWA_K | C42: ='Auslegung-L'!$D$99 -> 46.37466968 | D42: ='Auslegung-L'!$D$100 -> 42.4792186 | E42: ='Auslegung-L'!$D$101 -> 40.28469034 | F42: ='Auslegung-L'!$D$102 -> 38.05427664 | G42: ='Auslegung-L'!$D$103 -> 33.56226038 | H42: ='Auslegung-L'!$D$104 -> 26.68476958 | I42: ='Auslegung-L'!$D$105 -> 21.91291027
A43: =Übersetzung!F102 -> Heizfall | B43: LWA_H | C43: ='Auslegung-L'!$E$99 -> 20.00077573 | D43: ='Auslegung-L'!$E$100 -> 24.33465687 | E43: ='Auslegung-L'!$E$101 -> 27.99299545 | F43: ='Auslegung-L'!$E$102 -> 31.01666875 | G43: ='Auslegung-L'!$E$103 -> 25.57106922 | H43: ='Auslegung-L'!$E$104 -> 20.8901192 | I43: ='Auslegung-L'!$E$105 -> 16.78954218
G44: technische Änderungen vorbehalten | H44: Stand: | I44: ='Grunddaten-L'!$E$36 -> 2020-10-30

Sheet Auslegung-V (hidden)
A1: =Übersetzung!F5 -> Auslegung Kampmann Industrieluftdurchlässe
A3: =Übersetzung!F6 -> Eingabefelder sind gelb gekennzeichnet
A4: =Übersetzung!F7 -> Ergebnisfelder sind blau gekennzeichnet
A6: =Übersetzung!F8 -> Vorgaben
A7: =Übersetzung!F9 -> Lüftungstechnik | B7: =Übersetzung!F10 -> Symbol | C7: =Übersetzung!F11 -> Einheit | D7: =Übersetzung!F12 -> Wert
A8: Bezeichung | B8: Symbol | C8: Einheit
B9: L | C9: mm
B10: L | C10: mm
B11: L | C11: mm
A12: Durchlass Typ | D12: VLD
D13: WKD 381-1
D14: WKD 381-2
D15: WKD 381-3
D18: VLV
A20: =Übersetzung!F46 -> Nenndurchmesser | B20: DN | C20: [-] | D20: 400
D21: =IF(OR($D$12="VLV",$D$12="VLD"),250,IF($D$12="WKD 380",600,IF($D$12="WKD 381-1",300,IF(OR($D$12="WKD 381-2",$D$12="WKD 381-3"),600,IF($D$12="IVA",250,""))))) -> 250
D22: =IF(OR($D$12="VLV",$D$12="VLD"),315,IF($D$12="WKD 380",800,IF($D$12="WKD 381-1",500,IF(OR($D$12="WKD 381-2",$D$12="WKD 381-3"),"",IF($D$12="IVA",315,""))))) -> 315
D23: =IF(OR($D$12="VLV",$D$12="VLD"),400,IF($D$12="WKD 380",1000,IF($D$12="WKD 381-1",600,IF(OR($D$12="WKD 381-2",$D$12="WKD 381-3"),"",IF($D$12="IVA",355,""))))) -> 400
D24: =IF(OR($D$12="VLV",$D$12="VLD"),500,IF($D$12="WKD 380","",IF($D$12="WKD 381-1","",IF(OR($D$12="WKD 381-2",$D$12="WKD 381-3"),"",IF($D$12="IVA",400,""))))) -> 500
D25: =IF(OR($D$12="VLV",$D$12="VLD"),"",IF($D$12="WKD 380","",IF($D$12="WKD 381-1","",IF(OR($D$12="WKD 381-2",$D$12="WKD 381-3"),"",IF($D$12="IVA",450,""))))) -> 
D26: =IF(OR($D$12="VLV",$D$12="VLD"),"",IF($D$12="WKD 380","",IF($D$12="WKD 381-1","",IF(OR($D$12="WKD 381-2",$D$12="WKD 381-3"),"",IF($D$12="IVA",500,""))))) -> 
D27: =IF(OR($D$12="VLV",$D$12="VLD"),"",IF($D$12="WKD 380","",IF($D$12="WKD 381-1","",IF(OR($D$12="WKD 381-2",$D$12="WKD 381-3"),"",IF($D$12="IVA",560,""))))) -> 
D28: =IF(OR($D$12="VLV",$D$12="VLD"),"",IF($D$12="WKD 380","",IF($D$12="WKD 381-1","",IF(OR($D$12="WKD 381-2",$D$12="WKD 381-3"),"",IF($D$12="IVA",630,""))))) -> 
D29: =IF(OR($D$12="VLV",$D$12="VLD"),"",IF($D$12="WKD 380","",IF($D$12="WKD 381-1","",IF(OR($D$12="WKD 381-2",$D$12="WKD 381-3"),"",IF($D$12="IVA",630,""))))) -> 
A30: =Übersetzung!F47 -> Montageart | B30: DN | C30: [-] | D30: deckenbündig
D31: =Übersetzung!F50 -> deckenbündig
D32: =Übersetzung!F51 -> freihängend
D33: =IF(Vorauswahl!$D$14-Vorauswahl!$D$16<2,"deckenbündig","freihängend") -> deckenbündig
A37: =Übersetzung!F16 -> Luftvolumenstrom | B37: V·SUP | C37: =Einheiten!L7 -> m³/h | D37: 3000
A38: max. Luftgeschwindigkeit im Aufenthaltsbereich | B38: vMax | C38: m/s | D38: 0.2
A39: =Übersetzung!F18 -> Temperatur Zuluft | B39: tSUP | C39: =Einheiten!$L$9 -> °C | D39: 30
A40: =Übersetzung!F19 -> Temperatur Raum | B40: tRaum | C40: =Einheiten!$L$9 -> °C | D40: 20
A41: =Übersetzung!F20 -> Raumdaten
A42: =Übersetzung!F21 -> Montagehöhe | B42: H1 | C42: =Einheiten!L5 -> m | D42: 15
A43: =Übersetzung!F22 -> Obergrenze Aufenthaltsbereich | B43: H2 | C43: =Einheiten!$L$5 -> m | D43: 1.8
A44: =Übersetzung!F23 -> Raumlänge | B44: LR | C44: =Einheiten!$L$5 -> m | D44: 100
A45: =Übersetzung!F24 -> Raumbreite | B45: BR | C45: =Einheiten!$L$5 -> m | D45: 100
A46: =Übersetzung!F25 -> Raumhöhe | B46: HR | C46: =Einheiten!$L$5 -> m | D46: 30
A47: =Übersetzung!F48 -> Abstand Durchlass zur nächstgelegenen Wand | B47: a | C47: =Einheiten!$L$5 -> m | D47: 3
A48: =Übersetzung!F49 -> kleinster Abstand zwischen 2 Durchlässen | B48: smin | C48: =Einheiten!$L$5 -> m | D48: 3
A50: Akustikdaten
A51: Raumart nach VDI 2081 | D51: Großraumbüro | I51: 7 | J51: Maximaler Volumenstrom | K51: ='Grunddaten-V'!$I$37 -> 4500 | L51: m³/h
C52: Einzelbüro | I52: 5 | J52: min. Abmessung Frontblende rund | K52: ='Grunddaten-V'!Q37 -> 0 | L52: mm
C53: Großraumbüro
C54: Werkstätten
C55: Ruheraum, Pausenraum
C56: Untersuchungsraum Krankenhaus
C57: Rundfunk-, Fernsehstudio
C58: Chemielabor
C59: Wasch- und WC-Raum, Umkleide
C60: Schwimmbad
C61: EDV-Raum
C62: Konzertsaal
C63: Lesesaal
C64: Museum
C65: Küche
C66: Theater, Kino
C67: Klassen- Seminarraum
C68: Gaststätte
C69: kein Typ
C70: Konferenzraum
C71: Hotelzimmer
C72: Hörsaal
C73: Bettenzimmer Krankenhaus
C74: Verkaufsraum
C75: Sporthalle
A76: Betrachteter Durchlass | D76: Zuluft
D77: Zuluft
D78: Abluft
A79: Abstand zur Schallquelle | B79: r | C79: m | D79: 3
A80: Zusatzdaten
A81: Funktion | F81: =VLOOKUP(B81,#REF!,2,FALSE) ->  | G81: =VLOOKUP($B$81,$B$82:$G$84,6,0) -> Z
B82: =IF(D12=500,"Zuluft","") ->  | G82: Z
B83: =IF(D12=500,"Abluft","") ->  | G83: A
B84: =IF(D12>500,"Zuluft/Abluft-Kombination","") -> Zuluft/Abluft-Kombination | G84: K
A85: Farbe Abdeckprofil und Endwinkel | B85: 9010 | F85: =VLOOKUP(B85,#REF!,2,FALSE) ->  | G85: =$B$85 -> 9010
A86: Farbe Luftlenkelement | B86: schwarz | G86: =VLOOKUP(B86,B87:G89,6,FALSE) -> S
B87: schwarz | G87: S
B88: weiß | G88: W
B89: grau | G89: G
A90: Einstellung Luftlenkelement | B90: Deckenstrahl D / E | G90: =VLOOKUP(B90,B91:G94,6,FALSE) -> D
B91: Deckenstrahl D / E | G91: D
B92: Sondereinstellung | G92: S
A94: Werkstoff Anschlusskasten | B94: Stahl verzinkt | G94: V
B95: Stahl verzinkt
A96: frontseitig bedienbare Drossel | B96: ohne | F96: =VLOOKUP(B96,#REF!,2,FALSE) ->  | G96: =VLOOKUP(B96,B97:G99,6,FALSE) -> 0
B97: mit | G97: 1
B98: ohne | G98: 0
A99: Innenauskleidung | B99: Baustoffklasse B1 (Standard) | G99: =VLOOKUP(B99,B100:G103,6,FALSE) -> B1
B100: Baustoffklasse B1 (Standard) | G100: B1
B101: Baustoffklasse A2 (optional) | G101: A2
A103: Merkmalschlüssel | B103: =CONCATENATE(1,"KSW","0",D20,G103,G81,"A",G85,G86,G90,G94,G96,G99,1,G104) -> 1KSW0400VLDZA9010SDV0B11100 | G103: =IF(D12<1000,CONCATENATE(0,D12),D12) -> VLD
G104: =IF(K113=78,"080",100) -> 100
A105: =Übersetzung!F26 -> Berechnung strömungstechnische und Akustische Daten
A106: =Übersetzung!F27 -> Totaldruckverlust | B106: Dpt | C106: =Einheiten!L8 -> Pa | D106: =IF(Einheiten!$F$2=3,FIXED(Einheiten!$E$48,3,TRUE),FIXED(Einheiten!$E$48,0,TRUE)) -> 35
A107: =IF(D39>D40,"",Übersetzung!F91) ->  | B107: xkr. | C107: =Einheiten!L5 -> m | D107: =IF(OR(D76="deckenbündig",D30="flush installed"),Einheiten!$E$49,IF(OR(D30="freihängend",D30="hanging installed"),"",IF(D39>D40,"",xkr._vx!$F$11))) -> 
A108: Laufweg bis Fußbodenbereich | B108: xx | C108: m | D108: =xkr._vx!L24 -> 18.5
A109: Laufweg bis Aufenthaltsbereich nach Stoßpunkt | B109: xx+y | C109: m | D109: =xkr._vx!L26 -> 14.7
A110: Laufweg bis Aufenthaltsbereich nach xkrit | B110: xxkr | C110: m | D110: =IF(D39>=D40,"Heizfall",xkr._vx!L28) -> Heizfall
A111: =IF(D39>D40,"",Übersetzung!F52) ->  | B111: vx1 | C111: =Einheiten!$L$6 -> m/s | D111: =IF(D40<D39,"",IF(Einheiten!$E$50< 0.1,"< 0,1",Einheiten!$E$50)) -> 
A112: =IF(D39>D40,"",Übersetzung!F53) ->  | B112: DR1 | C112: % | D112: =IF(D76="Zuluft",IF($D$39>$D$40,"",Einheiten!$E$51),"") -> 
A113: =IF(D39>D40,Übersetzung!F54,Übersetzung!F55) -> Vertikale Eindringtiefe | B113: vx2 | C113: =IF(D39>D40,Einheiten!$L$5,Einheiten!$L$6) -> m | D113: =IF(D76="Zuluft",IF($D$39>$D$40,Einheiten!$E$56,IF(Einheiten!$E$52<0.1,"< 0,1",Einheiten!$E$52)),"") -> 7.428190224
A114: =IF(D39>D40,"",Übersetzung!F56) ->  | B114: DR2 | C114: % | D114: =IF(D76="Zuluft",IF($D$39>$D$40,"",DR!$C$24),"") -> 
A115: =IF(D39>D40,"",Übersetzung!F57) ->  | B115: vx3 | C115: =Einheiten!$L$6 -> m/s | D115: =IF(D39>D40,"",IF(xkr._vx!$I$11<0.1,"<0,1",IF($D$39>$D$40,"Heizfall",xkr._vx!$I$11))) -> 
A116: =IF(D39>D40,"",Übersetzung!F58) ->  | B116: DR3 | C116: % | D116: =IF(D76="Zuluft",IF($D$39>$D$40,"",DR!$C$32),"") -> 
A117: =Übersetzung!F59 -> Resultierende Raumkategorie | B117: RAL | C117: [-] | D117: =IF(D76="Zuluft",IF(D39>D40,"",IF(AND($D$112<9.95,$D$114<9.95,OR($D$116="",$D$116<9.95)),"A",IF(AND($D$112<19.95,$D$114<19.95,OR($D$116="",$D$116<19.95)),"B",IF(AND($D$112<29.95,$D$114<29.95,OR($D$116="",$D$116<29.95)),"C","Außerhalb C")))),"") -> 
A118: =Übersetzung!F33 -> Schallleistungspegel, Einzeldurchlass | B118: LWA_SUP/ETA | C118: dB(A) | D118: =IF(D76="Zuluft",Lw!I96,"") -> 51.40116215
A119: Schalldruckpegel, Zahlenwert Zuluft + Abluft | D119: =D118+10*LOG(Lw!$F$106/(4*PI()*'Auslegung-V'!D79^2)+4/(Lw!$H$106)) -> 36.89727122 | E119: =E118+10*LOG(Lw!$F$106/(4*PI()*'Auslegung-V'!E79^2)+4/(Lw!$H$106)) -> 
A120: =CONCATENATE("Schallldruckpegel in ",D79,"m Entfernung, Einzeldurchlass") -> Schallldruckpegel in 3m Entfernung, Einzeldurchlass | B120: LPA_SUP/ETA | C120: dB(A) | D120: =IF(D76="Zuluft",IF(D118="<25","<25",IF(D118+10*LOG(Lw!$F$106/(4*PI()*'Auslegung-V'!D79^2)+4/(Lw!$H$106))>=25,D118+10*LOG(Lw!$F$106/(4*PI()*'Auslegung-V'!D79^2)+4/(Lw!$H$106)),"<25")),"") -> 36.89727122 | E120: =IF(D76="Abluft",IFERROR(IF(E118="<25","<25",IF(E118+10*LOG(Lw!$F$106/(4*PI()*'Auslegung-V'!D79^2)+4/(Lw!$H$106))>=25,E118+10*LOG(Lw!$F$106/(4*PI()*'Auslegung-V'!D79^2)+4/(Lw!$H$106)),"<25")),"a. Anf"),"") -> 
A121: Schalldruckpegel rechnerisch | D121: =IF(10*LOG(10^(D119/10)+10^(E119/10))<25,"<25",10*LOG(10^(D119/10)+10^(E119/10))) -> 
A122: =Übersetzung!F60 -> *Gilt für Eintritt der Luftströmung in den Aufenthaltbereich nach dem Stoßpunkt
A123: =Übersetzung!F61 -> ** Berechnung gemäß DIN EN ISO 7730
A125: =Übersetzung!F34 -> Oktavspektrum Schallleistung [dB] | B125: LW_Okt | C125: dB
B126: LW_125 | C126: dB | D126: =IF($D$76="Zuluft",IFERROR(Lw!B$98,"a. Anf"),"") -> 63.76582426
B127: LW_250 | C127: dB | D127: =IF($D$76="Zuluft",IFERROR(Lw!C$98,"a. Anf"),"") -> 55.16692213
B128: LW_500 | C128: dB | D128: =IF($D$76="Zuluft",IFERROR(Lw!D$98,"a. Anf"),"") -> 46.80757191
B129: LW_1000 | C129: dB | D129: =IF($D$76="Zuluft",IFERROR(Lw!E$98,"a. Anf"),"") -> 37.29959188
B130: LW_2000 | C130: dB | D130: =IF($D$76="Zuluft",IFERROR(Lw!F$98,"a. Anf"),"") -> 29.73507741
B131: LW_4000 | C131: dB | D131: =IF($D$76="Zuluft",IFERROR(Lw!G$98,"a. Anf"),"") -> 26.22897357
B132: LW_8000 | C132: dB | D132: =IF($D$76="Zuluft",IFERROR(Lw!H$98,"a. Anf"),"") -> 28.51461301
A134: =Übersetzung!F44 -> Änderungen vorbehalten
A135: =Übersetzung!F45 -> Stand: | E135: =IF(D12=500,KSW(),"") -> 
A136: ='Grunddaten-V'!E40 -> 2020-10-30

Sheet Datenblatt Einzeldurchlass-V (hidden)
A2: =Übersetzung!F86 -> Typ | B2: ='Auslegung-V'!D12 -> VLD | I2: =TODAY() -> 2020-12-07
A3: =Übersetzung!F87 -> Projekt | B3: =Übersetzung!F89 -> bitte Projektname / VIS-Nr. eintragen
A5: =Übersetzung!F88 -> Definition:
A6: =Übersetzung!F13 -> Durchlass Typ | B6: ='Auslegung-V'!D12 -> VLD | C6: =Übersetzung!F46 -> Nenndurchmesser | F6: ='Auslegung-V'!D20 -> 400 | G6: =Übersetzung!F47 -> Montageart | I6: ='Auslegung-V'!D30 -> deckenbündig
A7: Schlitzanzahl: | B7: ='Auslegung-L'!D20 -> 315 | C7: Farbe Abdeckprofil: | E7: ='Auslegung-L'!B83 -> xxkr
A8: Innenauskleidung: | B8: ='Auslegung-L'!G96 -> 0 | C8: Drossel fb: | E8: ='Auslegung-L'!B94 -> 0
A10: =Übersetzung!F94 -> Beschreibung: Luftdurchlass für die Belüftung industrieller Bereiche. In Abhängigkeit des ausgewählten Durchlasses erfolgt eine Umschaltung zwischen Kühl- und Heizbetrieb manuell oder elektrisch.
A11: =Übersetzung!F81 -> Einsatzbereich
A12: =Übersetzung!F39 -> Minimaler Volumenstrom | B12: V°min | C12: ='Grunddaten-V'!H37 -> 700 | D12: =Einheiten!$L$7 -> m³/h
A13: =Übersetzung!F40 -> Maximaler Volumenstrom | B13: V°max | C13: ='Grunddaten-V'!I37 -> 4500 | D13: =Einheiten!$L$7 -> m³/h
A15: =Übersetzung!F90 -> technische Vorgaben | F15: ='Auslegung-V'!A41 -> Raumdaten
A16: ='Auslegung-V'!A37 -> Luftvolumenstrom | B16: V·SUP | C16: ='Auslegung-V'!D37 -> 3000 | D16: =Einheiten!L7 -> m³/h | F16: ='Auslegung-V'!A46 -> Raumhöhe | G16: ='Auslegung-V'!D46 -> 30 | H16: =Einheiten!$L$5 -> m
A17: ='Auslegung-V'!A39 -> Temperatur Zuluft | B17: tZUL | C17: ='Auslegung-V'!D39 -> 30 | D17: =Einheiten!$L$9 -> °C | F17: ='Auslegung-V'!A45 -> Raumbreite | G17: ='Auslegung-V'!D45 -> 100 | H17: =Einheiten!$L$5 -> m
A18: ='Auslegung-V'!A40 -> Temperatur Raum | B18: tRAUM | C18: ='Auslegung-V'!D40 -> 20 | D18: =Einheiten!$L$9 -> °C | F18: ='Auslegung-V'!A44 -> Raumlänge | G18: ='Auslegung-V'!D44 -> 100 | H18: =Einheiten!$L$5 -> m
A19: ='Auslegung-V'!A46 -> Raumhöhe | B19: ='Auslegung-L'!B45 -> a | C19: ='Auslegung-V'!D47 -> 3 | D19: =Einheiten!$L$5 -> m | E19: ='Auslegung-V'!A42 -> Montagehöhe | G19: ='Auslegung-V'!D42 -> 15 | H19: =Einheiten!$L$5 -> m
A20: ='Auslegung-V'!A47 -> Abstand Durchlass zur nächstgelegenen Wand | B20: smin | C20: ='Auslegung-V'!D48 -> 3 | D20: =Einheiten!$L$5 -> m | E20: ='Auslegung-V'!A43 -> Obergrenze Aufenthaltsbereich | G20: ='Auslegung-V'!D43 -> 1.8 | H20: =Einheiten!$L$5 -> m
A24: ='Auslegung-V'!A105 -> Berechnung strömungstechnische und Akustische Daten | F24: =Übersetzung!F84 -> Abmessungen und Einsatzbereich
A25: ='Auslegung-V'!A106 -> Totaldruckverlust | B25: Dp_SUP | C25: ='Auslegung-V'!D106 -> 35 | E25: =Einheiten!$L$8 -> Pa | F25: =Übersetzung!F39 -> Minimaler Volumenstrom | H25: ='Grunddaten-V'!H37 -> 700 | I25: =Einheiten!$L$7 -> m³/h
A26: ='Auslegung-V'!A107 ->  | B26: xkr. | C26: ='Auslegung-V'!D107 ->  | E26: =Einheiten!L5 -> m | F26: =Übersetzung!F40 -> Maximaler Volumenstrom | H26: ='Grunddaten-V'!I37 -> 4500 | I26: =Einheiten!$L$7 -> m³/h
A27: ='Auslegung-V'!A111 ->  | B27: vx1 | C27: ='Auslegung-V'!D111 ->  | E27: =Einheiten!$L$6 -> m/s | F27: =Übersetzung!F93 -> Durchmesser Anschlusskasten | H27: =IFERROR(IF(Einheiten!$F$2=3,FIXED('Grunddaten-V'!O37,1,TRUE),FIXED('Grunddaten-V'!O37,0,TRUE)),"") ->  | I27: =Einheiten!$L$10 -> mm
A28: ='Auslegung-V'!A111 ->  | B28: DR1 | C28: ='Auslegung-V'!D112 ->  | E28: % | F28: =Übersetzung!F72 -> Höhe Anschlusskasten | H28: =IFERROR(IF(Einheiten!$F$2=3,FIXED('Grunddaten-V'!N37,1,TRUE),FIXED('Grunddaten-V'!N37,0,TRUE)),"") ->  | I28: =Einheiten!$L$10 -> mm
A29: ='Auslegung-V'!A113 -> Vertikale Eindringtiefe | B29: vx2 | C29: ='Auslegung-V'!D113 -> 7.428190224 | E29: =IF(C17<C18,Einheiten!$L$6,Einheiten!$L$5) -> m | F29: =Übersetzung!F42 -> Durchmesser Anschlussstutzen | H29: =IF(Einheiten!$F$2=3,FIXED('Grunddaten-V'!J37,1,TRUE),FIXED('Grunddaten-V'!J37,0,TRUE)) -> 398 | I29: =Einheiten!$L$10 -> mm
A30: ='Auslegung-V'!A114 ->  | B30: DR2 | C30: ='Auslegung-V'!D114 ->  | E30: %
A31: ='Auslegung-V'!A115 ->  | B31: vx3 | C31: ='Auslegung-V'!D115 ->  | E31: =Einheiten!$L$6 -> m/s
A32: ='Auslegung-V'!A116 ->  | B32: DR3 | C32: ='Auslegung-V'!D116 ->  | E32: %
A33: ='Auslegung-V'!A117 -> Resultierende Raumkategorie | B33: RAL | C33: ='Auslegung-V'!D117 ->  | E33: ="-/-" -> -/-
A34: ='Auslegung-V'!A118 -> Schallleistungspegel, Einzeldurchlass | B34: LWA_SUP | C34: ='Auslegung-V'!D118 -> 51.40116215 | E34: dB(A)
A36: ='Auslegung-V'!A122 -> *Gilt für Eintritt der Luftströmung in den Aufenthaltbereich nach dem Stoßpunkt
A37: =Übersetzung!F92 -> ** Raumkategorie nach DIN EN ISO 7730: DR<10 % = A; DR<20 % = B; DR<30 % = C
A40: ='Auslegung-V'!A125 -> Oktavspektrum Schallleistung [dB] | B40: f [Hz] | C40: 125 | D40: 250 | E40: 500 | F40: 1000 | G40: 2000 | H40: 4000 | I40: 8000
B41: LWA_Okt | C41: =IF('Auslegung-V'!$D$126="",'Auslegung-V'!$E$126,'Auslegung-V'!$D$126) -> 63.76582426 | D41: =IF('Auslegung-V'!$D$127="",'Auslegung-V'!$E$127,'Auslegung-V'!$D$127) -> 55.16692213 | E41: =IF('Auslegung-V'!$D$128="",'Auslegung-V'!$E$128,'Auslegung-V'!$D$128) -> 46.80757191 | F41: =IF('Auslegung-V'!$D$129="",'Auslegung-V'!$E$103,'Auslegung-V'!$D$129) -> 37.29959188 | G41: =IF('Auslegung-V'!$D$130="",'Auslegung-V'!$E$130,'Auslegung-V'!$D$130) -> 29.73507741 | H41: =IF('Auslegung-V'!$D$130="",'Auslegung-V'!$E$130,'Auslegung-V'!$D$130) -> 29.73507741 | I41: =IF('Auslegung-V'!$D$132="",'Auslegung-V'!$E$132,'Auslegung-V'!$D$132) -> 28.51461301
I42: ='Auslegung-V'!A134 -> Änderungen vorbehalten
H43: ='Auslegung-V'!A135 -> Stand: | I43: ='Grunddaten-L'!$E$36 -> 2020-10-30

Sheet Grunddaten-V (hidden)
A1: Typ | B1: DN | D1: Baulänge | E1: Schlitzanzahl | F1: Schlitzlänge | G1: Soll-Volumenstrom | H1: V° Auslegung min | I1: V° Auslegung max | J1: Durchmesser Anschluss | K1: Anströmgeschwindigkeit | L1: Druckverlust, Zuluft | M1: Druckverlust, Abluft | N1: Höhe Anschlusskasten | O1: Breite Anschlusskasten | P1: min. Abmessungen Frontblende quadratisch | Q1: min. Abmessungen Frontblende rund | R1: Vorauswahlkriterien
B2: Lochbild | D2: l | E2: n | F2: L | G2: V° | H2: V°min | I2: V°max | J2: d | K2: v | L2: Dp | M2: Dp | N2: h | O2: b | P2: b1 | Q2: x | R2: Volumenstrom | T2: Schallleistungspegel
D3: mm | E3: 1 | F3: mm | G3: m³/h | H3: m³/h | I3: m³/h | J3: mm | K3: m/s | L3: Pa | M3: Pa | N3: mm | O3: mm | P3: mm | Q3: mm | R3: größer als v°min? | S3: kleiner als V°max? | T3: K021 | U3: K022 | V3: dB
A4: VLV | B4: 250 | C4: =CONCATENATE(A4,B4) -> VLV250 | G4: =Einheiten!$E$37 -> 3000 | H4: 300 | I4: 1800 | J4: 248 | K4: ='Auslegung-V'!$D$37/(PI()/4*('Grunddaten-V'!J4/1000)^2*3600) -> 17.25144631 | L4: =SUM('VLV-CAP'!$C$40,'VLD-CAP'!$C$40,'WKD380-CAP'!$C$40,'WKD381-CAP'!$C$40)*'Grunddaten-V'!G4^(SUM('VLV-CAP'!$C$41,'VLD-CAP'!$C$41,'WKD380-CAP'!$C$41,'WKD381-CAP'!$C$41)) -> 35.45629832 | N4: -/- | O4: -/- | R4: =IF(G4>='Grunddaten-V'!$H4,"x","") -> x | S4: =IF(Vorauswahl!$D$8/Vorauswahl!$D$9<='Grunddaten-V'!$I4,"x","") ->  | T4: -145.35 | U4: 65.01 | V4: =T4+U4*LOG(G4) -> 80.69765277
A5: VLV | B5: 315 | C5: =CONCATENATE(A5,B5) -> VLV315 | G5: =Einheiten!$E$37 -> 3000 | H5: 400 | I5: 2800 | J5: 314 | K5: ='Auslegung-V'!$D$37/(PI()/4*('Grunddaten-V'!J5/1000)^2*3600) -> 10.76141987 | L5: =SUM('VLV-CAP'!$C$40,'VLD-CAP'!$C$40,'WKD380-CAP'!$C$40,'WKD381-CAP'!$C$40)*'Grunddaten-V'!G5^(SUM('VLV-CAP'!$C$41,'VLD-CAP'!$C$41,'WKD380-CAP'!$C$41,'WKD381-CAP'!$C$41)) -> 35.45629832 | N5: -/- | O5: -/- | R5: =IF(G5>='Grunddaten-V'!$H5,"x","") -> x | S5: =IF(Vorauswahl!$D$8/Vorauswahl!$D$9<='Grunddaten-V'!$I5,"x","") ->  | T5: -181.43 | U5: 71.75 | V5: =T5+U5*LOG(G5) -> 68.05345003
A6: VLV | B6: 400 | C6: VLV400 | G6: =Einheiten!$E$37 -> 3000 | H6: 700 | I6: 4500 | J6: 398 | K6: ='Auslegung-V'!$D$37/(PI()/4*('Grunddaten-V'!J6/1000)^2*3600) -> 6.698271218 | L6: =SUM('VLV-CAP'!$C$40,'VLD-CAP'!$C$40,'WKD380-CAP'!$C$40,'WKD381-CAP'!$C$40)*'Grunddaten-V'!G6^(SUM('VLV-CAP'!$C$41,'VLD-CAP'!$C$41,'WKD380-CAP'!$C$41,'WKD381-CAP'!$C$41)) -> 35.45629832 | N6: -/- | O6: -/- | R6: =IF(G6>='Grunddaten-V'!$H6,"x","") -> x | S6: =IF(Vorauswahl!$D$8/Vorauswahl!$D$9<='Grunddaten-V'!$I6,"x","") ->  | T6: -192.27 | U6: 70.53 | V6: =T6+U6*LOG(G6) -> 52.9713621
A7: VLV | B7: 500 | C7: VLV500 | G7: =Einheiten!$E$37 -> 3000 | H7: 1000 | I7: 7000 | J7: 498 | K7: ='Auslegung-V'!$D$37/(PI()/4*('Grunddaten-V'!J7/1000)^2*3600) -> 4.278289681 | L7: =SUM('VLV-CAP'!$C$40,'VLD-CAP'!$C$40,'WKD380-CAP'!$C$40,'WKD381-CAP'!$C$40)*'Grunddaten-V'!G7^(SUM('VLV-CAP'!$C$41,'VLD-CAP'!$C$41,'WKD380-CAP'!$C$41,'WKD381-CAP'!$C$41)) -> 35.45629832 | N7: -/- | O7: -/- | R7: =IF(G7>='Grunddaten-V'!$H7,"x","") -> x | S7: =IF(Vorauswahl!$D$8/Vorauswahl!$D$9<='Grunddaten-V'!$I7,"x","") ->  | T7: -187.05 | U7: 65.18 | V7: 39.58876338
A8: VLD | B8: 250 | C8: VLD250 | G8: =Einheiten!$E$37 -> 3000 | H8: 300 | I8: 1800 | J8: 248 | K8: ='Auslegung-V'!$D$37/(PI()/4*('Grunddaten-V'!J8/1000)^2*3600) -> 17.25144631 | L8: =SUM('VLV-CAP'!$C$40,'VLD-CAP'!$C$40,'WKD380-CAP'!$C$40,'WKD381-CAP'!$C$40)*'Grunddaten-V'!G8^(SUM('VLV-CAP'!$C$41,'VLD-CAP'!$C$41,'WKD380-CAP'!$C$41,'WKD381-CAP'!$C$41)) -> 35.45629832 | N8: -/- | O8: -/- | R8: =IF(G8>='Grunddaten-V'!$H8,"x","") -> x | S8: =IF(Vorauswahl!$D$8/Vorauswahl!$D$9<='Grunddaten-V'!$I8,"x","") ->  | T8: -143.35 | U8: 65.01 | V8: 82.69765277
A9: VLD | B9: 315 | C9: VLD315 | G9: =Einheiten!$E$37 -> 3000 | H9: 400 | I9: 2800 | J9: 314 | K9: ='Auslegung-V'!$D$37/(PI()/4*('Grunddaten-V'!J9/1000)^2*3600) -> 10.76141987 | L9: =SUM('VLV-CAP'!$C$40,'VLD-CAP'!$C$40,'WKD380-CAP'!$C$40,'WKD381-CAP'!$C$40)*'Grunddaten-V'!G9^(SUM('VLV-CAP'!$C$41,'VLD-CAP'!$C$41,'WKD380-CAP'!$C$41,'WKD381-CAP'!$C$41)) -> 35.45629832 | N9: -/- | O9: -/- | R9: =IF(G9>='Grunddaten-V'!$H9,"x","") -> x | S9: =IF(Vorauswahl!$D$8/Vorauswahl!$D$9<='Grunddaten-V'!$I9,"x","") ->  | T9: -179.43 | U9: 71.75 | V9: 70.05345003
A10: VLD | B10: 400 | C10: VLD400 | G10: =Einheiten!$E$37 -> 3000 | H10: 700 | I10: 4500 | J10: 398 | K10: ='Auslegung-V'!$D$37/(PI()/4*('Grunddaten-V'!J10/1000)^2*3600) -> 6.698271218 | L10: =SUM('VLV-CAP'!$C$40,'VLD-CAP'!$C$40,'WKD380-CAP'!$C$40,'WKD381-CAP'!$C$40)*'Grunddaten-V'!G10^(SUM('VLV-CAP'!$C$41,'VLD-CAP'!$C$41,'WKD380-CAP'!$C$41,'WKD381-CAP'!$C$41)) -> 35.45629832 | N10: -/- | O10: -/- | R10: =IF(G10>='Grunddaten-V'!$H10,"x","") -> x | S10: =IF(Vorauswahl!$D$8/Vorauswahl!$D$9<='Grunddaten-V'!$I10,"x","") ->  | T10: -190.27 | U10: 70.53 | V10: 54.9713621
A11: VLD | B11: 500 | C11: VLD500 | G11: =Einheiten!$E$37 -> 3000 | H11: 1000 | I11: 7000 | J11: 498 | K11: ='Auslegung-V'!$D$37/(PI()/4*('Grunddaten-V'!J11/1000)^2*3600) -> 4.278289681 | L11: =SUM('VLV-CAP'!$C$40,'VLD-CAP'!$C$40,'WKD380-CAP'!$C$40,'WKD381-CAP'!$C$40)*'Grunddaten-V'!G11^(SUM('VLV-CAP'!$C$41,'VLD-CAP'!$C$41,'WKD380-CAP'!$C$41,'WKD381-CAP'!$C$41)) -> 35.45629832 | N11: -/- | O11: -/- | R11: =IF(G11>='Grunddaten-V'!$H11,"x","") -> x | S11: =IF(Vorauswahl!$D$8/Vorauswahl!$D$9<='Grunddaten-V'!$I11,"x","") ->  | T11: -185.05 | U11: 65.18 | V11: 41.58876338
A12: WKD 380 | B12: 600 | C12: WKD 380600 | G12: =Einheiten!$E$37 -> 3000 | H12: 700 | I12: 2000 | J12: 350 | K12: ='Auslegung-V'!$D$37/(PI()/4*('Grunddaten-V'!J12/1000)^2*3600) -> 8.661493502 | L12: =SUM('VLV-CAP'!$C$40,'VLD-CAP'!$C$40,'WKD380-CAP'!$C$40,'WKD381-CAP'!$C$40)*'Grunddaten-V'!G12^(SUM('VLV-CAP'!$C$41,'VLD-CAP'!$C$41,'WKD380-CAP'!$C$41,'WKD381-CAP'!$C$41)) -> 35.45629832 | N12: 500 | O12: 554 | R12: =IF(G12>='Grunddaten-V'!$H12,"x","") -> x | S12: =IF(Vorauswahl!$D$8/Vorauswahl!$D$9<='Grunddaten-V'!$I12,"x","") ->  | T12: -169.7 | U12: 71.17 | V12: 77.7667197
A13: WKD 380 | B13: 800 | C13: WKD 380800 | G13: =Einheiten!$E$37 -> 3000 | H13: 1300 | I13: 4500 | J13: 500 | K13: ='Auslegung-V'!$D$37/(PI()/4*('Grunddaten-V'!J13/1000)^2*3600) -> 4.244131816 | L13: =SUM('VLV-CAP'!$C$40,'VLD-CAP'!$C$40,'WKD380-CAP'!$C$40,'WKD381-CAP'!$C$40)*'Grunddaten-V'!G13^(SUM('VLV-CAP'!$C$41,'VLD-CAP'!$C$41,'WKD380-CAP'!$C$41,'WKD381-CAP'!$C$41)) -> 35.45629832 | N13: 700 | O13: 794 | R13: =IF(G13>='Grunddaten-V'!$H13,"x","") -> x | S13: =IF(Vorauswahl!$D$8/Vorauswahl!$D$9<='Grunddaten-V'!$I13,"x","") ->  | T13: -136.2 | U13: 55.19 | V13: 55.70232205
A14: WKD 380 | B14: 1000 | C14: WKD 3801000 | G14: =Einheiten!$E$37 -> 3000 | H14: 3000 | I14: 9000 | J14: 600 | K14: ='Auslegung-V'!$D$37/(PI()/4*('Grunddaten-V'!J14/1000)^2*3600) -> 2.947313761 | L14: =SUM('VLV-CAP'!$C$40,'VLD-CAP'!$C$40,'WKD380-CAP'!$C$40,'WKD381-CAP'!$C$40)*'Grunddaten-V'!G14^(SUM('VLV-CAP'!$C$41,'VLD-CAP'!$C$41,'WKD380-CAP'!$C$41,'WKD381-CAP'!$C$41)) -> 35.45629832 | N14: 800 | O14: 1074 | R14: =IF(G14>='Grunddaten-V'!$H14,"x","") -> x | S14: =IF(Vorauswahl!$D$8/Vorauswahl!$D$9<='Grunddaten-V'!$I14,"x","") ->  | T14: -137.6 | U14: 54.12 | V14: 50.58180231
A15: WKD 381-1 | B15: 300 | C15: WKD 381-1300 | G15: =Einheiten!$E$37 -> 3000 | H15: 100 | I15: 250 | J15: 150 | K15: ='Auslegung-V'!$D$37/(PI()/4*('Grunddaten-V'!J15/1000)^2*3600) -> 47.15702018 | L15: =SUM('VLV-CAP'!$C$40,'VLD-CAP'!$C$40,'WKD380-CAP'!$C$40,'WKD381-CAP'!$C$40)*'Grunddaten-V'!G15^(SUM('VLV-CAP'!$C$41,'VLD-CAP'!$C$41,'WKD380-CAP'!$C$41,'WKD381-CAP'!$C$41)) -> 35.45629832 | N15: 300 | O15: 300 | R15: =IF(G15>='Grunddaten-V'!$H15,"x","") -> x | S15: =IF(Vorauswahl!$D$8/Vorauswahl!$D$9<='Grunddaten-V'!$I15,"x","") ->  | T15: -81.57 | U15: 53.17 | V15: 103.3085371
A16: WKD 381-1 | B16: 500 | C16: WKD 381-1500 | G16: =Einheiten!$E$37 -> 3000 | H16: 200 | I16: 500 | J16: 200 | K16: ='Auslegung-V'!$D$37/(PI()/4*('Grunddaten-V'!J16/1000)^2*3600) -> 26.52582385 | L16: =SUM('VLV-CAP'!$C$40,'VLD-CAP'!$C$40,'WKD380-CAP'!$C$40,'WKD381-CAP'!$C$40)*'Grunddaten-V'!G16^(SUM('VLV-CAP'!$C$41,'VLD-CAP'!$C$41,'WKD380-CAP'!$C$41,'WKD381-CAP'!$C$41)) -> 35.45629832 | N16: 400 | O16: 500 | R16: =IF(G16>='Grunddaten-V'!$H16,"x","") -> x | S16: =IF(Vorauswahl!$D$8/Vorauswahl!$D$9<='Grunddaten-V'!$I16,"x","") ->  | T16: -81.16 | U16: 46.77 | V16: 81.46496108
A17: WKD 381-1 | B17: 600 | C17: WKD 381-1600 | G17: =Einheiten!$E$37 -> 3000 | H17: 250 | I17: 800 | J17: 250 | K17: ='Auslegung-V'!$D$37/(PI()/4*('Grunddaten-V'!J17/1000)^2*3600) -> 16.97652726 | L17: =SUM('VLV-CAP'!$C$40,'VLD-CAP'!$C$40,'WKD380-CAP'!$C$40,'WKD381-CAP'!$C$40)*'Grunddaten-V'!G17^(SUM('VLV-CAP'!$C$41,'VLD-CAP'!$C$41,'WKD380-CAP'!$C$41,'WKD381-CAP'!$C$41)) -> 35.45629832 | N17: 400 | O17: 595 | R17: =IF(G17>='Grunddaten-V'!$H17,"x","") -> x | S17: =IF(Vorauswahl!$D$8/Vorauswahl!$D$9<='Grunddaten-V'!$I17,"x","") ->  | T17: -80.87 | U17: 44.54 | V17: 74.00098069
A18: WKD 381-2 | B18: 600 | C18: WKD 381-2600 | G18: =Einheiten!$E$37 -> 3000 | H18: 400 | I18: 1500 | J18: 350 | K18: ='Auslegung-V'!$D$37/(PI()/4*('Grunddaten-V'!J18/1000)^2*3600) -> 8.661493502 | L18: =SUM('VLV-CAP'!$C$40,'VLD-CAP'!$C$40,'WKD380-CAP'!$C$40,'WKD381-CAP'!$C$40)*'Grunddaten-V'!G18^(SUM('VLV-CAP'!$C$41,'VLD-CAP'!$C$41,'WKD380-CAP'!$C$41,'WKD381-CAP'!$C$41)) -> 35.45629832 | N18: 500 | O18: 595 | R18: =IF(G18>='Grunddaten-V'!$H18,"x","") -> x | S18: =IF(Vorauswahl!$D$8/Vorauswahl!$D$9<='Grunddaten-V'!$I18,"x","") ->  | T18: -87.06 | U18: 43.34 | V18: 63.63843518
A19: WKD 381-3 | B19: 600 | C19: WKD 381-3600 | G19: =Einheiten!$E$37 -> 3000 | H19: 600 | I19: 2000 | J19: 400 | K19: ='Auslegung-V'!$D$37/(PI()/4*('Grunddaten-V'!J19/1000)^2*3600) -> 6.631455962 | L19: =SUM('VLV-CAP'!$C$40,'VLD-CAP'!$C$40,'WKD380-CAP'!$C$40,'WKD381-CAP'!$C$40)*'Grunddaten-V'!G19^(SUM('VLV-CAP'!$C$41,'VLD-CAP'!$C$41,'WKD380-CAP'!$C$41,'WKD381-CAP'!$C$41)) -> 35.45629832 | N19: 600 | O19: 595 | R19: =IF(G19>='Grunddaten-V'!$H19,"x","") -> x | S19: =IF(Vorauswahl!$D$8/Vorauswahl!$D$9<='Grunddaten-V'!$I19,"x","") ->  | T19: -126.12 | U19: 53.81 | V19: 60.98389472
A20: IVA | B20: 250 | C20: IVA250 | G20: =Einheiten!$E$37 -> 3000 | H20: 500 | I20: 1500 | J20: 250 | K20: ='Auslegung-V'!$D$37/(PI()/4*('Grunddaten-V'!J20/1000)^2*3600) -> 16.97652726 | L20: =#REF!*'Grunddaten-V'!K20^#REF! ->  | N20: -/- | O20: -/- | R20: =IF(G20>='Grunddaten-V'!$H20,"x","") -> x | S20: =IF(Vorauswahl!$D$8/Vorauswahl!$D$9<='Grunddaten-V'!$I20,"x","") ->  | T20: 8.263653924 | U20: 56.16048645 | V20: =T20+U20*LOG(K20) -> 77.33256389
A21: IVA | B21: 315 | C21: IVA315 | G21: =Einheiten!$E$37 -> 3000 | H21: 800 | I21: 2300 | J21: 315 | K21: ='Auslegung-V'!$D$37/(PI()/4*('Grunddaten-V'!J21/1000)^2*3600) -> 10.69320185 | L21: =#REF!*'Grunddaten-V'!K21^#REF! ->  | N21: -/- | O21: -/- | R21: =IF(G21>='Grunddaten-V'!$H21,"x","") -> x | S21: =IF(Vorauswahl!$D$8/Vorauswahl!$D$9<='Grunddaten-V'!$I21,"x","") ->  | T21: 8.263653924 | U21: 56.16048645 | V21: =T21+U21*LOG(K21) -> 66.05884661
A22: IVA | B22: 355 | C22: IVA355 | G22: =Einheiten!$E$37 -> 3000 | H22: 1000 | I22: 3000 | J22: 355 | K22: ='Auslegung-V'!$D$37/(PI()/4*('Grunddaten-V'!J22/1000)^2*3600) -> 8.419225979 | L22: =#REF!*'Grunddaten-V'!K22^#REF! ->  | N22: -/- | O22: -/- | R22: =IF(G22>='Grunddaten-V'!$H22,"x","") -> x | S22: =IF(Vorauswahl!$D$8/Vorauswahl!$D$9<='Grunddaten-V'!$I22,"x","") ->  | T22: 8.263653924 | U22: 56.16048645 | V22: 60.22738889
A23: IVA | B23: 400 | C23: IVA400 | G23: =Einheiten!$E$37 -> 3000 | H23: 1500 | I23: 3750 | J23: 400 | K23: ='Auslegung-V'!$D$37/(PI()/4*('Grunddaten-V'!J23/1000)^2*3600) -> 6.631455962 | L23: =#REF!*'Grunddaten-V'!K23^#REF! ->  | N23: -/- | O23: -/- | R23: =IF(G23>='Grunddaten-V'!$H23,"x","") -> x | S23: =IF(Vorauswahl!$D$8/Vorauswahl!$D$9<='Grunddaten-V'!$I23,"x","") ->  | T23: 8.263653924 | U23: 56.16048645 | V23: 54.40560885
A24: IVA | B24: 450 | C24: IVA450 | G24: =Einheiten!$E$37 -> 3000 | H24: 1800 | I24: 4750 | J24: 450 | K24: ='Auslegung-V'!$D$37/(PI()/4*('Grunddaten-V'!J24/1000)^2*3600) -> 5.239668908 | L24: =#REF!*'Grunddaten-V'!K24^#REF! ->  | N24: -/- | O24: -/- | R24: =IF(G24>='Grunddaten-V'!$H24,"x","") -> x | S24: =IF(Vorauswahl!$D$8/Vorauswahl!$D$9<='Grunddaten-V'!$I24,"x","") ->  | T24: 8.263653924 | U24: 56.16048645 | V24: 48.66010776
A25: IVA | B25: 500 | C25: IVA500 | G25: =Einheiten!$E$37 -> 3000 | H25: 2300 | I25: 5800 | J25: 500 | K25: ='Auslegung-V'!$D$37/(PI()/4*('Grunddaten-V'!J25/1000)^2*3600) -> 4.244131816 | L25: =#REF!*'Grunddaten-V'!K25^#REF! ->  | N25: -/- | O25: -/- | R25: =IF(G25>='Grunddaten-V'!$H25,"x","") -> x | S25: =IF(Vorauswahl!$D$8/Vorauswahl!$D$9<='Grunddaten-V'!$I25,"x","") ->  | T25: 8.263653924 | U25: 56.16048645 | V25: 43.52058191
A26: IVA | B26: 560 | C26: IVA560 | G26: =Einheiten!$E$37 -> 3000 | H26: 2800 | I26: 7400 | J26: 560 | K26: ='Auslegung-V'!$D$37/(PI()/4*('Grunddaten-V'!J26/1000)^2*3600) -> 3.383395899 | L26: =#REF!*'Grunddaten-V'!K26^#REF! ->  | N26: -/- | O26: -/- | R26: =IF(G26>='Grunddaten-V'!$H26,"x","") -> x | S26: =IF(Vorauswahl!$D$8/Vorauswahl!$D$9<='Grunddaten-V'!$I26,"x","") ->  | T26: 8.263653924 | U26: 56.16048645 | V26: 37.99236572
A27: IVA | B27: 630 | C27: IVA630 | G27: =Einheiten!$E$37 -> 3000 | H27: 3600 | I27: 9300 | J27: 630 | K27: ='Auslegung-V'!$D$37/(PI()/4*('Grunddaten-V'!J27/1000)^2*3600) -> 2.673300463 | L27: =#REF!*'Grunddaten-V'!K27^#REF! ->  | N27: -/- | O27: -/- | R27: =IF(G27>='Grunddaten-V'!$H27,"x","") ->  | S27: =IF(Vorauswahl!$D$8/Vorauswahl!$D$9<='Grunddaten-V'!$I27,"x","") ->  | T27: 8.263653924 | U27: 56.16048645 | V27: 32.24686463
D35: 2 | E35: 3 | F35: 4 | G35: 5 | H35: 6 | I35: 7 | J35: 8 | K35: 9 | L35: 10 | M35: 11 | N35: 12 | O35: 13 | P35: 14 | Q35: 15 | R35: 16 | S35: 17 | T35: 18 | U35: 19 | V35: 20
A37: Auswahl: | B37: Zuluft | C37: =CONCATENATE('Auslegung-V'!$D$12,'Auslegung-V'!$D$20) -> VLD400 | D37: =VLOOKUP($C$37,$C$4:$L$34,D35,FALSE) -> 0 | E37: 0 | F37: 0 | G37: 3000 | H37: =IF(Einheiten!$F$2=3,VLOOKUP($C$37,$C$4:$L$34,H35,FALSE)/Einheiten!$F$11,VLOOKUP($C$37,$C$4:$L$34,H35,FALSE)) -> 700 | I37: =IF(Einheiten!$F$2=3,VLOOKUP($C$37,$C$4:$L$34,I35,FALSE)/Einheiten!$F$11,VLOOKUP($C$37,$C$4:$L$34,I35,FALSE)) -> 4500 | J37: =IF(Einheiten!$F$2=3,VLOOKUP($C$37,$C$4:$L$34,J35,FALSE)/Einheiten!$F$15,VLOOKUP($C$37,$C$4:$L$34,J35,FALSE)) -> 398 | K37: =IF(Einheiten!$F$2=3,VLOOKUP($C$37,$C$4:$L$34,K35,FALSE)/Einheiten!$F$9,VLOOKUP($C$37,$C$4:$L$34,K35,FALSE)) -> 6.698271218 | L37: =VLOOKUP($C$37,$C$4:$L$34,L35,FALSE) -> 35.45629832 | M37: =VLOOKUP($C$37,$C$4:$M$34,M35,FALSE) -> 0 | N37: =IF(Einheiten!$F$2=3,VLOOKUP($C$37,$C$4:$Q$34,N35,FALSE)/Einheiten!$F$15,VLOOKUP($C$37,$C$4:$Q$34,N35,FALSE)) -> -/- | O37: =IF(Einheiten!$F$2=3,VLOOKUP($C$37,$C$4:$Q$34,O35,FALSE)/Einheiten!$F$15,VLOOKUP($C$37,$C$4:$Q$34,O35,FALSE)) -> -/- | P37: =VLOOKUP($C$37,$C$4:$Q$34,P35,FALSE) -> 0 | Q37: =VLOOKUP($C$37,$C$4:$Q$34,Q35,FALSE) -> 0 | R37: =VLOOKUP($C$37,$C$4:$R$34,R35,FALSE) -> x | S37: =VLOOKUP($C$37,$C$4:$V$34,S35,FALSE) ->  | T37: =VLOOKUP($C$37,$C$4:$V$34,T35,FALSE) -> -190.27 | U37: =VLOOKUP($C$37,$C$4:$V$34,U35,FALSE) -> 70.53 | V37: =VLOOKUP($C$37,$C$4:$V$34,V35,FALSE) -> 54.9713621
B38: Abluft | C38: =CONCATENATE('Auslegung-V'!$D$12,'Auslegung-V'!$D$30) -> VLDdeckenbündig | D38: =VLOOKUP($C$38,$C$4:$L$34,D35,FALSE) ->  | L38: =VLOOKUP($C$38,$C$4:$L$34,L35,FALSE) ->  | M38: =VLOOKUP($C$37,$C$4:$M$34,M35,FALSE) -> 0 | N38: =VLOOKUP($C$38,$C$4:$N$34,N35,FALSE) ->  | O38: =VLOOKUP($C$38,$C$4:$Q$34,O35,FALSE) ->  | P38: =VLOOKUP($C$38,$C$4:$Q$34,P35,FALSE) ->  | Q38: =VLOOKUP($C$38,$C$4:$Q$34,Q35,FALSE) ->  | R38: =VLOOKUP($C$38,$C$4:$R$34,R35,FALSE) -> 
D40: Stand: | E40: 2020-10-30

Sheet Lw (hidden)
B2: Terzfrequenzband fm [Hz]
B3: 100 | C3: 125 | D3: 160 | E3: 200 | F3: 250 | G3: 315 | H3: 400 | I3: 500 | J3: 630 | K3: 800 | L3: 1000 | M3: 1250 | N3: 1600 | O3: 2000 | P3: 2500 | Q3: 3150 | R3: 4000 | S3: 5000 | T3: 6300 | U3: 8000 | V3: 10000
B20: 2 | C20: 3 | D20: 4 | E20: 5 | F20: 6 | G20: 7 | H20: 8 | I20: 9 | J20: 10 | K20: 11 | L20: 12 | M20: 13 | N20: 14 | O20: 15 | P20: 16 | Q20: 17 | R20: 18 | S20: 19 | T20: 20 | U20: 21 | V20: 22
B22: Terzfrequenzband fm [Hz]
B23: 100 | C23: 125 | D23: 160 | E23: 200 | F23: 250 | G23: 315 | H23: 400 | I23: 500 | J23: 630 | K23: 800 | L23: 1000 | M23: 1250 | N23: 1600 | O23: 2000 | P23: 2500 | Q23: 3150 | R23: 4000 | S23: 5000 | T23: 6300 | U23: 8000 | V23: 10000
W24: =10*LOG(10^(0.1*B24)+10^(0.1*C24)+10^(0.1*D24)+10^(0.1*E24)+10^(0.1*F24)+10^(0.1*G24)+10^(0.1*H24)+10^(0.1*I24)+10^(0.1*J24)+10^(0.1*K24)+10^(0.1*L24)+10^(0.1*M24)+10^(0.1*N24)+10^(0.1*O24)+10^(0.1*P24)+10^(0.1*Q24)+10^(0.1*R24)+10^(0.1*S24)+10^(0.1*T24)+10^(0.1*U24)+10^(0.1*V24)) -> 13.22219295
W25: =10*LOG(10^(0.1*B25)+10^(0.1*C25)+10^(0.1*D25)+10^(0.1*E25)+10^(0.1*F25)+10^(0.1*G25)+10^(0.1*H25)+10^(0.1*I25)+10^(0.1*J25)+10^(0.1*K25)+10^(0.1*L25)+10^(0.1*M25)+10^(0.1*N25)+10^(0.1*O25)+10^(0.1*P25)+10^(0.1*Q25)+10^(0.1*R25)+10^(0.1*S25)+10^(0.1*T25)+10^(0.1*U25)+10^(0.1*V25)) -> 13.22219295
W26: =10*LOG(10^(0.1*B26)+10^(0.1*C26)+10^(0.1*D26)+10^(0.1*E26)+10^(0.1*F26)+10^(0.1*G26)+10^(0.1*H26)+10^(0.1*I26)+10^(0.1*J26)+10^(0.1*K26)+10^(0.1*L26)+10^(0.1*M26)+10^(0.1*N26)+10^(0.1*O26)+10^(0.1*P26)+10^(0.1*Q26)+10^(0.1*R26)+10^(0.1*S26)+10^(0.1*T26)+10^(0.1*U26)+10^(0.1*V26)) -> 13.22219295
W27: =10*LOG(10^(0.1*B27)+10^(0.1*C27)+10^(0.1*D27)+10^(0.1*E27)+10^(0.1*F27)+10^(0.1*G27)+10^(0.1*H27)+10^(0.1*I27)+10^(0.1*J27)+10^(0.1*K27)+10^(0.1*L27)+10^(0.1*M27)+10^(0.1*N27)+10^(0.1*O27)+10^(0.1*P27)+10^(0.1*Q27)+10^(0.1*R27)+10^(0.1*S27)+10^(0.1*T27)+10^(0.1*U27)+10^(0.1*V27)) -> 13.22219295
W28: =10*LOG(10^(0.1*B28)+10^(0.1*C28)+10^(0.1*D28)+10^(0.1*E28)+10^(0.1*F28)+10^(0.1*G28)+10^(0.1*H28)+10^(0.1*I28)+10^(0.1*J28)+10^(0.1*K28)+10^(0.1*L28)+10^(0.1*M28)+10^(0.1*N28)+10^(0.1*O28)+10^(0.1*P28)+10^(0.1*Q28)+10^(0.1*R28)+10^(0.1*S28)+10^(0.1*T28)+10^(0.1*U28)+10^(0.1*V28)) -> 13.22219295
W29: 13.22219295
W30: 13.22219295
W31: 13.22219295
W32: 13.22219295
W33: 13.22219295
W34: 13.22219295
W35: 13.22219295
W36: 13.22219295
W37: 13.22219295
W38: 13.22219295
W39: 13.22219295
W40: 13.22219295
W41: 13.22219295
W42: 13.22219295
W43: 13.22219295
W44: 13.22219295
W45: 13.22219295
W46: 13.22219295
W47: 13.22219295
W48: 13.22219295
W49: 13.22219295
I51: Heizfallkonstanten aus Übergabetabelle Schallleistungspegel
A52: Werteübergabe für klassische CAP-Berechnung: | D52: Durchlass: | E52: ='Auslegung-V'!$D$12 -> VLD | F52: K021 | G52: =SUM('VLV-CAP'!$C$42,'VLD-CAP'!$C$42,'WKD380-CAP'!$C$42,'WKD381-CAP'!$C$42) -> -198.43 | I52: K021 | J52: ='LW Auswahl'!AH23 -> -198.43
D53: Lochbild: | E53: ='Auslegung-V'!$D$30 -> deckenbündig | F53: K022 | G53: =SUM('VLV-CAP'!$C$43,'VLD-CAP'!$C$43,'WKD380-CAP'!$C$43,'WKD381-CAP'!$C$43) -> 71.85 | I53: K022 | J53: ='LW Auswahl'!AI23 -> 71.85
B55: Oktav-Relativspektrum fOkt [Hz] ZULUFT | I55: SLWA
B56: 125 | C56: 250 | D56: 500 | E56: 1000 | F56: 2000 | G56: 4000 | H56: 8000 | I56: Summe
A57: VLV250k | B57: -5.302707106 | C57: -6.282356704 | D57: -5.769700492 | E57: -10.16215406 | F57: -15.87962404 | G57: -19.29632872 | H57: -22.03701979 | I57: =10*LOG(10^(0.1*B57)+10^(0.1*C57)+10^(0.1*D57)+10^(0.1*E57)+10^(0.1*F57)+10^(0.1*G57)+10^(0.1*H57)) -> -0.2902243975
A58: VLV250h | B58: -4.971802035 | C58: -6.166535376 | D58: -6.261543342 | E58: -9.703346197 | F58: -15.81240647 | G58: -19.85198102 | H58: -21.30214398 | I58: =10*LOG(10^(0.1*B58)+10^(0.1*C58)+10^(0.1*D58)+10^(0.1*E58)+10^(0.1*F58)+10^(0.1*G58)+10^(0.1*H58)) -> -0.2338062377
A59: VLV315k | B59: -5.302707106 | C59: -6.282356704 | D59: -5.769700492 | E59: -10.16215406 | F59: -15.87962404 | G59: -19.29632872 | H59: -22.03701979 | I59: -0.2902243975
A60: VLV315h | B60: -4.971802035 | C60: -6.166535376 | D60: -6.261543342 | E60: -9.703346197 | F60: -15.81240647 | G60: -19.85198102 | H60: -21.30214398 | I60: -0.2338062377
A61: VLV400k | B61: -5.302707106 | C61: -6.282356704 | D61: -5.769700492 | E61: -10.16215406 | F61: -15.87962404 | G61: -19.29632872 | H61: -22.03701979 | I61: -0.2902243975
A62: VLV400h | B62: -4.971802035 | C62: -6.166535376 | D62: -6.261543342 | E62: -9.703346197 | F62: -15.81240647 | G62: -19.85198102 | H62: -21.30214398 | I62: =10*LOG(10^(0.1*B62)+10^(0.1*C62)+10^(0.1*D62)+10^(0.1*E62)+10^(0.1*F62)+10^(0.1*G62)+10^(0.1*H62)) -> -0.2338062377
A63: VLV500k | B63: -5.302707106 | C63: -6.282356704 | D63: -5.769700492 | E63: -10.16215406 | F63: -15.87962404 | G63: -19.29632872 | H63: -22.03701979 | I63: =10*LOG(10^(0.1*B63)+10^(0.1*C63)+10^(0.1*D63)+10^(0.1*E63)+10^(0.1*F63)+10^(0.1*G63)+10^(0.1*H63)) -> -0.2902243975
A64: VLV500h | B64: -4.971802035 | C64: -6.166535376 | D64: -6.261543342 | E64: -9.703346197 | F64: -15.81240647 | G64: -19.85198102 | H64: -21.30214398 | I64: =10*LOG(10^(0.1*B64)+10^(0.1*C64)+10^(0.1*D64)+10^(0.1*E64)+10^(0.1*F64)+10^(0.1*G64)+10^(0.1*H64)) -> -0.2338062377
A65: VLD250k | B65: -3.735337894 | C65: -4.834240025 | D65: -7.793590237 | E65: -14.10157027 | F65: -20.46608474 | G65: -24.17218858 | H65: -23.98654914 | I65: =10*LOG(10^(0.1*B65)+10^(0.1*C65)+10^(0.1*D65)+10^(0.1*E65)+10^(0.1*F65)+10^(0.1*G65)+10^(0.1*H65)) -> -0.1164187277
A66: VLD250h | B66: -3.973990626 | C66: -6.216659373 | D66: -6.841603919 | E66: -11.00511485 | F66: -16.4517112 | G66: -21.09038079 | H66: -22.24126031 | I66: -0.1676793172
A67: VLD315k | B67: -3.735337894 | C67: -4.834240025 | D67: -7.793590237 | E67: -14.10157027 | F67: -20.46608474 | G67: -24.17218858 | H67: -23.98654914 | I67: -0.1164187277
A68: VLD315h | B68: -3.973990626 | C68: -6.216659373 | D68: -6.841603919 | E68: -11.00511485 | F68: -16.4517112 | G68: -21.09038079 | H68: -22.24126031 | I68: -0.1676793172
A69: VLD400k | B69: -3.735337894 | C69: -4.834240025 | D69: -7.793590237 | E69: -14.10157027 | F69: -20.46608474 | G69: -24.17218858 | H69: -23.98654914 | I69: -0.1164187277
A70: VLD400h | B70: -3.973990626 | C70: -6.216659373 | D70: -6.841603919 | E70: -11.00511485 | F70: -16.4517112 | G70: -21.09038079 | H70: -22.24126031 | I70: -0.1676793172
A71: VLD500k | B71: -3.735337894 | C71: -4.834240025 | D71: -7.793590237 | E71: -14.10157027 | F71: -20.46608474 | G71: -24.17218858 | H71: -23.98654914 | I71: -0.1164187277
A72: VLD500h | B72: -3.973990626 | C72: -6.216659373 | D72: -6.841603919 | E72: -11.00511485 | F72: -16.4517112 | G72: -21.09038079 | H72: -22.24126031 | I72: -0.1676793172
A73: WKD 380600k | B73: -5.331789888 | C73: -3.049327814 | D73: -9.209315455 | E73: -9.107019225 | F73: -13.68228411 | G73: -17.05639549 | H73: -21.46297827 | I73: =10*LOG(10^(0.1*B73)+10^(0.1*C73)+10^(0.1*D73)+10^(0.1*E73)+10^(0.1*F73)+10^(0.1*G73)+10^(0.1*H73)) -> 0.4177156409
A74: WKD 380600h | B74: -5.121873722 | C74: -4.265013683 | D74: -8.75381944 | E74: -10.33403354 | F74: -14.1762095 | G74: -15.13377683 | H74: -19.13203222 | I74: =10*LOG(10^(0.1*B74)+10^(0.1*C74)+10^(0.1*D74)+10^(0.1*E74)+10^(0.1*F74)+10^(0.1*G74)+10^(0.1*H74)) -> -0.04824426247
A75: WKD 380800k | B75: -5.331789888 | C75: -3.049327814 | D75: -9.209315455 | E75: -9.107019225 | F75: -13.68228411 | G75: -17.05639549 | H75: -21.46297827 | I75: =10*LOG(10^(0.1*B75)+10^(0.1*C75)+10^(0.1*D75)+10^(0.1*E75)+10^(0.1*F75)+10^(0.1*G75)+10^(0.1*H75)) -> 0.4177156409
A76: WKD 380800h | B76: -5.121873722 | C76: -4.265013683 | D76: -8.75381944 | E76: -10.33403354 | F76: -14.1762095 | G76: -15.13377683 | H76: -19.13203222 | I76: =10*LOG(10^(0.1*B76)+10^(0.1*C76)+10^(0.1*D76)+10^(0.1*E76)+10^(0.1*F76)+10^(0.1*G76)+10^(0.1*H76)) -> -0.04824426247
A77: WKD 3801000k | B77: -5.331789888 | C77: -3.049327814 | D77: -9.209315455 | E77: -9.107019225 | F77: -13.68228411 | G77: -17.05639549 | H77: -21.46297827 | I77: =10*LOG(10^(0.1*B77)+10^(0.1*C77)+10^(0.1*D77)+10^(0.1*E77)+10^(0.1*F77)+10^(0.1*G77)+10^(0.1*H77)) -> 0.4177156409
A78: WKD 3801000h | B78: -5.121873722 | C78: -4.265013683 | D78: -8.75381944 | E78: -10.33403354 | F78: -14.1762095 | G78: -15.13377683 | H78: -19.13203222 | I78: -0.04824426247
A79: WKD 381-1300k | B79: -4.764218669 | C79: -3.866352681 | D79: -9.317462378 | E79: -14.58443097 | F79: -21.32562792 | G79: -24.37246734 | H79: -23.11457299 | I79: -0.3993823401
A80: WKD 381-1300h | B80: -4.282332431 | C80: -3.753874315 | D80: -11.15232249 | E80: -14.68396477 | F80: -21.01850828 | G80: -24.2024904 | H80: -22.87109513 | I80: =10*LOG(10^(0.1*B80)+10^(0.1*C80)+10^(0.1*D80)+10^(0.1*E80)+10^(0.1*F80)+10^(0.1*G80)+10^(0.1*H80)) -> -0.35293955
A81: WKD 381-1500k | B81: -4.764218669 | C81: -3.866352681 | D81: -9.317462378 | E81: -14.58443097 | F81: -21.32562792 | G81: -24.37246734 | H81: -23.11457299 | I81: -0.3993823401
A82: WKD 381-1500h | B82: -4.282332431 | C82: -3.753874315 | D82: -11.15232249 | E82: -14.68396477 | F82: -21.01850828 | G82: -24.2024904 | H82: -22.87109513 | I82: -0.35293955
A83: WKD 381-1600k | B83: -4.764218669 | C83: -3.866352681 | D83: -9.317462378 | E83: -14.58443097 | F83: -21.32562792 | G83: -24.37246734 | H83: -23.11457299 | I83: -0.3993823401
A84: WKD 381-1600h | B84: -4.282332431 | C84: -3.753874315 | D84: -11.15232249 | E84: -14.68396477 | F84: -21.01850828 | G84: -24.2024904 | H84: -22.87109513 | I84: -0.35293955
A85: WKD 381-2600k | B85: -4.764218669 | C85: -3.866352681 | D85: -9.317462378 | E85: -14.58443097 | F85: -21.32562792 | G85: -24.37246734 | H85: -23.11457299 | I85: -0.3993823401
A86: WKD 381-2600h | B86: -4.282332431 | C86: -3.753874315 | D86: -11.15232249 | E86: -14.68396477 | F86: -21.01850828 | G86: -24.2024904 | H86: -22.87109513 | I86: -0.35293955
A87: WKD 381-3600k | B87: -4.764218669 | C87: -3.866352681 | D87: -9.317462378 | E87: -14.58443097 | F87: -21.32562792 | G87: -24.37246734 | H87: -23.11457299 | I87: -0.3993823401
A88: WKD 381-3600h | B88: -4.282332431 | C88: -3.753874315 | D88: -11.15232249 | E88: -14.68396477 | F88: -21.01850828 | G88: -24.2024904 | H88: -22.87109513 | I88: -0.35293955
B90: 2 | C90: 3 | D90: 4 | E90: 5 | F90: 6 | G90: 7 | H90: 8 | I90: 9 | K90: k
A91: Gewählter Durchlass, Zuluft:
A92: =CONCATENATE('Auslegung-V'!$D$12,'Auslegung-V'!$D$20,$K$90) -> VLD400k | B92: =VLOOKUP($A$92,$A$57:$H$88,B90,FALSE) -> -3.735337894 | C92: =VLOOKUP($A$92,$A$57:$H$88,C90,FALSE) -> -4.834240025 | D92: -7.793590237 | E92: =VLOOKUP($A$92,$A$57:$H$88,E90,FALSE) -> -14.10157027 | F92: -20.46608474 | G92: -24.17218858 | H92: -23.98654914
A93: Gewählter Durchlass im Heizbetrieb:
A94: =A97 -> VLD400h | B94: =VLOOKUP($A$94,$A$57:$H$88,B90,FALSE) -> -3.973990626 | C94: =VLOOKUP($A$94,$A$57:$H$88,C90,FALSE) -> -6.216659373 | D94: -6.841603919 | E94: =VLOOKUP($A$94,$A$57:$H$88,E90,FALSE) -> -11.00511485 | F94: -16.4517112 | G94: -21.09038079 | H94: -22.24126031
A95: A-Bewertung: | B95: -16.1 | C95: -8.6 | D95: -3.2 | E95: 0 | F95: 1.2 | G95: 1 | H95: -1.1
A96: =CONCATENATE('Auslegung-V'!$D$12,'Auslegung-V'!$D$20,$K$90) -> VLD400k | B96: =$I$96+B92 -> 47.66582426 | C96: =$I$96+C92 -> 46.56692213 | D96: 43.60757191 | E96: 37.29959188 | F96: 30.93507741 | G96: 27.22897357 | H96: =$I$96+H92 -> 27.41461301 | I96: =IF($G$52+$G$53*LOG(Einheiten!$E$37)<25,"<25",$G$52+$G$53*LOG(Einheiten!$E$37)) -> 51.40116215 | J96: =10*LOG(10^(0.1*C96)+10^(0.1*D96)+10^(0.1*E96)+10^(0.1*F96)+10^(0.1*G96)+10^(0.1*H96)+10^(0.1*B96)) -> 51.28474342
A97: =CONCATENATE('Auslegung-V'!$D$12,'Auslegung-V'!$D$20,"h") -> VLD400h | B97: =$I$97+B94 -> 47.42717153 | C97: =$I$97+C94 -> 45.18450278 | D97: 44.55955823 | E97: =$I$97+E94 -> 40.3960473 | F97: 34.94945095 | G97: 30.31078136 | H97: =$I$97+H94 -> 29.15990184 | I97: =IF($J$52+$J$53*LOG(Einheiten!$E$37)<25,"<25",$J$52+$J$53*LOG(Einheiten!$E$37)) -> 51.40116215 | J97: =10*LOG(10^(0.1*C97)+10^(0.1*D97)+10^(0.1*E97)+10^(0.1*F97)+10^(0.1*G97)+10^(0.1*H97)+10^(0.1*B97)) -> 51.23348283
A98: Rückgabe ZUL | B98: =IF($I$96="<25","",B96-B95) -> 63.76582426 | C98: =IF($I$96="<25","",C96-C95) -> 55.16692213 | D98: =IF($I$96="<25","",D96-D95) -> 46.80757191 | E98: =IF($I$96="<25","",E96-E95) -> 37.29959188 | F98: 29.73507741 | G98: 26.22897357 | H98: =IF($I$96="<25","",H96-H95) -> 28.51461301 | I98: =10*LOG(10^(0.1*B98)+10^(0.1*C98)+10^(0.1*D98)+10^(0.1*E98)+10^(0.1*F98)+10^(0.1*G98)+10^(0.1*H98)) -> 64.41543661
A99: Rückgabe Heizbetrieb | B99: =IF($I$97="<25","",B97-B95) -> 63.52717153 | C99: =IF($I$97="<25","",C97-C95) -> 53.78450278 | D99: 47.75955823 | E99: 40.3960473 | F99: 33.74945095 | G99: 29.31078136 | H99: 30.25990184 | I99: 64.09381648
A103: T[s] nach VDI 2081 | E103: Nachhallzeit | F103: Richtungsfaktor | G103: Raumvolumen | H103: äqu. Absorptionsfläche
A104: Raumart | C104: s | E104: t | F104: Q | G104: V | H104: A
A105: Einzelbüro | C105: 0.5 | E105: s | G105: m³ | H105: m²Sabine
A106: Großraumbüro | C106: 0.5 | D106: ='Auslegung-V'!D51 -> Großraumbüro | E106: =VLOOKUP(D106,Lw!$A$105:$C$128,3,FALSE) -> 0.5 | F106: 4 | G106: ='Auslegung-V'!D42*'Auslegung-V'!D44*'Auslegung-V'!D45 -> 150000 | H106: =0.163*G106/E106 -> 48900
A107: Werkstätten | C107: 1.5
A108: Ruheraum, Pausenraum | C108: 1
A109: Untersuchungsraum Krankenhaus | C109: 2
A110: Rundfunk-, Fernsehstudio | C110: 0.5
A111: Chemielabor | C111: 2
A112: Wasch- und WC-Raum, Umkleide | C112: 2
A113: Schwimmbad | C113: 2
A114: EDV-Raum | C114: 1.5
A115: Konzertsaal | C115: 1.5
A116: Lesesaal | C116: 1
A117: Museum | C117: 1.5
A118: Küche | C118: 1.5
A119: Theater, Kino | C119: 1
A120: Klassen- Seminarraum | C120: 1
A121: Gaststätte | C121: 1
A122: kein Typ | C122: x
A123: Konferenzraum | C123: 1
A124: Hotelzimmer | C124: 0.5
A125: Hörsaal | C125: 1
A126: Bettenzimmer Krankenhaus | C126: 1
A127: Verkaufsraum | C127: 1
A128: Sporthalle | C128: 2

Sheet Akustikberechnung (hidden)
A1: =Übersetzung!F108 -> Akustische Projektauslegung Kampmann Industrieluftdurchlässe
A4: =Übersetzung!F6 -> Eingabefelder sind gelb gekennzeichnet
A7: =Übersetzung!F109 -> Grunddaten Luftdurchlass | B7: =Übersetzung!F10 -> Symbol | C7: =Übersetzung!F12 -> Wert | D7: =Übersetzung!F11 -> Einheit
A8: =Übersetzung!F13 -> Durchlass Typ | C8: ='LW Auswahl'!$C$20 -> VLD
A9: ='LW Auswahl'!$B$25 -> Nenndurchmesser | B9: ='LW Auswahl'!$C$25 -> DN | C9: ='LW Auswahl'!$D$20 -> 400 | D9: ='LW Auswahl'!$D$25 -> -/-
A10: =Übersetzung!F16 -> Luftvolumenstrom | B10: V° | C10: ='LW Auswahl'!$G$20 -> 3000 | D10: m³/h
A11: maximale Temperaturdifferenz Kühlfall | B11: DJK | C11: -6 | D11: K
A12: maximale Temperaturdifferenz Heizfall | B12: DJH | C12: 20 | D12: K
A14: Grunddaten zu berechnende Halle | B14: Symbol | C14: Wert | D14: Einheit
A15: Rastermaß in Längsrichtung | B15: V° | C15: 5500 | D15: m³/h
A16: Rastermaß in Querrichtung | B16: DpStat | C16: 430 | D16: Pa
A17: Breite VRJK | B17: bR | C17: 600 | D17: mm
A18: Höhe VRJK | B18: hR | C18: 500 | D18: mm
A20: =Übersetzung!F20 -> Raumdaten | B20: =B7 -> Symbol | C20: =C7 -> Wert | D20: =D7 -> Einheit
A21: =Übersetzung!F21 -> Montagehöhe | B21: H´ | C21: ='LW Auswahl'!$K$20 -> 15 | D21: m
A22: =Übersetzung!F110 -> Bezugshöhe zur Schalldruckpegelberechnung | B22: h´ | C22: 1.8 | D22: m
A23: =Übersetzung!F25 -> Raumhöhe | B23: H | C23: ='LW Auswahl'!$J$20 -> 30 | D23: m
A24: =Übersetzung!F24 -> Raumbreite | B24: B | C24: ='LW Auswahl'!$I$20 -> 100 | D24: m
A25: =Übersetzung!F23 -> Raumlänge | B25: L | C25: ='LW Auswahl'!$H$20 -> 100 | D25: m
A27: =Übersetzung!F111 -> Angaben Montageraster | B27: =B20 -> Symbol | C27: =C20 -> Wert | D27: =D20 -> Einheit
A28: =Übersetzung!F112 -> Durchlassabstand in Längsrichtung der Halle | B28: DL | C28: 3.5 | D28: m
A29: =Übersetzung!F113 -> Anzahl Durchlässe in Längsrichtung der Halle | B29: NL | C29: 10 | D29: 1
A30: =Übersetzung!F114 -> Durchlassabstand in Querrichtung der Halle | B30: DB | C30: 2 | D30: m
A31: =Übersetzung!F115 -> Anzahl Durchlässe in Querrichtung der Halle | B31: NB | C31: 10 | D31: 1
A32: Anzahl Stränge in Richtung Hallenbreite laufend | B32: NB | C32: 8 | D32: 1
A33: Anzahl Durchlässe in Richtung Hallenbreite | B33: nB | C33: 12 | D33: 1
A34: Akustische Vorgaben | B34: Symbol | C34: Wert | D34: Einheit
A35: Schallabsorptionsgrad | B35: a | C35: 0.2 | D35: -/-
A36: Richtungsfaktor | B36: Q | C36: =#REF! ->  | D36: -/-
A37: Durchgangsdämpfung Anschlusskasten | B37: Dt | C37: 0 | D37: dB
A39: =Übersetzung!F116 -> Zwischenergebnisse | B39: =B27 -> Symbol | C39: =C27 -> Wert | D39: =D27 -> Einheit
A40: =Übersetzung!F117 -> Anzahl Durchlässe, gesamt | B40: nges | C40: =C29*C31 -> 100 | D40: 1
A41: =Übersetzung!F118 -> Gesamtvolumenstrom | B41: V°ges | C41: =C40*C10 -> 300000 | D41: m³/h
A42: Thermische Leistung | B42: Q° | C42: =ABS(C41*1.2*1.006*C11/3600) -> 603.6 | D42: kW
A43: Heizleistung | B43: Q°H | C43: =C41*1.2*1.006*C12/3600 -> 2012 | D43: kW
A44: =Übersetzung!F121 -> Grundfläche | B44: AR | C44: =C24*C25 -> 10000 | D44: m²
A45: =Übersetzung!F122 -> Raumvolumen | B45: VR | C45: =C23*C24*C25 -> 300000 | D45: m³
A46: =Übersetzung!F123 -> Raumoberfläche | B46: AF | C46: =2*C25*C24+2*C25*C23+2*C24*C23 -> 32000 | D46: m²
A48: =CONCATENATE(Übersetzung!F133," emcoair ",'LW Auswahl'!$C$20,", DN ",'LW Auswahl'!$D$20," ",Übersetzung!F16," ",'LW Auswahl'!$G$20," m³/h, ") -> Oktavspektrum emcoair VLD, DN 400 Luftvolumenstrom 3000 m³/h, | I48: SLW,A
A49: =Übersetzung!F124 -> Oktavband, Mittenfrequenz f [Hz] | B49: 125 | C49: 250 | D49: 500 | E49: 1000 | F49: 2000 | G49: 4000 | H49: 8000 | I49: dB(A)
A50: Schallleistungspegel im Kühlfall [dB] | B50: ='LW Auswahl'!O20 -> 63.76582426 | C50: ='LW Auswahl'!P20 -> 55.16692213 | D50: ='LW Auswahl'!Q20 -> 46.80757191 | E50: ='LW Auswahl'!R20 -> 37.29959188 | F50: ='LW Auswahl'!S20 -> 29.73507741 | G50: ='LW Auswahl'!T20 -> 26.22897357 | H50: ='LW Auswahl'!U20 -> 28.51461301 | I50: =IF('LW Auswahl'!$L$20="<25","<25",'LW Auswahl'!$L$20) -> 51.40116215
A51: A-Bewertung | B51: -16.1 | C51: -8.6 | D51: -3.2 | E51: 0 | F51: 1.2 | G51: 1 | H51: -1.1
A52: Schallleistungspegel, bewertet | B52: =B50+B51 -> 47.66582426 | C52: 46.56692213 | D52: 43.60757191 | E52: 37.29959188 | F52: 30.93507741 | G52: 27.22897357 | H52: 27.41461301
A53: =Übersetzung!F126 -> Schallleistungspegel im Heizfall [dB] | B53: ='LW Auswahl'!W20 -> 63.52717153 | C53: ='LW Auswahl'!X20 -> 53.78450278 | D53: ='LW Auswahl'!Y20 -> 47.75955823 | E53: ='LW Auswahl'!Z20 -> 40.3960473 | F53: ='LW Auswahl'!AA20 -> 33.74945095 | G53: ='LW Auswahl'!AB20 -> 29.31078136 | H53: ='LW Auswahl'!AC20 -> 30.25990184 | I53: =IF('LW Auswahl'!M20="<25","<25",'LW Auswahl'!$M$20) -> 51.40116215
A54: A-Bewertung | B54: -16.1 | C54: -8.6 | D54: -3.2 | E54: 0 | F54: 1.2 | G54: 1 | H54: -1.1
A55: Schallleistungspegel, bewertet | B55: =B53+B54 -> 47.42717153 | C55: 45.18450278 | D55: 44.55955823 | E55: 40.3960473 | F55: 34.94945095 | G55: 30.31078136 | H55: 29.15990184
I56: Summe
A57: =CONCATENATE("Oktavspektren emcoair LDI, DN ",C17,", Volumenstrom ",$C$11," m³/h") -> Oktavspektren emcoair LDI, DN 600, Volumenstrom -6 m³/h | J57: SLW,A
A58: Oktavband, Mittenfrequenz f [Hz] | B58: 63 | C58: 125 | D58: 250 | E58: 500 | F58: 1000 | G58: 2000 | H58: 4000 | I58: 8000 | J58: dB(A)
A59: Schallleistungspegel, Aufheizfall [dB] | B59: 57 | C59: 58 | D59: 55 | E59: 56 | F59: 51 | G59: 45 | H59: 39 | I59: 32 | J59: =10*LOG(10^(B61/10)+10^(C61/10)+10^(D61/10)+10^(E61/10)+10^(F61/10)+10^(G61/10)+10^(H61/10)+10^(I61/10)) -> 56.31947349
A60: A-Bewertung | C60: -16.1 | D60: -8.6 | E60: -3.2 | F60: 0 | G60: 1.2 | H60: 1 | I60: -1.1
A61: Schallleistungspegel, bewertet | C61: =C59+C60 -> 41.9 | D61: 46.4 | E61: 52.8 | F61: 51 | G61: 46.2 | H61: 40 | I61: 30.9
A64: Oktavspektren LDI mit VRJK unter angegebenen Betriebsbedingungen | J64: SLW,A
A65: Oktavband, Mittenfrequenz f [Hz] | B65: 63 | C65: 125 | D65: 250 | E65: 500 | F65: 1000 | G65: 2000 | H65: 4000 | I65: 8000 | J65: dB(A)
A66: Schallleistungspegel VRJK [dB] | B66: =B59 -> 57 | C66: 58 | D66: 55 | E66: 56 | F66: 51 | G66: 45 | H66: 39 | I66: 32 | J66: =10*LOG(10^(B68/10)+10^(C68/10)+10^(D68/10)+10^(E68/10)+10^(F68/10)+10^(G68/10)+10^(H68/10)+10^(I68/10)) -> 56.33163164
A67: A-Bewertung | B67: -26.2 | C67: -16.1 | D67: -8.6 | E67: -3.2 | F67: 0 | G67: 1.2 | H67: 1 | I67: -1.1
A68: Schallleistungspegel, bewertet | B68: =B66+B67 -> 30.8 | C68: 41.9 | D68: 46.4 | E68: 52.8 | F68: 51 | G68: 46.2 | H68: 40 | I68: 30.9
A69: Durchgangsdämpfung [dB] | B69: =$C$38 -> 0 | C69: 0 | D69: 0 | E69: 0 | F69: 0 | G69: 0 | H69: 0 | I69: 0
A70: Summe VRJK [dB] | B70: =B69-B66 -> -57 | C70: -58 | D70: -55 | E70: -56 | F70: -51 | G70: -45 | H70: -39 | I70: -32 | J70: =10*LOG(10^(B72/10)+10^(C72/10)+10^(D72/10)+10^(E72/10)+10^(F72/10)+10^(G72/10)+10^(H72/10)+10^(I72/10)) -> -31.55162099
A71: A-Bewertung | B71: -26.2 | C71: -16.1 | D71: -8.6 | E71: -3.2 | F71: 0 | G71: 1.2 | H71: 1 | I71: -1.1
A72: Schallleistungspegel, bewertet | B72: =B70+B71 -> -83.2 | C72: -74.1 | D72: -63.6 | E72: -59.2 | F72: -51 | G72: -43.8 | H72: -38 | I72: -33.1
A73: Schallleistungspegel LDI im Kühlfall [dB] | B73: =#REF! ->  | C73: =B50 -> 63.76582426 | D73: 55.16692213 | E73: 46.80757191 | F73: 37.29959188 | G73: 29.73507741 | H73: 26.22897357 | I73: 28.51461301 | J73: =10*LOG(10^(B75/10)+10^(C75/10)+10^(D75/10)+10^(E75/10)+10^(F75/10)+10^(G75/10)+10^(H75/10)+10^(I75/10)) -> 
A74: A-Bewertung | B74: -26.2 | C74: -16.1 | D74: -8.6 | E74: -3.2 | F74: 0 | G74: 1.2 | H74: 1 | I74: -1.1
A75: Schallleistungspegel, bewertet | B75: =#REF! ->  | C75: 47.66582426 | D75: 46.56692213 | E75: 43.60757191 | F75: 37.29959188 | G75: 30.93507741 | H75: 27.22897357 | I75: 27.41461301
A76: Schallleistungspegel LDI im Heizfall [dB] | B76: =#REF! ->  | C76: 63.52717153 | D76: 53.78450278 | E76: 47.75955823 | F76: 40.3960473 | G76: 33.74945095 | H76: 29.31078136 | I76: 30.25990184 | J76: =10*LOG(10^(B78/10)+10^(C78/10)+10^(D78/10)+10^(E78/10)+10^(F78/10)+10^(G78/10)+10^(H78/10)+10^(I78/10)) -> 51.23351553
A77: A-Bewertung | C77: -16.1 | D77: -8.6 | E77: -3.2 | F77: 0 | G77: 1.2 | H77: 1 | I77: -1.1
A78: Schallleistungspegel, bewertet | C78: =C76+C77 -> 47.42717153 | D78: 45.18450278 | E78: 44.55955823 | F78: 40.3960473 | G78: 34.94945095 | H78: 30.31078136 | I78: 29.15990184
A79: Schallleistungspegel LDI im Heizfall [dB] | B79: =B59 -> 57 | C79: 58 | D79: 55 | E79: 56 | F79: 51 | G79: 45 | H79: 39 | I79: 32 | J79: =10*LOG(10^(B81/10)+10^(C81/10)+10^(D81/10)+10^(E81/10)+10^(F81/10)+10^(G81/10)+10^(H81/10)+10^(I81/10)) -> 56.31947349
A80: A-Bewertung | C80: -16.1 | D80: -8.6 | E80: -3.2 | F80: 0 | G80: 1.2 | H80: 1 | I80: -1.1
A81: Schallleistungspegel, bewertet | C81: =C79+C80 -> 41.9 | D81: 46.4 | E81: 52.8 | F81: 51 | G81: 46.2 | H81: 40 | I81: 30.9
A82: Summe LDI im Kühlfall [dB] | B82: =10*LOG(10^(B$71/10)+10^(B$74/10)) -> -23.18970004 | C82: -13.08970004 | D82: -5.589700043 | E82: -0.1897000434 | F82: 3.010299957 | G82: 4.210299957 | H82: 4.010299957 | I82: 1.910299957 | J82: =10*LOG(10^(B84/10)+10^(C84/10)+10^(D84/10)+10^(E84/10)+10^(F84/10)+10^(G84/10)+10^(H84/10)+10^(I84/10)) -> 10.14856697
A83: A-Bewertung | B83: -26.2 | C83: -16.1 | D83: -8.6 | E83: -3.2 | F83: 0 | G83: 1.2 | H83: 1 | I83: -1.1
A84: Schallleistungspegel, bewertet | B84: =B82+B83 -> -49.38970004 | C84: -29.18970004 | D84: -14.18970004 | E84: -3.389700043 | F84: 3.010299957 | G84: 5.410299957 | H84: 5.010299957 | I84: 0.8102999566
A85: Summe LDI im Heizfall [dB] | B85: =B76 ->  | C85: 63.52717153 | D85: 53.78450278 | E85: 47.75955823 | F85: 40.3960473 | G85: 33.74945095 | H85: 29.31078136 | I85: 30.25990184 | J85: =10*LOG(10^(B87/10)+10^(C87/10)+10^(D87/10)+10^(E87/10)+10^(F87/10)+10^(G87/10)+10^(H87/10)+10^(I87/10)) -> 
A86: A-Bewertung | B86: -26.2 | C86: -16.1 | D86: -8.6 | E86: -3.2 | F86: 0 | G86: 1.2 | H86: 1 | I86: -1.1 | J86: =10*LOG(10^(B88/10)+10^(C88/10)+10^(D88/10)+10^(E88/10)+10^(F88/10)+10^(G88/10)+10^(H88/10)+10^(I88/10)) -> 63.03956597
A87: Schallleistungspegel, bewertet | B87: =B85+B86 ->  | C87: 47.42717153 | D87: 45.18450278 | E87: 44.55955823 | F87: 40.3960473 | G87: 34.94945095 | H87: 30.31078136 | I87: 29.15990184 | J87: =10*LOG(10^(B93/10)+10^(C93/10)+10^(D93/10)+10^(E93/10)+10^(F93/10)+10^(G93/10)+10^(H93/10)+10^(I93/10)) -> 9.03089987
A88: Summe LDI im Aufheizfall [dB] | B88: =B79 -> 57 | C88: 58 | D88: 55 | E88: 56 | F88: 51 | G88: 45 | H88: 39 | I88: 32 | J88: =10*LOG(10^(B90/10)+10^(C90/10)+10^(D90/10)+10^(E90/10)+10^(F90/10)+10^(G90/10)+10^(H90/10)+10^(I90/10)) -> 56.33163164
A89: A-Bewertung | B89: -26.2 | C89: -16.1 | D89: -8.6 | E89: -3.2 | F89: 0 | G89: 1.2 | H89: 1 | I89: -1.1 | J89: =10*LOG(10^(B91/10)+10^(C91/10)+10^(D91/10)+10^(E91/10)+10^(F91/10)+10^(G91/10)+10^(H91/10)+10^(I91/10)) -> 9.03089987
A90: Schallleistungspegel, bewertet | B90: =B88+B89 -> 30.8 | C90: 41.9 | D90: 46.4 | E90: 52.8 | F90: 51 | G90: 46.2 | H90: 40 | I90: 30.9 | J90: =10*LOG(10^(#REF!/10)+10^(#REF!/10)+10^(#REF!/10)+10^(#REF!/10)+10^(#REF!/10)+10^(#REF!/10)+10^(#REF!/10)+10^(#REF!/10)) -> 
A93: =Übersetzung!F131 -> Näherungsrechnung des Schalldruckpegels nach VDI 2081
A94: =CONCATENATE(Übersetzung!F127," ",$C$22," m"," ",Übersetzung!F128) -> Mit der Anzahl der gewälten Durchlässe berechneter Schalldruckpegel in einer Höhe von 1,8 m im Kühlfall | H94: LP,AK | I94: =IF(I50="<25","",'LP-RechnerKühl'!$C$15) -> 42.27165504 | J94: dB(A)
A95: =CONCATENATE(Übersetzung!F127," ",$C$22," m"," ",Übersetzung!F129) -> Mit der Anzahl der gewälten Durchlässe berechneter Schalldruckpegel in einer Höhe von 1,8 m im Heizfall | H95: LP,AH | I95: =IF(I53="<25","",'LP-RechnerHeiz'!$C$15) -> 42.27165504 | J95: dB(A)
A99: =Übersetzung!F132 -> Hinweis: Die in diesem Arbeitsblatt durchgeführten Berechnungen erfolgen anhand von VDI2081. Als Grundannahmen werden ein kubischer Raum sowie eine symmetrische Verteilung der Luftdurchlässe vorausgesetzt. Als Ergebnis liefert das Arbeitsblatt einen angenäherten Schalldruckpegel unterhalb eines zentral gelegenen Durchlasses in Höhe einer vorzugebenden Bezugshöhe. Es werden ausschließlich die durch die Durchlässe emittierten Geräuschemissionen berücksichtigt.

Sheet xkr._vx (hidden)
A1: Geschwindigkeit im Strahl und kritischer Strahlweg | G1: Annahme: | H1: Winkel nach xkrit | I1: 45
A2: Achtung: Automatisierte Konstantenauswahl aus den "-CAP" Arbeitsblättern
A3: Konstanten | B3: K031 | C3: =SUM('VLV-CAP'!C44,'VLD-CAP'!C44,'WKD380-CAP'!C44,'WKD381-CAP'!C44) -> 0 | E3: Konstanten: | F3: K041 | G3: =SUM('VLV-CAP'!C48,'VLD-CAP'!C48,'WKD380-CAP'!C48,'WKD381-CAP'!C48) -> 0 | I3: Konstanten | J3: K071 | K3: =SUM('VLV-CAP'!$C$53,'VLD-CAP'!$C$53,'WKD380-CAP'!$C$53,'WKD381-CAP'!$C$53) -> 0.00106 | M3: Konstanten | N3: K091 | O3: =SUM('VLV-CAP'!$C$58,'VLD-CAP'!$C$58,'WKD380-CAP'!$C$58,'WKD381-CAP'!$C$58) -> 0
B4: K032 | C4: =SUM('VLV-CAP'!C45,'VLD-CAP'!C45,'WKD380-CAP'!C45,'WKD381-CAP'!C45) -> 0 | F4: K042 | G4: =SUM('VLV-CAP'!C49,'VLD-CAP'!C49,'WKD380-CAP'!C49,'WKD381-CAP'!C49) -> 0 | J4: K072 | K4: =SUM('VLV-CAP'!C54,'VLD-CAP'!C54,'WKD380-CAP'!C54,'WKD381-CAP'!C54) -> 1 | N4: K092 | O4: =SUM('VLV-CAP'!$C$59,'VLD-CAP'!$C$59,'WKD380-CAP'!$C$59,'WKD381-CAP'!$C$59) -> 0
B5: K033 | C5: =SUM('VLV-CAP'!C46,'VLD-CAP'!C46,'WKD380-CAP'!C46,'WKD381-CAP'!C46) -> 0 | F5: K043 | G5: =SUM('VLV-CAP'!C50,'VLD-CAP'!C50,'WKD380-CAP'!C50,'WKD381-CAP'!C50) -> 0 | J5: K081 | K5: =SUM('VLV-CAP'!C55,'VLD-CAP'!C55,'WKD380-CAP'!C55,'WKD381-CAP'!C55) -> 0.00783 | N5: K093 | O5: =SUM('VLV-CAP'!$C$60,'VLD-CAP'!$C$60,'WKD380-CAP'!$C$60,'WKD381-CAP'!$C$60) -> 0
B6: K034 | C6: =SUM('VLV-CAP'!C47,'VLD-CAP'!C47,'WKD380-CAP'!C47,'WKD381-CAP'!C47) -> 0 | F6: Dt0 | G6: =IF('Auslegung-V'!$D$40-'Auslegung-V'!$D$39>0,'Auslegung-V'!$D$40-'Auslegung-V'!$D$39,ABS('Auslegung-V'!$D$40-'Auslegung-V'!$D$39)) -> 10 | J6: K082 | K6: =SUM('VLV-CAP'!C56,'VLD-CAP'!C56,'WKD380-CAP'!C56,'WKD381-CAP'!C56) -> 0.5
J7: K083 | K7: =SUM('VLV-CAP'!C57,'VLD-CAP'!C57,'WKD380-CAP'!C57,'WKD381-CAP'!C57) -> 1
B8: Lauflänge | C8: Geschwindigkeit im Strahl horizontal | D8: Geschwindigkeit im Strahl vertikal | F8: kritischer Strahlweg Anzeige | G8: kritischer Strahlweg | H8: vertikaler Strahlweg | I8: Geschwindigkeit krit. Strahlweg Anzeige | J8: Geschwindigkeit im Strahl an xKr
B9: L | C9: v0 | D9: v1 | F9: xkr._Anzeige | G9: xkr. | H9: y | J9: v0 | P9: Freier Wurf
B10: m | C10: m/s | D10: m/s | F10: m | G10: m | H10: m | J10: m/s | P10: X | Q10: Y
B11: 0.5 | C11: =$C$3*'Auslegung-V'!$D$37*(1/xkr._vx!B11)^xkr._vx!$C$5 -> 0 | D11: =1/B11*$J$11 ->  | F11: =IF(G6=0,"",IF($J$27<Einheiten!$E$42,$J$27,">Raumlänge")) -> 0 | G11: =IF(J27<Einheiten!$E$42,xkr._vx!J27,Einheiten!$E$42) -> 0 | H11: =(Einheiten!$E$40-Einheiten!$E$41)/SIN(45/180*PI()) -> 18.66761902 | I11: =IF(OR('Auslegung-V'!D30="freihängend",'Auslegung-V'!D30="hanging installed"),xkr._vx!N33,xkr._vx!N28) -> 0 | J11: =$C$3*Einheiten!$E$37*(1/xkr._vx!G11)^(xkr._vx!$C$5) ->  | M11: Horizontalabweichung | P11: 0.5 | Q11: =ABS(P11*TAN($O$3*PI()/180)+$O$4*(-$G$6/'Auslegung-V'!$D$37^2)*((xkr._vx!P11/COS(xkr._vx!$O$3*PI()/180))^xkr._vx!$O$5)) -> 0
B12: 0.6 | C12: =$C$3*'Auslegung-V'!$D$37*(1/xkr._vx!B12)^xkr._vx!$C$5 -> 0 | D12: =1/B12*$J$11 ->  | P12: 0.6 | Q12: =ABS(P12*TAN($O$3*PI()/180)+$O$4*(-$G$6/'Auslegung-V'!$D$37^2)*((xkr._vx!P12/COS(xkr._vx!$O$3*PI()/180))^xkr._vx!$O$5)) -> 0 | R12: =IF(Q12>('Auslegung-V'!$D$42-'Auslegung-V'!$D$43),xkr._vx!P11,"") -> 
B13: 0.7 | C13: =$C$3*'Auslegung-V'!$D$37*(1/xkr._vx!B13)^xkr._vx!$C$5 -> 0 | M13: X= | N13: 2.5 | O13: m | P13: 0.7 | Q13: =ABS(P13*TAN($O$3*PI()/180)+$O$4*(-$G$6/'Auslegung-V'!$D$37^2)*((xkr._vx!P13/COS(xkr._vx!$O$3*PI()/180))^xkr._vx!$O$5)) -> 0 | R13: =IF(Q13>('Auslegung-V'!$D$42-'Auslegung-V'!$D$43),xkr._vx!P12,"") -> 
B14: 0.8 | C14: =$C$3*'Auslegung-V'!$D$37*(1/xkr._vx!B14)^xkr._vx!$C$5 -> 0 | M14: Y= | N14: =ABS($N$13*TAN($O$3*PI()/180)+$O$4*(-$G$6/'Auslegung-V'!$D$37^2)*((xkr._vx!$N$13/COS(xkr._vx!$O$3*PI()/180))^xkr._vx!$O$5)) -> 0 | P14: 0.8 | Q14: =ABS(P14*TAN($O$3*PI()/180)+$O$4*(-$G$6/'Auslegung-V'!$D$37^2)*((xkr._vx!P14/COS(xkr._vx!$O$3*PI()/180))^xkr._vx!$O$5)) -> 0 | R14: =IF(Q14>('Auslegung-V'!$D$42-'Auslegung-V'!$D$43),xkr._vx!P13,"") -> 
B15: 0.9 | C15: =$C$3*'Auslegung-V'!$D$37*(1/xkr._vx!B15)^xkr._vx!$C$5 -> 0 | D15: =1/B15*$J$11 ->  | M15: Strahlweg, freier Wurf | N15: =MIN(R20:R365) -> 0 | P15: 0.9 | Q15: =ABS(P15*TAN($O$3*PI()/180)+$O$4*(-$G$6/'Auslegung-V'!$D$37^2)*((xkr._vx!P15/COS(xkr._vx!$O$3*PI()/180))^xkr._vx!$O$5)) -> 0 | R15: =IF(Q15>('Auslegung-V'!$D$42-'Auslegung-V'!$D$43),xkr._vx!P14,"") -> 
B16: 1 | C16: =$C$3*'Auslegung-V'!$D$37*(1/xkr._vx!B16)^xkr._vx!$C$5 -> 0 | P16: 1 | Q16: =ABS(P16*TAN($O$3*PI()/180)+$O$4*(-$G$6/'Auslegung-V'!$D$37^2)*((xkr._vx!P16/COS(xkr._vx!$O$3*PI()/180))^xkr._vx!$O$5)) -> 0 | R16: =IF(Q16>('Auslegung-V'!$D$42-'Auslegung-V'!$D$43),xkr._vx!P15,"") -> 
B17: 1.1 | C17: =$C$3*'Auslegung-V'!$D$37*(1/xkr._vx!B17)^xkr._vx!$C$5 -> 0 | P17: 1.1 | Q17: =ABS(P17*TAN($O$3*PI()/180)+$O$4*(-$G$6/'Auslegung-V'!$D$37^2)*((xkr._vx!P17/COS(xkr._vx!$O$3*PI()/180))^xkr._vx!$O$5)) -> 0 | R17: =IF(Q17>('Auslegung-V'!$D$42-'Auslegung-V'!$D$43),xkr._vx!P16,"") -> 
B18: 1.2 | C18: =$C$3*'Auslegung-V'!$D$37*(1/xkr._vx!B18)^xkr._vx!$C$5 -> 0 | P18: 1.2 | Q18: =ABS(P18*TAN($O$3*PI()/180)+$O$4*(-$G$6/'Auslegung-V'!$D$37^2)*((xkr._vx!P18/COS(xkr._vx!$O$3*PI()/180))^xkr._vx!$O$5)) -> 0 | R18: =IF(Q18>('Auslegung-V'!$D$42-'Auslegung-V'!$D$43),xkr._vx!P17,"") -> 
B19: 1.3 | C19: =$C$3*'Auslegung-V'!$D$37*(1/xkr._vx!B19)^xkr._vx!$C$5 -> 0 | P19: 1.3 | Q19: =ABS(P19*TAN($O$3*PI()/180)+$O$4*(-$G$6/'Auslegung-V'!$D$37^2)*((xkr._vx!P19/COS(xkr._vx!$O$3*PI()/180))^xkr._vx!$O$5)) -> 0 | R19: =IF(Q19>('Auslegung-V'!$D$42-'Auslegung-V'!$D$43),xkr._vx!P18,"") -> 
B20: 1.4 | C20: =$C$3*'Auslegung-V'!$D$37*(1/xkr._vx!B20)^xkr._vx!$C$5 -> 0 | D20: =1/B20*$J$11 ->  | P20: 1.4 | Q20: =ABS(P20*TAN($O$3*PI()/180)+$O$4*(-$G$6/'Auslegung-V'!$D$37^2)*((xkr._vx!P20/COS(xkr._vx!$O$3*PI()/180))^xkr._vx!$O$5)) -> 0 | R20: =IF(Q20>('Auslegung-V'!$D$42-'Auslegung-V'!$D$43),xkr._vx!P19,"") -> 
B21: 1.5 | C21: =$C$3*'Auslegung-V'!$D$37*(1/xkr._vx!B21)^xkr._vx!$C$5 -> 0 | P21: 1.5 | Q21: =ABS(P21*TAN($O$3*PI()/180)+$O$4*(-$G$6/'Auslegung-V'!$D$37^2)*((xkr._vx!P21/COS(xkr._vx!$O$3*PI()/180))^xkr._vx!$O$5)) -> 0 | R21: =IF(Q21>('Auslegung-V'!$D$42-'Auslegung-V'!$D$43),xkr._vx!P20,"") -> 
B22: 1.6 | C22: =$C$3*'Auslegung-V'!$D$37*(1/xkr._vx!B22)^xkr._vx!$C$5 -> 0 | I22: 1/2 Durchlassabstand | J22: hor. Lauflänge | K22: ver. Lauflänge | L22: ges. Lauflänge | M22: Geschw. Endpunkt | N22: Geschw. OK A-Ber. | P22: 1.6 | Q22: =ABS(P22*TAN($O$3*PI()/180)+$O$4*(-$G$6/'Auslegung-V'!$D$37^2)*((xkr._vx!P22/COS(xkr._vx!$O$3*PI()/180))^xkr._vx!$O$5)) -> 0 | R22: =IF(Q22>('Auslegung-V'!$D$42-'Auslegung-V'!$D$43),xkr._vx!P21,"") -> 
B23: 1.7 | C23: =$C$3*'Auslegung-V'!$D$37*(1/xkr._vx!B23)^xkr._vx!$C$5 -> 0 | E23: Betrachtung Strahlweg frei entlang der Decke bis Wandkante | J23: =Einheiten!$E$45 -> 3 | M23: =$C$3*Einheiten!$E$37*(1/xkr._vx!J23)^xkr._vx!$C$5 -> 0 | P23: 1.7 | Q23: =ABS(P23*TAN($O$3*PI()/180)+$O$4*(-$G$6/'Auslegung-V'!$D$37^2)*((xkr._vx!P23/COS(xkr._vx!$O$3*PI()/180))^xkr._vx!$O$5)) -> 0 | R23: =IF(Q23>('Auslegung-V'!$D$42-'Auslegung-V'!$D$43),xkr._vx!P22,"") -> 
B24: 1.8 | C24: =$C$3*'Auslegung-V'!$D$37*(1/xkr._vx!B24)^xkr._vx!$C$5 -> 0 | E24: Betrachtung Strahlweg von Wandkante bis Fußboden Aufenthaltsbereich | K24: =Einheiten!$E$40+0.5 -> 15.5 | L24: =K24+J23 -> 18.5 | N24: =$C$3*Einheiten!$E$37*(1/xkr._vx!L24)^xkr._vx!$C$5*$C$6 -> 0 | P24: 1.8 | Q24: =ABS(P24*TAN($O$3*PI()/180)+$O$4*(-$G$6/'Auslegung-V'!$D$37^2)*((xkr._vx!P24/COS(xkr._vx!$O$3*PI()/180))^xkr._vx!$O$5)) -> 0 | R24: =IF(Q24>('Auslegung-V'!$D$42-'Auslegung-V'!$D$43),xkr._vx!P23,"") -> 
B25: 1.9 | C25: =$C$3*'Auslegung-V'!$D$37*(1/xkr._vx!B25)^xkr._vx!$C$5 -> 0 | E25: Betrachtung Strahlweg von Durchlassmitte bis Stoßpunkt | I25: =Einheiten!$E$46/2 -> 1.5 | M25: =$C$3*Einheiten!$E$37*(1/xkr._vx!I25)^xkr._vx!$C$5 -> 0 | P25: 1.9 | Q25: =ABS(P25*TAN($O$3*PI()/180)+$O$4*(-$G$6/'Auslegung-V'!$D$37^2)*((xkr._vx!P25/COS(xkr._vx!$O$3*PI()/180))^xkr._vx!$O$5)) -> 0 | R25: =IF(Q25>('Auslegung-V'!$D$42-'Auslegung-V'!$D$43),xkr._vx!P24,"") -> 
B26: 2 | C26: =$C$3*'Auslegung-V'!$D$37*(1/xkr._vx!B26)^xkr._vx!$C$5 -> 0 | E26: Betrachtung Freistrahl ab Stoßpunkt bis Oberkante Aufenthaltsbereich | K26: =Einheiten!$E$40-Einheiten!$E$41 -> 13.2 | L26: =K26+I25 -> 14.7 | N26: =IF($C$3*Einheiten!$E$37*(1/((xkr._vx!I25+xkr._vx!K26)+xkr._vx!$C$4*xkr._vx!K26))^xkr._vx!$C$5*$C$6<N28,N28,$C$3*Einheiten!$E$37*(1/((xkr._vx!I25+xkr._vx!K26)+xkr._vx!$C$4*xkr._vx!K26))^xkr._vx!$C$5*$C$6) -> 0 | P26: 2 | Q26: =ABS(P26*TAN($O$3*PI()/180)+$O$4*(-$G$6/'Auslegung-V'!$D$37^2)*((xkr._vx!P26/COS(xkr._vx!$O$3*PI()/180))^xkr._vx!$O$5)) -> 0 | R26: =IF(Q26>('Auslegung-V'!$D$42-'Auslegung-V'!$D$43),xkr._vx!P25,"") -> 
B27: 2.1 | C27: =$C$3*'Auslegung-V'!$D$37*(1/xkr._vx!B27)^xkr._vx!$C$5 -> 0 | E27: Betrachtung Strahlweg bis xkritisch | J27: =$G$3*'Auslegung-V'!$D$37^$G$5*(1/xkr._vx!$G$6^(xkr._vx!$G$4)) -> 0 | M27: =$C$3*'Auslegung-V'!$D$37*(1/xkr._vx!J27)^xkr._vx!$C$5 ->  | P27: 2.1 | Q27: =ABS(P27*TAN($O$3*PI()/180)+$O$4*(-$G$6/'Auslegung-V'!$D$37^2)*((xkr._vx!P27/COS(xkr._vx!$O$3*PI()/180))^xkr._vx!$O$5)) -> 0 | R27: =IF(Q27>('Auslegung-V'!$D$42-'Auslegung-V'!$D$43),xkr._vx!P26,"") -> 
B28: 2.2 | C28: =$C$3*'Auslegung-V'!$D$37*(1/xkr._vx!B28)^xkr._vx!$C$5 -> 0 | E28: Betrachtung von xkritisch bis Oberkante Aufenthaltsbereich | K28: =(Einheiten!$E$40-Einheiten!$E$41)/SIN($I$1/180*PI()) -> 18.66761902 | L28: =IF(G6=0,"",J27+K28) -> 18.66761902 | N28: =IF($G$6=0,"",$C$3*Einheiten!$E$37*(1/xkr._vx!L28)^xkr._vx!$C$5*$C$6) -> 0 | P28: 2.2 | Q28: =ABS(P28*TAN($O$3*PI()/180)+$O$4*(-$G$6/'Auslegung-V'!$D$37^2)*((xkr._vx!P28/COS(xkr._vx!$O$3*PI()/180))^xkr._vx!$O$5)) -> 0 | R28: =IF(Q28>('Auslegung-V'!$D$42-'Auslegung-V'!$D$43),xkr._vx!P27,"") -> 
B29: 2.3 | C29: =$C$3*'Auslegung-V'!$D$37*(1/xkr._vx!B29)^xkr._vx!$C$5 -> 0 | P29: 2.3 | Q29: =ABS(P29*TAN($O$3*PI()/180)+$O$4*(-$G$6/'Auslegung-V'!$D$37^2)*((xkr._vx!P29/COS(xkr._vx!$O$3*PI()/180))^xkr._vx!$O$5)) -> 0 | R29: =IF(Q29>('Auslegung-V'!$D$42-'Auslegung-V'!$D$43),xkr._vx!P28,"") -> 
B30: 2.4 | C30: =$C$3*'Auslegung-V'!$D$37*(1/xkr._vx!B30)^xkr._vx!$C$5 -> 0 | P30: 2.4 | Q30: =ABS(P30*TAN($O$3*PI()/180)+$O$4*(-$G$6/'Auslegung-V'!$D$37^2)*((xkr._vx!P30/COS(xkr._vx!$O$3*PI()/180))^xkr._vx!$O$5)) -> 0 | R30: =IF(Q30>('Auslegung-V'!$D$42-'Auslegung-V'!$D$43),xkr._vx!P29,"") -> 
B31: 2.5 | C31: =$C$3*'Auslegung-V'!$D$37*(1/xkr._vx!B31)^xkr._vx!$C$5 -> 0 | K31: =Einheiten!$E$40-Einheiten!$E$41 -> 13.2 | L31: =K31+I30 -> 13.2 | M31: =IF($K$5*(Einheiten!$E$37^xkr._vx!$K$7)/(xkr._vx!G6^xkr._vx!K6)>Einheiten!$E$40,"> Montagehöhe",$K$5*(Einheiten!$E$37^xkr._vx!$K$7)/(xkr._vx!G6^xkr._vx!K6)) -> 7.428190224 | N31: =$C$3*Einheiten!$E$37*(1/((xkr._vx!I30+xkr._vx!K31)+xkr._vx!$C$4*xkr._vx!K31))^xkr._vx!$C$5*$C$6 -> 0 | P31: 2.5 | Q31: =ABS(P31*TAN($O$3*PI()/180)+$O$4*(-$G$6/'Auslegung-V'!$D$37^2)*((xkr._vx!P31/COS(xkr._vx!$O$3*PI()/180))^xkr._vx!$O$5)) -> 0 | R31: =IF(Q31>('Auslegung-V'!$D$42-'Auslegung-V'!$D$43),xkr._vx!P30,"") -> 
B32: 2.6 | C32: =$C$3*'Auslegung-V'!$D$37*(1/xkr._vx!B32)^xkr._vx!$C$5 -> 0 | P32: 2.6 | Q32: =ABS(P32*TAN($O$3*PI()/180)+$O$4*(-$G$6/'Auslegung-V'!$D$37^2)*((xkr._vx!P32/COS(xkr._vx!$O$3*PI()/180))^xkr._vx!$O$5)) -> 0 | R32: =IF(Q32>('Auslegung-V'!$D$42-'Auslegung-V'!$D$43),xkr._vx!P31,"") -> 
B33: 2.7 | C33: =$C$3*'Auslegung-V'!$D$37*(1/xkr._vx!B33)^xkr._vx!$C$5 -> 0 | E33: Betrachtung des schrägen Wurfs im fraihängend montierten Fall | M33: =N15 -> 0 | N33: =$C$3*Einheiten!$E$37*((1/xkr._vx!$N$15)^xkr._vx!$C$5)*xkr._vx!$C$6 ->  | P33: 2.7 | Q33: =ABS(P33*TAN($O$3*PI()/180)+$O$4*(-$G$6/'Auslegung-V'!$D$37^2)*((xkr._vx!P33/COS(xkr._vx!$O$3*PI()/180))^xkr._vx!$O$5)) -> 0 | R33: =IF(Q33>('Auslegung-V'!$D$42-'Auslegung-V'!$D$43),xkr._vx!P32,"") -> 
B34: 2.8 | C34: =$C$3*'Auslegung-V'!$D$37*(1/xkr._vx!B34)^xkr._vx!$C$5 -> 0 | P34: 2.8 | Q34: =ABS(P34*TAN($O$3*PI()/180)+$O$4*(-$G$6/'Auslegung-V'!$D$37^2)*((xkr._vx!P34/COS(xkr._vx!$O$3*PI()/180))^xkr._vx!$O$5)) -> 0 | R34: =IF(Q34>('Auslegung-V'!$D$42-'Auslegung-V'!$D$43),xkr._vx!P33,"") -> 
B35: 2.9 | C35: =$C$3*'Auslegung-V'!$D$37*(1/xkr._vx!B35)^xkr._vx!$C$5 -> 0 | P35: 2.9 | Q35: =ABS(P35*TAN($O$3*PI()/180)+$O$4*(-$G$6/'Auslegung-V'!$D$37^2)*((xkr._vx!P35/COS(xkr._vx!$O$3*PI()/180))^xkr._vx!$O$5)) -> 0 | R35: =IF(Q35>('Auslegung-V'!$D$42-'Auslegung-V'!$D$43),xkr._vx!P34,"") -> 
B36: 3 | C36: =$C$3*'Auslegung-V'!$D$37*(1/xkr._vx!B36)^xkr._vx!$C$5 -> 0 | J36: Maximalgeschw. | K36: ges. Lauflänge bis vmax | L36: Lauflänge vertikal | M36: Wandabstand | P36: 3 | Q36: =ABS(P36*TAN($O$3*PI()/180)+$O$4*(-$G$6/'Auslegung-V'!$D$37^2)*((xkr._vx!P36/COS(xkr._vx!$O$3*PI()/180))^xkr._vx!$O$5)) -> 0 | R36: =IF(Q36>('Auslegung-V'!$D$42-'Auslegung-V'!$D$43),xkr._vx!P35,"") -> 
B37: 3.1 | C37: =$C$3*'Auslegung-V'!$D$37*(1/xkr._vx!B37)^xkr._vx!$C$5 -> 0 | P37: 3.1 | Q37: =ABS(P37*TAN($O$3*PI()/180)+$O$4*(-$G$6/'Auslegung-V'!$D$37^2)*((xkr._vx!P37/COS(xkr._vx!$O$3*PI()/180))^xkr._vx!$O$5)) -> 0 | R37: =IF(Q37>('Auslegung-V'!$D$42-'Auslegung-V'!$D$43),xkr._vx!P36,"") -> 
B38: 3.2 | C38: =$C$3*'Auslegung-V'!$D$37*(1/xkr._vx!B38)^xkr._vx!$C$5 -> 0 | F38: Berechnung Wandabstand bei vorgegebener Max. Geschw. | J38: ='Auslegung-V'!$D$38 -> 0.2 | K38: =1/(J38/($C$3*'Auslegung-V'!$D$37))^(1/xkr._vx!$C$5) ->  | L38: ='Auslegung-V'!$D$42-'Auslegung-V'!$D$43 -> 13.2 | M38: =K38-L38 ->  | P38: 3.2 | Q38: =ABS(P38*TAN($O$3*PI()/180)+$O$4*(-$G$6/'Auslegung-V'!$D$37^2)*((xkr._vx!P38/COS(xkr._vx!$O$3*PI()/180))^xkr._vx!$O$5)) -> 0 | R38: =IF(Q38>('Auslegung-V'!$D$42-'Auslegung-V'!$D$43),xkr._vx!P37,"") -> 
B39: 3.3 | C39: =$C$3*'Auslegung-V'!$D$37*(1/xkr._vx!B39)^xkr._vx!$C$5 -> 0 | P39: 3.3 | Q39: =ABS(P39*TAN($O$3*PI()/180)+$O$4*(-$G$6/'Auslegung-V'!$D$37^2)*((xkr._vx!P39/COS(xkr._vx!$O$3*PI()/180))^xkr._vx!$O$5)) -> 0 | R39: =IF(Q39>('Auslegung-V'!$D$42-'Auslegung-V'!$D$43),xkr._vx!P38,"") -> 
B40: 3.4 | C40: =$C$3*'Auslegung-V'!$D$37*(1/xkr._vx!B40)^xkr._vx!$C$5 -> 0 | P40: 3.4 | Q40: =ABS(P40*TAN($O$3*PI()/180)+$O$4*(-$G$6/'Auslegung-V'!$D$37^2)*((xkr._vx!P40/COS(xkr._vx!$O$3*PI()/180))^xkr._vx!$O$5)) -> 0 | R40: =IF(Q40>('Auslegung-V'!$D$42-'Auslegung-V'!$D$43),xkr._vx!P39,"") -> 
B41: 3.5 | C41: =$C$3*'Auslegung-V'!$D$37*(1/xkr._vx!B41)^xkr._vx!$C$5 -> 0 | P41: 3.5 | Q41: =ABS(P41*TAN($O$3*PI()/180)+$O$4*(-$G$6/'Auslegung-V'!$D$37^2)*((xkr._vx!P41/COS(xkr._vx!$O$3*PI()/180))^xkr._vx!$O$5)) -> 0 | R41: =IF(Q41>('Auslegung-V'!$D$42-'Auslegung-V'!$D$43),xkr._vx!P40,"") -> 
B42: 3.6 | C42: =$C$3*'Auslegung-V'!$D$37*(1/xkr._vx!B42)^xkr._vx!$C$5 -> 0 | P42: 3.6 | Q42: =ABS(P42*TAN($O$3*PI()/180)+$O$4*(-$G$6/'Auslegung-V'!$D$37^2)*((xkr._vx!P42/COS(xkr._vx!$O$3*PI()/180))^xkr._vx!$O$5)) -> 0 | R42: =IF(Q42>('Auslegung-V'!$D$42-'Auslegung-V'!$D$43),xkr._vx!P41,"") -> 
B43: 3.7 | C43: =$C$3*'Auslegung-V'!$D$37*(1/xkr._vx!B43)^xkr._vx!$C$5 -> 0 | P43: 3.7 | Q43: =ABS(P43*TAN($O$3*PI()/180)+$O$4*(-$G$6/'Auslegung-V'!$D$37^2)*((xkr._vx!P43/COS(xkr._vx!$O$3*PI()/180))^xkr._vx!$O$5)) -> 0 | R43: =IF(Q43>('Auslegung-V'!$D$42-'Auslegung-V'!$D$43),xkr._vx!P42,"") -> 
B44: 3.8 | C44: =$C$3*'Auslegung-V'!$D$37*(1/xkr._vx!B44)^xkr._vx!$C$5 -> 0 | P44: 3.8 | Q44: =ABS(P44*TAN($O$3*PI()/180)+$O$4*(-$G$6/'Auslegung-V'!$D$37^2)*((xkr._vx!P44/COS(xkr._vx!$O$3*PI()/180))^xkr._vx!$O$5)) -> 0 | R44: =IF(Q44>('Auslegung-V'!$D$42-'Auslegung-V'!$D$43),xkr._vx!P43,"") -> 
B45: 3.9 | C45: =$C$3*'Auslegung-V'!$D$37*(1/xkr._vx!B45)^xkr._vx!$C$5 -> 0 | P45: 3.9 | Q45: =ABS(P45*TAN($O$3*PI()/180)+$O$4*(-$G$6/'Auslegung-V'!$D$37^2)*((xkr._vx!P45/COS(xkr._vx!$O$3*PI()/180))^xkr._vx!$O$5)) -> 0 | R45: =IF(Q45>('Auslegung-V'!$D$42-'Auslegung-V'!$D$43),xkr._vx!P44,"") -> 
B46: 4 | C46: =$C$3*'Auslegung-V'!$D$37*(1/xkr._vx!B46)^xkr._vx!$C$5 -> 0 | P46: 4 | Q46: =ABS(P46*TAN($O$3*PI()/180)+$O$4*(-$G$6/'Auslegung-V'!$D$37^2)*((xkr._vx!P46/COS(xkr._vx!$O$3*PI()/180))^xkr._vx!$O$5)) -> 0 | R46: =IF(Q46>('Auslegung-V'!$D$42-'Auslegung-V'!$D$43),xkr._vx!P45,"") -> 
B47: 4.1 | C47: =$C$3*'Auslegung-V'!$D$37*(1/xkr._vx!B47)^xkr._vx!$C$5 -> 0 | P47: 4.1 | Q47: =ABS(P47*TAN($O$3*PI()/180)+$O$4*(-$G$6/'Auslegung-V'!$D$37^2)*((xkr._vx!P47/COS(xkr._vx!$O$3*PI()/180))^xkr._vx!$O$5)) -> 0 | R47: =IF(Q47>('Auslegung-V'!$D$42-'Auslegung-V'!$D$43),xkr._vx!P46,"") -> 
B48: 4.2 | C48: =$C$3*'Auslegung-V'!$D$37*(1/xkr._vx!B48)^xkr._vx!$C$5 -> 0 | P48: 4.2 | Q48: =ABS(P48*TAN($O$3*PI()/180)+$O$4*(-$G$6/'Auslegung-V'!$D$37^2)*((xkr._vx!P48/COS(xkr._vx!$O$3*PI()/180))^xkr._vx!$O$5)) -> 0 | R48: =IF(Q48>('Auslegung-V'!$D$42-'Auslegung-V'!$D$43),xkr._vx!P47,"") -> 
B49: 4.3 | C49: =$C$3*'Auslegung-V'!$D$37*(1/xkr._vx!B49)^xkr._vx!$C$5 -> 0 | P49: 4.3 | Q49: =ABS(P49*TAN($O$3*PI()/180)+$O$4*(-$G$6/'Auslegung-V'!$D$37^2)*((xkr._vx!P49/COS(xkr._vx!$O$3*PI()/180))^xkr._vx!$O$5)) -> 0 | R49: =IF(Q49>('Auslegung-V'!$D$42-'Auslegung-V'!$D$43),xkr._vx!P48,"") -> 
B50: 4.4 | C50: =$C$3*'Auslegung-V'!$D$37*(1/xkr._vx!B50)^xkr._vx!$C$5 -> 0 | P50: 4.4 | Q50: =ABS(P50*TAN($O$3*PI()/180)+$O$4*(-$G$6/'Auslegung-V'!$D$37^2)*((xkr._vx!P50/COS(xkr._vx!$O$3*PI()/180))^xkr._vx!$O$5)) -> 0 | R50: =IF(Q50>('Auslegung-V'!$D$42-'Auslegung-V'!$D$43),xkr._vx!P49,"") -> 
B51: 4.5 | C51: =$C$3*'Auslegung-V'!$D$37*(1/xkr._vx!B51)^xkr._vx!$C$5 -> 0 | P51: 4.5 | Q51: =ABS(P51*TAN($O$3*PI()/180)+$O$4*(-$G$6/'Auslegung-V'!$D$37^2)*((xkr._vx!P51/COS(xkr._vx!$O$3*PI()/180))^xkr._vx!$O$5)) -> 0 | R51: =IF(Q51>('Auslegung-V'!$D$42-'Auslegung-V'!$D$43),xkr._vx!P50,"") -> 
B52: 4.6 | C52: =$C$3*'Auslegung-V'!$D$37*(1/xkr._vx!B52)^xkr._vx!$C$5 -> 0 | P52: 4.6 | Q52: =ABS(P52*TAN($O$3*PI()/180)+$O$4*(-$G$6/'Auslegung-V'!$D$37^2)*((xkr._vx!P52/COS(xkr._vx!$O$3*PI()/180))^xkr._vx!$O$5)) -> 0 | R52: =IF(Q52>('Auslegung-V'!$D$42-'Auslegung-V'!$D$43),xkr._vx!P51,"") -> 
B53: 4.7 | C53: =$C$3*'Auslegung-V'!$D$37*(1/xkr._vx!B53)^xkr._vx!$C$5 -> 0 | P53: 4.7 | Q53: =ABS(P53*TAN($O$3*PI()/180)+$O$4*(-$G$6/'Auslegung-V'!$D$37^2)*((xkr._vx!P53/COS(xkr._vx!$O$3*PI()/180))^xkr._vx!$O$5)) -> 0 | R53: =IF(Q53>('Auslegung-V'!$D$42-'Auslegung-V'!$D$43),xkr._vx!P52,"") -> 
B54: 4.8 | C54: =$C$3*'Auslegung-V'!$D$37*(1/xkr._vx!B54)^xkr._vx!$C$5 -> 0 | P54: 4.8 | Q54: =ABS(P54*TAN($O$3*PI()/180)+$O$4*(-$G$6/'Auslegung-V'!$D$37^2)*((xkr._vx!P54/COS(xkr._vx!$O$3*PI()/180))^xkr._vx!$O$5)) -> 0 | R54: =IF(Q54>('Auslegung-V'!$D$42-'Auslegung-V'!$D$43),xkr._vx!P53,"") -> 
B55: 4.9 | C55: =$C$3*'Auslegung-V'!$D$37*(1/xkr._vx!B55)^xkr._vx!$C$5 -> 0 | P55: 4.9 | Q55: =ABS(P55*TAN($O$3*PI()/180)+$O$4*(-$G$6/'Auslegung-V'!$D$37^2)*((xkr._vx!P55/COS(xkr._vx!$O$3*PI()/180))^xkr._vx!$O$5)) -> 0 | R55: =IF(Q55>('Auslegung-V'!$D$42-'Auslegung-V'!$D$43),xkr._vx!P54,"") -> 
B56: 5 | C56: =$C$3*'Auslegung-V'!$D$37*(1/xkr._vx!B56)^xkr._vx!$C$5 -> 0 | P56: 5 | Q56: =ABS(P56*TAN($O$3*PI()/180)+$O$4*(-$G$6/'Auslegung-V'!$D$37^2)*((xkr._vx!P56/COS(xkr._vx!$O$3*PI()/180))^xkr._vx!$O$5)) -> 0 | R56: =IF(Q56>('Auslegung-V'!$D$42-'Auslegung-V'!$D$43),xkr._vx!P55,"") -> 
B57: 5.1 | C57: =$C$3*'Auslegung-V'!$D$37*(1/xkr._vx!B57)^xkr._vx!$C$5 -> 0 | P57: 5.1 | Q57: =ABS(P57*TAN($O$3*PI()/180)+$O$4*(-$G$6/'Auslegung-V'!$D$37^2)*((xkr._vx!P57/COS(xkr._vx!$O$3*PI()/180))^xkr._vx!$O$5)) -> 0 | R57: =IF(Q57>('Auslegung-V'!$D$42-'Auslegung-V'!$D$43),xkr._vx!P56,"") -> 
B58: 5.2 | C58: =$C$3*'Auslegung-V'!$D$37*(1/xkr._vx!B58)^xkr._vx!$C$5 -> 0 | P58: 5.2 | Q58: =ABS(P58*TAN($O$3*PI()/180)+$O$4*(-$G$6/'Auslegung-V'!$D$37^2)*((xkr._vx!P58/COS(xkr._vx!$O$3*PI()/180))^xkr._vx!$O$5)) -> 0 | R58: =IF(Q58>('Auslegung-V'!$D$42-'Auslegung-V'!$D$43),xkr._vx!P57,"") -> 
B59: 5.3 | C59: =$C$3*'Auslegung-V'!$D$37*(1/xkr._vx!B59)^xkr._vx!$C$5 -> 0 | P59: 5.3 | Q59: =ABS(P59*TAN($O$3*PI()/180)+$O$4*(-$G$6/'Auslegung-V'!$D$37^2)*((xkr._vx!P59/COS(xkr._vx!$O$3*PI()/180))^xkr._vx!$O$5)) -> 0 | R59: =IF(Q59>('Auslegung-V'!$D$42-'Auslegung-V'!$D$43),xkr._vx!P58,"") -> 
B60: 5.4 | C60: =$C$3*'Auslegung-V'!$D$37*(1/xkr._vx!B60)^xkr._vx!$C$5 -> 0 | P60: 5.4 | Q60: =ABS(P60*TAN($O$3*PI()/180)+$O$4*(-$G$6/'Auslegung-V'!$D$37^2)*((xkr._vx!P60/COS(xkr._vx!$O$3*PI()/180))^xkr._vx!$O$5)) -> 0 | R60: =IF(Q60>('Auslegung-V'!$D$42-'Auslegung-V'!$D$43),xkr._vx!P59,"") -> 
B61: 5.5 | C61: =$C$3*'Auslegung-V'!$D$37*(1/xkr._vx!B61)^xkr._vx!$C$5 -> 0 | P61: 5.5 | Q61: =ABS(P61*TAN($O$3*PI()/180)+$O$4*(-$G$6/'Auslegung-V'!$D$37^2)*((xkr._vx!P61/COS(xkr._vx!$O$3*PI()/180))^xkr._vx!$O$5)) -> 0 | R61: =IF(Q61>('Auslegung-V'!$D$42-'Auslegung-V'!$D$43),xkr._vx!P60,"") -> 
B62: 5.6 | C62: =$C$3*'Auslegung-V'!$D$37*(1/xkr._vx!B62)^xkr._vx!$C$5 -> 0 | P62: 5.6 | Q62: =ABS(P62*TAN($O$3*PI()/180)+$O$4*(-$G$6/'Auslegung-V'!$D$37^2)*((xkr._vx!P62/COS(xkr._vx!$O$3*PI()/180))^xkr._vx!$O$5)) -> 0 | R62: =IF(Q62>('Auslegung-V'!$D$42-'Auslegung-V'!$D$43),xkr._vx!P61,"") -> 
B63: 5.7 | C63: =$C$3*'Auslegung-V'!$D$37*(1/xkr._vx!B63)^xkr._vx!$C$5 -> 0 | P63: 5.7 | Q63: =ABS(P63*TAN($O$3*PI()/180)+$O$4*(-$G$6/'Auslegung-V'!$D$37^2)*((xkr._vx!P63/COS(xkr._vx!$O$3*PI()/180))^xkr._vx!$O$5)) -> 0 | R63: =IF(Q63>('Auslegung-V'!$D$42-'Auslegung-V'!$D$43),xkr._vx!P62,"") -> 
B64: 5.8 | C64: =$C$3*'Auslegung-V'!$D$37*(1/xkr._vx!B64)^xkr._vx!$C$5 -> 0 | P64: 5.8 | Q64: =ABS(P64*TAN($O$3*PI()/180)+$O$4*(-$G$6/'Auslegung-V'!$D$37^2)*((xkr._vx!P64/COS(xkr._vx!$O$3*PI()/180))^xkr._vx!$O$5)) -> 0 | R64: =IF(Q64>('Auslegung-V'!$D$42-'Auslegung-V'!$D$43),xkr._vx!P63,"") -> 
B65: 5.9 | C65: =$C$3*'Auslegung-V'!$D$37*(1/xkr._vx!B65)^xkr._vx!$C$5 -> 0 | P65: 5.9 | Q65: =ABS(P65*TAN($O$3*PI()/180)+$O$4*(-$G$6/'Auslegung-V'!$D$37^2)*((xkr._vx!P65/COS(xkr._vx!$O$3*PI()/180))^xkr._vx!$O$5)) -> 0 | R65: =IF(Q65>('Auslegung-V'!$D$42-'Auslegung-V'!$D$43),xkr._vx!P64,"") -> 
B66: 6 | C66: =$C$3*'Auslegung-V'!$D$37*(1/xkr._vx!B66)^xkr._vx!$C$5 -> 0 | P66: 6 | Q66: =ABS(P66*TAN($O$3*PI()/180)+$O$4*(-$G$6/'Auslegung-V'!$D$37^2)*((xkr._vx!P66/COS(xkr._vx!$O$3*PI()/180))^xkr._vx!$O$5)) -> 0 | R66: =IF(Q66>('Auslegung-V'!$D$42-'Auslegung-V'!$D$43),xkr._vx!P65,"") -> 
P67: 6.1 | Q67: =ABS(P67*TAN($O$3*PI()/180)+$O$4*(-$G$6/'Auslegung-V'!$D$37^2)*((xkr._vx!P67/COS(xkr._vx!$O$3*PI()/180))^xkr._vx!$O$5)) -> 0 | R67: =IF(Q67>('Auslegung-V'!$D$42-'Auslegung-V'!$D$43),xkr._vx!P66,"") -> 
P68: 6.2 | Q68: =ABS(P68*TAN($O$3*PI()/180)+$O$4*(-$G$6/'Auslegung-V'!$D$37^2)*((xkr._vx!P68/COS(xkr._vx!$O$3*PI()/180))^xkr._vx!$O$5)) -> 0 | R68: =IF(Q68>('Auslegung-V'!$D$42-'Auslegung-V'!$D$43),xkr._vx!P67,"") -> 
P69: 6.3 | Q69: =ABS(P69*TAN($O$3*PI()/180)+$O$4*(-$G$6/'Auslegung-V'!$D$37^2)*((xkr._vx!P69/COS(xkr._vx!$O$3*PI()/180))^xkr._vx!$O$5)) -> 0 | R69: =IF(Q69>('Auslegung-V'!$D$42-'Auslegung-V'!$D$43),xkr._vx!P68,"") -> 
P70: 6.4 | Q70: =ABS(P70*TAN($O$3*PI()/180)+$O$4*(-$G$6/'Auslegung-V'!$D$37^2)*((xkr._vx!P70/COS(xkr._vx!$O$3*PI()/180))^xkr._vx!$O$5)) -> 0 | R70: =IF(Q70>('Auslegung-V'!$D$42-'Auslegung-V'!$D$43),xkr._vx!P69,"") -> 
P71: 6.5 | Q71: =ABS(P71*TAN($O$3*PI()/180)+$O$4*(-$G$6/'Auslegung-V'!$D$37^2)*((xkr._vx!P71/COS(xkr._vx!$O$3*PI()/180))^xkr._vx!$O$5)) -> 0 | R71: =IF(Q71>('Auslegung-V'!$D$42-'Auslegung-V'!$D$43),xkr._vx!P70,"") -> 
P72: 6.6 | Q72: =ABS(P72*TAN($O$3*PI()/180)+$O$4*(-$G$6/'Auslegung-V'!$D$37^2)*((xkr._vx!P72/COS(xkr._vx!$O$3*PI()/180))^xkr._vx!$O$5)) -> 0 | R72: =IF(Q72>('Auslegung-V'!$D$42-'Auslegung-V'!$D$43),xkr._vx!P71,"") -> 
P73: 6.7 | Q73: =ABS(P73*TAN($O$3*PI()/180)+$O$4*(-$G$6/'Auslegung-V'!$D$37^2)*((xkr._vx!P73/COS(xkr._vx!$O$3*PI()/180))^xkr._vx!$O$5)) -> 0 | R73: =IF(Q73>('Auslegung-V'!$D$42-'Auslegung-V'!$D$43),xkr._vx!P72,"") -> 
P74: 6.8 | Q74: =ABS(P74*TAN($O$3*PI()/180)+$O$4*(-$G$6/'Auslegung-V'!$D$37^2)*((xkr._vx!P74/COS(xkr._vx!$O$3*PI()/180))^xkr._vx!$O$5)) -> 0 | R74: =IF(Q74>('Auslegung-V'!$D$42-'Auslegung-V'!$D$43),xkr._vx!P73,"") -> 
P75: 6.9 | Q75: =ABS(P75*TAN($O$3*PI()/180)+$O$4*(-$G$6/'Auslegung-V'!$D$37^2)*((xkr._vx!P75/COS(xkr._vx!$O$3*PI()/180))^xkr._vx!$O$5)) -> 0 | R75: =IF(Q75>('Auslegung-V'!$D$42-'Auslegung-V'!$D$43),xkr._vx!P74,"") -> 
P76: 7 | Q76: =ABS(P76*TAN($O$3*PI()/180)+$O$4*(-$G$6/'Auslegung-V'!$D$37^2)*((xkr._vx!P76/COS(xkr._vx!$O$3*PI()/180))^xkr._vx!$O$5)) -> 0 | R76: =IF(Q76>('Auslegung-V'!$D$42-'Auslegung-V'!$D$43),xkr._vx!P75,"") -> 
P77: 7.1 | Q77: =ABS(P77*TAN($O$3*PI()/180)+$O$4*(-$G$6/'Auslegung-V'!$D$37^2)*((xkr._vx!P77/COS(xkr._vx!$O$3*PI()/180))^xkr._vx!$O$5)) -> 0 | R77: =IF(Q77>('Auslegung-V'!$D$42-'Auslegung-V'!$D$43),xkr._vx!P76,"") -> 
P78: 7.2 | Q78: =ABS(P78*TAN($O$3*PI()/180)+$O$4*(-$G$6/'Auslegung-V'!$D$37^2)*((xkr._vx!P78/COS(xkr._vx!$O$3*PI()/180))^xkr._vx!$O$5)) -> 0 | R78: =IF(Q78>('Auslegung-V'!$D$42-'Auslegung-V'!$D$43),xkr._vx!P77,"") -> 
P79: 7.3 | Q79: =ABS(P79*TAN($O$3*PI()/180)+$O$4*(-$G$6/'Auslegung-V'!$D$37^2)*((xkr._vx!P79/COS(xkr._vx!$O$3*PI()/180))^xkr._vx!$O$5)) -> 0 | R79: =IF(Q79>('Auslegung-V'!$D$42-'Auslegung-V'!$D$43),xkr._vx!P78,"") -> 
P80: 7.4 | Q80: =ABS(P80*TAN($O$3*PI()/180)+$O$4*(-$G$6/'Auslegung-V'!$D$37^2)*((xkr._vx!P80/COS(xkr._vx!$O$3*PI()/180))^xkr._vx!$O$5)) -> 0 | R80: =IF(Q80>('Auslegung-V'!$D$42-'Auslegung-V'!$D$43),xkr._vx!P79,"") -> 
P81: 7.5 | Q81: =ABS(P81*TAN($O$3*PI()/180)+$O$4*(-$G$6/'Auslegung-V'!$D$37^2)*((xkr._vx!P81/COS(xkr._vx!$O$3*PI()/180))^xkr._vx!$O$5)) -> 0 | R81: =IF(Q81>('Auslegung-V'!$D$42-'Auslegung-V'!$D$43),xkr._vx!P80,"") -> 
P82: 7.6 | Q82: =ABS(P82*TAN($O$3*PI()/180)+$O$4*(-$G$6/'Auslegung-V'!$D$37^2)*((xkr._vx!P82/COS(xkr._vx!$O$3*PI()/180))^xkr._vx!$O$5)) -> 0 | R82: =IF(Q82>('Auslegung-V'!$D$42-'Auslegung-V'!$D$43),xkr._vx!P81,"") -> 
P83: 7.7 | Q83: =ABS(P83*TAN($O$3*PI()/180)+$O$4*(-$G$6/'Auslegung-V'!$D$37^2)*((xkr._vx!P83/COS(xkr._vx!$O$3*PI()/180))^xkr._vx!$O$5)) -> 0 | R83: =IF(Q83>('Auslegung-V'!$D$42-'Auslegung-V'!$D$43),xkr._vx!P82,"") -> 
P84: 7.8 | Q84: =ABS(P84*TAN($O$3*PI()/180)+$O$4*(-$G$6/'Auslegung-V'!$D$37^2)*((xkr._vx!P84/COS(xkr._vx!$O$3*PI()/180))^xkr._vx!$O$5)) -> 0 | R84: =IF(Q84>('Auslegung-V'!$D$42-'Auslegung-V'!$D$43),xkr._vx!P83,"") -> 
P85: 7.9 | Q85: =ABS(P85*TAN($O$3*PI()/180)+$O$4*(-$G$6/'Auslegung-V'!$D$37^2)*((xkr._vx!P85/COS(xkr._vx!$O$3*PI()/180))^xkr._vx!$O$5)) -> 0 | R85: =IF(Q85>('Auslegung-V'!$D$42-'Auslegung-V'!$D$43),xkr._vx!P84,"") -> 
P86: 8 | Q86: =ABS(P86*TAN($O$3*PI()/180)+$O$4*(-$G$6/'Auslegung-V'!$D$37^2)*((xkr._vx!P86/COS(xkr._vx!$O$3*PI()/180))^xkr._vx!$O$5)) -> 0 | R86: =IF(Q86>('Auslegung-V'!$D$42-'Auslegung-V'!$D$43),xkr._vx!P85,"") -> 
P87: 8.1 | Q87: =ABS(P87*TAN($O$3*PI()/180)+$O$4*(-$G$6/'Auslegung-V'!$D$37^2)*((xkr._vx!P87/COS(xkr._vx!$O$3*PI()/180))^xkr._vx!$O$5)) -> 0 | R87: =IF(Q87>('Auslegung-V'!$D$42-'Auslegung-V'!$D$43),xkr._vx!P86,"") -> 
P88: 8.2 | Q88: =ABS(P88*TAN($O$3*PI()/180)+$O$4*(-$G$6/'Auslegung-V'!$D$37^2)*((xkr._vx!P88/COS(xkr._vx!$O$3*PI()/180))^xkr._vx!$O$5)) -> 0 | R88: =IF(Q88>('Auslegung-V'!$D$42-'Auslegung-V'!$D$43),xkr._vx!P87,"") -> 
P89: 8.3 | Q89: =ABS(P89*TAN($O$3*PI()/180)+$O$4*(-$G$6/'Auslegung-V'!$D$37^2)*((xkr._vx!P89/COS(xkr._vx!$O$3*PI()/180))^xkr._vx!$O$5)) -> 0 | R89: =IF(Q89>('Auslegung-V'!$D$42-'Auslegung-V'!$D$43),xkr._vx!P88,"") -> 
P90: 8.4 | Q90: =ABS(P90*TAN($O$3*PI()/180)+$O$4*(-$G$6/'Auslegung-V'!$D$37^2)*((xkr._vx!P90/COS(xkr._vx!$O$3*PI()/180))^xkr._vx!$O$5)) -> 0 | R90: =IF(Q90>('Auslegung-V'!$D$42-'Auslegung-V'!$D$43),xkr._vx!P89,"") -> 
P91: 8.5 | Q91: =ABS(P91*TAN($O$3*PI()/180)+$O$4*(-$G$6/'Auslegung-V'!$D$37^2)*((xkr._vx!P91/COS(xkr._vx!$O$3*PI()/180))^xkr._vx!$O$5)) -> 0 | R91: =IF(Q91>('Auslegung-V'!$D$42-'Auslegung-V'!$D$43),xkr._vx!P90,"") -> 
P92: 8.6 | Q92: =ABS(P92*TAN($O$3*PI()/180)+$O$4*(-$G$6/'Auslegung-V'!$D$37^2)*((xkr._vx!P92/COS(xkr._vx!$O$3*PI()/180))^xkr._vx!$O$5)) -> 0 | R92: =IF(Q92>('Auslegung-V'!$D$42-'Auslegung-V'!$D$43),xkr._vx!P91,"") -> 
P93: 8.7 | Q93: =ABS(P93*TAN($O$3*PI()/180)+$O$4*(-$G$6/'Auslegung-V'!$D$37^2)*((xkr._vx!P93/COS(xkr._vx!$O$3*PI()/180))^xkr._vx!$O$5)) -> 0 | R93: =IF(Q93>('Auslegung-V'!$D$42-'Auslegung-V'!$D$43),xkr._vx!P92,"") -> 
P94: 8.8 | Q94: =ABS(P94*TAN($O$3*PI()/180)+$O$4*(-$G$6/'Auslegung-V'!$D$37^2)*((xkr._vx!P94/COS(xkr._vx!$O$3*PI()/180))^xkr._vx!$O$5)) -> 0 | R94: =IF(Q94>('Auslegung-V'!$D$42-'Auslegung-V'!$D$43),xkr._vx!P93,"") -> 
P95: 8.9 | Q95: =ABS(P95*TAN($O$3*PI()/180)+$O$4*(-$G$6/'Auslegung-V'!$D$37^2)*((xkr._vx!P95/COS(xkr._vx!$O$3*PI()/180))^xkr._vx!$O$5)) -> 0 | R95: =IF(Q95>('Auslegung-V'!$D$42-'Auslegung-V'!$D$43),xkr._vx!P94,"") -> 
P96: 9 | Q96: =ABS(P96*TAN($O$3*PI()/180)+$O$4*(-$G$6/'Auslegung-V'!$D$37^2)*((xkr._vx!P96/COS(xkr._vx!$O$3*PI()/180))^xkr._vx!$O$5)) -> 0 | R96: =IF(Q96>('Auslegung-V'!$D$42-'Auslegung-V'!$D$43),xkr._vx!P95,"") -> 
P97: 9.1 | Q97: =ABS(P97*TAN($O$3*PI()/180)+$O$4*(-$G$6/'Auslegung-V'!$D$37^2)*((xkr._vx!P97/COS(xkr._vx!$O$3*PI()/180))^xkr._vx!$O$5)) -> 0 | R97: =IF(Q97>('Auslegung-V'!$D$42-'Auslegung-V'!$D$43),xkr._vx!P96,"") -> 
P98: 9.2 | Q98: =ABS(P98*TAN($O$3*PI()/180)+$O$4*(-$G$6/'Auslegung-V'!$D$37^2)*((xkr._vx!P98/COS(xkr._vx!$O$3*PI()/180))^xkr._vx!$O$5)) -> 0 | R98: =IF(Q98>('Auslegung-V'!$D$42-'Auslegung-V'!$D$43),xkr._vx!P97,"") -> 
P99: 9.3 | Q99: =ABS(P99*TAN($O$3*PI()/180)+$O$4*(-$G$6/'Auslegung-V'!$D$37^2)*((xkr._vx!P99/COS(xkr._vx!$O$3*PI()/180))^xkr._vx!$O$5)) -> 0 | R99: =IF(Q99>('Auslegung-V'!$D$42-'Auslegung-V'!$D$43),xkr._vx!P98,"") -> 
P100: 9.4 | Q100: =ABS(P100*TAN($O$3*PI()/180)+$O$4*(-$G$6/'Auslegung-V'!$D$37^2)*((xkr._vx!P100/COS(xkr._vx!$O$3*PI()/180))^xkr._vx!$O$5)) -> 0 | R100: =IF(Q100>('Auslegung-V'!$D$42-'Auslegung-V'!$D$43),xkr._vx!P99,"") -> 
P101: 9.5 | Q101: =ABS(P101*TAN($O$3*PI()/180)+$O$4*(-$G$6/'Auslegung-V'!$D$37^2)*((xkr._vx!P101/COS(xkr._vx!$O$3*PI()/180))^xkr._vx!$O$5)) -> 0 | R101: =IF(Q101>('Auslegung-V'!$D$42-'Auslegung-V'!$D$43),xkr._vx!P100,"") -> 
P102: 9.6 | Q102: =ABS(P102*TAN($O$3*PI()/180)+$O$4*(-$G$6/'Auslegung-V'!$D$37^2)*((xkr._vx!P102/COS(xkr._vx!$O$3*PI()/180))^xkr._vx!$O$5)) -> 0 | R102: =IF(Q102>('Auslegung-V'!$D$42-'Auslegung-V'!$D$43),xkr._vx!P101,"") -> 
P103: 9.7 | Q103: =ABS(P103*TAN($O$3*PI()/180)+$O$4*(-$G$6/'Auslegung-V'!$D$37^2)*((xkr._vx!P103/COS(xkr._vx!$O$3*PI()/180))^xkr._vx!$O$5)) -> 0 | R103: =IF(Q103>('Auslegung-V'!$D$42-'Auslegung-V'!$D$43),xkr._vx!P102,"") -> 
P104: 9.8 | Q104: =ABS(P104*TAN($O$3*PI()/180)+$O$4*(-$G$6/'Auslegung-V'!$D$37^2)*((xkr._vx!P104/COS(xkr._vx!$O$3*PI()/180))^xkr._vx!$O$5)) -> 0 | R104: =IF(Q104>('Auslegung-V'!$D$42-'Auslegung-V'!$D$43),xkr._vx!P103,"") -> 
P105: 9.9 | Q105: =ABS(P105*TAN($O$3*PI()/180)+$O$4*(-$G$6/'Auslegung-V'!$D$37^2)*((xkr._vx!P105/COS(xkr._vx!$O$3*PI()/180))^xkr._vx!$O$5)) -> 0 | R105: =IF(Q105>('Auslegung-V'!$D$42-'Auslegung-V'!$D$43),xkr._vx!P104,"") -> 
P106: 10 | Q106: =ABS(P106*TAN($O$3*PI()/180)+$O$4*(-$G$6/'Auslegung-V'!$D$37^2)*((xkr._vx!P106/COS(xkr._vx!$O$3*PI()/180))^xkr._vx!$O$5)) -> 0 | R106: =IF(Q106>('Auslegung-V'!$D$42-'Auslegung-V'!$D$43),xkr._vx!P105,"") -> 
P107: 10.1 | Q107: =ABS(P107*TAN($O$3*PI()/180)+$O$4*(-$G$6/'Auslegung-V'!$D$37^2)*((xkr._vx!P107/COS(xkr._vx!$O$3*PI()/180))^xkr._vx!$O$5)) -> 0 | R107: =IF(Q107>('Auslegung-V'!$D$42-'Auslegung-V'!$D$43),xkr._vx!P106,"") -> 
P108: 10.2 | Q108: =ABS(P108*TAN($O$3*PI()/180)+$O$4*(-$G$6/'Auslegung-V'!$D$37^2)*((xkr._vx!P108/COS(xkr._vx!$O$3*PI()/180))^xkr._vx!$O$5)) -> 0 | R108: =IF(Q108>('Auslegung-V'!$D$42-'Auslegung-V'!$D$43),xkr._vx!P107,"") -> 
P109: 10.3 | Q109: =ABS(P109*TAN($O$3*PI()/180)+$O$4*(-$G$6/'Auslegung-V'!$D$37^2)*((xkr._vx!P109/COS(xkr._vx!$O$3*PI()/180))^xkr._vx!$O$5)) -> 0 | R109: =IF(Q109>('Auslegung-V'!$D$42-'Auslegung-V'!$D$43),xkr._vx!P108,"") -> 
P110: 10.4 | Q110: =ABS(P110*TAN($O$3*PI()/180)+$O$4*(-$G$6/'Auslegung-V'!$D$37^2)*((xkr._vx!P110/COS(xkr._vx!$O$3*PI()/180))^xkr._vx!$O$5)) -> 0 | R110: =IF(Q110>('Auslegung-V'!$D$42-'Auslegung-V'!$D$43),xkr._vx!P109,"") -> 
P111: 10.5 | Q111: =ABS(P111*TAN($O$3*PI()/180)+$O$4*(-$G$6/'Auslegung-V'!$D$37^2)*((xkr._vx!P111/COS(xkr._vx!$O$3*PI()/180))^xkr._vx!$O$5)) -> 0 | R111: =IF(Q111>('Auslegung-V'!$D$42-'Auslegung-V'!$D$43),xkr._vx!P110,"") -> 
P112: 10.6 | Q112: =ABS(P112*TAN($O$3*PI()/180)+$O$4*(-$G$6/'Auslegung-V'!$D$37^2)*((xkr._vx!P112/COS(xkr._vx!$O$3*PI()/180))^xkr._vx!$O$5)) -> 0 | R112: =IF(Q112>('Auslegung-V'!$D$42-'Auslegung-V'!$D$43),xkr._vx!P111,"") -> 
P113: 10.7 | Q113: =ABS(P113*TAN($O$3*PI()/180)+$O$4*(-$G$6/'Auslegung-V'!$D$37^2)*((xkr._vx!P113/COS(xkr._vx!$O$3*PI()/180))^xkr._vx!$O$5)) -> 0 | R113: =IF(Q113>('Auslegung-V'!$D$42-'Auslegung-V'!$D$43),xkr._vx!P112,"") -> 
P114: 10.8 | Q114: =ABS(P114*TAN($O$3*PI()/180)+$O$4*(-$G$6/'Auslegung-V'!$D$37^2)*((xkr._vx!P114/COS(xkr._vx!$O$3*PI()/180))^xkr._vx!$O$5)) -> 0 | R114: =IF(Q114>('Auslegung-V'!$D$42-'Auslegung-V'!$D$43),xkr._vx!P113,"") -> 
P115: 10.9 | Q115: =ABS(P115*TAN($O$3*PI()/180)+$O$4*(-$G$6/'Auslegung-V'!$D$37^2)*((xkr._vx!P115/COS(xkr._vx!$O$3*PI()/180))^xkr._vx!$O$5)) -> 0 | R115: =IF(Q115>('Auslegung-V'!$D$42-'Auslegung-V'!$D$43),xkr._vx!P114,"") -> 
P116: 11 | Q116: =ABS(P116*TAN($O$3*PI()/180)+$O$4*(-$G$6/'Auslegung-V'!$D$37^2)*((xkr._vx!P116/COS(xkr._vx!$O$3*PI()/180))^xkr._vx!$O$5)) -> 0 | R116: =IF(Q116>('Auslegung-V'!$D$42-'Auslegung-V'!$D$43),xkr._vx!P115,"") -> 
P117: 11.1 | Q117: =ABS(P117*TAN($O$3*PI()/180)+$O$4*(-$G$6/'Auslegung-V'!$D$37^2)*((xkr._vx!P117/COS(xkr._vx!$O$3*PI()/180))^xkr._vx!$O$5)) -> 0 | R117: =IF(Q117>('Auslegung-V'!$D$42-'Auslegung-V'!$D$43),xkr._vx!P116,"") -> 
P118: 11.2 | Q118: =ABS(P118*TAN($O$3*PI()/180)+$O$4*(-$G$6/'Auslegung-V'!$D$37^2)*((xkr._vx!P118/COS(xkr._vx!$O$3*PI()/180))^xkr._vx!$O$5)) -> 0 | R118: =IF(Q118>('Auslegung-V'!$D$42-'Auslegung-V'!$D$43),xkr._vx!P117,"") -> 
P119: 11.3 | Q119: =ABS(P119*TAN($O$3*PI()/180)+$O$4*(-$G$6/'Auslegung-V'!$D$37^2)*((xkr._vx!P119/COS(xkr._vx!$O$3*PI()/180))^xkr._vx!$O$5)) -> 0 | R119: =IF(Q119>('Auslegung-V'!$D$42-'Auslegung-V'!$D$43),xkr._vx!P118,"") -> 
P120: 11.4 | Q120: =ABS(P120*TAN($O$3*PI()/180)+$O$4*(-$G$6/'Auslegung-V'!$D$37^2)*((xkr._vx!P120/COS(xkr._vx!$O$3*PI()/180))^xkr._vx!$O$5)) -> 0 | R120: =IF(Q120>('Auslegung-V'!$D$42-'Auslegung-V'!$D$43),xkr._vx!P119,"") -> 
P121: 11.5 | Q121: =ABS(P121*TAN($O$3*PI()/180)+$O$4*(-$G$6/'Auslegung-V'!$D$37^2)*((xkr._vx!P121/COS(xkr._vx!$O$3*PI()/180))^xkr._vx!$O$5)) -> 0 | R121: =IF(Q121>('Auslegung-V'!$D$42-'Auslegung-V'!$D$43),xkr._vx!P120,"") -> 
P122: 11.6 | Q122: =ABS(P122*TAN($O$3*PI()/180)+$O$4*(-$G$6/'Auslegung-V'!$D$37^2)*((xkr._vx!P122/COS(xkr._vx!$O$3*PI()/180))^xkr._vx!$O$5)) -> 0 | R122: =IF(Q122>('Auslegung-V'!$D$42-'Auslegung-V'!$D$43),xkr._vx!P121,"") -> 
P123: 11.7 | Q123: =ABS(P123*TAN($O$3*PI()/180)+$O$4*(-$G$6/'Auslegung-V'!$D$37^2)*((xkr._vx!P123/COS(xkr._vx!$O$3*PI()/180))^xkr._vx!$O$5)) -> 0 | R123: =IF(Q123>('Auslegung-V'!$D$42-'Auslegung-V'!$D$43),xkr._vx!P122,"") -> 
P124: 11.8 | Q124: =ABS(P124*TAN($O$3*PI()/180)+$O$4*(-$G$6/'Auslegung-V'!$D$37^2)*((xkr._vx!P124/COS(xkr._vx!$O$3*PI()/180))^xkr._vx!$O$5)) -> 0 | R124: =IF(Q124>('Auslegung-V'!$D$42-'Auslegung-V'!$D$43),xkr._vx!P123,"") -> 
P125: 11.9 | Q125: =ABS(P125*TAN($O$3*PI()/180)+$O$4*(-$G$6/'Auslegung-V'!$D$37^2)*((xkr._vx!P125/COS(xkr._vx!$O$3*PI()/180))^xkr._vx!$O$5)) -> 0 | R125: =IF(Q125>('Auslegung-V'!$D$42-'Auslegung-V'!$D$43),xkr._vx!P124,"") -> 
P126: 12 | Q126: =ABS(P126*TAN($O$3*PI()/180)+$O$4*(-$G$6/'Auslegung-V'!$D$37^2)*((xkr._vx!P126/COS(xkr._vx!$O$3*PI()/180))^xkr._vx!$O$5)) -> 0 | R126: =IF(Q126>('Auslegung-V'!$D$42-'Auslegung-V'!$D$43),xkr._vx!P125,"") -> 
P127: 12.1 | Q127: =ABS(P127*TAN($O$3*PI()/180)+$O$4*(-$G$6/'Auslegung-V'!$D$37^2)*((xkr._vx!P127/COS(xkr._vx!$O$3*PI()/180))^xkr._vx!$O$5)) -> 0 | R127: =IF(Q127>('Auslegung-V'!$D$42-'Auslegung-V'!$D$43),xkr._vx!P126,"") -> 
P128: 12.2 | Q128: =ABS(P128*TAN($O$3*PI()/180)+$O$4*(-$G$6/'Auslegung-V'!$D$37^2)*((xkr._vx!P128/COS(xkr._vx!$O$3*PI()/180))^xkr._vx!$O$5)) -> 0 | R128: =IF(Q128>('Auslegung-V'!$D$42-'Auslegung-V'!$D$43),xkr._vx!P127,"") -> 
P129: 12.3 | Q129: =ABS(P129*TAN($O$3*PI()/180)+$O$4*(-$G$6/'Auslegung-V'!$D$37^2)*((xkr._vx!P129/COS(xkr._vx!$O$3*PI()/180))^xkr._vx!$O$5)) -> 0 | R129: =IF(Q129>('Auslegung-V'!$D$42-'Auslegung-V'!$D$43),xkr._vx!P128,"") -> 
P130: 12.4 | Q130: =ABS(P130*TAN($O$3*PI()/180)+$O$4*(-$G$6/'Auslegung-V'!$D$37^2)*((xkr._vx!P130/COS(xkr._vx!$O$3*PI()/180))^xkr._vx!$O$5)) -> 0 | R130: =IF(Q130>('Auslegung-V'!$D$42-'Auslegung-V'!$D$43),xkr._vx!P129,"") -> 
P131: 12.5 | Q131: =ABS(P131*TAN($O$3*PI()/180)+$O$4*(-$G$6/'Auslegung-V'!$D$37^2)*((xkr._vx!P131/COS(xkr._vx!$O$3*PI()/180))^xkr._vx!$O$5)) -> 0 | R131: =IF(Q131>('Auslegung-V'!$D$42-'Auslegung-V'!$D$43),xkr._vx!P130,"") -> 
P132: 12.6 | Q132: =ABS(P132*TAN($O$3*PI()/180)+$O$4*(-$G$6/'Auslegung-V'!$D$37^2)*((xkr._vx!P132/COS(xkr._vx!$O$3*PI()/180))^xkr._vx!$O$5)) -> 0 | R132: =IF(Q132>('Auslegung-V'!$D$42-'Auslegung-V'!$D$43),xkr._vx!P131,"") -> 
P133: 12.7 | Q133: =ABS(P133*TAN($O$3*PI()/180)+$O$4*(-$G$6/'Auslegung-V'!$D$37^2)*((xkr._vx!P133/COS(xkr._vx!$O$3*PI()/180))^xkr._vx!$O$5)) -> 0 | R133: =IF(Q133>('Auslegung-V'!$D$42-'Auslegung-V'!$D$43),xkr._vx!P132,"") -> 
P134: 12.8 | Q134: =ABS(P134*TAN($O$3*PI()/180)+$O$4*(-$G$6/'Auslegung-V'!$D$37^2)*((xkr._vx!P134/COS(xkr._vx!$O$3*PI()/180))^xkr._vx!$O$5)) -> 0 | R134: =IF(Q134>('Auslegung-V'!$D$42-'Auslegung-V'!$D$43),xkr._vx!P133,"") -> 
P135: 12.9 | Q135: =ABS(P135*TAN($O$3*PI()/180)+$O$4*(-$G$6/'Auslegung-V'!$D$37^2)*((xkr._vx!P135/COS(xkr._vx!$O$3*PI()/180))^xkr._vx!$O$5)) -> 0 | R135: =IF(Q135>('Auslegung-V'!$D$42-'Auslegung-V'!$D$43),xkr._vx!P134,"") -> 
P136: 13 | Q136: =ABS(P136*TAN($O$3*PI()/180)+$O$4*(-$G$6/'Auslegung-V'!$D$37^2)*((xkr._vx!P136/COS(xkr._vx!$O$3*PI()/180))^xkr._vx!$O$5)) -> 0 | R136: =IF(Q136>('Auslegung-V'!$D$42-'Auslegung-V'!$D$43),xkr._vx!P135,"") -> 
P137: 13.1 | Q137: =ABS(P137*TAN($O$3*PI()/180)+$O$4*(-$G$6/'Auslegung-V'!$D$37^2)*((xkr._vx!P137/COS(xkr._vx!$O$3*PI()/180))^xkr._vx!$O$5)) -> 0 | R137: =IF(Q137>('Auslegung-V'!$D$42-'Auslegung-V'!$D$43),xkr._vx!P136,"") -> 
P138: 13.2 | Q138: =ABS(P138*TAN($O$3*PI()/180)+$O$4*(-$G$6/'Auslegung-V'!$D$37^2)*((xkr._vx!P138/COS(xkr._vx!$O$3*PI()/180))^xkr._vx!$O$5)) -> 0 | R138: =IF(Q138>('Auslegung-V'!$D$42-'Auslegung-V'!$D$43),xkr._vx!P137,"") -> 
P139: 13.3 | Q139: =ABS(P139*TAN($O$3*PI()/180)+$O$4*(-$G$6/'Auslegung-V'!$D$37^2)*((xkr._vx!P139/COS(xkr._vx!$O$3*PI()/180))^xkr._vx!$O$5)) -> 0 | R139: =IF(Q139>('Auslegung-V'!$D$42-'Auslegung-V'!$D$43),xkr._vx!P138,"") -> 
P140: 13.4 | Q140: =ABS(P140*TAN($O$3*PI()/180)+$O$4*(-$G$6/'Auslegung-V'!$D$37^2)*((xkr._vx!P140/COS(xkr._vx!$O$3*PI()/180))^xkr._vx!$O$5)) -> 0 | R140: =IF(Q140>('Auslegung-V'!$D$42-'Auslegung-V'!$D$43),xkr._vx!P139,"") -> 
P141: 13.5 | Q141: =ABS(P141*TAN($O$3*PI()/180)+$O$4*(-$G$6/'Auslegung-V'!$D$37^2)*((xkr._vx!P141/COS(xkr._vx!$O$3*PI()/180))^xkr._vx!$O$5)) -> 0 | R141: =IF(Q141>('Auslegung-V'!$D$42-'Auslegung-V'!$D$43),xkr._vx!P140,"") -> 
P142: 13.6 | Q142: =ABS(P142*TAN($O$3*PI()/180)+$O$4*(-$G$6/'Auslegung-V'!$D$37^2)*((xkr._vx!P142/COS(xkr._vx!$O$3*PI()/180))^xkr._vx!$O$5)) -> 0 | R142: =IF(Q142>('Auslegung-V'!$D$42-'Auslegung-V'!$D$43),xkr._vx!P141,"") -> 
P143: 13.7 | Q143: =ABS(P143*TAN($O$3*PI()/180)+$O$4*(-$G$6/'Auslegung-V'!$D$37^2)*((xkr._vx!P143/COS(xkr._vx!$O$3*PI()/180))^xkr._vx!$O$5)) -> 0 | R143: =IF(Q143>('Auslegung-V'!$D$42-'Auslegung-V'!$D$43),xkr._vx!P142,"") -> 
P144: 13.8 | Q144: =ABS(P144*TAN($O$3*PI()/180)+$O$4*(-$G$6/'Auslegung-V'!$D$37^2)*((xkr._vx!P144/COS(xkr._vx!$O$3*PI()/180))^xkr._vx!$O$5)) -> 0 | R144: =IF(Q144>('Auslegung-V'!$D$42-'Auslegung-V'!$D$43),xkr._vx!P143,"") -> 
P145: 13.9 | Q145: =ABS(P145*TAN($O$3*PI()/180)+$O$4*(-$G$6/'Auslegung-V'!$D$37^2)*((xkr._vx!P145/COS(xkr._vx!$O$3*PI()/180))^xkr._vx!$O$5)) -> 0 | R145: =IF(Q145>('Auslegung-V'!$D$42-'Auslegung-V'!$D$43),xkr._vx!P144,"") -> 
P146: 14 | Q146: =ABS(P146*TAN($O$3*PI()/180)+$O$4*(-$G$6/'Auslegung-V'!$D$37^2)*((xkr._vx!P146/COS(xkr._vx!$O$3*PI()/180))^xkr._vx!$O$5)) -> 0 | R146: =IF(Q146>('Auslegung-V'!$D$42-'Auslegung-V'!$D$43),xkr._vx!P145,"") -> 
P147: 14.1 | Q147: =ABS(P147*TAN($O$3*PI()/180)+$O$4*(-$G$6/'Auslegung-V'!$D$37^2)*((xkr._vx!P147/COS(xkr._vx!$O$3*PI()/180))^xkr._vx!$O$5)) -> 0 | R147: =IF(Q147>('Auslegung-V'!$D$42-'Auslegung-V'!$D$43),xkr._vx!P146,"") -> 
P148: 14.2 | Q148: =ABS(P148*TAN($O$3*PI()/180)+$O$4*(-$G$6/'Auslegung-V'!$D$37^2)*((xkr._vx!P148/COS(xkr._vx!$O$3*PI()/180))^xkr._vx!$O$5)) -> 0 | R148: =IF(Q148>('Auslegung-V'!$D$42-'Auslegung-V'!$D$43),xkr._vx!P147,"") -> 
P149: 14.3 | Q149: =ABS(P149*TAN($O$3*PI()/180)+$O$4*(-$G$6/'Auslegung-V'!$D$37^2)*((xkr._vx!P149/COS(xkr._vx!$O$3*PI()/180))^xkr._vx!$O$5)) -> 0 | R149: =IF(Q149>('Auslegung-V'!$D$42-'Auslegung-V'!$D$43),xkr._vx!P148,"") -> 
P150: 14.4 | Q150: =ABS(P150*TAN($O$3*PI()/180)+$O$4*(-$G$6/'Auslegung-V'!$D$37^2)*((xkr._vx!P150/COS(xkr._vx!$O$3*PI()/180))^xkr._vx!$O$5)) -> 0 | R150: =IF(Q150>('Auslegung-V'!$D$42-'Auslegung-V'!$D$43),xkr._vx!P149,"") -> 
P151: 14.5 | Q151: =ABS(P151*TAN($O$3*PI()/180)+$O$4*(-$G$6/'Auslegung-V'!$D$37^2)*((xkr._vx!P151/COS(xkr._vx!$O$3*PI()/180))^xkr._vx!$O$5)) -> 0 | R151: =IF(Q151>('Auslegung-V'!$D$42-'Auslegung-V'!$D$43),xkr._vx!P150,"") -> 
P152: 14.6 | Q152: =ABS(P152*TAN($O$3*PI()/180)+$O$4*(-$G$6/'Auslegung-V'!$D$37^2)*((xkr._vx!P152/COS(xkr._vx!$O$3*PI()/180))^xkr._vx!$O$5)) -> 0 | R152: =IF(Q152>('Auslegung-V'!$D$42-'Auslegung-V'!$D$43),xkr._vx!P151,"") -> 
P153: 14.7 | Q153: =ABS(P153*TAN($O$3*PI()/180)+$O$4*(-$G$6/'Auslegung-V'!$D$37^2)*((xkr._vx!P153/COS(xkr._vx!$O$3*PI()/180))^xkr._vx!$O$5)) -> 0 | R153: =IF(Q153>('Auslegung-V'!$D$42-'Auslegung-V'!$D$43),xkr._vx!P152,"") -> 
P154: 14.8 | Q154: =ABS(P154*TAN($O$3*PI()/180)+$O$4*(-$G$6/'Auslegung-V'!$D$37^2)*((xkr._vx!P154/COS(xkr._vx!$O$3*PI()/180))^xkr._vx!$O$5)) -> 0 | R154: =IF(Q154>('Auslegung-V'!$D$42-'Auslegung-V'!$D$43),xkr._vx!P153,"") -> 
P155: 14.9 | Q155: =ABS(P155*TAN($O$3*PI()/180)+$O$4*(-$G$6/'Auslegung-V'!$D$37^2)*((xkr._vx!P155/COS(xkr._vx!$O$3*PI()/180))^xkr._vx!$O$5)) -> 0 | R155: =IF(Q155>('Auslegung-V'!$D$42-'Auslegung-V'!$D$43),xkr._vx!P154,"") -> 
P156: 15 | Q156: =ABS(P156*TAN($O$3*PI()/180)+$O$4*(-$G$6/'Auslegung-V'!$D$37^2)*((xkr._vx!P156/COS(xkr._vx!$O$3*PI()/180))^xkr._vx!$O$5)) -> 0 | R156: =IF(Q156>('Auslegung-V'!$D$42-'Auslegung-V'!$D$43),xkr._vx!P155,"") -> 
P157: 15.1 | Q157: =ABS(P157*TAN($O$3*PI()/180)+$O$4*(-$G$6/'Auslegung-V'!$D$37^2)*((xkr._vx!P157/COS(xkr._vx!$O$3*PI()/180))^xkr._vx!$O$5)) -> 0 | R157: =IF(Q157>('Auslegung-V'!$D$42-'Auslegung-V'!$D$43),xkr._vx!P156,"") -> 
P158: 15.2 | Q158: =ABS(P158*TAN($O$3*PI()/180)+$O$4*(-$G$6/'Auslegung-V'!$D$37^2)*((xkr._vx!P158/COS(xkr._vx!$O$3*PI()/180))^xkr._vx!$O$5)) -> 0 | R158: =IF(Q158>('Auslegung-V'!$D$42-'Auslegung-V'!$D$43),xkr._vx!P157,"") -> 
P159: 15.3 | Q159: =ABS(P159*TAN($O$3*PI()/180)+$O$4*(-$G$6/'Auslegung-V'!$D$37^2)*((xkr._vx!P159/COS(xkr._vx!$O$3*PI()/180))^xkr._vx!$O$5)) -> 0 | R159: =IF(Q159>('Auslegung-V'!$D$42-'Auslegung-V'!$D$43),xkr._vx!P158,"") -> 
P160: 15.4 | Q160: =ABS(P160*TAN($O$3*PI()/180)+$O$4*(-$G$6/'Auslegung-V'!$D$37^2)*((xkr._vx!P160/COS(xkr._vx!$O$3*PI()/180))^xkr._vx!$O$5)) -> 0 | R160: =IF(Q160>('Auslegung-V'!$D$42-'Auslegung-V'!$D$43),xkr._vx!P159,"") -> 
P161: 15.5 | Q161: =ABS(P161*TAN($O$3*PI()/180)+$O$4*(-$G$6/'Auslegung-V'!$D$37^2)*((xkr._vx!P161/COS(xkr._vx!$O$3*PI()/180))^xkr._vx!$O$5)) -> 0 | R161: =IF(Q161>('Auslegung-V'!$D$42-'Auslegung-V'!$D$43),xkr._vx!P160,"") -> 
P162: 15.6 | Q162: =ABS(P162*TAN($O$3*PI()/180)+$O$4*(-$G$6/'Auslegung-V'!$D$37^2)*((xkr._vx!P162/COS(xkr._vx!$O$3*PI()/180))^xkr._vx!$O$5)) -> 0 | R162: =IF(Q162>('Auslegung-V'!$D$42-'Auslegung-V'!$D$43),xkr._vx!P161,"") -> 
P163: 15.7 | Q163: =ABS(P163*TAN($O$3*PI()/180)+$O$4*(-$G$6/'Auslegung-V'!$D$37^2)*((xkr._vx!P163/COS(xkr._vx!$O$3*PI()/180))^xkr._vx!$O$5)) -> 0 | R163: =IF(Q163>('Auslegung-V'!$D$42-'Auslegung-V'!$D$43),xkr._vx!P162,"") -> 
P164: 15.8 | Q164: =ABS(P164*TAN($O$3*PI()/180)+$O$4*(-$G$6/'Auslegung-V'!$D$37^2)*((xkr._vx!P164/COS(xkr._vx!$O$3*PI()/180))^xkr._vx!$O$5)) -> 0 | R164: =IF(Q164>('Auslegung-V'!$D$42-'Auslegung-V'!$D$43),xkr._vx!P163,"") -> 
P165: 15.9 | Q165: =ABS(P165*TAN($O$3*PI()/180)+$O$4*(-$G$6/'Auslegung-V'!$D$37^2)*((xkr._vx!P165/COS(xkr._vx!$O$3*PI()/180))^xkr._vx!$O$5)) -> 0 | R165: =IF(Q165>('Auslegung-V'!$D$42-'Auslegung-V'!$D$43),xkr._vx!P164,"") -> 
P166: 16 | Q166: =ABS(P166*TAN($O$3*PI()/180)+$O$4*(-$G$6/'Auslegung-V'!$D$37^2)*((xkr._vx!P166/COS(xkr._vx!$O$3*PI()/180))^xkr._vx!$O$5)) -> 0 | R166: =IF(Q166>('Auslegung-V'!$D$42-'Auslegung-V'!$D$43),xkr._vx!P165,"") -> 
P167: 16.1 | Q167: =ABS(P167*TAN($O$3*PI()/180)+$O$4*(-$G$6/'Auslegung-V'!$D$37^2)*((xkr._vx!P167/COS(xkr._vx!$O$3*PI()/180))^xkr._vx!$O$5)) -> 0 | R167: =IF(Q167>('Auslegung-V'!$D$42-'Auslegung-V'!$D$43),xkr._vx!P166,"") -> 
P168: 16.2 | Q168: =ABS(P168*TAN($O$3*PI()/180)+$O$4*(-$G$6/'Auslegung-V'!$D$37^2)*((xkr._vx!P168/COS(xkr._vx!$O$3*PI()/180))^xkr._vx!$O$5)) -> 0 | R168: =IF(Q168>('Auslegung-V'!$D$42-'Auslegung-V'!$D$43),xkr._vx!P167,"") -> 
P169: 16.3 | Q169: =ABS(P169*TAN($O$3*PI()/180)+$O$4*(-$G$6/'Auslegung-V'!$D$37^2)*((xkr._vx!P169/COS(xkr._vx!$O$3*PI()/180))^xkr._vx!$O$5)) -> 0 | R169: =IF(Q169>('Auslegung-V'!$D$42-'Auslegung-V'!$D$43),xkr._vx!P168,"") -> 
P170: 16.4 | Q170: =ABS(P170*TAN($O$3*PI()/180)+$O$4*(-$G$6/'Auslegung-V'!$D$37^2)*((xkr._vx!P170/COS(xkr._vx!$O$3*PI()/180))^xkr._vx!$O$5)) -> 0 | R170: =IF(Q170>('Auslegung-V'!$D$42-'Auslegung-V'!$D$43),xkr._vx!P169,"") -> 
P171: 16.5 | Q171: =ABS(P171*TAN($O$3*PI()/180)+$O$4*(-$G$6/'Auslegung-V'!$D$37^2)*((xkr._vx!P171/COS(xkr._vx!$O$3*PI()/180))^xkr._vx!$O$5)) -> 0 | R171: =IF(Q171>('Auslegung-V'!$D$42-'Auslegung-V'!$D$43),xkr._vx!P170,"") -> 
P172: 16.6 | Q172: =ABS(P172*TAN($O$3*PI()/180)+$O$4*(-$G$6/'Auslegung-V'!$D$37^2)*((xkr._vx!P172/COS(xkr._vx!$O$3*PI()/180))^xkr._vx!$O$5)) -> 0 | R172: =IF(Q172>('Auslegung-V'!$D$42-'Auslegung-V'!$D$43),xkr._vx!P171,"") -> 
P173: 16.7 | Q173: =ABS(P173*TAN($O$3*PI()/180)+$O$4*(-$G$6/'Auslegung-V'!$D$37^2)*((xkr._vx!P173/COS(xkr._vx!$O$3*PI()/180))^xkr._vx!$O$5)) -> 0 | R173: =IF(Q173>('Auslegung-V'!$D$42-'Auslegung-V'!$D$43),xkr._vx!P172,"") -> 
P174: 16.8 | Q174: =ABS(P174*TAN($O$3*PI()/180)+$O$4*(-$G$6/'Auslegung-V'!$D$37^2)*((xkr._vx!P174/COS(xkr._vx!$O$3*PI()/180))^xkr._vx!$O$5)) -> 0 | R174: =IF(Q174>('Auslegung-V'!$D$42-'Auslegung-V'!$D$43),xkr._vx!P173,"") -> 
P175: 16.9 | Q175: =ABS(P175*TAN($O$3*PI()/180)+$O$4*(-$G$6/'Auslegung-V'!$D$37^2)*((xkr._vx!P175/COS(xkr._vx!$O$3*PI()/180))^xkr._vx!$O$5)) -> 0 | R175: =IF(Q175>('Auslegung-V'!$D$42-'Auslegung-V'!$D$43),xkr._vx!P174,"") -> 
P176: 17 | Q176: =ABS(P176*TAN($O$3*PI()/180)+$O$4*(-$G$6/'Auslegung-V'!$D$37^2)*((xkr._vx!P176/COS(xkr._vx!$O$3*PI()/180))^xkr._vx!$O$5)) -> 0 | R176: =IF(Q176>('Auslegung-V'!$D$42-'Auslegung-V'!$D$43),xkr._vx!P175,"") -> 
P177: 17.1 | Q177: =ABS(P177*TAN($O$3*PI()/180)+$O$4*(-$G$6/'Auslegung-V'!$D$37^2)*((xkr._vx!P177/COS(xkr._vx!$O$3*PI()/180))^xkr._vx!$O$5)) -> 0 | R177: =IF(Q177>('Auslegung-V'!$D$42-'Auslegung-V'!$D$43),xkr._vx!P176,"") -> 
P178: 17.2 | Q178: =ABS(P178*TAN($O$3*PI()/180)+$O$4*(-$G$6/'Auslegung-V'!$D$37^2)*((xkr._vx!P178/COS(xkr._vx!$O$3*PI()/180))^xkr._vx!$O$5)) -> 0 | R178: =IF(Q178>('Auslegung-V'!$D$42-'Auslegung-V'!$D$43),xkr._vx!P177,"") -> 
P179: 17.3 | Q179: =ABS(P179*TAN($O$3*PI()/180)+$O$4*(-$G$6/'Auslegung-V'!$D$37^2)*((xkr._vx!P179/COS(xkr._vx!$O$3*PI()/180))^xkr._vx!$O$5)) -> 0 | R179: =IF(Q179>('Auslegung-V'!$D$42-'Auslegung-V'!$D$43),xkr._vx!P178,"") -> 
P180: 17.4 | Q180: =ABS(P180*TAN($O$3*PI()/180)+$O$4*(-$G$6/'Auslegung-V'!$D$37^2)*((xkr._vx!P180/COS(xkr._vx!$O$3*PI()/180))^xkr._vx!$O$5)) -> 0 | R180: =IF(Q180>('Auslegung-V'!$D$42-'Auslegung-V'!$D$43),xkr._vx!P179,"") -> 
P181: 17.5 | Q181: =ABS(P181*TAN($O$3*PI()/180)+$O$4*(-$G$6/'Auslegung-V'!$D$37^2)*((xkr._vx!P181/COS(xkr._vx!$O$3*PI()/180))^xkr._vx!$O$5)) -> 0 | R181: =IF(Q181>('Auslegung-V'!$D$42-'Auslegung-V'!$D$43),xkr._vx!P180,"") -> 
P182: 17.6 | Q182: =ABS(P182*TAN($O$3*PI()/180)+$O$4*(-$G$6/'Auslegung-V'!$D$37^2)*((xkr._vx!P182/COS(xkr._vx!$O$3*PI()/180))^xkr._vx!$O$5)) -> 0 | R182: =IF(Q182>('Auslegung-V'!$D$42-'Auslegung-V'!$D$43),xkr._vx!P181,"") -> 
P183: 17.7 | Q183: =ABS(P183*TAN($O$3*PI()/180)+$O$4*(-$G$6/'Auslegung-V'!$D$37^2)*((xkr._vx!P183/COS(xkr._vx!$O$3*PI()/180))^xkr._vx!$O$5)) -> 0 | R183: =IF(Q183>('Auslegung-V'!$D$42-'Auslegung-V'!$D$43),xkr._vx!P182,"") -> 
P184: 17.8 | Q184: =ABS(P184*TAN($O$3*PI()/180)+$O$4*(-$G$6/'Auslegung-V'!$D$37^2)*((xkr._vx!P184/COS(xkr._vx!$O$3*PI()/180))^xkr._vx!$O$5)) -> 0 | R184: =IF(Q184>('Auslegung-V'!$D$42-'Auslegung-V'!$D$43),xkr._vx!P183,"") -> 
P185: 17.9 | Q185: =ABS(P185*TAN($O$3*PI()/180)+$O$4*(-$G$6/'Auslegung-V'!$D$37^2)*((xkr._vx!P185/COS(xkr._vx!$O$3*PI()/180))^xkr._vx!$O$5)) -> 0 | R185: =IF(Q185>('Auslegung-V'!$D$42-'Auslegung-V'!$D$43),xkr._vx!P184,"") -> 
P186: 18 | Q186: =ABS(P186*TAN($O$3*PI()/180)+$O$4*(-$G$6/'Auslegung-V'!$D$37^2)*((xkr._vx!P186/COS(xkr._vx!$O$3*PI()/180))^xkr._vx!$O$5)) -> 0 | R186: =IF(Q186>('Auslegung-V'!$D$42-'Auslegung-V'!$D$43),xkr._vx!P185,"") -> 
P187: 18.1 | Q187: =ABS(P187*TAN($O$3*PI()/180)+$O$4*(-$G$6/'Auslegung-V'!$D$37^2)*((xkr._vx!P187/COS(xkr._vx!$O$3*PI()/180))^xkr._vx!$O$5)) -> 0 | R187: =IF(Q187>('Auslegung-V'!$D$42-'Auslegung-V'!$D$43),xkr._vx!P186,"") -> 
P188: 18.2 | Q188: =ABS(P188*TAN($O$3*PI()/180)+$O$4*(-$G$6/'Auslegung-V'!$D$37^2)*((xkr._vx!P188/COS(xkr._vx!$O$3*PI()/180))^xkr._vx!$O$5)) -> 0 | R188: =IF(Q188>('Auslegung-V'!$D$42-'Auslegung-V'!$D$43),xkr._vx!P187,"") -> 
P189: 18.3 | Q189: =ABS(P189*TAN($O$3*PI()/180)+$O$4*(-$G$6/'Auslegung-V'!$D$37^2)*((xkr._vx!P189/COS(xkr._vx!$O$3*PI()/180))^xkr._vx!$O$5)) -> 0 | R189: =IF(Q189>('Auslegung-V'!$D$42-'Auslegung-V'!$D$43),xkr._vx!P188,"") -> 
P190: 18.4 | Q190: =ABS(P190*TAN($O$3*PI()/180)+$O$4*(-$G$6/'Auslegung-V'!$D$37^2)*((xkr._vx!P190/COS(xkr._vx!$O$3*PI()/180))^xkr._vx!$O$5)) -> 0 | R190: =IF(Q190>('Auslegung-V'!$D$42-'Auslegung-V'!$D$43),xkr._vx!P189,"") -> 
P191: 18.5 | Q191: =ABS(P191*TAN($O$3*PI()/180)+$O$4*(-$G$6/'Auslegung-V'!$D$37^2)*((xkr._vx!P191/COS(xkr._vx!$O$3*PI()/180))^xkr._vx!$O$5)) -> 0 | R191: =IF(Q191>('Auslegung-V'!$D$42-'Auslegung-V'!$D$43),xkr._vx!P190,"") -> 
P192: 18.6 | Q192: =ABS(P192*TAN($O$3*PI()/180)+$O$4*(-$G$6/'Auslegung-V'!$D$37^2)*((xkr._vx!P192/COS(xkr._vx!$O$3*PI()/180))^xkr._vx!$O$5)) -> 0 | R192: =IF(Q192>('Auslegung-V'!$D$42-'Auslegung-V'!$D$43),xkr._vx!P191,"") -> 
P193: 18.7 | Q193: =ABS(P193*TAN($O$3*PI()/180)+$O$4*(-$G$6/'Auslegung-V'!$D$37^2)*((xkr._vx!P193/COS(xkr._vx!$O$3*PI()/180))^xkr._vx!$O$5)) -> 0 | R193: =IF(Q193>('Auslegung-V'!$D$42-'Auslegung-V'!$D$43),xkr._vx!P192,"") -> 
P194: 18.8 | Q194: =ABS(P194*TAN($O$3*PI()/180)+$O$4*(-$G$6/'Auslegung-V'!$D$37^2)*((xkr._vx!P194/COS(xkr._vx!$O$3*PI()/180))^xkr._vx!$O$5)) -> 0 | R194: =IF(Q194>('Auslegung-V'!$D$42-'Auslegung-V'!$D$43),xkr._vx!P193,"") -> 
P195: 18.9 | Q195: =ABS(P195*TAN($O$3*PI()/180)+$O$4*(-$G$6/'Auslegung-V'!$D$37^2)*((xkr._vx!P195/COS(xkr._vx!$O$3*PI()/180))^xkr._vx!$O$5)) -> 0 | R195: =IF(Q195>('Auslegung-V'!$D$42-'Auslegung-V'!$D$43),xkr._vx!P194,"") -> 
P196: 19 | Q196: =ABS(P196*TAN($O$3*PI()/180)+$O$4*(-$G$6/'Auslegung-V'!$D$37^2)*((xkr._vx!P196/COS(xkr._vx!$O$3*PI()/180))^xkr._vx!$O$5)) -> 0 | R196: =IF(Q196>('Auslegung-V'!$D$42-'Auslegung-V'!$D$43),xkr._vx!P195,"") -> 
P197: 19.1 | Q197: =ABS(P197*TAN($O$3*PI()/180)+$O$4*(-$G$6/'Auslegung-V'!$D$37^2)*((xkr._vx!P197/COS(xkr._vx!$O$3*PI()/180))^xkr._vx!$O$5)) -> 0 | R197: =IF(Q197>('Auslegung-V'!$D$42-'Auslegung-V'!$D$43),xkr._vx!P196,"") -> 
P198: 19.2 | Q198: =ABS(P198*TAN($O$3*PI()/180)+$O$4*(-$G$6/'Auslegung-V'!$D$37^2)*((xkr._vx!P198/COS(xkr._vx!$O$3*PI()/180))^xkr._vx!$O$5)) -> 0 | R198: =IF(Q198>('Auslegung-V'!$D$42-'Auslegung-V'!$D$43),xkr._vx!P197,"") -> 
P199: 19.3 | Q199: =ABS(P199*TAN($O$3*PI()/180)+$O$4*(-$G$6/'Auslegung-V'!$D$37^2)*((xkr._vx!P199/COS(xkr._vx!$O$3*PI()/180))^xkr._vx!$O$5)) -> 0 | R199: =IF(Q199>('Auslegung-V'!$D$42-'Auslegung-V'!$D$43),xkr._vx!P198,"") -> 
P200: 19.4 | Q200: =ABS(P200*TAN($O$3*PI()/180)+$O$4*(-$G$6/'Auslegung-V'!$D$37^2)*((xkr._vx!P200/COS(xkr._vx!$O$3*PI()/180))^xkr._vx!$O$5)) -> 0 | R200: =IF(Q200>('Auslegung-V'!$D$42-'Auslegung-V'!$D$43),xkr._vx!P199,"") -> 
... 165 more rows

Sheet DR (hidden)
A1: Berechnung des Zugluftrisikos
A2: Achtung: Automatisierte Konstantenauswahl aus den "-CAP" Arbeitsblättern
A3: Annahme: | B3: Turbulenzgrad = | C3: 40 | D3: %
A5: Konstanten Temperaturverhältnis | C5: K051 | D5: =SUM('VLV-CAP'!$C$51,'VLD-CAP'!$C$51,'WKD380-CAP'!$C$51,'WKD381-CAP'!$C$51) -> 0
C6: K052 | D6: =SUM('VLV-CAP'!$C$52,'VLD-CAP'!$C$52,'WKD380-CAP'!$C$52,'WKD381-CAP'!$C$52) -> 0
A7: Temperaturen | B7: Zuluft | C7: =Einheiten!$E$38 -> 30
B8: Raum | C8: =Einheiten!$E$39 -> 20
A10: 1. Zugluftrisiko im Fußbodenbereich
B11: Lauflänge | C11: =xkr._vx!$L$24 -> 18.5
B12: Luftgeschwindigkeit, errechnet | C12: =xkr._vx!$N$24 -> 0
B13: Luftgeschwindigkeit, gesetzt | C13: =IF(C12<0.05,0.05,C12) -> 0.05
B14: lok. Temperaturdifferenz | C14: =($C$8-$C$7)*$D$5*(1/C11)^$D$6 -> 0
B15: Absolute Temperatur | C15: =C8-C14 -> 20
B16: Zugluftrisiko | C16: =IF((34-C15)*((C13-0.05)^0.62)*(0.37*C13*$C$3+3.14)>100,100,IF((34-C15)*((C13-0.05)^0.62)*(0.37*C13*$C$3+3.14)<0,0,(34-C15)*((C13-0.05)^0.62)*(0.37*C13*$C$3+3.14))) -> 0
A18: 2. Zugluftrisiko nach Stoßpunkt
B19: Lauflänge | C19: =xkr._vx!$L$26 -> 14.7
B20: Luftgeschwindigkeit, errechnet | C20: =xkr._vx!$N$26 -> 0
B21: Luftgeschwindigkeit, gesetzt | C21: =IF(C20<0.05,0.05,C20) -> 0.05
B22: lok. Temperaturdifferenz | C22: =($C$8-$C$7)*$D$5*(1/C19)^$D$6 -> 0
B23: Absolute Temperatur | C23: =C8-C22 -> 20
B24: Zugluftrisiko | C24: =IF((34-C23)*((C21-0.05)^0.62)*(0.37*C21*$C$3+3.14)>100,100,IF((34-C23)*((C21-0.05)^0.62)*(0.37*C21*$C$3+3.14)<0,0,(34-C23)*((C21-0.05)^0.62)*(0.37*C21*$C$3+3.14))) -> 0
A26: 3. Zugluftrisiko nach Ablösen an X_kritisch
B27: Lauflänge | C27: =xkr._vx!$L$28 -> 18.66761902
B28: Luftgeschwindigkeit, errechnet | C28: =IF(xkr._vx!I11="",0.05,xkr._vx!I11) -> 0
B29: Luftgeschwindigkeit, gesetzt | C29: =IF(C28<0.05,0.05,C28) -> 0.05
B30: lok. Temperaturdifferenz | C30: =IF(C8-C7=0,0,($C$8-$C$7)*$D$5*(1/C27)^$D$6) -> 0
B31: Absolute Temperatur | C31: =C8-C30 -> 20
B32: Zugluftrisiko | C32: =IF(C8-C7=0,"",IF((34-C31)*((C29-0.05)^0.62)*(0.37*C29*$C$3+3.14)>100,100,IF((34-C31)*((C29-0.05)^0.62)*(0.37*C29*$C$3+3.14)<0,0,(34-C31)*((C29-0.05)^0.62)*(0.37*C29*$C$3+3.14)))) -> 0

Sheet VLV-CAP (hidden)
A1: Übergabedaten: | C1: Gewählter Durchlass | E1: =CONCATENATE('Auslegung-V'!$D$12,'Auslegung-V'!$D$20,$G$1) -> VLD400h | G1: =IF('Auslegung-V'!$D$39<='Auslegung-V'!$D$40,"k","h") -> h
C2: Volumenstrom | E2: ='Auslegung-V'!$D$37 -> 3000
C3: Temperaturdifferenz | E3: ='Auslegung-V'!$D$40-'Auslegung-V'!$D$39 -> -10
C4: VLV | D4: VLV | E4: VLV | F4: VLV | G4: VLV | H4: VLV | I4: VLV | J4: VLV
C5: 250 | D5: 250 | E5: 315 | F5: 315 | G5: 400 | H5: 400 | I5: 500 | J5: 500
C6: =CONCATENATE(C4,C5,"k") -> VLV250k | D6: =CONCATENATE(D4,D5,"h") -> VLV250h | E6: =CONCATENATE(E4,E5,"k") -> VLV315k | F6: =CONCATENATE(F4,F5,"h") -> VLV315h | G6: =CONCATENATE(G4,G5,"k") -> VLV400k | H6: =CONCATENATE(H4,H5,"h") -> VLV400h | I6: =CONCATENATE(I4,I5,"k") -> VLV500k | J6: =CONCATENATE(J4,J5,"h") -> VLV500h | L6: 1
C7: Kühlfall | D7: Heizfall | E7: Kühlfall | F7: Heizfall | G7: Kühlfall | H7: Heizfall | I7: Kühlfall | J7: Heizfall | L7: 2
A8: Konstante | B8: K011 | C8: 3.944e-05 | D8: 3.84e-05 | E8: 5.32e-06 | F8: 9.61e-06 | G8: 5.64e-06 | H8: 2.86e-06 | I8: 2.8e-07 | J8: 1.92e-06 | L8: 3
B9: K012 | C9: 2 | D9: 2 | E9: 2.13 | F9: 2.04 | G9: 1.96 | H9: 2.04 | I9: 2.22 | J9: 2 | L9: 4
B10: K021 | C10: -145.35 | D10: -155.48 | E10: -181.43 | F10: -193.75 | G10: -192.27 | H10: -198.43 | I10: -187.05 | J10: -220.98 | L10: 5
B11: K022 | C11: 65.01 | D11: 67.6 | E11: 71.75 | F11: 74.43 | G11: 70.53 | H11: 71.85 | I11: 65.18 | J11: 73.97 | L11: 6
B12: K031 | C12: 0.0008928 | E12: 0.0006714 | G12: 0.0005586 | I12: 0.0003903 | L12: 7
B13: K032 | C13: 1 | E13: 1 | G13: 1 | I13: 1 | L13: 8
B14: K033 | C14: 1 | E14: 1 | G14: 1 | I14: 1 | L14: 9
B15: K034 | C15: =IF('Auslegung-V'!$D$30="freihängend",0.707,1) -> 1 | E15: =IF('Auslegung-V'!$D$30="freihängend",0.707,1) -> 1 | G15: =IF('Auslegung-V'!$D$30="freihängend",0.707,1) -> 1 | I15: =IF('Auslegung-V'!$D$30="freihängend",0.707,1) -> 1 | L15: 10
B16: K041 | C16: 0.15848 | E16: 0.08008 | G16: 0.09416 | I16: 0.0051608 | L16: 11
B17: K042 | C17: 0.49 | E17: 0.5111 | G17: 0.4777 | I17: 0.49 | L17: 12
B18: K043 | C18: 0.98003 | E18: 1.054 | G18: 0.983 | I18: 0.98 | L18: 13
B19: K051 | C19: 0.2924 | E19: 0.2475 | G19: 0.4693 | I19: 0.5855 | L19: 14
B20: K052 | C20: 1 | E20: 1 | G20: 1 | I20: 1 | L20: 15
B21: K071 | D21: 0.002816 | F21: 0.00179 | H21: 0.00106 | J21: 0.0009621 | L21: 16
B22: K072 | D22: 1 | F22: 1 | H22: 1 | J22: 1 | L22: 17
B23: K081 | D23: 0.01895 | F23: 0.009138 | H23: 0.00783 | J23: 0.00521 | L23: 18
B24: K082 | D24: 0.5 | F24: 0.5 | H24: 0.5 | J24: 0.5 | L24: 19
B25: K083 | D25: 1 | F25: 1 | H25: 1 | J25: 1 | L25: 20
B26: K091 | C26: 5 | E26: 5 | G26: 6 | I26: 5 | L26: 21
B27: K092 | C27: 9823.92 | E27: 14746.68 | G27: 18058.08 | I27: 123866.87 | L27: 22
B28: K093 | C28: 3 | E28: 3 | G28: 3 | I28: 3 | L28: 23
B29: K094 | C29: 0 | E29: 0 | G29: 0 | I29: 0 | L29: 24
B30: K101 | C30: -0.693 | D30: -0.693 | E30: -0.693 | F30: -0.693 | G30: -0.693 | H30: -0.693 | I30: -0.693 | J30: -0.693 | L30: 25
B31: K102 | C31: 33 | D31: 24 | E31: 33 | F31: 24 | G31: 33 | H31: 24 | I31: 33 | J31: 24 | L31: 26
B32: K103 | C32: 0.341 | D32: 0.1 | E32: 0.385 | F32: 0.5 | G32: 0.418 | H32: 0.55 | I32: 0.495 | J32: 0.65 | L32: 27
B33: K104 | C33: 0.01 | D33: 0.01 | E33: 0.01 | F33: 0.01 | G33: 0.014 | H33: 0.01 | I33: 0.01 | J33: 0.01 | L33: 28
B34: K021Abluft | L34: 29
B35: K022Abluft | L35: 30
B36: K011Abluft | L36: 31
B37: K012Abluft | L37: 32
C38: =IFERROR(HLOOKUP($E$1,$C$6:$K$33,L6,FALSE),"") -> 
C39: =IFERROR(HLOOKUP($E$1,$C$6:$K$33,L7,FALSE),"") -> 
A40: Rückgabe | B40: K011 | C40: =IFERROR(HLOOKUP($E$1,$C$6:$K$33,L8,FALSE),"") -> 
B41: K012
B42: K021
B43: K022
B44: K031
B45: K032
B46: K033
B47: K034
B48: K041
B49: K042
B50: K043
B51: K051
B52: K052
B53: K071
B54: K072
B55: K081
B56: K082
B57: K083
B58: K091
B59: K092
B60: K093
B61: K094
B62: K101
B63: K102
B64: K103
B65: K104
B66: K021Abluft | C66: =IFERROR(HLOOKUP($E$1,$C$6:$K$35,L34,FALSE),"") -> 
B67: K022Abluft | C67: =IFERROR(HLOOKUP($E$1,$C$6:$K$35,L35,FALSE),"") -> 
B68: K011Abluft | C68: =IFERROR(HLOOKUP($E$1,$C$6:$K$37,L36,FALSE),"") -> 
B69: K012Abluft | C69: =IFERROR(HLOOKUP($E$1,$C$6:$K$37,L37,FALSE),"") -> 

Sheet VLD-CAP (hidden)
A1: Übergabedaten: | C1: Gewählter Durchlass | E1: =CONCATENATE('Auslegung-V'!$D$12,'Auslegung-V'!$D$20,$G$1) -> VLD400h | G1: =IF('Auslegung-V'!$D$39<='Auslegung-V'!$D$40,"k","h") -> h
C2: Volumenstrom | E2: ='Auslegung-V'!$D$37 -> 3000
C3: Temperaturdifferenz | E3: ='Auslegung-V'!$D$40-'Auslegung-V'!$D$39 -> -10
C4: VLD | D4: VLD | E4: VLD | F4: VLD | G4: VLD | H4: VLD | I4: VLD | J4: VLD
C5: 250 | D5: 250 | E5: 315 | F5: 315 | G5: 400 | H5: 400 | I5: 500 | J5: 500
C6: =CONCATENATE(C4,C5,"k") -> VLD250k | D6: =CONCATENATE(D4,D5,"h") -> VLD250h | E6: =CONCATENATE(E4,E5,"k") -> VLD315k | F6: =CONCATENATE(F4,F5,"h") -> VLD315h | G6: =CONCATENATE(G4,G5,"k") -> VLD400k | H6: =CONCATENATE(H4,H5,"h") -> VLD400h | I6: =CONCATENATE(I4,I5,"k") -> VLD500k | J6: =CONCATENATE(J4,J5,"h") -> VLD500h | L6: 1
C7: Kühlfall | D7: Heizfall | E7: Kühlfall | F7: Heizfall | G7: Kühlfall | H7: Heizfall | I7: Kühlfall | J7: Heizfall | L7: 2
A8: Konstante | B8: K011 | C8: 4.64e-05 | D8: 3.84e-05 | E8: 6.15e-06 | F8: 9.61e-06 | G8: 6.63e-06 | H8: 2.86e-06 | I8: 3.3e-07 | J8: 1.92e-06 | L8: 3
B9: K012 | C9: 2 | D9: 2 | E9: 2.13 | F9: 2.04 | G9: 1.96 | H9: 2.04 | I9: 2.22 | J9: 2 | L9: 4
B10: K021 | C10: -143.35 | D10: -155.48 | E10: -179.43 | F10: -193.75 | G10: -190.27 | H10: -198.43 | I10: -185.05 | J10: -220.98 | L10: 5
B11: K022 | C11: 65.01 | D11: 67.6 | E11: 71.75 | F11: 74.43 | G11: 70.53 | H11: 71.85 | I11: 65.18 | J11: 73.97 | L11: 6
B12: K031 | C12: 0.001116 | E12: 0.0008393 | G12: 0.0006982 | I12: 0.0004879 | L12: 7
B13: K032 | C13: 1 | E13: 1 | G13: 1 | I13: 1 | L13: 8
B14: K033 | C14: 1 | E14: 1 | G14: 1 | I14: 1 | L14: 9
B15: K034 | C15: 0.707 | E15: 0.707 | G15: 0.7077 | I15: 0.707 | L15: 10
B16: K041 | C16: 0.1981 | E16: 0.01001 | G16: 0.01177 | I16: 0.006451 | L16: 11
B17: K042 | C17: 0.5039 | E17: 0.5111 | G17: 0.4777 | I17: 0.49 | L17: 12
B18: K043 | C18: 0.9803 | E18: 1.054 | G18: 0.983 | I18: 0.98 | L18: 13
B19: K051 | C19: 0.2249 | E19: 0.1904 | G19: 0.361 | I19: 0.4504 | L19: 14
B20: K052 | C20: 1 | E20: 1 | G20: 1 | I20: 1 | L20: 15
B21: K071 | D21: 0.002816 | F21: 0.00179 | H21: 0.00106 | J21: 0.0009621 | L21: 16
B22: K072 | D22: 1 | F22: 1 | H22: 1 | J22: 1 | L22: 17
B23: K081 | D23: 0.01895 | F23: 0.009138 | H23: 0.00783 | J23: 0.00521 | L23: 18
B24: K082 | D24: 0.5 | F24: 0.5 | H24: 0.5 | J24: 0.5 | L24: 19
B25: K083 | D25: 1 | F25: 1 | H25: 1 | J25: 1 | L25: 20
B26: K091 | C26: 5 | D26: 0 | E26: 7 | G26: 6 | I26: 5 | L26: 21
B27: K092 | C27: 8186.6 | D27: 0 | E27: 12288.9 | G27: 15048.4 | I27: 103222.39 | L27: 22
B28: K093 | C28: 3 | D28: 2.5 | E28: 3 | G28: 3 | I28: 3 | L28: 23
B29: K094 | C29: 0 | D29: 0 | E29: 0 | G29: 0 | I29: 0 | L29: 24
B30: K101 | C30: -0.693 | D30: -0.693 | E30: -0.693 | F30: -0.693 | G30: -0.693 | H30: -0.693 | I30: -0.693 | J30: -0.693 | L30: 25
B31: K102 | C31: 33 | D31: 24 | E31: 33 | F31: 24 | G31: 33 | H31: 24 | I31: 33 | J31: 24 | L31: 26
B32: K103 | C32: 0.31 | D32: 0.4 | E32: 0.35 | F32: 0.5 | G32: 0.38 | H32: 0.55 | I32: 0.45 | J32: 0.65 | L32: 27
B33: K104 | C33: 0.01 | D33: 0.01 | E33: 0.01 | F33: 0.01 | G33: 0.01 | H33: 0.01 | I33: 0.01 | J33: 0.01 | L33: 28
B34: K021Abluft | L34: 29
B35: K022Abluft | L35: 30
B36: K011Abluft | L36: 31
B37: K012Abluft | L37: 32
A40: Rückgabe | B40: K011 | C40: =IFERROR(HLOOKUP($E$1,$C$6:$K$33,L8,FALSE),"") -> 2.86e-06
B41: K012 | C41: 2.04
B42: K021 | C42: -198.43
B43: K022 | C43: 71.85
B44: K031 | C44: 0
B45: K032 | C45: 0
B46: K033 | C46: 0
B47: K034 | C47: 0
B48: K041 | C48: 0
B49: K042 | C49: 0
B50: K043 | C50: 0
B51: K051 | C51: 0
B52: K052 | C52: 0
B53: K071 | C53: 0.00106
B54: K072 | C54: 1
B55: K081 | C55: 0.00783
B56: K082 | C56: 0.5
B57: K083 | C57: 1
B58: K091 | C58: 0
B59: K092 | C59: 0
B60: K093 | C60: 0
B61: K094 | C61: 0
B62: K101 | C62: -0.693
B63: K102 | C63: 24
B64: K103 | C64: 0.55
B65: K104 | C65: 0.01
B66: K021Abluft | C66: =IFERROR(HLOOKUP($E$1,$C$6:$K$35,L34,FALSE),"") -> 0
B67: K022Abluft | C67: =IFERROR(HLOOKUP($E$1,$C$6:$K$35,L35,FALSE),"") -> 0
B68: K011Abluft | C68: =IFERROR(HLOOKUP($E$1,$C$6:$K$37,L36,FALSE),"") -> 0
B69: K012Abluft | C69: =IFERROR(HLOOKUP($E$1,$C$6:$K$37,L37,FALSE),"") -> 0

Sheet WKD380-CAP (hidden)
A1: Übergabedaten: | C1: Gewählter Durchlass | E1: =CONCATENATE('Auslegung-V'!$D$12,'Auslegung-V'!$D$20,$G$1) -> VLD400h | G1: =IF('Auslegung-V'!$D$39<='Auslegung-V'!$D$40,"k","h") -> h
C2: Volumenstrom | E2: ='Auslegung-V'!$D$37 -> 3000
C3: Temperaturdifferenz | E3: ='Auslegung-V'!$D$40-'Auslegung-V'!$D$39 -> -10
C4: WKD 380 | D4: WKD 380 | E4: WKD 380 | F4: WKD 380 | G4: WKD 380 | H4: WKD 380 | O4: 1
C5: 600 | D5: 600 | E5: 800 | F5: 800 | G5: 1000 | H5: 1000 | O5: 2
C6: =CONCATENATE(C4,C5,"k") -> WKD 380600k | D6: =CONCATENATE(D4,D5,"h") -> WKD 380600h | E6: =CONCATENATE(E4,E5,"k") -> WKD 380800k | F6: =CONCATENATE(F4,F5,"h") -> WKD 380800h | G6: =CONCATENATE(G4,G5,"k") -> WKD 3801000k | H6: =CONCATENATE(H4,H5,"h") -> WKD 3801000h | O6: 1
C7: Kühlfall | D7: Heizfall | E7: Kühlfall | F7: Heizfall | G7: Kühlfall | H7: Heizfall | O7: 2
A8: Konstante | B8: K011 | C8: 3.347e-05 | D8: 6.598e-05 | E8: 4.93e-06 | F8: 7.88e-06 | G8: 2.51e-06 | H8: 4.41e-06 | O8: 3
B9: K012 | C9: 2 | D9: 2 | E9: 2 | F9: 2 | G9: 2 | H9: 2 | O9: 4
B10: K021 | C10: -169.7 | D10: -167.5 | E10: -136.2 | F10: -132 | G10: -137.6 | H10: -131.3 | O10: 5
B11: K022 | C11: 71.17 | D11: 71.35 | E11: 55.19 | F11: 54.98 | G11: 54.12 | H11: 53.2 | O11: 6
B12: K031 | C12: 0.001161 | E12: 0.0005961 | G12: 0.0005908 | O12: 7
B13: K032 | C13: 1.58 | E13: 1.58 | G13: 0.158 | O13: 8
B14: K033 | C14: 1 | E14: 1 | G14: 1 | O14: 9
B15: K034 | C15: 0.707 | E15: 0.707 | G15: 0.707 | O15: 10
B16: K041 | C16: 0.011 | E16: 0.005699 | G16: 0.0056 | O16: 11
B17: K042 | C17: 0.5 | E17: 0.5 | G17: 0.5 | O17: 12
B18: K043 | C18: 1 | E18: 1 | G18: 1 | O18: 13
B19: K051 | C19: 0.5 | E19: 0.4 | G19: 0.3 | O19: 14
B20: K052 | C20: 1 | E20: 1 | G20: 1 | O20: 15
B21: K071 | D21: 0.004 | F21: 0.0025 | H21: 0.00222 | O21: 16
B22: K072 | D22: 1 | F22: 1 | H22: 1 | O22: 17
B23: K081 | D23: 0.0208 | F23: 0.014 | H23: 0.0079 | O23: 18
B24: K082 | D24: 0.5 | F24: 0.5 | H24: 0.5 | O24: 19
B25: K083 | D25: 1 | F25: 1 | H25: 1 | O25: 20
B26: K091 | C26: 0 | E26: 0 | G26: 0 | O26: 21
B27: K092 | C27: 16351 | E27: 18963 | G27: 37222 | O27: 22
B28: K093 | C28: 2.5 | E28: 2.5 | G28: 2.5 | O28: 23
B29: K094 | C29: 0 | E29: 0 | G29: 0 | O29: 24
B30: K101 | C30: -0.693 | D30: -0.693 | E30: -0.693 | F30: -0.693 | G30: -0.693 | H30: -0.693 | O30: 25
B31: K102 | C31: 33 | D31: 24 | E31: 33 | F31: 24 | G31: 33 | H31: 24 | O31: 26
B32: K103 | C32: 0.133 | D32: 0.3 | E32: 0.177 | F32: 0.4 | G32: 0.2213 | H32: 0.5 | O32: 27
B33: K104 | C33: 0.01 | D33: 0.01 | E33: 0.01 | F33: 0.01 | G33: 0.01 | H33: 0.01 | O33: 28
B34: K021Abluft | O34: 29
B35: K022Abluft | O35: 30
B36: K011Abluft
B37: K012Abluft
C38: =IFERROR(HLOOKUP($E$1,$C$6:$N$33,O6,FALSE),"") -> 
A40: Rückgabe | B40: K011 | C40: =IFERROR(HLOOKUP($E$1,$C$6:$N$33,O8,FALSE),"") -> 
B41: K012 | C41: =IFERROR(HLOOKUP($E$1,$C$6:$N$33,O9,FALSE),"") -> 
B42: K021
B43: K022
B44: K031
B45: K032
B46: K033
B47: K034
B48: K041
B49: K042
B50: K043
B51: K051
B52: K052
B53: K071
B54: K072
B55: K081
B56: K082
B57: K083
B58: K091
B59: K092
B60: K093 | C60: =IFERROR(HLOOKUP($E$1,$C$6:$N$33,O28,FALSE),"") -> 
B61: K094
B62: K101
B63: K102
B64: K103
B65: K104
B66: K021Abluft | C66: =IFERROR(HLOOKUP($E$1,$C$6:$N$35,O34,FALSE),"") -> 
B67: K022Abluft | C67: =IFERROR(HLOOKUP($E$1,$C$6:$N$37,O35,FALSE),"") -> 
B68: K011Abluft | C68: =IFERROR(HLOOKUP($E$1,$C$6:$N$37,O36,FALSE),"") -> 
B69: K012Abluft

Sheet WKD381-CAP (hidden)
A1: Übergabedaten: | C1: Gewählter Durchlass | E1: =CONCATENATE('Auslegung-V'!$D$12,'Auslegung-V'!$D$20,$G$1) -> VLD400h | G1: =IF('Auslegung-V'!$D$39<='Auslegung-V'!$D$40,"k","h") -> h
C2: Volumenstrom | E2: ='Auslegung-V'!$D$37 -> 3000
C3: Temperaturdifferenz | E3: ='Auslegung-V'!$D$40-'Auslegung-V'!$D$39 -> -10
C4: WKD 381-1 | D4: WKD 381-1 | E4: WKD 381-1 | F4: WKD 381-1 | G4: WKD 381-1 | H4: WKD 381-1 | I4: WKD 381-2 | J4: WKD 381-2 | K4: WKD 381-3 | L4: WKD 381-3
C5: 300 | D5: 300 | E5: 500 | F5: 500 | G5: 600 | H5: 600 | I5: 600 | J5: 600 | K5: 600 | L5: 600
C6: =CONCATENATE(C4,C5,"k") -> WKD 381-1300k | D6: =CONCATENATE(D4,D5,"h") -> WKD 381-1300h | E6: =CONCATENATE(E4,E5,"k") -> WKD 381-1500k | F6: =CONCATENATE(F4,F5,"h") -> WKD 381-1500h | G6: =CONCATENATE(G4,G5,"k") -> WKD 381-1600k | H6: =CONCATENATE(H4,H5,"h") -> WKD 381-1600h | I6: =CONCATENATE(I4,I5,"k") -> WKD 381-2600k | J6: =CONCATENATE(J4,J5,"h") -> WKD 381-2600h | K6: =CONCATENATE(K4,K5,"k") -> WKD 381-3600k | L6: =CONCATENATE(L4,L5,"h") -> WKD 381-3600h | U6: 1
C7: Kühlfall | D7: Heizfall | E7: Kühlfall | F7: Heizfall | G7: Kühlfall | H7: Heizfall | I7: Kühlfall | J7: Heizfall | K7: Kühlfall | L7: Heizfall | U7: 2
A8: Konstante | B8: K011 | C8: 0.001072 | D8: 0.0054 | E8: 0.00023 | F8: 0.00057 | G8: 0.0001225 | H8: 0.00029 | I8: 4.422e-05 | J8: 0.00013 | K8: 4.524e-05 | L8: 7.4e-05 | U8: 3
B9: K012 | C9: 2.144 | D9: 2 | E9: 2.041 | F9: 2 | G9: 2.04 | H9: 2 | I9: 2.039 | J9: 2 | K9: 1.954 | L9: 2 | U9: 4
B10: K021 | C10: -81.57 | D10: -107 | E10: -81.16 | F10: -97 | G10: -80.87 | H10: -90 | I10: -87.06 | J10: -75 | K10: -126.12 | L10: -76 | U10: 5
B11: K022 | C11: 53.17 | D11: 68 | E11: 46.77 | F11: 53 | G11: 44.54 | H11: 48 | I11: 43.34 | J11: 40 | K11: 53.81 | L11: 37 | U11: 6
B12: K031 | C12: 0.001767 | E12: 0.001404 | G12: 0.001314 | I12: 0.0012 | K12: 0.001121 | U12: 7
B13: K032 | C13: 1.96 | E13: 1.96 | G13: 1.96 | I13: 1.96 | K13: 1.96 | U13: 8
B14: K033 | C14: 1 | E14: 1 | G14: 1 | I14: 1 | K14: 1 | U14: 9
B15: K034 | C15: 0.707 | E15: 0.707 | G15: 0.707 | I15: 0.707 | K15: 0.707 | U15: 10
B16: K041 | C16: 0.03707 | E16: 0.01842 | G16: 0.01008 | I16: 0.01008 | K16: 0.006811 | U16: 11
B17: K042 | C17: 0.5284 | E17: 0.4814 | G17: 0.4803 | I17: 0.4803 | K17: 0.4998 | U17: 12
B18: K043 | C18: 0.9667 | E18: 0.999 | G18: 1.018 | I18: 1.018 | K18: 1.003 | U18: 13
B19: K051 | C19: 0.36 | E19: 0.3 | G19: 0.5 | I19: 0.5 | K19: 0.5 | U19: 14
B20: K052 | C20: 1 | E20: 1 | G20: 1 | I20: 1 | K20: 1 | U20: 15
B21: K071 | D21: 0.0096 | F21: 0.0056 | H21: 0.0049 | J21: 0.004 | L21: 0.0035 | U21: 16
B22: K072 | D22: 1 | F22: 1 | H22: 1 | J22: 1 | L22: 1 | U22: 17
B23: K081 | D23: 0.155 | F23: 0.04 | H23: 0.029 | J23: 0.029 | L23: 0.029 | U23: 18
B24: K082 | D24: 0.5 | F24: 0.5 | H24: 0.5 | J24: 0.5 | L24: 0.5 | U24: 19
B25: K083 | D25: 1 | F25: 1 | H25: 1 | J25: 1 | L25: 1 | U25: 20
B26: K091 | C26: 0 | E26: 0 | G26: 0 | I26: 0 | K26: 0 | U26: 21
B27: K092 | C27: 427 | E27: 2667 | G27: 4450 | I27: 10667 | K27: 16667 | U27: 22
B28: K093 | C28: 3 | E28: 3 | G28: 3 | I28: 3 | K28: 3 | U28: 23
B29: K094 | C29: 0 | E29: 0 | G29: 0 | I29: 0 | K29: 0 | U29: 24
B30: K101 | C30: -0.693 | D30: -0.693 | E30: -0.693 | F30: -0.693 | G30: -0.693 | H30: -0.693 | I30: -0.693 | J30: -0.693 | K30: -0.693 | L30: -0.693 | U30: 25
B31: K102 | C31: 33 | D31: 24 | E31: 33 | F31: 24 | G31: 33 | H31: 24 | I31: 33 | J31: 24 | K31: 33 | L31: 24 | U31: 26
B32: K103 | C32: 0.044 | D32: 0.15 | E32: 0.075 | F32: 0.25 | G32: 0.095 | H32: 0.3 | I32: 0.114 | J32: 0.3 | K32: 0.133 | L32: 0.3 | U32: 27
B33: K104 | C33: 0.01 | D33: 0.01 | E33: 0.01 | F33: 0.01 | G33: 0.01 | H33: 0.01 | I33: 0.01 | J33: 0.01 | K33: 0.01 | L33: 0.01 | U33: 28
B34: K021Abluft | U34: 29
B35: K022Abluft | U35: 30
B36: K011Abluft
B37: K012Abluft
C38: =IFERROR(HLOOKUP($E$1,$C$6:$N$37,U6,FALSE),"") -> 
C39: =IFERROR(HLOOKUP($E$1,$C$6:$N$37,U7,FALSE),"") -> 
A40: Rückgabe | B40: K011
B41: K012
B42: K021
B43: K022
B44: K031
B45: K032
B46: K033
B47: K034
B48: K041
B49: K042
B50: K043
B51: K051
B52: K052
B53: K071
B54: K072
B55: K081
B56: K082
B57: K083
B58: K091
B59: K092
B60: K093
B61: K094
B62: K101
B63: K102
B64: K103
B65: K104
B66: K021Abluft
B67: K022Abluft | C67: =IFERROR(HLOOKUP($E$1,$C$6:$N$37,U35,FALSE),"") -> 
B68: K011Abluft | C68: =IFERROR(HLOOKUP($E$1,$C$6:$N$37,U36,FALSE),"") -> 
B69: K012Abluft

Sheet Funktion-W0 (hidden)
B55: Stand: | C55: ='Grunddaten-L'!E36 -> 2020-10-30 | D55: Änderungen vorbehalten

Sheet Funktion-W1 (hidden)
B55: Stand: | C55: ='Grunddaten-L'!E36 -> 2020-10-30 | D55: Änderungen vorbehalten

Sheet Funktion-V (hidden)
B55: Stand: | C55: ='Grunddaten-L'!E36 -> 2020-10-30 | D55: Änderungen vorbehalten

Sheet LW-IVA (hidden)
A2: Übergabewerte: | C2: Nenndurchmesser | D2: ='Auslegung-IVA'!$D$20 -> 400
C3: Düsengeschwindigkeit | D3: ='Grunddaten-IVA'!$N$33 -> 23.00192842
C4: Druckverlust | D4: ='Grunddaten-IVA'!$O$33 -> 81.81968757
D5: IVA Heizfall | E5: Hz | F5: 100 | G5: 125 | H5: 160 | I5: 200 | J5: 250 | K5: 315 | L5: 400 | M5: 500 | N5: 630 | O5: 800 | P5: 1000 | Q5: 1250 | R5: 1600 | S5: 2000 | T5: 2500 | U5: 3150 | V5: 4000 | W5: 5000 | X5: 6300 | Y5: 8000 | Z5: 10000
E6: K1 | F6: -24.83865212 | G6: 10.38183909 | H6: 18.23589613 | I6: 0.1400552618 | J6: 23.74773542 | K6: 13.497048 | L6: 12.02818033 | M6: 3.564091945 | N6: -3.383628449 | O6: -20.09133663 | P6: -39.16905364 | Q6: -42.46876745 | R6: -42.54745133 | S6: 6.378310765 | T6: -36.45849465 | U6: -23.37339796 | V6: -68.49780821 | W6: -67.77364447 | X6: -60.27857031 | Y6: -37.24027622 | Z6: -175.3482962
E7: K2 | F7: 0.2198566274 | G7: 13.6844349 | H7: 13.97431211 | I7: 11.02429927 | J7: 19.05277481 | K7: 16.37127429 | L7: 16.44395462 | M7: 14.06316837 | N7: 12.34524782 | O7: 8.482134071 | P7: 1.742339354 | Q7: 1.486768383 | R7: 0.8971314012 | S7: 15.74130521 | T7: 0.06369564277 | U7: 3.396154644 | V7: -15.62834793 | W7: -16.81521812 | X7: -14.92645867 | Y7: -8.485550029 | Z7: 1136.602432
E8: K3 | F8: 21.08266642 | G8: 18.74339965 | H8: 12.74739295 | I8: 21.95576042 | J8: 18.3789569 | K8: 21.55736683 | L8: 22.93526379 | M8: 25.22324295 | N8: 27.56947667 | O8: 33.78290156 | P8: 36.16712722 | Q8: 38.41630172 | R8: 37.29179487 | S8: 26.25156959 | T8: 30.50647346 | U8: 26.26689081 | V8: 25.68397381 | W8: 22.68133363 | X8: 20.21209531 | Y8: 13.90498999 | Z8: -540.1014335
E9: K4 | F9: 6.191663074 | G9: -12.69874791 | H9: -10.3928209 | I9: -7.136629224 | J9: -17.54800604 | K9: -13.61726615 | L9: -13.38323471 | M9: -9.821717404 | N9: -7.439502961 | O9: -2.913514115 | P9: 6.486058441 | Q9: 6.033142319 | R9: 6.345666925 | S9: -13.35052867 | T9: 7.651037774 | U9: 3.318348739 | V9: 29.81826651 | W9: 31.40621288 | X9: 28.41078013 | Y9: 19.53958653 | Z9: -119.9839827
D10: IVA Kühlfall | E10: K1 | F10: 4.434812243 | G10: 31.61190146 | H10: 43.66620116 | I10: 20.74807656 | J10: 21.20928285 | K10: 11.50850785 | L10: 9.002691582 | M10: 6.848076993 | N10: 6.185889866 | O10: -10.61008463 | P10: -20.74881541 | Q10: -29.13406217 | R10: -28.54513644 | S10: 4.575193396 | T10: -48.47670766 | U10: -19.87599779 | V10: -65.18393827 | W10: -46.75751011 | X10: -53.95240402 | Y10: -41.76947209 | Z10: 1894.950558
E11: K2 | F11: 10.5976247 | G11: 20.6164859 | H11: 24.75920239 | I11: 17.67451195 | J11: 17.90006766 | K11: 15.33250692 | L11: 14.8550525 | M11: 14.81044886 | N11: 14.99470445 | O11: 10.92828833 | P11: 8.259067871 | Q11: 5.886183118 | R11: 6.266127359 | S11: 15.87548056 | T11: -4.561287005 | U11: 4.971029479 | V11: -14.52123089 | W11: -8.981102264 | X11: -13.2835696 | Y11: -10.93902863 | Z11: -3765.789781
E12: K3 | F12: 17.49417695 | G12: 14.94045084 | H12: 13.20069915 | I12: 18.10779566 | J12: 18.17692951 | K12: 21.12439893 | L12: 22.26070333 | M12: 23.97657405 | N12: 24.90330203 | O12: 30.77098263 | P12: 33.87954066 | Q12: 36.11670921 | R12: 36.389511 | S12: 28.02936758 | T12: 31.23958169 | U12: 26.51142553 | V12: 25.14009077 | W12: 20.87949363 | X12: 18.22570519 | Y12: 12.74823508 | Z12: 1886.213177
E13: K4 | F13: -8.016910812 | G13: -21.62823906 | H13: -26.03421699 | I13: -15.59646489 | J13: -15.21527252 | K13: -10.99657877 | L13: -9.732561445 | M13: -9.352555787 | N13: -9.478458305 | O13: -4.54710023 | P13: -1.370667006 | Q13: 1.19157145 | R13: -0.174763198 | S13: -13.06479834 | T13: 15.35178732 | U13: 1.542390316 | V13: 29.00318097 | W13: 20.34992095 | X13: 26.26695797 | Y13: 22.96386257 | Z13: -135.2239289
E15: LW,A Heiz | F15: =F$6+F$7*LOG($D$3)+F$8*LOG($D$4)+F$9*LOG($D$2) -> 31.8999628 | G15: =G$6+G$7*LOG($D$3)+G$8*LOG($D$4)+G$9*LOG($D$2) -> 31.82736794 | H15: 34.60682153 | I15: 38.58086243 | J15: 39.18848991 | K15: 41.59409824 | L15: 43.46888883 | M15: 45.40659138 | N15: 46.80614461 | O15: 48.5000791 | P15: 49.26328698 | Q15: 48.73938187 | R15: 46.51993749 | S15: 43.29090098 | T15: 41.8912493 | U15: 40.13073391 | V15: 36.9387747 | W15: 34.43500902 | X15: 31.98453073 | Y15: 28.64585029 | Z15: 27.09348963 | AA15: =10*LOG(10^(0.1*F15)+10^(0.1*G15)+10^(0.1*H15)+10^(0.1*I15)+10^(0.1*J15)+10^(0.1*K15)+10^(0.1*L15)+10^(0.1*M15)+10^(0.1*N15)+10^(0.1*O15)+10^(0.1*P15)+10^(0.1*Q15)+10^(0.1*R15)+10^(0.1*S15)+10^(0.1*T15)+10^(0.1*U15)+10^(0.1*V15)+10^(0.1*W15)+10^(0.1*X15)+10^(0.1*Y15)+10^(0.1*Z15)) -> 56.75136964
E16: LW,A Kühl | F16: =F$10+F$11*LOG($D$3)+F$12*LOG($D$4)+F$13*LOG($D$2) -> 31.4696689 | G16: =G$10+G$11*LOG($D$3)+G$12*LOG($D$4)+G$13*LOG($D$2) -> 31.98767751 | H16: 34.89086388 | I16: 38.87129622 | J16: 40.76378481 | K16: 44.18198155 | L16: 46.48862261 | M16: 48.5442826 | N16: 49.57810111 | O16: 51.30035478 | P16: 51.73827434 | Q16: 51.0682015 | R16: 49.14106801 | S16: 45.81466107 | T16: 45.01504439 | U16: =U$10+U$11*LOG($D$3)+U$12*LOG($D$4)+U$13*LOG($D$2) -> 41.61935211 | V16: 38.59900465 | W16: 33.90356366 | X16: 31.16988887 | Y16: 27.47305897 | Z16: 23.02951384 | AA16: =10*LOG(10^(0.1*F16)+10^(0.1*G16)+10^(0.1*H16)+10^(0.1*I16)+10^(0.1*J16)+10^(0.1*K16)+10^(0.1*L16)+10^(0.1*M16)+10^(0.1*N16)+10^(0.1*O16)+10^(0.1*P16)+10^(0.1*Q16)+10^(0.1*R16)+10^(0.1*S16)+10^(0.1*T16)+10^(0.1*U16)+10^(0.1*V16)+10^(0.1*W16)+10^(0.1*X16)+10^(0.1*Y16)+10^(0.1*Z16)) -> 59.28879063
E18: LW,A Heiz Okt | G18: =10*LOG(10^(0.1*F15)+10^(0.1*G15)+10^(0.1*H15)) -> 37.75282531 | H18: =10*LOG(10^(0.1*I15)+10^(0.1*J15)+10^(0.1*K15)) -> 44.76293833 | I18: =10*LOG(10^(0.1*L15)+10^(0.1*M15)+10^(0.1*N15)) -> 50.20711466 | J18: =10*LOG(10^(0.1*O15)+10^(0.1*P15)+10^(0.1*Q15)) -> 53.61726888 | K18: =10*LOG(10^(0.1*R15)+10^(0.1*S15)+10^(0.1*T15)) -> 49.12039998 | L18: =10*LOG(10^(0.1*U15)+10^(0.1*V15)+10^(0.1*W15)) -> 42.55847218 | M18: =10*LOG(10^(0.1*X15)+10^(0.1*Y15)+10^(0.1*Z15)) -> 34.50784062
E19: LW,A Kühl Okt | G19: =10*LOG(10^(0.1*F16)+10^(0.1*G16)+10^(0.1*H16)) -> 37.82967604 | H19: =10*LOG(10^(0.1*I16)+10^(0.1*J16)+10^(0.1*K16)) -> 46.61130154 | I19: =10*LOG(10^(0.1*L16)+10^(0.1*M16)+10^(0.1*N16)) -> 53.15579904 | J19: =10*LOG(10^(0.1*O16)+10^(0.1*P16)+10^(0.1*Q16)) -> 56.14910503 | K19: =10*LOG(10^(0.1*R16)+10^(0.1*S16)+10^(0.1*T16)) -> 51.81658814 | L19: =10*LOG(10^(0.1*U16)+10^(0.1*V16)+10^(0.1*W16)) -> 43.84144973 | M19: =10*LOG(10^(0.1*X16)+10^(0.1*Y16)+10^(0.1*Z16)) -> 33.15739271
E20: A-Bewertung | G20: -16.1 | H20: -8.6 | I20: -3.2 | J20: 0 | K20: 1.2 | L20: 1 | M20: -1.1
E21: LW,Z Heiz Okt | G21: =G18-G$20 -> 53.85282531 | H21: =H18-H$20 -> 53.36293833 | I21: 53.40711466 | J21: 53.61726888 | K21: 47.92039998 | L21: 41.55847218 | M21: 35.60784062
E22: LW,Z Kühl Okt | G22: =G19-G$20 -> 53.92967604 | H22: =H19-H$20 -> 55.21130154 | I22: 56.35579904 | J22: 56.14910503 | K22: 50.61658814 | L22: 42.84144973 | M22: =M19-M$20 -> 34.25739271
B27: Rechentabelle für Schnellauswahl: | F27: =F$10+F$11*LOG('Grunddaten-IVA'!$N54)+F$12*LOG('Grunddaten-IVA'!$G54)+F$13*LOG('Grunddaten-IVA'!$L54) -> 13.89561737 | G27: =G$10+G$11*LOG('Grunddaten-IVA'!$N54)+G$12*LOG('Grunddaten-IVA'!$G54)+G$13*LOG('Grunddaten-IVA'!$L54) -> 15.16078884 | H27: =H$10+H$11*LOG('Grunddaten-IVA'!$N54)+H$12*LOG('Grunddaten-IVA'!$G54)+H$13*LOG('Grunddaten-IVA'!$L54) -> 18.70115564 | I27: =I$10+I$11*LOG('Grunddaten-IVA'!$N54)+I$12*LOG('Grunddaten-IVA'!$G54)+I$13*LOG('Grunddaten-IVA'!$L54) -> 19.36727343 | J27: =J$10+J$11*LOG('Grunddaten-IVA'!$N54)+J$12*LOG('Grunddaten-IVA'!$G54)+J$13*LOG('Grunddaten-IVA'!$L54) -> 21.02924574 | K27: =K$10+K$11*LOG('Grunddaten-IVA'!$N54)+K$12*LOG('Grunddaten-IVA'!$G54)+K$13*LOG('Grunddaten-IVA'!$L54) -> 22.16961996 | L27: =L$10+L$11*LOG('Grunddaten-IVA'!$N54)+L$12*LOG('Grunddaten-IVA'!$G54)+L$13*LOG('Grunddaten-IVA'!$L54) -> 23.4578657 | M27: =M$10+M$11*LOG('Grunddaten-IVA'!$N54)+M$12*LOG('Grunddaten-IVA'!$G54)+M$13*LOG('Grunddaten-IVA'!$L54) -> 24.00496693 | N27: =N$10+N$11*LOG('Grunddaten-IVA'!$N54)+N$12*LOG('Grunddaten-IVA'!$G54)+N$13*LOG('Grunddaten-IVA'!$L54) -> 24.20451241 | O27: =O$10+O$11*LOG('Grunddaten-IVA'!$N54)+O$12*LOG('Grunddaten-IVA'!$G54)+O$13*LOG('Grunddaten-IVA'!$L54) -> 21.66299723 | P27: =P$10+P$11*LOG('Grunddaten-IVA'!$N54)+P$12*LOG('Grunddaten-IVA'!$G54)+P$13*LOG('Grunddaten-IVA'!$L54) -> 19.94224784 | Q27: =Q$10+Q$11*LOG('Grunddaten-IVA'!$N54)+Q$12*LOG('Grunddaten-IVA'!$G54)+Q$13*LOG('Grunddaten-IVA'!$L54) -> 17.85117024 | R27: =R$10+R$11*LOG('Grunddaten-IVA'!$N54)+R$12*LOG('Grunddaten-IVA'!$G54)+R$13*LOG('Grunddaten-IVA'!$L54) -> 15.81361177 | S27: =S$10+S$11*LOG('Grunddaten-IVA'!$N54)+S$12*LOG('Grunddaten-IVA'!$G54)+S$13*LOG('Grunddaten-IVA'!$L54) -> 18.16385006 | T27: =T$10+T$11*LOG('Grunddaten-IVA'!$N54)+T$12*LOG('Grunddaten-IVA'!$G54)+T$13*LOG('Grunddaten-IVA'!$L54) -> 17.39590196 | U27: =U$10+U$11*LOG('Grunddaten-IVA'!$N54)+U$12*LOG('Grunddaten-IVA'!$G54)+U$13*LOG('Grunddaten-IVA'!$L54) -> 16.82826665 | V27: =V$10+V$11*LOG('Grunddaten-IVA'!$N54)+V$12*LOG('Grunddaten-IVA'!$G54)+V$13*LOG('Grunddaten-IVA'!$L54) -> 17.5104914 | W27: =W$10+W$11*LOG('Grunddaten-IVA'!$N54)+W$12*LOG('Grunddaten-IVA'!$G54)+W$13*LOG('Grunddaten-IVA'!$L54) -> 15.86467359 | X27: =X$10+X$11*LOG('Grunddaten-IVA'!$N54)+X$12*LOG('Grunddaten-IVA'!$G54)+X$13*LOG('Grunddaten-IVA'!$L54) -> 15.96401731 | Y27: =Y$10+Y$11*LOG('Grunddaten-IVA'!$N54)+Y$12*LOG('Grunddaten-IVA'!$G54)+Y$13*LOG('Grunddaten-IVA'!$L54) -> 16.58880908 | Z27: =Z$10+Z$11*LOG('Grunddaten-IVA'!$N54)+Z$12*LOG('Grunddaten-IVA'!$G54)+Z$13*LOG('Grunddaten-IVA'!$L54) -> 31.47712028 | AA27: =10*LOG(10^(0.1*F27)+10^(0.1*G27)+10^(0.1*H27)+10^(0.1*I27)+10^(0.1*J27)+10^(0.1*K27)+10^(0.1*L27)+10^(0.1*M27)+10^(0.1*N27)+10^(0.1*O27)+10^(0.1*P27)+10^(0.1*Q27)+10^(0.1*R27)+10^(0.1*S27)+10^(0.1*T27)+10^(0.1*U27)+10^(0.1*V27)+10^(0.1*W27)+10^(0.1*X27)+10^(0.1*Y27)+10^(0.1*Z27)) -> 35.2428631
F28: =F$10+F$11*LOG('Grunddaten-IVA'!$N55)+F$12*LOG('Grunddaten-IVA'!$G55)+F$13*LOG('Grunddaten-IVA'!$L55) -> 21.98689613 | G28: =G$10+G$11*LOG('Grunddaten-IVA'!$N55)+G$12*LOG('Grunddaten-IVA'!$G55)+G$13*LOG('Grunddaten-IVA'!$L55) -> 24.10758333 | H28: =H$10+H$11*LOG('Grunddaten-IVA'!$N55)+H$12*LOG('Grunddaten-IVA'!$G55)+H$13*LOG('Grunddaten-IVA'!$L55) -> 27.75837288 | I28: =I$10+I$11*LOG('Grunddaten-IVA'!$N55)+I$12*LOG('Grunddaten-IVA'!$G55)+I$13*LOG('Grunddaten-IVA'!$L55) -> 28.92308033 | J28: =J$10+J$11*LOG('Grunddaten-IVA'!$N55)+J$12*LOG('Grunddaten-IVA'!$G55)+J$13*LOG('Grunddaten-IVA'!$L55) -> 30.64937162 | K28: =K$10+K$11*LOG('Grunddaten-IVA'!$N55)+K$12*LOG('Grunddaten-IVA'!$G55)+K$13*LOG('Grunddaten-IVA'!$L55) -> 32.38644865 | L28: =L$10+L$11*LOG('Grunddaten-IVA'!$N55)+L$12*LOG('Grunddaten-IVA'!$G55)+L$13*LOG('Grunddaten-IVA'!$L55) -> 33.99496152 | M28: =M$10+M$11*LOG('Grunddaten-IVA'!$N55)+M$12*LOG('Grunddaten-IVA'!$G55)+M$13*LOG('Grunddaten-IVA'!$L55) -> 35.14478405 | N28: =N$10+N$11*LOG('Grunddaten-IVA'!$N55)+N$12*LOG('Grunddaten-IVA'!$G55)+N$13*LOG('Grunddaten-IVA'!$L55) -> 35.7065423 | O28: =O$10+O$11*LOG('Grunddaten-IVA'!$N55)+O$12*LOG('Grunddaten-IVA'!$G55)+O$13*LOG('Grunddaten-IVA'!$L55) -> 34.53692285 | P28: =P$10+P$11*LOG('Grunddaten-IVA'!$N55)+P$12*LOG('Grunddaten-IVA'!$G55)+P$13*LOG('Grunddaten-IVA'!$L55) -> 33.45229666 | Q28: =Q$10+Q$11*LOG('Grunddaten-IVA'!$N55)+Q$12*LOG('Grunddaten-IVA'!$G55)+Q$13*LOG('Grunddaten-IVA'!$L55) -> 31.73944908 | R28: =R$10+R$11*LOG('Grunddaten-IVA'!$N55)+R$12*LOG('Grunddaten-IVA'!$G55)+R$13*LOG('Grunddaten-IVA'!$L55) -> 29.86586929 | S28: =S$10+S$11*LOG('Grunddaten-IVA'!$N55)+S$12*LOG('Grunddaten-IVA'!$G55)+S$13*LOG('Grunddaten-IVA'!$L55) -> 30.9333564 | T28: =T$10+T$11*LOG('Grunddaten-IVA'!$N55)+T$12*LOG('Grunddaten-IVA'!$G55)+T$13*LOG('Grunddaten-IVA'!$L55) -> 27.70899509 | U28: =U$10+U$11*LOG('Grunddaten-IVA'!$N55)+U$12*LOG('Grunddaten-IVA'!$G55)+U$13*LOG('Grunddaten-IVA'!$L55) -> 27.13744983 | V28: =V$10+V$11*LOG('Grunddaten-IVA'!$N55)+V$12*LOG('Grunddaten-IVA'!$G55)+V$13*LOG('Grunddaten-IVA'!$L55) -> 23.899282 | W28: =W$10+W$11*LOG('Grunddaten-IVA'!$N55)+W$12*LOG('Grunddaten-IVA'!$G55)+W$13*LOG('Grunddaten-IVA'!$L55) -> 21.7129411 | X28: =X$10+X$11*LOG('Grunddaten-IVA'!$N55)+X$12*LOG('Grunddaten-IVA'!$G55)+X$13*LOG('Grunddaten-IVA'!$L55) -> 20.11033359 | Y28: =Y$10+Y$11*LOG('Grunddaten-IVA'!$N55)+Y$12*LOG('Grunddaten-IVA'!$G55)+Y$13*LOG('Grunddaten-IVA'!$L55) -> 19.19887501 | Z28: =Z$10+Z$11*LOG('Grunddaten-IVA'!$N55)+Z$12*LOG('Grunddaten-IVA'!$G55)+Z$13*LOG('Grunddaten-IVA'!$L55) -> 39.5447434 | AA28: =10*LOG(10^(0.1*F28)+10^(0.1*G28)+10^(0.1*H28)+10^(0.1*I28)+10^(0.1*J28)+10^(0.1*K28)+10^(0.1*L28)+10^(0.1*M28)+10^(0.1*N28)+10^(0.1*O28)+10^(0.1*P28)+10^(0.1*Q28)+10^(0.1*R28)+10^(0.1*S28)+10^(0.1*T28)+10^(0.1*U28)+10^(0.1*V28)+10^(0.1*W28)+10^(0.1*X28)+10^(0.1*Y28)+10^(0.1*Z28)) -> 45.26805768
F29: =F$10+F$11*LOG('Grunddaten-IVA'!$N56)+F$12*LOG('Grunddaten-IVA'!$G56)+F$13*LOG('Grunddaten-IVA'!$L56) -> 29.42383599 | G29: =G$10+G$11*LOG('Grunddaten-IVA'!$N56)+G$12*LOG('Grunddaten-IVA'!$G56)+G$13*LOG('Grunddaten-IVA'!$L56) -> 32.33085366 | H29: =H$10+H$11*LOG('Grunddaten-IVA'!$N56)+H$12*LOG('Grunddaten-IVA'!$G56)+H$13*LOG('Grunddaten-IVA'!$L56) -> 36.08313609 | I29: =I$10+I$11*LOG('Grunddaten-IVA'!$N56)+I$12*LOG('Grunddaten-IVA'!$G56)+I$13*LOG('Grunddaten-IVA'!$L56) -> 37.70611243 | J29: =J$10+J$11*LOG('Grunddaten-IVA'!$N56)+J$12*LOG('Grunddaten-IVA'!$G56)+J$13*LOG('Grunddaten-IVA'!$L56) -> 39.49152125 | K29: =K$10+K$11*LOG('Grunddaten-IVA'!$N56)+K$12*LOG('Grunddaten-IVA'!$G56)+K$13*LOG('Grunddaten-IVA'!$L56) -> 41.77704595 | L29: =L$10+L$11*LOG('Grunddaten-IVA'!$N56)+L$12*LOG('Grunddaten-IVA'!$G56)+L$13*LOG('Grunddaten-IVA'!$L56) -> 43.67992605 | M29: =M$10+M$11*LOG('Grunddaten-IVA'!$N56)+M$12*LOG('Grunddaten-IVA'!$G56)+M$13*LOG('Grunddaten-IVA'!$L56) -> 45.38372801 | N29: =N$10+N$11*LOG('Grunddaten-IVA'!$N56)+N$12*LOG('Grunddaten-IVA'!$G56)+N$13*LOG('Grunddaten-IVA'!$L56) -> 46.27840702 | O29: =O$10+O$11*LOG('Grunddaten-IVA'!$N56)+O$12*LOG('Grunddaten-IVA'!$G56)+O$13*LOG('Grunddaten-IVA'!$L56) -> 46.36973856 | P29: =P$10+P$11*LOG('Grunddaten-IVA'!$N56)+P$12*LOG('Grunddaten-IVA'!$G56)+P$13*LOG('Grunddaten-IVA'!$L56) -> 45.86979252 | Q29: =Q$10+Q$11*LOG('Grunddaten-IVA'!$N56)+Q$12*LOG('Grunddaten-IVA'!$G56)+Q$13*LOG('Grunddaten-IVA'!$L56) -> 44.50458763 | R29: =R$10+R$11*LOG('Grunddaten-IVA'!$N56)+R$12*LOG('Grunddaten-IVA'!$G56)+R$13*LOG('Grunddaten-IVA'!$L56) -> 42.78172561 | S29: =S$10+S$11*LOG('Grunddaten-IVA'!$N56)+S$12*LOG('Grunddaten-IVA'!$G56)+S$13*LOG('Grunddaten-IVA'!$L56) -> 42.6701972 | T29: =T$10+T$11*LOG('Grunddaten-IVA'!$N56)+T$12*LOG('Grunddaten-IVA'!$G56)+T$13*LOG('Grunddaten-IVA'!$L56) -> 37.18807195 | U29: =U$10+U$11*LOG('Grunddaten-IVA'!$N56)+U$12*LOG('Grunddaten-IVA'!$G56)+U$13*LOG('Grunddaten-IVA'!$L56) -> 36.61293293 | V29: =V$10+V$11*LOG('Grunddaten-IVA'!$N56)+V$12*LOG('Grunddaten-IVA'!$G56)+V$13*LOG('Grunddaten-IVA'!$L56) -> 29.77141333 | W29: =W$10+W$11*LOG('Grunddaten-IVA'!$N56)+W$12*LOG('Grunddaten-IVA'!$G56)+W$13*LOG('Grunddaten-IVA'!$L56) -> 27.08826125 | X29: =X$10+X$11*LOG('Grunddaten-IVA'!$N56)+X$12*LOG('Grunddaten-IVA'!$G56)+X$13*LOG('Grunddaten-IVA'!$L56) -> 23.92133871 | Y29: =Y$10+Y$11*LOG('Grunddaten-IVA'!$N56)+Y$12*LOG('Grunddaten-IVA'!$G56)+Y$13*LOG('Grunddaten-IVA'!$L56) -> 21.59786582 | Z29: =Z$10+Z$11*LOG('Grunddaten-IVA'!$N56)+Z$12*LOG('Grunddaten-IVA'!$G56)+Z$13*LOG('Grunddaten-IVA'!$L56) -> 46.95994064 | AA29: 55.38836998
F30: =F$10+F$11*LOG('Grunddaten-IVA'!$N57)+F$12*LOG('Grunddaten-IVA'!$G57)+F$13*LOG('Grunddaten-IVA'!$L57) -> 14.59723979 | G30: =G$10+G$11*LOG('Grunddaten-IVA'!$N57)+G$12*LOG('Grunddaten-IVA'!$G57)+G$13*LOG('Grunddaten-IVA'!$L57) -> 14.65549888 | H30: =H$10+H$11*LOG('Grunddaten-IVA'!$N57)+H$12*LOG('Grunddaten-IVA'!$G57)+H$13*LOG('Grunddaten-IVA'!$L57) -> 17.77419172 | I30: =I$10+I$11*LOG('Grunddaten-IVA'!$N57)+I$12*LOG('Grunddaten-IVA'!$G57)+I$13*LOG('Grunddaten-IVA'!$L57) -> 19.58077056 | J30: =J$10+J$11*LOG('Grunddaten-IVA'!$N57)+J$12*LOG('Grunddaten-IVA'!$G57)+J$13*LOG('Grunddaten-IVA'!$L57) -> 21.29297706 | K30: =K$10+K$11*LOG('Grunddaten-IVA'!$N57)+K$12*LOG('Grunddaten-IVA'!$G57)+K$13*LOG('Grunddaten-IVA'!$L57) -> 22.96786693 | L30: =L$10+L$11*LOG('Grunddaten-IVA'!$N57)+L$12*LOG('Grunddaten-IVA'!$G57)+L$13*LOG('Grunddaten-IVA'!$L57) -> 24.44260417 | M30: =M$10+M$11*LOG('Grunddaten-IVA'!$N57)+M$12*LOG('Grunddaten-IVA'!$G57)+M$13*LOG('Grunddaten-IVA'!$L57) -> 25.14005025 | N30: =N$10+N$11*LOG('Grunddaten-IVA'!$N57)+N$12*LOG('Grunddaten-IVA'!$G57)+N$13*LOG('Grunddaten-IVA'!$L57) -> 25.39438887 | O30: =O$10+O$11*LOG('Grunddaten-IVA'!$N57)+O$12*LOG('Grunddaten-IVA'!$G57)+O$13*LOG('Grunddaten-IVA'!$L57) -> 23.60323088 | P30: =P$10+P$11*LOG('Grunddaten-IVA'!$N57)+P$12*LOG('Grunddaten-IVA'!$G57)+P$13*LOG('Grunddaten-IVA'!$L57) -> 22.31972343 | Q30: =Q$10+Q$11*LOG('Grunddaten-IVA'!$N57)+Q$12*LOG('Grunddaten-IVA'!$G57)+Q$13*LOG('Grunddaten-IVA'!$L57) -> 20.55623095 | R30: =R$10+R$11*LOG('Grunddaten-IVA'!$N57)+R$12*LOG('Grunddaten-IVA'!$G57)+R$13*LOG('Grunddaten-IVA'!$L57) -> 18.41205924 | S30: =S$10+S$11*LOG('Grunddaten-IVA'!$N57)+S$12*LOG('Grunddaten-IVA'!$G57)+S$13*LOG('Grunddaten-IVA'!$L57) -> 19.22971886 | T30: =T$10+T$11*LOG('Grunddaten-IVA'!$N57)+T$12*LOG('Grunddaten-IVA'!$G57)+T$13*LOG('Grunddaten-IVA'!$L57) -> 20.85666953 | U30: =U$10+U$11*LOG('Grunddaten-IVA'!$N57)+U$12*LOG('Grunddaten-IVA'!$G57)+U$13*LOG('Grunddaten-IVA'!$L57) -> 18.90224963 | V30: =V$10+V$11*LOG('Grunddaten-IVA'!$N57)+V$12*LOG('Grunddaten-IVA'!$G57)+V$13*LOG('Grunddaten-IVA'!$L57) -> 21.61090296 | W30: =W$10+W$11*LOG('Grunddaten-IVA'!$N57)+W$12*LOG('Grunddaten-IVA'!$G57)+W$13*LOG('Grunddaten-IVA'!$L57) -> 18.99592817 | X30: =X$10+X$11*LOG('Grunddaten-IVA'!$N57)+X$12*LOG('Grunddaten-IVA'!$G57)+X$13*LOG('Grunddaten-IVA'!$L57) -> 19.37233043 | Y30: =Y$10+Y$11*LOG('Grunddaten-IVA'!$N57)+Y$12*LOG('Grunddaten-IVA'!$G57)+Y$13*LOG('Grunddaten-IVA'!$L57) -> 19.37959813 | Z30: =Z$10+Z$11*LOG('Grunddaten-IVA'!$N57)+Z$12*LOG('Grunddaten-IVA'!$G57)+Z$13*LOG('Grunddaten-IVA'!$L57) -> 19.40650119 | AA30: 34.5382557
F31: =F$10+F$11*LOG('Grunddaten-IVA'!$N58)+F$12*LOG('Grunddaten-IVA'!$G58)+F$13*LOG('Grunddaten-IVA'!$L58) -> 22.36922296 | G31: =G$10+G$11*LOG('Grunddaten-IVA'!$N58)+G$12*LOG('Grunddaten-IVA'!$G58)+G$13*LOG('Grunddaten-IVA'!$L58) -> 23.24923767 | H31: =H$10+H$11*LOG('Grunddaten-IVA'!$N58)+H$12*LOG('Grunddaten-IVA'!$G58)+H$13*LOG('Grunddaten-IVA'!$L58) -> 26.4739958 | I31: =I$10+I$11*LOG('Grunddaten-IVA'!$N58)+I$12*LOG('Grunddaten-IVA'!$G58)+I$13*LOG('Grunddaten-IVA'!$L58) -> 28.75948909 | J31: =J$10+J$11*LOG('Grunddaten-IVA'!$N58)+J$12*LOG('Grunddaten-IVA'!$G58)+J$13*LOG('Grunddaten-IVA'!$L58) -> 30.53347644 | K31: =K$10+K$11*LOG('Grunddaten-IVA'!$N58)+K$12*LOG('Grunddaten-IVA'!$G58)+K$13*LOG('Grunddaten-IVA'!$L58) -> 32.78152222 | L31: =L$10+L$11*LOG('Grunddaten-IVA'!$N58)+L$12*LOG('Grunddaten-IVA'!$G58)+L$13*LOG('Grunddaten-IVA'!$L58) -> 34.5638883 | M31: =M$10+M$11*LOG('Grunddaten-IVA'!$N58)+M$12*LOG('Grunddaten-IVA'!$G58)+M$13*LOG('Grunddaten-IVA'!$L58) -> 35.84027127 | N31: =N$10+N$11*LOG('Grunddaten-IVA'!$N58)+N$12*LOG('Grunddaten-IVA'!$G58)+N$13*LOG('Grunddaten-IVA'!$L58) -> 36.44252914 | O31: =O$10+O$11*LOG('Grunddaten-IVA'!$N58)+O$12*LOG('Grunddaten-IVA'!$G58)+O$13*LOG('Grunddaten-IVA'!$L58) -> 35.96912954 | P31: =P$10+P$11*LOG('Grunddaten-IVA'!$N58)+P$12*LOG('Grunddaten-IVA'!$G58)+P$13*LOG('Grunddaten-IVA'!$L58) -> 35.2966428 | Q31: =Q$10+Q$11*LOG('Grunddaten-IVA'!$N58)+Q$12*LOG('Grunddaten-IVA'!$G58)+Q$13*LOG('Grunddaten-IVA'!$L58) -> 33.89645474 | R31: =R$10+R$11*LOG('Grunddaten-IVA'!$N58)+R$12*LOG('Grunddaten-IVA'!$G58)+R$13*LOG('Grunddaten-IVA'!$L58) -> 31.90979082 | S31: =S$10+S$11*LOG('Grunddaten-IVA'!$N58)+S$12*LOG('Grunddaten-IVA'!$G58)+S$13*LOG('Grunddaten-IVA'!$L58) -> 31.49531881 | T31: =T$10+T$11*LOG('Grunddaten-IVA'!$N58)+T$12*LOG('Grunddaten-IVA'!$G58)+T$13*LOG('Grunddaten-IVA'!$L58) -> 30.7627905 | U31: =U$10+U$11*LOG('Grunddaten-IVA'!$N58)+U$12*LOG('Grunddaten-IVA'!$G58)+U$13*LOG('Grunddaten-IVA'!$L58) -> 28.80461494 | V31: =V$10+V$11*LOG('Grunddaten-IVA'!$N58)+V$12*LOG('Grunddaten-IVA'!$G58)+V$13*LOG('Grunddaten-IVA'!$L58) -> 27.74758105 | W31: =W$10+W$11*LOG('Grunddaten-IVA'!$N58)+W$12*LOG('Grunddaten-IVA'!$G58)+W$13*LOG('Grunddaten-IVA'!$L58) -> 24.61341312 | X31: =X$10+X$11*LOG('Grunddaten-IVA'!$N58)+X$12*LOG('Grunddaten-IVA'!$G58)+X$13*LOG('Grunddaten-IVA'!$L58) -> 23.35502603 | Y31: =Y$10+Y$11*LOG('Grunddaten-IVA'!$N58)+Y$12*LOG('Grunddaten-IVA'!$G58)+Y$13*LOG('Grunddaten-IVA'!$L58) -> 21.88666643 | Z31: =Z$10+Z$11*LOG('Grunddaten-IVA'!$N58)+Z$12*LOG('Grunddaten-IVA'!$G58)+Z$13*LOG('Grunddaten-IVA'!$L58) -> 27.15576221 | AA31: 45.07778062
F32: =F$10+F$11*LOG('Grunddaten-IVA'!$N59)+F$12*LOG('Grunddaten-IVA'!$G59)+F$13*LOG('Grunddaten-IVA'!$L59) -> 28.89893619 | G32: =G$10+G$11*LOG('Grunddaten-IVA'!$N59)+G$12*LOG('Grunddaten-IVA'!$G59)+G$13*LOG('Grunddaten-IVA'!$L59) -> 30.46935751 | H32: =H$10+H$11*LOG('Grunddaten-IVA'!$N59)+H$12*LOG('Grunddaten-IVA'!$G59)+H$13*LOG('Grunddaten-IVA'!$L59) -> 33.78322749 | I32: =I$10+I$11*LOG('Grunddaten-IVA'!$N59)+I$12*LOG('Grunddaten-IVA'!$G59)+I$13*LOG('Grunddaten-IVA'!$L59) -> 36.4710858 | J32: =J$10+J$11*LOG('Grunddaten-IVA'!$N59)+J$12*LOG('Grunddaten-IVA'!$G59)+J$13*LOG('Grunddaten-IVA'!$L59) -> 38.29697898 | K32: =K$10+K$11*LOG('Grunddaten-IVA'!$N59)+K$12*LOG('Grunddaten-IVA'!$G59)+K$13*LOG('Grunddaten-IVA'!$L59) -> 41.02656771 | L32: =L$10+L$11*LOG('Grunddaten-IVA'!$N59)+L$12*LOG('Grunddaten-IVA'!$G59)+L$13*LOG('Grunddaten-IVA'!$L59) -> 43.06739139 | M32: =M$10+M$11*LOG('Grunddaten-IVA'!$N59)+M$12*LOG('Grunddaten-IVA'!$G59)+M$13*LOG('Grunddaten-IVA'!$L59) -> 44.83017426 | N32: =N$10+N$11*LOG('Grunddaten-IVA'!$N59)+N$12*LOG('Grunddaten-IVA'!$G59)+N$13*LOG('Grunddaten-IVA'!$L59) -> 45.72474014 | O32: =O$10+O$11*LOG('Grunddaten-IVA'!$N59)+O$12*LOG('Grunddaten-IVA'!$G59)+O$13*LOG('Grunddaten-IVA'!$L59) -> 46.35846908 | P32: =P$10+P$11*LOG('Grunddaten-IVA'!$N59)+P$12*LOG('Grunddaten-IVA'!$G59)+P$13*LOG('Grunddaten-IVA'!$L59) -> 46.1993378 | Q32: =Q$10+Q$11*LOG('Grunddaten-IVA'!$N59)+Q$12*LOG('Grunddaten-IVA'!$G59)+Q$13*LOG('Grunddaten-IVA'!$L59) -> 45.10438376 | R32: =R$10+R$11*LOG('Grunddaten-IVA'!$N59)+R$12*LOG('Grunddaten-IVA'!$G59)+R$13*LOG('Grunddaten-IVA'!$L59) -> 43.25005168 | S32: =S$10+S$11*LOG('Grunddaten-IVA'!$N59)+S$12*LOG('Grunddaten-IVA'!$G59)+S$13*LOG('Grunddaten-IVA'!$L59) -> 41.80039134 | T32: =T$10+T$11*LOG('Grunddaten-IVA'!$N59)+T$12*LOG('Grunddaten-IVA'!$G59)+T$13*LOG('Grunddaten-IVA'!$L59) -> 39.08552199 | U32: =U$10+U$11*LOG('Grunddaten-IVA'!$N59)+U$12*LOG('Grunddaten-IVA'!$G59)+U$13*LOG('Grunddaten-IVA'!$L59) -> 37.12419108 | V32: =V$10+V$11*LOG('Grunddaten-IVA'!$N59)+V$12*LOG('Grunddaten-IVA'!$G59)+V$13*LOG('Grunddaten-IVA'!$L59) -> 32.90337555 | W32: =W$10+W$11*LOG('Grunddaten-IVA'!$N59)+W$12*LOG('Grunddaten-IVA'!$G59)+W$13*LOG('Grunddaten-IVA'!$L59) -> 29.33300206 | X32: =X$10+X$11*LOG('Grunddaten-IVA'!$N59)+X$12*LOG('Grunddaten-IVA'!$G59)+X$13*LOG('Grunddaten-IVA'!$L59) -> 26.70112953 | Y32: =Y$10+Y$11*LOG('Grunddaten-IVA'!$N59)+Y$12*LOG('Grunddaten-IVA'!$G59)+Y$13*LOG('Grunddaten-IVA'!$L59) -> 23.99300617 | Z32: =Z$10+Z$11*LOG('Grunddaten-IVA'!$N59)+Z$12*LOG('Grunddaten-IVA'!$G59)+Z$13*LOG('Grunddaten-IVA'!$L59) -> 33.66638519 | AA32: 54.60707383
F33: =F$10+F$11*LOG('Grunddaten-IVA'!$N60)+F$12*LOG('Grunddaten-IVA'!$G60)+F$13*LOG('Grunddaten-IVA'!$L60) -> 14.45051805 | G33: =G$10+G$11*LOG('Grunddaten-IVA'!$N60)+G$12*LOG('Grunddaten-IVA'!$G60)+G$13*LOG('Grunddaten-IVA'!$L60) -> 13.83060184 | H33: =H$10+H$11*LOG('Grunddaten-IVA'!$N60)+H$12*LOG('Grunddaten-IVA'!$G60)+H$13*LOG('Grunddaten-IVA'!$L60) -> 16.72422389 | I33: =I$10+I$11*LOG('Grunddaten-IVA'!$N60)+I$12*LOG('Grunddaten-IVA'!$G60)+I$13*LOG('Grunddaten-IVA'!$L60) -> 19.08931452 | J33: =J$10+J$11*LOG('Grunddaten-IVA'!$N60)+J$12*LOG('Grunddaten-IVA'!$G60)+J$13*LOG('Grunddaten-IVA'!$L60) -> 20.82345398 | K33: =K$10+K$11*LOG('Grunddaten-IVA'!$N60)+K$12*LOG('Grunddaten-IVA'!$G60)+K$13*LOG('Grunddaten-IVA'!$L60) -> 22.73724371 | L33: =L$10+L$11*LOG('Grunddaten-IVA'!$N60)+L$12*LOG('Grunddaten-IVA'!$G60)+L$13*LOG('Grunddaten-IVA'!$L60) -> 24.28827318 | M33: =M$10+M$11*LOG('Grunddaten-IVA'!$N60)+M$12*LOG('Grunddaten-IVA'!$G60)+M$13*LOG('Grunddaten-IVA'!$L60) -> 25.02552333 | N33: =N$10+N$11*LOG('Grunddaten-IVA'!$N60)+N$12*LOG('Grunddaten-IVA'!$G60)+N$13*LOG('Grunddaten-IVA'!$L60) -> 25.2853897 | O33: =O$10+O$11*LOG('Grunddaten-IVA'!$N60)+O$12*LOG('Grunddaten-IVA'!$G60)+O$13*LOG('Grunddaten-IVA'!$L60) -> 23.7959511 | P33: =P$10+P$11*LOG('Grunddaten-IVA'!$N60)+P$12*LOG('Grunddaten-IVA'!$G60)+P$13*LOG('Grunddaten-IVA'!$L60) -> 22.69854463 | Q33: =Q$10+Q$11*LOG('Grunddaten-IVA'!$N60)+Q$12*LOG('Grunddaten-IVA'!$G60)+Q$13*LOG('Grunddaten-IVA'!$L60) -> 21.08067575 | R33: =R$10+R$11*LOG('Grunddaten-IVA'!$N60)+R$12*LOG('Grunddaten-IVA'!$G60)+R$13*LOG('Grunddaten-IVA'!$L60) -> 18.87102863 | S33: =S$10+S$11*LOG('Grunddaten-IVA'!$N60)+S$12*LOG('Grunddaten-IVA'!$G60)+S$13*LOG('Grunddaten-IVA'!$L60) -> 18.97674102 | T33: =T$10+T$11*LOG('Grunddaten-IVA'!$N60)+T$12*LOG('Grunddaten-IVA'!$G60)+T$13*LOG('Grunddaten-IVA'!$L60) -> 21.9972018 | U33: =U$10+U$11*LOG('Grunddaten-IVA'!$N60)+U$12*LOG('Grunddaten-IVA'!$G60)+U$13*LOG('Grunddaten-IVA'!$L60) -> 19.32569817 | V33: =V$10+V$11*LOG('Grunddaten-IVA'!$N60)+V$12*LOG('Grunddaten-IVA'!$G60)+V$13*LOG('Grunddaten-IVA'!$L60) -> 23.32947764 | W33: =W$10+W$11*LOG('Grunddaten-IVA'!$N60)+W$12*LOG('Grunddaten-IVA'!$G60)+W$13*LOG('Grunddaten-IVA'!$L60) -> 20.24724126 | X33: =X$10+X$11*LOG('Grunddaten-IVA'!$N60)+X$12*LOG('Grunddaten-IVA'!$G60)+X$13*LOG('Grunddaten-IVA'!$L60) -> 20.87415567 | Y33: =Y$10+Y$11*LOG('Grunddaten-IVA'!$N60)+Y$12*LOG('Grunddaten-IVA'!$G60)+Y$13*LOG('Grunddaten-IVA'!$L60) -> 20.65876557 | Z33: =Z$10+Z$11*LOG('Grunddaten-IVA'!$N60)+Z$12*LOG('Grunddaten-IVA'!$G60)+Z$13*LOG('Grunddaten-IVA'!$L60) -> 12.65468312 | AA33: 34.69152133
F34: =F$10+F$11*LOG('Grunddaten-IVA'!$N61)+F$12*LOG('Grunddaten-IVA'!$G61)+F$13*LOG('Grunddaten-IVA'!$L61) -> 22.29389861 | G34: =G$10+G$11*LOG('Grunddaten-IVA'!$N61)+G$12*LOG('Grunddaten-IVA'!$G61)+G$13*LOG('Grunddaten-IVA'!$L61) -> 22.50328709 | H34: =H$10+H$11*LOG('Grunddaten-IVA'!$N61)+H$12*LOG('Grunddaten-IVA'!$G61)+H$13*LOG('Grunddaten-IVA'!$L61) -> 25.50394879 | I34: =I$10+I$11*LOG('Grunddaten-IVA'!$N61)+I$12*LOG('Grunddaten-IVA'!$G61)+I$13*LOG('Grunddaten-IVA'!$L61) -> 28.35235343 | J34: =J$10+J$11*LOG('Grunddaten-IVA'!$N61)+J$12*LOG('Grunddaten-IVA'!$G61)+J$13*LOG('Grunddaten-IVA'!$L61) -> 30.14884129 | K34: =K$10+K$11*LOG('Grunddaten-IVA'!$N61)+K$12*LOG('Grunddaten-IVA'!$G61)+K$13*LOG('Grunddaten-IVA'!$L61) -> 32.64105222 | L34: =L$10+L$11*LOG('Grunddaten-IVA'!$N61)+L$12*LOG('Grunddaten-IVA'!$G61)+L$13*LOG('Grunddaten-IVA'!$L61) -> 34.50253657 | M34: =M$10+M$11*LOG('Grunddaten-IVA'!$N61)+M$12*LOG('Grunddaten-IVA'!$G61)+M$13*LOG('Grunddaten-IVA'!$L61) -> 35.82404202 | N34: =N$10+N$11*LOG('Grunddaten-IVA'!$N61)+N$12*LOG('Grunddaten-IVA'!$G61)+N$13*LOG('Grunddaten-IVA'!$L61) -> 36.4350238 | O34: =O$10+O$11*LOG('Grunddaten-IVA'!$N61)+O$12*LOG('Grunddaten-IVA'!$G61)+O$13*LOG('Grunddaten-IVA'!$L61) -> 36.2754492 | P34: =P$10+P$11*LOG('Grunddaten-IVA'!$N61)+P$12*LOG('Grunddaten-IVA'!$G61)+P$13*LOG('Grunddaten-IVA'!$L61) -> 35.79467657 | Q34: =Q$10+Q$11*LOG('Grunddaten-IVA'!$N61)+Q$12*LOG('Grunddaten-IVA'!$G61)+Q$13*LOG('Grunddaten-IVA'!$L61) -> 34.54344961 | R34: =R$10+R$11*LOG('Grunddaten-IVA'!$N61)+R$12*LOG('Grunddaten-IVA'!$G61)+R$13*LOG('Grunddaten-IVA'!$L61) -> 32.49275724 | S34: =S$10+S$11*LOG('Grunddaten-IVA'!$N61)+S$12*LOG('Grunddaten-IVA'!$G61)+S$13*LOG('Grunddaten-IVA'!$L61) -> 31.35501901 | T34: =T$10+T$11*LOG('Grunddaten-IVA'!$N61)+T$12*LOG('Grunddaten-IVA'!$G61)+T$13*LOG('Grunddaten-IVA'!$L61) -> 31.99432543 | U34: =U$10+U$11*LOG('Grunddaten-IVA'!$N61)+U$12*LOG('Grunddaten-IVA'!$G61)+U$13*LOG('Grunddaten-IVA'!$L61) -> 29.31903164 | V34: =V$10+V$11*LOG('Grunddaten-IVA'!$N61)+V$12*LOG('Grunddaten-IVA'!$G61)+V$13*LOG('Grunddaten-IVA'!$L61) -> 29.52253037 | W34: =W$10+W$11*LOG('Grunddaten-IVA'!$N61)+W$12*LOG('Grunddaten-IVA'!$G61)+W$13*LOG('Grunddaten-IVA'!$L61) -> 25.91633129 | X34: =X$10+X$11*LOG('Grunddaten-IVA'!$N61)+X$12*LOG('Grunddaten-IVA'!$G61)+X$13*LOG('Grunddaten-IVA'!$L61) -> 24.89343833 | Y34: =Y$10+Y$11*LOG('Grunddaten-IVA'!$N61)+Y$12*LOG('Grunddaten-IVA'!$G61)+Y$13*LOG('Grunddaten-IVA'!$L61) -> 23.18886508 | Z34: =Z$10+Z$11*LOG('Grunddaten-IVA'!$N61)+Z$12*LOG('Grunddaten-IVA'!$G61)+Z$13*LOG('Grunddaten-IVA'!$L61) -> 20.47513279 | AA34: 45.27399787
F35: =F$10+F$11*LOG('Grunddaten-IVA'!$N62)+F$12*LOG('Grunddaten-IVA'!$G62)+F$13*LOG('Grunddaten-IVA'!$L62) -> 29.00838676 | G35: =G$10+G$11*LOG('Grunddaten-IVA'!$N62)+G$12*LOG('Grunddaten-IVA'!$G62)+G$13*LOG('Grunddaten-IVA'!$L62) -> 29.92771867 | H35: =H$10+H$11*LOG('Grunddaten-IVA'!$N62)+H$12*LOG('Grunddaten-IVA'!$G62)+H$13*LOG('Grunddaten-IVA'!$L62) -> 33.02001387 | I35: =I$10+I$11*LOG('Grunddaten-IVA'!$N62)+I$12*LOG('Grunddaten-IVA'!$G62)+I$13*LOG('Grunddaten-IVA'!$L62) -> 36.28216948 | J35: =J$10+J$11*LOG('Grunddaten-IVA'!$N62)+J$12*LOG('Grunddaten-IVA'!$G62)+J$13*LOG('Grunddaten-IVA'!$L62) -> 38.13203197 | K35: =K$10+K$11*LOG('Grunddaten-IVA'!$N62)+K$12*LOG('Grunddaten-IVA'!$G62)+K$13*LOG('Grunddaten-IVA'!$L62) -> 41.11941234 | L35: =L$10+L$11*LOG('Grunddaten-IVA'!$N62)+L$12*LOG('Grunddaten-IVA'!$G62)+L$13*LOG('Grunddaten-IVA'!$L62) -> 43.24666801 | M35: =M$10+M$11*LOG('Grunddaten-IVA'!$N62)+M$12*LOG('Grunddaten-IVA'!$G62)+M$13*LOG('Grunddaten-IVA'!$L62) -> 45.06833729 | N35: =N$10+N$11*LOG('Grunddaten-IVA'!$N62)+N$12*LOG('Grunddaten-IVA'!$G62)+N$13*LOG('Grunddaten-IVA'!$L62) -> 45.97989868 | O35: =O$10+O$11*LOG('Grunddaten-IVA'!$N62)+O$12*LOG('Grunddaten-IVA'!$G62)+O$13*LOG('Grunddaten-IVA'!$L62) -> 46.95878164 | P35: =P$10+P$11*LOG('Grunddaten-IVA'!$N62)+P$12*LOG('Grunddaten-IVA'!$G62)+P$13*LOG('Grunddaten-IVA'!$L62) -> 47.00589119 | Q35: =Q$10+Q$11*LOG('Grunddaten-IVA'!$N62)+Q$12*LOG('Grunddaten-IVA'!$G62)+Q$13*LOG('Grunddaten-IVA'!$L62) -> 46.06853563 | R35: =R$10+R$11*LOG('Grunddaten-IVA'!$N62)+R$12*LOG('Grunddaten-IVA'!$G62)+R$13*LOG('Grunddaten-IVA'!$L62) -> 44.15391975 | S35: =S$10+S$11*LOG('Grunddaten-IVA'!$N62)+S$12*LOG('Grunddaten-IVA'!$G62)+S$13*LOG('Grunddaten-IVA'!$L62) -> 41.9516999 | T35: =T$10+T$11*LOG('Grunddaten-IVA'!$N62)+T$12*LOG('Grunddaten-IVA'!$G62)+T$13*LOG('Grunddaten-IVA'!$L62) -> 40.55256988 | U35: =U$10+U$11*LOG('Grunddaten-IVA'!$N62)+U$12*LOG('Grunddaten-IVA'!$G62)+U$13*LOG('Grunddaten-IVA'!$L62) -> 37.87403144 | V35: =V$10+V$11*LOG('Grunddaten-IVA'!$N62)+V$12*LOG('Grunddaten-IVA'!$G62)+V$13*LOG('Grunddaten-IVA'!$L62) -> 34.82422124 | W35: =W$10+W$11*LOG('Grunddaten-IVA'!$N62)+W$12*LOG('Grunddaten-IVA'!$G62)+W$13*LOG('Grunddaten-IVA'!$L62) -> 30.76947305 | X35: =X$10+X$11*LOG('Grunddaten-IVA'!$N62)+X$12*LOG('Grunddaten-IVA'!$G62)+X$13*LOG('Grunddaten-IVA'!$L62) -> 28.33422839 | Y35: =Y$10+Y$11*LOG('Grunddaten-IVA'!$N62)+Y$12*LOG('Grunddaten-IVA'!$G62)+Y$13*LOG('Grunddaten-IVA'!$L62) -> 25.35480909 | Z35: =Z$10+Z$11*LOG('Grunddaten-IVA'!$N62)+Z$12*LOG('Grunddaten-IVA'!$G62)+Z$13*LOG('Grunddaten-IVA'!$L62) -> 27.16999048 | AA35: 55.12662744
F36: =F$10+F$11*LOG('Grunddaten-IVA'!$N63)+F$12*LOG('Grunddaten-IVA'!$G63)+F$13*LOG('Grunddaten-IVA'!$L63) -> 14.39438206 | G36: =G$10+G$11*LOG('Grunddaten-IVA'!$N63)+G$12*LOG('Grunddaten-IVA'!$G63)+G$13*LOG('Grunddaten-IVA'!$L63) -> 13.1069682 | H36: =H$10+H$11*LOG('Grunddaten-IVA'!$N63)+H$12*LOG('Grunddaten-IVA'!$G63)+H$13*LOG('Grunddaten-IVA'!$L63) -> 15.77712589 | I36: =I$10+I$11*LOG('Grunddaten-IVA'!$N63)+I$12*LOG('Grunddaten-IVA'!$G63)+I$13*LOG('Grunddaten-IVA'!$L63) -> 18.70536837 | J36: =J$10+J$11*LOG('Grunddaten-IVA'!$N63)+J$12*LOG('Grunddaten-IVA'!$G63)+J$13*LOG('Grunddaten-IVA'!$L63) -> 20.46212254 | K36: =K$10+K$11*LOG('Grunddaten-IVA'!$N63)+K$12*LOG('Grunddaten-IVA'!$G63)+K$13*LOG('Grunddaten-IVA'!$L63) -> 22.62107806 | L36: =L$10+L$11*LOG('Grunddaten-IVA'!$N63)+L$12*LOG('Grunddaten-IVA'!$G63)+L$13*LOG('Grunddaten-IVA'!$L63) -> 24.25184906 | M36: =M$10+M$11*LOG('Grunddaten-IVA'!$N63)+M$12*LOG('Grunddaten-IVA'!$G63)+M$13*LOG('Grunddaten-IVA'!$L63) -> 25.03556684 | N36: =N$10+N$11*LOG('Grunddaten-IVA'!$N63)+N$12*LOG('Grunddaten-IVA'!$G63)+N$13*LOG('Grunddaten-IVA'!$L63) -> 25.30499603 | O36: =O$10+O$11*LOG('Grunddaten-IVA'!$N63)+O$12*LOG('Grunddaten-IVA'!$G63)+O$13*LOG('Grunddaten-IVA'!$L63) -> 24.13209386 | P36: =P$10+P$11*LOG('Grunddaten-IVA'!$N63)+P$12*LOG('Grunddaten-IVA'!$G63)+P$13*LOG('Grunddaten-IVA'!$L63) -> 23.22758206 | Q36: =Q$10+Q$11*LOG('Grunddaten-IVA'!$N63)+Q$12*LOG('Grunddaten-IVA'!$G63)+Q$13*LOG('Grunddaten-IVA'!$L63) -> 21.7593182 | R36: =R$10+R$11*LOG('Grunddaten-IVA'!$N63)+R$12*LOG('Grunddaten-IVA'!$G63)+R$13*LOG('Grunddaten-IVA'!$L63) -> 19.48613522 | S36: =S$10+S$11*LOG('Grunddaten-IVA'!$N63)+S$12*LOG('Grunddaten-IVA'!$G63)+S$13*LOG('Grunddaten-IVA'!$L63) -> 18.86675949 | T36: =T$10+T$11*LOG('Grunddaten-IVA'!$N63)+T$12*LOG('Grunddaten-IVA'!$G63)+T$13*LOG('Grunddaten-IVA'!$L63) -> 23.25099095 | U36: =U$10+U$11*LOG('Grunddaten-IVA'!$N63)+U$12*LOG('Grunddaten-IVA'!$G63)+U$13*LOG('Grunddaten-IVA'!$L63) -> 19.86354998 | V36: =V$10+V$11*LOG('Grunddaten-IVA'!$N63)+V$12*LOG('Grunddaten-IVA'!$G63)+V$13*LOG('Grunddaten-IVA'!$L63) -> 25.11653354 | W36: =W$10+W$11*LOG('Grunddaten-IVA'!$N63)+W$12*LOG('Grunddaten-IVA'!$G63)+W$13*LOG('Grunddaten-IVA'!$L63) -> 21.56177589 | X36: =X$10+X$11*LOG('Grunddaten-IVA'!$N63)+X$12*LOG('Grunddaten-IVA'!$G63)+X$13*LOG('Grunddaten-IVA'!$L63) -> 22.41978375 | Y36: =Y$10+Y$11*LOG('Grunddaten-IVA'!$N63)+Y$12*LOG('Grunddaten-IVA'!$G63)+Y$13*LOG('Grunddaten-IVA'!$L63) -> 21.96495256 | Z36: =Z$10+Z$11*LOG('Grunddaten-IVA'!$N63)+Z$12*LOG('Grunddaten-IVA'!$G63)+Z$13*LOG('Grunddaten-IVA'!$L63) -> 6.004148258 | AA36: 35.15282746
F37: =F$10+F$11*LOG('Grunddaten-IVA'!$N64)+F$12*LOG('Grunddaten-IVA'!$G64)+F$13*LOG('Grunddaten-IVA'!$L64) -> 22.09048853 | G37: =G$10+G$11*LOG('Grunddaten-IVA'!$N64)+G$12*LOG('Grunddaten-IVA'!$G64)+G$13*LOG('Grunddaten-IVA'!$L64) -> 21.61680762 | H37: =H$10+H$11*LOG('Grunddaten-IVA'!$N64)+H$12*LOG('Grunddaten-IVA'!$G64)+H$13*LOG('Grunddaten-IVA'!$L64) -> 24.39199509 | I37: =I$10+I$11*LOG('Grunddaten-IVA'!$N64)+I$12*LOG('Grunddaten-IVA'!$G64)+I$13*LOG('Grunddaten-IVA'!$L64) -> 27.79447646 | J37: =J$10+J$11*LOG('Grunddaten-IVA'!$N64)+J$12*LOG('Grunddaten-IVA'!$G64)+J$13*LOG('Grunddaten-IVA'!$L64) -> 29.61240832 | K37: =K$10+K$11*LOG('Grunddaten-IVA'!$N64)+K$12*LOG('Grunddaten-IVA'!$G64)+K$13*LOG('Grunddaten-IVA'!$L64) -> 32.33892411 | L37: =L$10+L$11*LOG('Grunddaten-IVA'!$N64)+L$12*LOG('Grunddaten-IVA'!$G64)+L$13*LOG('Grunddaten-IVA'!$L64) -> 34.27432062 | M37: =M$10+M$11*LOG('Grunddaten-IVA'!$N64)+M$12*LOG('Grunddaten-IVA'!$G64)+M$13*LOG('Grunddaten-IVA'!$L64) -> 35.63132322 | N37: =N$10+N$11*LOG('Grunddaten-IVA'!$N64)+N$12*LOG('Grunddaten-IVA'!$G64)+N$13*LOG('Grunddaten-IVA'!$L64) -> 36.24527497 | O37: =O$10+O$11*LOG('Grunddaten-IVA'!$N64)+O$12*LOG('Grunddaten-IVA'!$G64)+O$13*LOG('Grunddaten-IVA'!$L64) -> 36.37726611 | P37: =P$10+P$11*LOG('Grunddaten-IVA'!$N64)+P$12*LOG('Grunddaten-IVA'!$G64)+P$13*LOG('Grunddaten-IVA'!$L64) -> 36.07780972 | Q37: =Q$10+Q$11*LOG('Grunddaten-IVA'!$N64)+Q$12*LOG('Grunddaten-IVA'!$G64)+Q$13*LOG('Grunddaten-IVA'!$L64) -> 34.96930339 | R37: =R$10+R$11*LOG('Grunddaten-IVA'!$N64)+R$12*LOG('Grunddaten-IVA'!$G64)+R$13*LOG('Grunddaten-IVA'!$L64) -> 32.85209049 | S37: =S$10+S$11*LOG('Grunddaten-IVA'!$N64)+S$12*LOG('Grunddaten-IVA'!$G64)+S$13*LOG('Grunddaten-IVA'!$L64) -> 31.01261224 | T37: =T$10+T$11*LOG('Grunddaten-IVA'!$N64)+T$12*LOG('Grunddaten-IVA'!$G64)+T$13*LOG('Grunddaten-IVA'!$L64) -> 33.06039995 | U37: =U$10+U$11*LOG('Grunddaten-IVA'!$N64)+U$12*LOG('Grunddaten-IVA'!$G64)+U$13*LOG('Grunddaten-IVA'!$L64) -> 29.66923998 | V37: =V$10+V$11*LOG('Grunddaten-IVA'!$N64)+V$12*LOG('Grunddaten-IVA'!$G64)+V$13*LOG('Grunddaten-IVA'!$L64) -> 31.19330016 | W37: =W$10+W$11*LOG('Grunddaten-IVA'!$N64)+W$12*LOG('Grunddaten-IVA'!$G64)+W$13*LOG('Grunddaten-IVA'!$L64) -> 27.12441818 | X37: =X$10+X$11*LOG('Grunddaten-IVA'!$N64)+X$12*LOG('Grunddaten-IVA'!$G64)+X$13*LOG('Grunddaten-IVA'!$L64) -> 26.36359689 | Y37: =Y$10+Y$11*LOG('Grunddaten-IVA'!$N64)+Y$12*LOG('Grunddaten-IVA'!$G64)+Y$13*LOG('Grunddaten-IVA'!$L64) -> 24.44754472 | Z37: =Z$10+Z$11*LOG('Grunddaten-IVA'!$N64)+Z$12*LOG('Grunddaten-IVA'!$G64)+Z$13*LOG('Grunddaten-IVA'!$L64) -> 13.67775441 | AA37: 45.39074281
F38: =F$10+F$11*LOG('Grunddaten-IVA'!$N65)+F$12*LOG('Grunddaten-IVA'!$G65)+F$13*LOG('Grunddaten-IVA'!$L65) -> 28.80497668 | G38: =G$10+G$11*LOG('Grunddaten-IVA'!$N65)+G$12*LOG('Grunddaten-IVA'!$G65)+G$13*LOG('Grunddaten-IVA'!$L65) -> 29.0412392 | H38: =H$10+H$11*LOG('Grunddaten-IVA'!$N65)+H$12*LOG('Grunddaten-IVA'!$G65)+H$13*LOG('Grunddaten-IVA'!$L65) -> 31.90806017 | I38: =I$10+I$11*LOG('Grunddaten-IVA'!$N65)+I$12*LOG('Grunddaten-IVA'!$G65)+I$13*LOG('Grunddaten-IVA'!$L65) -> 35.7242925 | J38: =J$10+J$11*LOG('Grunddaten-IVA'!$N65)+J$12*LOG('Grunddaten-IVA'!$G65)+J$13*LOG('Grunddaten-IVA'!$L65) -> 37.595599 | K38: =K$10+K$11*LOG('Grunddaten-IVA'!$N65)+K$12*LOG('Grunddaten-IVA'!$G65)+K$13*LOG('Grunddaten-IVA'!$L65) -> 40.81728423 | L38: =L$10+L$11*LOG('Grunddaten-IVA'!$N65)+L$12*LOG('Grunddaten-IVA'!$G65)+L$13*LOG('Grunddaten-IVA'!$L65) -> 43.01845205 | M38: =M$10+M$11*LOG('Grunddaten-IVA'!$N65)+M$12*LOG('Grunddaten-IVA'!$G65)+M$13*LOG('Grunddaten-IVA'!$L65) -> 44.87561849 | N38: =N$10+N$11*LOG('Grunddaten-IVA'!$N65)+N$12*LOG('Grunddaten-IVA'!$G65)+N$13*LOG('Grunddaten-IVA'!$L65) -> 45.79014985 | O38: =O$10+O$11*LOG('Grunddaten-IVA'!$N65)+O$12*LOG('Grunddaten-IVA'!$G65)+O$13*LOG('Grunddaten-IVA'!$L65) -> 47.06059856 | P38: =P$10+P$11*LOG('Grunddaten-IVA'!$N65)+P$12*LOG('Grunddaten-IVA'!$G65)+P$13*LOG('Grunddaten-IVA'!$L65) -> 47.28902433 | Q38: =Q$10+Q$11*LOG('Grunddaten-IVA'!$N65)+Q$12*LOG('Grunddaten-IVA'!$G65)+Q$13*LOG('Grunddaten-IVA'!$L65) -> 46.4943894 | R38: =R$10+R$11*LOG('Grunddaten-IVA'!$N65)+R$12*LOG('Grunddaten-IVA'!$G65)+R$13*LOG('Grunddaten-IVA'!$L65) -> 44.513253 | S38: =S$10+S$11*LOG('Grunddaten-IVA'!$N65)+S$12*LOG('Grunddaten-IVA'!$G65)+S$13*LOG('Grunddaten-IVA'!$L65) -> 41.60929313 | T38: =T$10+T$11*LOG('Grunddaten-IVA'!$N65)+T$12*LOG('Grunddaten-IVA'!$G65)+T$13*LOG('Grunddaten-IVA'!$L65) -> 41.6186444 | U38: =U$10+U$11*LOG('Grunddaten-IVA'!$N65)+U$12*LOG('Grunddaten-IVA'!$G65)+U$13*LOG('Grunddaten-IVA'!$L65) -> 38.22423979 | V38: =V$10+V$11*LOG('Grunddaten-IVA'!$N65)+V$12*LOG('Grunddaten-IVA'!$G65)+V$13*LOG('Grunddaten-IVA'!$L65) -> 36.49499104 | W38: =W$10+W$11*LOG('Grunddaten-IVA'!$N65)+W$12*LOG('Grunddaten-IVA'!$G65)+W$13*LOG('Grunddaten-IVA'!$L65) -> 31.97755995 | X38: =X$10+X$11*LOG('Grunddaten-IVA'!$N65)+X$12*LOG('Grunddaten-IVA'!$G65)+X$13*LOG('Grunddaten-IVA'!$L65) -> 29.80438695 | Y38: =Y$10+Y$11*LOG('Grunddaten-IVA'!$N65)+Y$12*LOG('Grunddaten-IVA'!$G65)+Y$13*LOG('Grunddaten-IVA'!$L65) -> 26.61348873 | Z38: =Z$10+Z$11*LOG('Grunddaten-IVA'!$N65)+Z$12*LOG('Grunddaten-IVA'!$G65)+Z$13*LOG('Grunddaten-IVA'!$L65) -> 20.3726121 | AA38: 55.23548344
F39: =F$10+F$11*LOG('Grunddaten-IVA'!$N66)+F$12*LOG('Grunddaten-IVA'!$G66)+F$13*LOG('Grunddaten-IVA'!$L66) -> 13.64354306 | G39: =G$10+G$11*LOG('Grunddaten-IVA'!$N66)+G$12*LOG('Grunddaten-IVA'!$G66)+G$13*LOG('Grunddaten-IVA'!$L66) -> 11.62384648 | H39: =H$10+H$11*LOG('Grunddaten-IVA'!$N66)+H$12*LOG('Grunddaten-IVA'!$G66)+H$13*LOG('Grunddaten-IVA'!$L66) -> 14.06397697 | I39: =I$10+I$11*LOG('Grunddaten-IVA'!$N66)+I$12*LOG('Grunddaten-IVA'!$G66)+I$13*LOG('Grunddaten-IVA'!$L66) -> 17.50513934 | J39: =J$10+J$11*LOG('Grunddaten-IVA'!$N66)+J$12*LOG('Grunddaten-IVA'!$G66)+J$13*LOG('Grunddaten-IVA'!$L66) -> 19.27868375 | K39: =K$10+K$11*LOG('Grunddaten-IVA'!$N66)+K$12*LOG('Grunddaten-IVA'!$G66)+K$13*LOG('Grunddaten-IVA'!$L66) -> 21.62830672 | L39: =L$10+L$11*LOG('Grunddaten-IVA'!$N66)+L$12*LOG('Grunddaten-IVA'!$G66)+L$13*LOG('Grunddaten-IVA'!$L66) -> 23.31024776 | M39: =M$10+M$11*LOG('Grunddaten-IVA'!$N66)+M$12*LOG('Grunddaten-IVA'!$G66)+M$13*LOG('Grunddaten-IVA'!$L66) -> 24.08802096 | N39: =N$10+N$11*LOG('Grunddaten-IVA'!$N66)+N$12*LOG('Grunddaten-IVA'!$G66)+N$13*LOG('Grunddaten-IVA'!$L66) -> 24.33575579 | O39: =O$10+O$11*LOG('Grunddaten-IVA'!$N66)+O$12*LOG('Grunddaten-IVA'!$G66)+O$13*LOG('Grunddaten-IVA'!$L66) -> 23.3573294 | P39: =P$10+P$11*LOG('Grunddaten-IVA'!$N66)+P$12*LOG('Grunddaten-IVA'!$G66)+P$13*LOG('Grunddaten-IVA'!$L66) -> 22.58851066 | Q39: =Q$10+Q$11*LOG('Grunddaten-IVA'!$N66)+Q$12*LOG('Grunddaten-IVA'!$G66)+Q$13*LOG('Grunddaten-IVA'!$L66) -> 21.23538309 | R39: =R$10+R$11*LOG('Grunddaten-IVA'!$N66)+R$12*LOG('Grunddaten-IVA'!$G66)+R$13*LOG('Grunddaten-IVA'!$L66) -> 18.8854029 | S39: =S$10+S$11*LOG('Grunddaten-IVA'!$N66)+S$12*LOG('Grunddaten-IVA'!$G66)+S$13*LOG('Grunddaten-IVA'!$L66) -> 17.66069077 | T39: =T$10+T$11*LOG('Grunddaten-IVA'!$N66)+T$12*LOG('Grunddaten-IVA'!$G66)+T$13*LOG('Grunddaten-IVA'!$L66) -> 23.60195095 | U39: =U$10+U$11*LOG('Grunddaten-IVA'!$N66)+U$12*LOG('Grunddaten-IVA'!$G66)+U$13*LOG('Grunddaten-IVA'!$L66) -> 19.50828915 | V39: =V$10+V$11*LOG('Grunddaten-IVA'!$N66)+V$12*LOG('Grunddaten-IVA'!$G66)+V$13*LOG('Grunddaten-IVA'!$L66) -> 26.33106371 | W39: =W$10+W$11*LOG('Grunddaten-IVA'!$N66)+W$12*LOG('Grunddaten-IVA'!$G66)+W$13*LOG('Grunddaten-IVA'!$L66) -> 22.35643341 | X39: =X$10+X$11*LOG('Grunddaten-IVA'!$N66)+X$12*LOG('Grunddaten-IVA'!$G66)+X$13*LOG('Grunddaten-IVA'!$L66) -> 23.58878813 | Y39: =Y$10+Y$11*LOG('Grunddaten-IVA'!$N66)+Y$12*LOG('Grunddaten-IVA'!$G66)+Y$13*LOG('Grunddaten-IVA'!$L66) -> 23.02969248 | Z39: =Z$10+Z$11*LOG('Grunddaten-IVA'!$N66)+Z$12*LOG('Grunddaten-IVA'!$G66)+Z$13*LOG('Grunddaten-IVA'!$L66) -> -1.252654368 | AA39: 34.92582298
F40: =F$10+F$11*LOG('Grunddaten-IVA'!$N67)+F$12*LOG('Grunddaten-IVA'!$G67)+F$13*LOG('Grunddaten-IVA'!$L67) -> 21.41552623 | G40: =G$10+G$11*LOG('Grunddaten-IVA'!$N67)+G$12*LOG('Grunddaten-IVA'!$G67)+G$13*LOG('Grunddaten-IVA'!$L67) -> 20.21758527 | H40: =H$10+H$11*LOG('Grunddaten-IVA'!$N67)+H$12*LOG('Grunddaten-IVA'!$G67)+H$13*LOG('Grunddaten-IVA'!$L67) -> 22.76378104 | I40: =I$10+I$11*LOG('Grunddaten-IVA'!$N67)+I$12*LOG('Grunddaten-IVA'!$G67)+I$13*LOG('Grunddaten-IVA'!$L67) -> 26.68385787 | J40: =J$10+J$11*LOG('Grunddaten-IVA'!$N67)+J$12*LOG('Grunddaten-IVA'!$G67)+J$13*LOG('Grunddaten-IVA'!$L67) -> 28.51918313 | K40: =K$10+K$11*LOG('Grunddaten-IVA'!$N67)+K$12*LOG('Grunddaten-IVA'!$G67)+K$13*LOG('Grunddaten-IVA'!$L67) -> 31.44196202 | L40: =L$10+L$11*LOG('Grunddaten-IVA'!$N67)+L$12*LOG('Grunddaten-IVA'!$G67)+L$13*LOG('Grunddaten-IVA'!$L67) -> 33.43153189 | M40: =M$10+M$11*LOG('Grunddaten-IVA'!$N67)+M$12*LOG('Grunddaten-IVA'!$G67)+M$13*LOG('Grunddaten-IVA'!$L67) -> 34.78824198 | N40: =N$10+N$11*LOG('Grunddaten-IVA'!$N67)+N$12*LOG('Grunddaten-IVA'!$G67)+N$13*LOG('Grunddaten-IVA'!$L67) -> 35.38389606 | O40: =O$10+O$11*LOG('Grunddaten-IVA'!$N67)+O$12*LOG('Grunddaten-IVA'!$G67)+O$13*LOG('Grunddaten-IVA'!$L67) -> 35.72322806 | P40: =P$10+P$11*LOG('Grunddaten-IVA'!$N67)+P$12*LOG('Grunddaten-IVA'!$G67)+P$13*LOG('Grunddaten-IVA'!$L67) -> 35.56543003 | Q40: =Q$10+Q$11*LOG('Grunddaten-IVA'!$N67)+Q$12*LOG('Grunddaten-IVA'!$G67)+Q$13*LOG('Grunddaten-IVA'!$L67) -> 34.57560688 | R40: =R$10+R$11*LOG('Grunddaten-IVA'!$N67)+R$12*LOG('Grunddaten-IVA'!$G67)+R$13*LOG('Grunddaten-IVA'!$L67) -> 32.38313449 | S40: =S$10+S$11*LOG('Grunddaten-IVA'!$N67)+S$12*LOG('Grunddaten-IVA'!$G67)+S$13*LOG('Grunddaten-IVA'!$L67) -> 29.92629073 | T40: =T$10+T$11*LOG('Grunddaten-IVA'!$N67)+T$12*LOG('Grunddaten-IVA'!$G67)+T$13*LOG('Grunddaten-IVA'!$L67) -> 33.50807192 | U40: =U$10+U$11*LOG('Grunddaten-IVA'!$N67)+U$12*LOG('Grunddaten-IVA'!$G67)+U$13*LOG('Grunddaten-IVA'!$L67) -> 29.41065446 | V40: =V$10+V$11*LOG('Grunddaten-IVA'!$N67)+V$12*LOG('Grunddaten-IVA'!$G67)+V$13*LOG('Grunddaten-IVA'!$L67) -> 32.4677418 | W40: =W$10+W$11*LOG('Grunddaten-IVA'!$N67)+W$12*LOG('Grunddaten-IVA'!$G67)+W$13*LOG('Grunddaten-IVA'!$L67) -> 27.97391837 | X40: =X$10+X$11*LOG('Grunddaten-IVA'!$N67)+X$12*LOG('Grunddaten-IVA'!$G67)+X$13*LOG('Grunddaten-IVA'!$L67) -> 27.57148373 | Y40: =Y$10+Y$11*LOG('Grunddaten-IVA'!$N67)+Y$12*LOG('Grunddaten-IVA'!$G67)+Y$13*LOG('Grunddaten-IVA'!$L67) -> 25.53676078 | Z40: =Z$10+Z$11*LOG('Grunddaten-IVA'!$N67)+Z$12*LOG('Grunddaten-IVA'!$G67)+Z$13*LOG('Grunddaten-IVA'!$L67) -> 6.496606654 | AA40: 44.91854069
F41: =F$10+F$11*LOG('Grunddaten-IVA'!$N68)+F$12*LOG('Grunddaten-IVA'!$G68)+F$13*LOG('Grunddaten-IVA'!$L68) -> 28.40400791 | G41: =G$10+G$11*LOG('Grunddaten-IVA'!$N68)+G$12*LOG('Grunddaten-IVA'!$G68)+G$13*LOG('Grunddaten-IVA'!$L68) -> 27.94498056 | H41: =H$10+H$11*LOG('Grunddaten-IVA'!$N68)+H$12*LOG('Grunddaten-IVA'!$G68)+H$13*LOG('Grunddaten-IVA'!$L68) -> 30.58654906 | I41: =I$10+I$11*LOG('Grunddaten-IVA'!$N68)+I$12*LOG('Grunddaten-IVA'!$G68)+I$13*LOG('Grunddaten-IVA'!$L68) -> 34.93726051 | J41: =J$10+J$11*LOG('Grunddaten-IVA'!$N68)+J$12*LOG('Grunddaten-IVA'!$G68)+J$13*LOG('Grunddaten-IVA'!$L68) -> 36.82813842 | K41: =K$10+K$11*LOG('Grunddaten-IVA'!$N68)+K$12*LOG('Grunddaten-IVA'!$G68)+K$13*LOG('Grunddaten-IVA'!$L68) -> 40.26629279 | L41: =L$10+L$11*LOG('Grunddaten-IVA'!$N68)+L$12*LOG('Grunddaten-IVA'!$G68)+L$13*LOG('Grunddaten-IVA'!$L68) -> 42.53247913 | M41: =M$10+M$11*LOG('Grunddaten-IVA'!$N68)+M$12*LOG('Grunddaten-IVA'!$G68)+M$13*LOG('Grunddaten-IVA'!$L68) -> 44.40976289 | N41: =N$10+N$11*LOG('Grunddaten-IVA'!$N68)+N$12*LOG('Grunddaten-IVA'!$G68)+N$13*LOG('Grunddaten-IVA'!$L68) -> 45.31826213 | O41: =O$10+O$11*LOG('Grunddaten-IVA'!$N68)+O$12*LOG('Grunddaten-IVA'!$G68)+O$13*LOG('Grunddaten-IVA'!$L68) -> 46.84250796 | P41: =P$10+P$11*LOG('Grunddaten-IVA'!$N68)+P$12*LOG('Grunddaten-IVA'!$G68)+P$13*LOG('Grunddaten-IVA'!$L68) -> 47.23413303 | Q41: =Q$10+Q$11*LOG('Grunddaten-IVA'!$N68)+Q$12*LOG('Grunddaten-IVA'!$G68)+Q$13*LOG('Grunddaten-IVA'!$L68) -> 46.5709892 | R41: =R$10+R$11*LOG('Grunddaten-IVA'!$N68)+R$12*LOG('Grunddaten-IVA'!$G68)+R$13*LOG('Grunddaten-IVA'!$L68) -> 44.52014609 | S41: =S$10+S$11*LOG('Grunddaten-IVA'!$N68)+S$12*LOG('Grunddaten-IVA'!$G68)+S$13*LOG('Grunddaten-IVA'!$L68) -> 40.95538314 | T41: =T$10+T$11*LOG('Grunddaten-IVA'!$N68)+T$12*LOG('Grunddaten-IVA'!$G68)+T$13*LOG('Grunddaten-IVA'!$L68) -> 42.4155468 | U41: =U$10+U$11*LOG('Grunddaten-IVA'!$N68)+U$12*LOG('Grunddaten-IVA'!$G68)+U$13*LOG('Grunddaten-IVA'!$L68) -> 38.3147523 | V41: =V$10+V$11*LOG('Grunddaten-IVA'!$N68)+V$12*LOG('Grunddaten-IVA'!$G68)+V$13*LOG('Grunddaten-IVA'!$L68) -> 37.98577515 | W41: =W$10+W$11*LOG('Grunddaten-IVA'!$N68)+W$12*LOG('Grunddaten-IVA'!$G68)+W$13*LOG('Grunddaten-IVA'!$L68) -> 33.02509897 | X41: =X$10+X$11*LOG('Grunddaten-IVA'!$N68)+X$12*LOG('Grunddaten-IVA'!$G68)+X$13*LOG('Grunddaten-IVA'!$L68) -> 31.15267976 | Y41: =Y$10+Y$11*LOG('Grunddaten-IVA'!$N68)+Y$12*LOG('Grunddaten-IVA'!$G68)+Y$13*LOG('Grunddaten-IVA'!$L68) -> 27.79108899 | Z41: =Z$10+Z$11*LOG('Grunddaten-IVA'!$N68)+Z$12*LOG('Grunddaten-IVA'!$G68)+Z$13*LOG('Grunddaten-IVA'!$L68) -> 13.46465683 | AA41: 55.0843617
F42: =F$10+F$11*LOG('Grunddaten-IVA'!$N69)+F$12*LOG('Grunddaten-IVA'!$G69)+F$13*LOG('Grunddaten-IVA'!$L69) -> 13.18607406 | G42: =G$10+G$11*LOG('Grunddaten-IVA'!$N69)+G$12*LOG('Grunddaten-IVA'!$G69)+G$13*LOG('Grunddaten-IVA'!$L69) -> 10.53397411 | H42: =H$10+H$11*LOG('Grunddaten-IVA'!$N69)+H$12*LOG('Grunddaten-IVA'!$G69)+H$13*LOG('Grunddaten-IVA'!$L69) -> 12.7712612 | I42: =I$10+I$11*LOG('Grunddaten-IVA'!$N69)+I$12*LOG('Grunddaten-IVA'!$G69)+I$13*LOG('Grunddaten-IVA'!$L69) -> 16.6844439 | J42: =J$10+J$11*LOG('Grunddaten-IVA'!$N69)+J$12*LOG('Grunddaten-IVA'!$G69)+J$13*LOG('Grunddaten-IVA'!$L69) -> 18.47471024 | K42: =K$10+K$11*LOG('Grunddaten-IVA'!$N69)+K$12*LOG('Grunddaten-IVA'!$G69)+K$13*LOG('Grunddaten-IVA'!$L69) -> 21.01068603 | L42: =L$10+L$11*LOG('Grunddaten-IVA'!$N69)+L$12*LOG('Grunddaten-IVA'!$G69)+L$13*LOG('Grunddaten-IVA'!$L69) -> 22.74687783 | M42: =M$10+M$11*LOG('Grunddaten-IVA'!$N69)+M$12*LOG('Grunddaten-IVA'!$G69)+M$13*LOG('Grunddaten-IVA'!$L69) -> 23.53528769 | N42: =N$10+N$11*LOG('Grunddaten-IVA'!$N69)+N$12*LOG('Grunddaten-IVA'!$G69)+N$13*LOG('Grunddaten-IVA'!$L69) -> 23.77320417 | O42: =O$10+O$11*LOG('Grunddaten-IVA'!$N69)+O$12*LOG('Grunddaten-IVA'!$G69)+O$13*LOG('Grunddaten-IVA'!$L69) -> 23.00505692 | P42: =P$10+P$11*LOG('Grunddaten-IVA'!$N69)+P$12*LOG('Grunddaten-IVA'!$G69)+P$13*LOG('Grunddaten-IVA'!$L69) -> 22.3744582 | Q42: =Q$10+Q$11*LOG('Grunddaten-IVA'!$N69)+Q$12*LOG('Grunddaten-IVA'!$G69)+Q$13*LOG('Grunddaten-IVA'!$L69) -> 21.13433545 | R42: =R$10+R$11*LOG('Grunddaten-IVA'!$N69)+R$12*LOG('Grunddaten-IVA'!$G69)+R$13*LOG('Grunddaten-IVA'!$L69) -> 18.71999839 | S42: =S$10+S$11*LOG('Grunddaten-IVA'!$N69)+S$12*LOG('Grunddaten-IVA'!$G69)+S$13*LOG('Grunddaten-IVA'!$L69) -> 16.91983947 | T42: =T$10+T$11*LOG('Grunddaten-IVA'!$N69)+T$12*LOG('Grunddaten-IVA'!$G69)+T$13*LOG('Grunddaten-IVA'!$L69) -> 24.18888705 | U42: =U$10+U$11*LOG('Grunddaten-IVA'!$N69)+U$12*LOG('Grunddaten-IVA'!$G69)+U$13*LOG('Grunddaten-IVA'!$L69) -> 19.4633857 | V42: =V$10+V$11*LOG('Grunddaten-IVA'!$N69)+V$12*LOG('Grunddaten-IVA'!$G69)+V$13*LOG('Grunddaten-IVA'!$L69) -> 27.58661181 | W42: =W$10+W$11*LOG('Grunddaten-IVA'!$N69)+W$12*LOG('Grunddaten-IVA'!$G69)+W$13*LOG('Grunddaten-IVA'!$L69) -> 23.22208477 | X42: =X$10+X$11*LOG('Grunddaten-IVA'!$N69)+X$12*LOG('Grunddaten-IVA'!$G69)+X$13*LOG('Grunddaten-IVA'!$L69) -> 24.74425283 | Y42: =Y$10+Y$11*LOG('Grunddaten-IVA'!$N69)+Y$12*LOG('Grunddaten-IVA'!$G69)+Y$13*LOG('Grunddaten-IVA'!$L69) -> 24.05122429 | Z42: =Z$10+Z$11*LOG('Grunddaten-IVA'!$N69)+Z$12*LOG('Grunddaten-IVA'!$G69)+Z$13*LOG('Grunddaten-IVA'!$L69) -> -7.530532313 | AA42: 35.131534
F43: =F$10+F$11*LOG('Grunddaten-IVA'!$N70)+F$12*LOG('Grunddaten-IVA'!$G70)+F$13*LOG('Grunddaten-IVA'!$L70) -> 21.40246639 | G43: =G$10+G$11*LOG('Grunddaten-IVA'!$N70)+G$12*LOG('Grunddaten-IVA'!$G70)+G$13*LOG('Grunddaten-IVA'!$L70) -> 19.61911081 | H43: =H$10+H$11*LOG('Grunddaten-IVA'!$N70)+H$12*LOG('Grunddaten-IVA'!$G70)+H$13*LOG('Grunddaten-IVA'!$L70) -> 21.96852809 | I43: =I$10+I$11*LOG('Grunddaten-IVA'!$N70)+I$12*LOG('Grunddaten-IVA'!$G70)+I$13*LOG('Grunddaten-IVA'!$L70) -> 26.38801003 | J43: =J$10+J$11*LOG('Grunddaten-IVA'!$N70)+J$12*LOG('Grunddaten-IVA'!$G70)+J$13*LOG('Grunddaten-IVA'!$L70) -> 28.2435899 | K43: =K$10+K$11*LOG('Grunddaten-IVA'!$N70)+K$12*LOG('Grunddaten-IVA'!$G70)+K$13*LOG('Grunddaten-IVA'!$L70) -> 31.38549518 | L43: =L$10+L$11*LOG('Grunddaten-IVA'!$N70)+L$12*LOG('Grunddaten-IVA'!$G70)+L$13*LOG('Grunddaten-IVA'!$L70) -> 33.44690631 | M43: =M$10+M$11*LOG('Grunddaten-IVA'!$N70)+M$12*LOG('Grunddaten-IVA'!$G70)+M$13*LOG('Grunddaten-IVA'!$L70) -> 34.84735721 | N43: =N$10+N$11*LOG('Grunddaten-IVA'!$N70)+N$12*LOG('Grunddaten-IVA'!$G70)+N$13*LOG('Grunddaten-IVA'!$L70) -> 35.45308729 | O43: =O$10+O$11*LOG('Grunddaten-IVA'!$N70)+O$12*LOG('Grunddaten-IVA'!$G70)+O$13*LOG('Grunddaten-IVA'!$L70) -> 36.07804907 | P43: =P$10+P$11*LOG('Grunddaten-IVA'!$N70)+P$12*LOG('Grunddaten-IVA'!$G70)+P$13*LOG('Grunddaten-IVA'!$L70) -> 36.09340978 | Q43: =Q$10+Q$11*LOG('Grunddaten-IVA'!$N70)+Q$12*LOG('Grunddaten-IVA'!$G70)+Q$13*LOG('Grunddaten-IVA'!$L70) -> 35.23736553 | R43: =R$10+R$11*LOG('Grunddaten-IVA'!$N70)+R$12*LOG('Grunddaten-IVA'!$G70)+R$13*LOG('Grunddaten-IVA'!$L70) -> 32.98954271 | S43: =S$10+S$11*LOG('Grunddaten-IVA'!$N70)+S$12*LOG('Grunddaten-IVA'!$G70)+S$13*LOG('Grunddaten-IVA'!$L70) -> 29.88679773 | T43: =T$10+T$11*LOG('Grunddaten-IVA'!$N70)+T$12*LOG('Grunddaten-IVA'!$G70)+T$13*LOG('Grunddaten-IVA'!$L70) -> 34.66144915 | U43: =U$10+U$11*LOG('Grunddaten-IVA'!$N70)+U$12*LOG('Grunddaten-IVA'!$G70)+U$13*LOG('Grunddaten-IVA'!$L70) -> 29.93197739 | V43: =V$10+V$11*LOG('Grunddaten-IVA'!$N70)+V$12*LOG('Grunddaten-IVA'!$G70)+V$13*LOG('Grunddaten-IVA'!$L70) -> 34.0741908 | W43: =W$10+W$11*LOG('Grunddaten-IVA'!$N70)+W$12*LOG('Grunddaten-IVA'!$G70)+W$13*LOG('Grunddaten-IVA'!$L70) -> 29.16078269 | X43: =X$10+X$11*LOG('Grunddaten-IVA'!$N70)+X$12*LOG('Grunddaten-IVA'!$G70)+X$13*LOG('Grunddaten-IVA'!$L70) -> 28.95468264 | Y43: =Y$10+Y$11*LOG('Grunddaten-IVA'!$N70)+Y$12*LOG('Grunddaten-IVA'!$G70)+Y$13*LOG('Grunddaten-IVA'!$L70) -> 26.70164906 | Z43: =Z$10+Z$11*LOG('Grunddaten-IVA'!$N70)+Z$12*LOG('Grunddaten-IVA'!$G70)+Z$13*LOG('Grunddaten-IVA'!$L70) -> 0.6618385967 | AA43: 45.39199845
F44: =F$10+F$11*LOG('Grunddaten-IVA'!$N71)+F$12*LOG('Grunddaten-IVA'!$G71)+F$13*LOG('Grunddaten-IVA'!$L71) -> 28.11695454 | G44: =G$10+G$11*LOG('Grunddaten-IVA'!$N71)+G$12*LOG('Grunddaten-IVA'!$G71)+G$13*LOG('Grunddaten-IVA'!$L71) -> 27.04354239 | H44: =H$10+H$11*LOG('Grunddaten-IVA'!$N71)+H$12*LOG('Grunddaten-IVA'!$G71)+H$13*LOG('Grunddaten-IVA'!$L71) -> 29.48459317 | I44: =I$10+I$11*LOG('Grunddaten-IVA'!$N71)+I$12*LOG('Grunddaten-IVA'!$G71)+I$13*LOG('Grunddaten-IVA'!$L71) -> 34.31782607 | J44: =J$10+J$11*LOG('Grunddaten-IVA'!$N71)+J$12*LOG('Grunddaten-IVA'!$G71)+J$13*LOG('Grunddaten-IVA'!$L71) -> 36.22678058 | K44: =K$10+K$11*LOG('Grunddaten-IVA'!$N71)+K$12*LOG('Grunddaten-IVA'!$G71)+K$13*LOG('Grunddaten-IVA'!$L71) -> 39.8638553 | L44: =L$10+L$11*LOG('Grunddaten-IVA'!$N71)+L$12*LOG('Grunddaten-IVA'!$G71)+L$13*LOG('Grunddaten-IVA'!$L71) -> 42.19103775 | M44: =M$10+M$11*LOG('Grunddaten-IVA'!$N71)+M$12*LOG('Grunddaten-IVA'!$G71)+M$13*LOG('Grunddaten-IVA'!$L71) -> 44.09165248 | N44: =N$10+N$11*LOG('Grunddaten-IVA'!$N71)+N$12*LOG('Grunddaten-IVA'!$G71)+N$13*LOG('Grunddaten-IVA'!$L71) -> 44.99796216 | O44: =O$10+O$11*LOG('Grunddaten-IVA'!$N71)+O$12*LOG('Grunddaten-IVA'!$G71)+O$13*LOG('Grunddaten-IVA'!$L71) -> 46.76138151 | P44: =P$10+P$11*LOG('Grunddaten-IVA'!$N71)+P$12*LOG('Grunddaten-IVA'!$G71)+P$13*LOG('Grunddaten-IVA'!$L71) -> 47.3046244 | Q44: =Q$10+Q$11*LOG('Grunddaten-IVA'!$N71)+Q$12*LOG('Grunddaten-IVA'!$G71)+Q$13*LOG('Grunddaten-IVA'!$L71) -> 46.76245154 | R44: =R$10+R$11*LOG('Grunddaten-IVA'!$N71)+R$12*LOG('Grunddaten-IVA'!$G71)+R$13*LOG('Grunddaten-IVA'!$L71) -> 44.65070522 | S44: =S$10+S$11*LOG('Grunddaten-IVA'!$N71)+S$12*LOG('Grunddaten-IVA'!$G71)+S$13*LOG('Grunddaten-IVA'!$L71) -> 40.48347862 | T44: =T$10+T$11*LOG('Grunddaten-IVA'!$N71)+T$12*LOG('Grunddaten-IVA'!$G71)+T$13*LOG('Grunddaten-IVA'!$L71) -> 43.2196936 | U44: =U$10+U$11*LOG('Grunddaten-IVA'!$N71)+U$12*LOG('Grunddaten-IVA'!$G71)+U$13*LOG('Grunddaten-IVA'!$L71) -> 38.48697719 | V44: =V$10+V$11*LOG('Grunddaten-IVA'!$N71)+V$12*LOG('Grunddaten-IVA'!$G71)+V$13*LOG('Grunddaten-IVA'!$L71) -> 39.37588168 | W44: =W$10+W$11*LOG('Grunddaten-IVA'!$N71)+W$12*LOG('Grunddaten-IVA'!$G71)+W$13*LOG('Grunddaten-IVA'!$L71) -> 34.01392446 | X44: =X$10+X$11*LOG('Grunddaten-IVA'!$N71)+X$12*LOG('Grunddaten-IVA'!$G71)+X$13*LOG('Grunddaten-IVA'!$L71) -> 32.39547269 | Y44: =Y$10+Y$11*LOG('Grunddaten-IVA'!$N71)+Y$12*LOG('Grunddaten-IVA'!$G71)+Y$13*LOG('Grunddaten-IVA'!$L71) -> 28.86759307 | Z44: =Z$10+Z$11*LOG('Grunddaten-IVA'!$N71)+Z$12*LOG('Grunddaten-IVA'!$G71)+Z$13*LOG('Grunddaten-IVA'!$L71) -> 7.356696285 | AA44: 55.09473852
F45: =F$10+F$11*LOG('Grunddaten-IVA'!$N72)+F$12*LOG('Grunddaten-IVA'!$G72)+F$13*LOG('Grunddaten-IVA'!$L72) -> 12.48232341 | G45: =G$10+G$11*LOG('Grunddaten-IVA'!$N72)+G$12*LOG('Grunddaten-IVA'!$G72)+G$13*LOG('Grunddaten-IVA'!$L72) -> 9.127610875 | H45: =H$10+H$11*LOG('Grunddaten-IVA'!$N72)+H$12*LOG('Grunddaten-IVA'!$G72)+H$13*LOG('Grunddaten-IVA'!$L72) -> 11.1438251 | I45: =I$10+I$11*LOG('Grunddaten-IVA'!$N72)+I$12*LOG('Grunddaten-IVA'!$G72)+I$13*LOG('Grunddaten-IVA'!$L72) -> 15.55168182 | J45: =J$10+J$11*LOG('Grunddaten-IVA'!$N72)+J$12*LOG('Grunddaten-IVA'!$G72)+J$13*LOG('Grunddaten-IVA'!$L72) -> 17.35825202 | K45: =K$10+K$11*LOG('Grunddaten-IVA'!$N72)+K$12*LOG('Grunddaten-IVA'!$G72)+K$13*LOG('Grunddaten-IVA'!$L72) -> 20.07906309 | L45: =L$10+L$11*LOG('Grunddaten-IVA'!$N72)+L$12*LOG('Grunddaten-IVA'!$G72)+L$13*LOG('Grunddaten-IVA'!$L72) -> 21.86522965 | M45: =M$10+M$11*LOG('Grunddaten-IVA'!$N72)+M$12*LOG('Grunddaten-IVA'!$G72)+M$13*LOG('Grunddaten-IVA'!$L72) -> 22.64931218 | N45: =N$10+N$11*LOG('Grunddaten-IVA'!$N72)+N$12*LOG('Grunddaten-IVA'!$G72)+N$13*LOG('Grunddaten-IVA'!$L72) -> 22.86719156 | O45: =O$10+O$11*LOG('Grunddaten-IVA'!$N72)+O$12*LOG('Grunddaten-IVA'!$G72)+O$13*LOG('Grunddaten-IVA'!$L72) -> 22.28933479 | P45: =P$10+P$11*LOG('Grunddaten-IVA'!$N72)+P$12*LOG('Grunddaten-IVA'!$G72)+P$13*LOG('Grunddaten-IVA'!$L72) -> 21.79076706 | Q45: =Q$10+Q$11*LOG('Grunddaten-IVA'!$N72)+Q$12*LOG('Grunddaten-IVA'!$G72)+Q$13*LOG('Grunddaten-IVA'!$L72) -> 20.66230015 | R45: =R$10+R$11*LOG('Grunddaten-IVA'!$N72)+R$12*LOG('Grunddaten-IVA'!$G72)+R$13*LOG('Grunddaten-IVA'!$L72) -> 18.17444904 | S45: =S$10+S$11*LOG('Grunddaten-IVA'!$N72)+S$12*LOG('Grunddaten-IVA'!$G72)+S$13*LOG('Grunddaten-IVA'!$L72) -> 15.78888302 | T45: =T$10+T$11*LOG('Grunddaten-IVA'!$N72)+T$12*LOG('Grunddaten-IVA'!$G72)+T$13*LOG('Grunddaten-IVA'!$L72) -> 24.55040025 | U45: =U$10+U$11*LOG('Grunddaten-IVA'!$N72)+U$12*LOG('Grunddaten-IVA'!$G72)+U$13*LOG('Grunddaten-IVA'!$L72) -> 19.14537708 | V45: =V$10+V$11*LOG('Grunddaten-IVA'!$N72)+V$12*LOG('Grunddaten-IVA'!$G72)+V$13*LOG('Grunddaten-IVA'!$L72) -> 28.7699703 | W45: =W$10+W$11*LOG('Grunddaten-IVA'!$N72)+W$12*LOG('Grunddaten-IVA'!$G72)+W$13*LOG('Grunddaten-IVA'!$L72) -> 24.00020072 | X45: =X$10+X$11*LOG('Grunddaten-IVA'!$N72)+X$12*LOG('Grunddaten-IVA'!$G72)+X$13*LOG('Grunddaten-IVA'!$L72) -> 25.87862655 | Y45: =Y$10+Y$11*LOG('Grunddaten-IVA'!$N72)+Y$12*LOG('Grunddaten-IVA'!$G72)+Y$13*LOG('Grunddaten-IVA'!$L72) -> 25.08172752 | Z45: =Z$10+Z$11*LOG('Grunddaten-IVA'!$N72)+Z$12*LOG('Grunddaten-IVA'!$G72)+Z$13*LOG('Grunddaten-IVA'!$L72) -> -14.49425695 | AA45: 35.29434046
F46: =F$10+F$11*LOG('Grunddaten-IVA'!$N73)+F$12*LOG('Grunddaten-IVA'!$G73)+F$13*LOG('Grunddaten-IVA'!$L73) -> 20.77416215 | G46: =G$10+G$11*LOG('Grunddaten-IVA'!$N73)+G$12*LOG('Grunddaten-IVA'!$G73)+G$13*LOG('Grunddaten-IVA'!$L73) -> 18.29617116 | H46: =H$10+H$11*LOG('Grunddaten-IVA'!$N73)+H$12*LOG('Grunddaten-IVA'!$G73)+H$13*LOG('Grunddaten-IVA'!$L73) -> 20.42554519 | I46: =I$10+I$11*LOG('Grunddaten-IVA'!$N73)+I$12*LOG('Grunddaten-IVA'!$G73)+I$13*LOG('Grunddaten-IVA'!$L73) -> 25.34435021 | J46: =J$10+J$11*LOG('Grunddaten-IVA'!$N73)+J$12*LOG('Grunddaten-IVA'!$G73)+J$13*LOG('Grunddaten-IVA'!$L73) -> 27.21683367 | K46: =K$10+K$11*LOG('Grunddaten-IVA'!$N73)+K$12*LOG('Grunddaten-IVA'!$G73)+K$13*LOG('Grunddaten-IVA'!$L73) -> 30.54913813 | L46: =L$10+L$11*LOG('Grunddaten-IVA'!$N73)+L$12*LOG('Grunddaten-IVA'!$G73)+L$13*LOG('Grunddaten-IVA'!$L73) -> 32.66351034 | M46: =M$10+M$11*LOG('Grunddaten-IVA'!$N73)+M$12*LOG('Grunddaten-IVA'!$G73)+M$13*LOG('Grunddaten-IVA'!$L73) -> 34.06525393 | N46: =N$10+N$11*LOG('Grunddaten-IVA'!$N73)+N$12*LOG('Grunddaten-IVA'!$G73)+N$13*LOG('Grunddaten-IVA'!$L73) -> 34.65432432 | O46: =O$10+O$11*LOG('Grunddaten-IVA'!$N73)+O$12*LOG('Grunddaten-IVA'!$G73)+O$13*LOG('Grunddaten-IVA'!$L73) -> 35.48236869 | P46: =P$10+P$11*LOG('Grunddaten-IVA'!$N73)+P$12*LOG('Grunddaten-IVA'!$G73)+P$13*LOG('Grunddaten-IVA'!$L73) -> 35.63569187 | Q46: =Q$10+Q$11*LOG('Grunddaten-IVA'!$N73)+Q$12*LOG('Grunddaten-IVA'!$G73)+Q$13*LOG('Grunddaten-IVA'!$L73) -> 34.89483023 | R46: =R$10+R$11*LOG('Grunddaten-IVA'!$N73)+R$12*LOG('Grunddaten-IVA'!$G73)+R$13*LOG('Grunddaten-IVA'!$L73) -> 32.57502238 | S46: =S$10+S$11*LOG('Grunddaten-IVA'!$N73)+S$12*LOG('Grunddaten-IVA'!$G73)+S$13*LOG('Grunddaten-IVA'!$L73) -> 28.87490939 | T46: =T$10+T$11*LOG('Grunddaten-IVA'!$N73)+T$12*LOG('Grunddaten-IVA'!$G73)+T$13*LOG('Grunddaten-IVA'!$L73) -> 35.11912585 | U46: =U$10+U$11*LOG('Grunddaten-IVA'!$N73)+U$12*LOG('Grunddaten-IVA'!$G73)+U$13*LOG('Grunddaten-IVA'!$L73) -> 29.71009581 | V46: =V$10+V$11*LOG('Grunddaten-IVA'!$N73)+V$12*LOG('Grunddaten-IVA'!$G73)+V$13*LOG('Grunddaten-IVA'!$L73) -> 35.31712099 | W46: =W$10+W$11*LOG('Grunddaten-IVA'!$N73)+W$12*LOG('Grunddaten-IVA'!$G73)+W$13*LOG('Grunddaten-IVA'!$L73) -> 29.99343029 | X46: =X$10+X$11*LOG('Grunddaten-IVA'!$N73)+X$12*LOG('Grunddaten-IVA'!$G73)+X$13*LOG('Grunddaten-IVA'!$L73) -> 30.12771831 | Y46: =Y$10+Y$11*LOG('Grunddaten-IVA'!$N73)+Y$12*LOG('Grunddaten-IVA'!$G73)+Y$13*LOG('Grunddaten-IVA'!$L73) -> 27.75648962 | Z46: =Z$10+Z$11*LOG('Grunddaten-IVA'!$N73)+Z$12*LOG('Grunddaten-IVA'!$G73)+Z$13*LOG('Grunddaten-IVA'!$L73) -> -6.226660219 | AA46: 45.14452387
F47: =F$10+F$11*LOG('Grunddaten-IVA'!$N74)+F$12*LOG('Grunddaten-IVA'!$G74)+F$13*LOG('Grunddaten-IVA'!$L74) -> 27.77171247 | G47: =G$10+G$11*LOG('Grunddaten-IVA'!$N74)+G$12*LOG('Grunddaten-IVA'!$G74)+G$13*LOG('Grunddaten-IVA'!$L74) -> 26.03359394 | H47: =H$10+H$11*LOG('Grunddaten-IVA'!$N74)+H$12*LOG('Grunddaten-IVA'!$G74)+H$13*LOG('Grunddaten-IVA'!$L74) -> 28.25846447 | I47: =I$10+I$11*LOG('Grunddaten-IVA'!$N74)+I$12*LOG('Grunddaten-IVA'!$G74)+I$13*LOG('Grunddaten-IVA'!$L74) -> 33.60846291 | J47: =J$10+J$11*LOG('Grunddaten-IVA'!$N74)+J$12*LOG('Grunddaten-IVA'!$G74)+J$13*LOG('Grunddaten-IVA'!$L74) -> 35.53657112 | K47: =K$10+K$11*LOG('Grunddaten-IVA'!$N74)+K$12*LOG('Grunddaten-IVA'!$G74)+K$13*LOG('Grunddaten-IVA'!$L74) -> 39.38491985 | L47: =L$10+L$11*LOG('Grunddaten-IVA'!$N74)+L$12*LOG('Grunddaten-IVA'!$G74)+L$13*LOG('Grunddaten-IVA'!$L74) -> 41.77626747 | M47: =M$10+M$11*LOG('Grunddaten-IVA'!$N74)+M$12*LOG('Grunddaten-IVA'!$G74)+M$13*LOG('Grunddaten-IVA'!$L74) -> 43.69926026 | N47: =N$10+N$11*LOG('Grunddaten-IVA'!$N74)+N$12*LOG('Grunddaten-IVA'!$G74)+N$13*LOG('Grunddaten-IVA'!$L74) -> 44.60158177 | O47: =O$10+O$11*LOG('Grunddaten-IVA'!$N74)+O$12*LOG('Grunddaten-IVA'!$G74)+O$13*LOG('Grunddaten-IVA'!$L74) -> 46.61607759 | P47: =P$10+P$11*LOG('Grunddaten-IVA'!$N74)+P$12*LOG('Grunddaten-IVA'!$G74)+P$13*LOG('Grunddaten-IVA'!$L74) -> 47.31953682 | Q47: =Q$10+Q$11*LOG('Grunddaten-IVA'!$N74)+Q$12*LOG('Grunddaten-IVA'!$G74)+Q$13*LOG('Grunddaten-IVA'!$L74) -> 46.90577844 | R47: =R$10+R$11*LOG('Grunddaten-IVA'!$N74)+R$12*LOG('Grunddaten-IVA'!$G74)+R$13*LOG('Grunddaten-IVA'!$L74) -> 44.72778364 | S47: =S$10+S$11*LOG('Grunddaten-IVA'!$N74)+S$12*LOG('Grunddaten-IVA'!$G74)+S$13*LOG('Grunddaten-IVA'!$L74) -> 39.91831377 | T47: =T$10+T$11*LOG('Grunddaten-IVA'!$N74)+T$12*LOG('Grunddaten-IVA'!$G74)+T$13*LOG('Grunddaten-IVA'!$L74) -> 44.03815957 | U47: =U$10+U$11*LOG('Grunddaten-IVA'!$N74)+U$12*LOG('Grunddaten-IVA'!$G74)+U$13*LOG('Grunddaten-IVA'!$L74) -> 38.62574811 | V47: =V$10+V$11*LOG('Grunddaten-IVA'!$N74)+V$12*LOG('Grunddaten-IVA'!$G74)+V$13*LOG('Grunddaten-IVA'!$L74) -> 40.84231486 | W47: =W$10+W$11*LOG('Grunddaten-IVA'!$N74)+W$12*LOG('Grunddaten-IVA'!$G74)+W$13*LOG('Grunddaten-IVA'!$L74) -> 35.05116559 | X47: =X$10+X$11*LOG('Grunddaten-IVA'!$N74)+X$12*LOG('Grunddaten-IVA'!$G74)+X$13*LOG('Grunddaten-IVA'!$L74) -> 33.71356149 | Y47: =Y$10+Y$11*LOG('Grunddaten-IVA'!$N74)+Y$12*LOG('Grunddaten-IVA'!$G74)+Y$13*LOG('Grunddaten-IVA'!$L74) -> 30.01374317 | Z47: =Z$10+Z$11*LOG('Grunddaten-IVA'!$N74)+Z$12*LOG('Grunddaten-IVA'!$G74)+Z$13*LOG('Grunddaten-IVA'!$L74) -> 0.7504320851 | AA47: =10*LOG(10^(0.1*F47)+10^(0.1*G47)+10^(0.1*H47)+10^(0.1*I47)+10^(0.1*J47)+10^(0.1*K47)+10^(0.1*L47)+10^(0.1*M47)+10^(0.1*N47)+10^(0.1*O47)+10^(0.1*P47)+10^(0.1*Q47)+10^(0.1*R47)+10^(0.1*S47)+10^(0.1*T47)+10^(0.1*U47)+10^(0.1*V47)+10^(0.1*W47)+10^(0.1*X47)+10^(0.1*Y47)+10^(0.1*Z47)) -> 55.09566189
F48: =F$10+F$11*LOG('Grunddaten-IVA'!$N75)+F$12*LOG('Grunddaten-IVA'!$G75)+F$13*LOG('Grunddaten-IVA'!$L75) -> 11.50196541 | G48: =G$10+G$11*LOG('Grunddaten-IVA'!$N75)+G$12*LOG('Grunddaten-IVA'!$G75)+G$13*LOG('Grunddaten-IVA'!$L75) -> 7.390702404 | H48: =H$10+H$11*LOG('Grunddaten-IVA'!$N75)+H$12*LOG('Grunddaten-IVA'!$G75)+H$13*LOG('Grunddaten-IVA'!$L75) -> 9.173757156 | I48: =I$10+I$11*LOG('Grunddaten-IVA'!$N75)+I$12*LOG('Grunddaten-IVA'!$G75)+I$13*LOG('Grunddaten-IVA'!$L75) -> 14.08039066 | J48: =J$10+J$11*LOG('Grunddaten-IVA'!$N75)+J$12*LOG('Grunddaten-IVA'!$G75)+J$13*LOG('Grunddaten-IVA'!$L75) -> 15.90192661 | K48: =K$10+K$11*LOG('Grunddaten-IVA'!$N75)+K$12*LOG('Grunddaten-IVA'!$G75)+K$13*LOG('Grunddaten-IVA'!$L75) -> 18.79647893 | L48: =L$10+L$11*LOG('Grunddaten-IVA'!$N75)+L$12*LOG('Grunddaten-IVA'!$G75)+L$13*LOG('Grunddaten-IVA'!$L75) -> 20.62473076 | M48: =M$10+M$11*LOG('Grunddaten-IVA'!$N75)+M$12*LOG('Grunddaten-IVA'!$G75)+M$13*LOG('Grunddaten-IVA'!$L75) -> 21.38577179 | N48: =N$10+N$11*LOG('Grunddaten-IVA'!$N75)+N$12*LOG('Grunddaten-IVA'!$G75)+N$13*LOG('Grunddaten-IVA'!$L75) -> 21.5716822 | O48: =O$10+O$11*LOG('Grunddaten-IVA'!$N75)+O$12*LOG('Grunddaten-IVA'!$G75)+O$13*LOG('Grunddaten-IVA'!$L75) -> 21.14938571 | P48: =P$10+P$11*LOG('Grunddaten-IVA'!$N75)+P$12*LOG('Grunddaten-IVA'!$G75)+P$13*LOG('Grunddaten-IVA'!$L75) -> 20.76846663 | Q48: =Q$10+Q$11*LOG('Grunddaten-IVA'!$N75)+Q$12*LOG('Grunddaten-IVA'!$G75)+Q$13*LOG('Grunddaten-IVA'!$L75) -> 19.74440705 | R48: =R$10+R$11*LOG('Grunddaten-IVA'!$N75)+R$12*LOG('Grunddaten-IVA'!$G75)+R$13*LOG('Grunddaten-IVA'!$L75) -> 17.17510728 | S48: =S$10+S$11*LOG('Grunddaten-IVA'!$N75)+S$12*LOG('Grunddaten-IVA'!$G75)+S$13*LOG('Grunddaten-IVA'!$L75) -> 14.22059166 | T48: =T$10+T$11*LOG('Grunddaten-IVA'!$N75)+T$12*LOG('Grunddaten-IVA'!$G75)+T$13*LOG('Grunddaten-IVA'!$L75) -> 24.60881677 | U48: =U$10+U$11*LOG('Grunddaten-IVA'!$N75)+U$12*LOG('Grunddaten-IVA'!$G75)+U$13*LOG('Grunddaten-IVA'!$L75) -> 18.49768369 | V48: =V$10+V$11*LOG('Grunddaten-IVA'!$N75)+V$12*LOG('Grunddaten-IVA'!$G75)+V$13*LOG('Grunddaten-IVA'!$L75) -> 29.80327462 | W48: =W$10+W$11*LOG('Grunddaten-IVA'!$N75)+W$12*LOG('Grunddaten-IVA'!$G75)+W$13*LOG('Grunddaten-IVA'!$L75) -> 24.628965 | X48: =X$10+X$11*LOG('Grunddaten-IVA'!$N75)+X$12*LOG('Grunddaten-IVA'!$G75)+X$13*LOG('Grunddaten-IVA'!$L75) -> 26.93001561 | Y48: =Y$10+Y$11*LOG('Grunddaten-IVA'!$N75)+Y$12*LOG('Grunddaten-IVA'!$G75)+Y$13*LOG('Grunddaten-IVA'!$L75) -> 26.07242974 | Z48: =Z$10+Z$11*LOG('Grunddaten-IVA'!$N75)+Z$12*LOG('Grunddaten-IVA'!$G75)+Z$13*LOG('Grunddaten-IVA'!$L75) -> -21.97990756 | AA48: =10*LOG(10^(0.1*F48)+10^(0.1*G48)+10^(0.1*H48)+10^(0.1*I48)+10^(0.1*J48)+10^(0.1*K48)+10^(0.1*L48)+10^(0.1*M48)+10^(0.1*N48)+10^(0.1*O48)+10^(0.1*P48)+10^(0.1*Q48)+10^(0.1*R48)+10^(0.1*S48)+10^(0.1*T48)+10^(0.1*U48)+10^(0.1*V48)+10^(0.1*W48)+10^(0.1*X48)+10^(0.1*Y48)+10^(0.1*Z48)) -> 35.42971739
F49: =F$10+F$11*LOG('Grunddaten-IVA'!$N76)+F$12*LOG('Grunddaten-IVA'!$G76)+F$13*LOG('Grunddaten-IVA'!$L76) -> 20.38839115 | G49: =G$10+G$11*LOG('Grunddaten-IVA'!$N76)+G$12*LOG('Grunddaten-IVA'!$G76)+G$13*LOG('Grunddaten-IVA'!$L76) -> 17.2167172 | H49: =H$10+H$11*LOG('Grunddaten-IVA'!$N76)+H$12*LOG('Grunddaten-IVA'!$G76)+H$13*LOG('Grunddaten-IVA'!$L76) -> 19.12104617 | I49: =I$10+I$11*LOG('Grunddaten-IVA'!$N76)+I$12*LOG('Grunddaten-IVA'!$G76)+I$13*LOG('Grunddaten-IVA'!$L76) -> 24.57526679 | J49: =J$10+J$11*LOG('Grunddaten-IVA'!$N76)+J$12*LOG('Grunddaten-IVA'!$G76)+J$13*LOG('Grunddaten-IVA'!$L76) -> 26.46744248 | K49: =K$10+K$11*LOG('Grunddaten-IVA'!$N76)+K$12*LOG('Grunddaten-IVA'!$G76)+K$13*LOG('Grunddaten-IVA'!$L76) -> 30.01733686 | L49: =L$10+L$11*LOG('Grunddaten-IVA'!$N76)+L$12*LOG('Grunddaten-IVA'!$G76)+L$13*LOG('Grunddaten-IVA'!$L76) -> 32.19732914 | M49: =M$10+M$11*LOG('Grunddaten-IVA'!$N76)+M$12*LOG('Grunddaten-IVA'!$G76)+M$13*LOG('Grunddaten-IVA'!$L76) -> 33.62032215 | N49: =N$10+N$11*LOG('Grunddaten-IVA'!$N76)+N$12*LOG('Grunddaten-IVA'!$G76)+N$13*LOG('Grunddaten-IVA'!$L76) -> 34.20404075 | O49: =O$10+O$11*LOG('Grunddaten-IVA'!$N76)+O$12*LOG('Grunddaten-IVA'!$G76)+O$13*LOG('Grunddaten-IVA'!$L76) -> 35.28845906 | P49: =P$10+P$11*LOG('Grunddaten-IVA'!$N76)+P$12*LOG('Grunddaten-IVA'!$G76)+P$13*LOG('Grunddaten-IVA'!$L76) -> 35.60617636 | Q49: =Q$10+Q$11*LOG('Grunddaten-IVA'!$N76)+Q$12*LOG('Grunddaten-IVA'!$G76)+Q$13*LOG('Grunddaten-IVA'!$L76) -> 34.99751626 | R49: =R$10+R$11*LOG('Grunddaten-IVA'!$N76)+R$12*LOG('Grunddaten-IVA'!$G76)+R$13*LOG('Grunddaten-IVA'!$L76) -> 32.60830969 | S49: =S$10+S$11*LOG('Grunddaten-IVA'!$N76)+S$12*LOG('Grunddaten-IVA'!$G76)+S$13*LOG('Grunddaten-IVA'!$L76) -> 28.24498424 | T49: =T$10+T$11*LOG('Grunddaten-IVA'!$N76)+T$12*LOG('Grunddaten-IVA'!$G76)+T$13*LOG('Grunddaten-IVA'!$L76) -> 35.93539924 | U49: =U$10+U$11*LOG('Grunddaten-IVA'!$N76)+U$12*LOG('Grunddaten-IVA'!$G76)+U$13*LOG('Grunddaten-IVA'!$L76) -> 29.81997196 | V49: =V$10+V$11*LOG('Grunddaten-IVA'!$N76)+V$12*LOG('Grunddaten-IVA'!$G76)+V$13*LOG('Grunddaten-IVA'!$L76) -> 36.81990511 | W49: =W$10+W$11*LOG('Grunddaten-IVA'!$N76)+W$12*LOG('Grunddaten-IVA'!$G76)+W$13*LOG('Grunddaten-IVA'!$L76) -> 31.05195406 | X49: =X$10+X$11*LOG('Grunddaten-IVA'!$N76)+X$12*LOG('Grunddaten-IVA'!$G76)+X$13*LOG('Grunddaten-IVA'!$L76) -> 31.4837991 | Y49: =Y$10+Y$11*LOG('Grunddaten-IVA'!$N76)+Y$12*LOG('Grunddaten-IVA'!$G76)+Y$13*LOG('Grunddaten-IVA'!$L76) -> 28.93899234 | Z49: =Z$10+Z$11*LOG('Grunddaten-IVA'!$N76)+Z$12*LOG('Grunddaten-IVA'!$G76)+Z$13*LOG('Grunddaten-IVA'!$L76) -> -13.11946215 | AA49: 45.36457119
F50: =F$10+F$11*LOG('Grunddaten-IVA'!$N77)+F$12*LOG('Grunddaten-IVA'!$G77)+F$13*LOG('Grunddaten-IVA'!$L77) -> 27.63036945 | G50: =G$10+G$11*LOG('Grunddaten-IVA'!$N77)+G$12*LOG('Grunddaten-IVA'!$G77)+G$13*LOG('Grunddaten-IVA'!$L77) -> 25.22441208 | H50: =H$10+H$11*LOG('Grunddaten-IVA'!$N77)+H$12*LOG('Grunddaten-IVA'!$G77)+H$13*LOG('Grunddaten-IVA'!$L77) -> 27.22757329 | I50: =I$10+I$11*LOG('Grunddaten-IVA'!$N77)+I$12*LOG('Grunddaten-IVA'!$G77)+I$13*LOG('Grunddaten-IVA'!$L77) -> 33.12804914 | J50: =J$10+J$11*LOG('Grunddaten-IVA'!$N77)+J$12*LOG('Grunddaten-IVA'!$G77)+J$13*LOG('Grunddaten-IVA'!$L77) -> 35.07779257 | K50: =K$10+K$11*LOG('Grunddaten-IVA'!$N77)+K$12*LOG('Grunddaten-IVA'!$G77)+K$13*LOG('Grunddaten-IVA'!$L77) -> 39.1617569 | L50: =L$10+L$11*LOG('Grunddaten-IVA'!$N77)+L$12*LOG('Grunddaten-IVA'!$G77)+L$13*LOG('Grunddaten-IVA'!$L77) -> 41.62839949 | M50: =M$10+M$11*LOG('Grunddaten-IVA'!$N77)+M$12*LOG('Grunddaten-IVA'!$G77)+M$13*LOG('Grunddaten-IVA'!$L77) -> 43.5908492 | N50: =N$10+N$11*LOG('Grunddaten-IVA'!$N77)+N$12*LOG('Grunddaten-IVA'!$G77)+N$13*LOG('Grunddaten-IVA'!$L77) -> 44.49876094 | O50: =O$10+O$11*LOG('Grunddaten-IVA'!$N77)+O$12*LOG('Grunddaten-IVA'!$G77)+O$13*LOG('Grunddaten-IVA'!$L77) -> 46.81107405 | P50: =P$10+P$11*LOG('Grunddaten-IVA'!$N77)+P$12*LOG('Grunddaten-IVA'!$G77)+P$13*LOG('Grunddaten-IVA'!$L77) -> 47.69814393 | Q50: =Q$10+Q$11*LOG('Grunddaten-IVA'!$N77)+Q$12*LOG('Grunddaten-IVA'!$G77)+Q$13*LOG('Grunddaten-IVA'!$L77) -> 47.42801296 | R50: =R$10+R$11*LOG('Grunddaten-IVA'!$N77)+R$12*LOG('Grunddaten-IVA'!$G77)+R$13*LOG('Grunddaten-IVA'!$L77) -> 45.18557306 | S50: =S$10+S$11*LOG('Grunddaten-IVA'!$N77)+S$12*LOG('Grunddaten-IVA'!$G77)+S$13*LOG('Grunddaten-IVA'!$L77) -> 39.67414032 | T50: =T$10+T$11*LOG('Grunddaten-IVA'!$N77)+T$12*LOG('Grunddaten-IVA'!$G77)+T$13*LOG('Grunddaten-IVA'!$L77) -> 45.16597932 | U50: =U$10+U$11*LOG('Grunddaten-IVA'!$N77)+U$12*LOG('Grunddaten-IVA'!$G77)+U$13*LOG('Grunddaten-IVA'!$L77) -> 39.0470525 | V50: =V$10+V$11*LOG('Grunddaten-IVA'!$N77)+V$12*LOG('Grunddaten-IVA'!$G77)+V$13*LOG('Grunddaten-IVA'!$L77) -> 42.53809679 | W50: =W$10+W$11*LOG('Grunddaten-IVA'!$N77)+W$12*LOG('Grunddaten-IVA'!$G77)+W$13*LOG('Grunddaten-IVA'!$L77) -> 36.28635862 | X50: =X$10+X$11*LOG('Grunddaten-IVA'!$N77)+X$12*LOG('Grunddaten-IVA'!$G77)+X$13*LOG('Grunddaten-IVA'!$L77) -> 35.1948976 | Y50: =Y$10+Y$11*LOG('Grunddaten-IVA'!$N77)+Y$12*LOG('Grunddaten-IVA'!$G77)+Y$13*LOG('Grunddaten-IVA'!$L77) -> 31.27509289 | Z50: =Z$10+Z$11*LOG('Grunddaten-IVA'!$N77)+Z$12*LOG('Grunddaten-IVA'!$G77)+Z$13*LOG('Grunddaten-IVA'!$L77) -> -5.898656479 | AA50: 55.47411771
F51: =F$10+F$11*LOG('Grunddaten-IVA'!$N78)+F$12*LOG('Grunddaten-IVA'!$G78)+F$13*LOG('Grunddaten-IVA'!$L78) ->  | G51: =G$10+G$11*LOG('Grunddaten-IVA'!$N78)+G$12*LOG('Grunddaten-IVA'!$G78)+G$13*LOG('Grunddaten-IVA'!$L78) ->  | H51: =H$10+H$11*LOG('Grunddaten-IVA'!$N78)+H$12*LOG('Grunddaten-IVA'!$G78)+H$13*LOG('Grunddaten-IVA'!$L78) ->  | I51: =I$10+I$11*LOG('Grunddaten-IVA'!$N78)+I$12*LOG('Grunddaten-IVA'!$G78)+I$13*LOG('Grunddaten-IVA'!$L78) ->  | J51: =J$10+J$11*LOG('Grunddaten-IVA'!$N78)+J$12*LOG('Grunddaten-IVA'!$G78)+J$13*LOG('Grunddaten-IVA'!$L78) ->  | K51: =K$10+K$11*LOG('Grunddaten-IVA'!$N78)+K$12*LOG('Grunddaten-IVA'!$G78)+K$13*LOG('Grunddaten-IVA'!$L78) ->  | L51: =L$10+L$11*LOG('Grunddaten-IVA'!$N78)+L$12*LOG('Grunddaten-IVA'!$G78)+L$13*LOG('Grunddaten-IVA'!$L78) ->  | M51: =M$10+M$11*LOG('Grunddaten-IVA'!$N78)+M$12*LOG('Grunddaten-IVA'!$G78)+M$13*LOG('Grunddaten-IVA'!$L78) ->  | N51: =N$10+N$11*LOG('Grunddaten-IVA'!$N78)+N$12*LOG('Grunddaten-IVA'!$G78)+N$13*LOG('Grunddaten-IVA'!$L78) ->  | O51: =O$10+O$11*LOG('Grunddaten-IVA'!$N78)+O$12*LOG('Grunddaten-IVA'!$G78)+O$13*LOG('Grunddaten-IVA'!$L78) ->  | P51: =P$10+P$11*LOG('Grunddaten-IVA'!$N78)+P$12*LOG('Grunddaten-IVA'!$G78)+P$13*LOG('Grunddaten-IVA'!$L78) ->  | Q51: =Q$10+Q$11*LOG('Grunddaten-IVA'!$N78)+Q$12*LOG('Grunddaten-IVA'!$G78)+Q$13*LOG('Grunddaten-IVA'!$L78) ->  | R51: =R$10+R$11*LOG('Grunddaten-IVA'!$N78)+R$12*LOG('Grunddaten-IVA'!$G78)+R$13*LOG('Grunddaten-IVA'!$L78) ->  | S51: =S$10+S$11*LOG('Grunddaten-IVA'!$N78)+S$12*LOG('Grunddaten-IVA'!$G78)+S$13*LOG('Grunddaten-IVA'!$L78) ->  | T51: =T$10+T$11*LOG('Grunddaten-IVA'!$N78)+T$12*LOG('Grunddaten-IVA'!$G78)+T$13*LOG('Grunddaten-IVA'!$L78) ->  | U51: =U$10+U$11*LOG('Grunddaten-IVA'!$N78)+U$12*LOG('Grunddaten-IVA'!$G78)+U$13*LOG('Grunddaten-IVA'!$L78) ->  | V51: =V$10+V$11*LOG('Grunddaten-IVA'!$N78)+V$12*LOG('Grunddaten-IVA'!$G78)+V$13*LOG('Grunddaten-IVA'!$L78) ->  | W51: =W$10+W$11*LOG('Grunddaten-IVA'!$N78)+W$12*LOG('Grunddaten-IVA'!$G78)+W$13*LOG('Grunddaten-IVA'!$L78) ->  | X51: =X$10+X$11*LOG('Grunddaten-IVA'!$N78)+X$12*LOG('Grunddaten-IVA'!$G78)+X$13*LOG('Grunddaten-IVA'!$L78) ->  | Y51: =Y$10+Y$11*LOG('Grunddaten-IVA'!$N78)+Y$12*LOG('Grunddaten-IVA'!$G78)+Y$13*LOG('Grunddaten-IVA'!$L78) ->  | Z51: =Z$10+Z$11*LOG('Grunddaten-IVA'!$N78)+Z$12*LOG('Grunddaten-IVA'!$G78)+Z$13*LOG('Grunddaten-IVA'!$L78) -> 
F52: =F$10+F$11*LOG('Grunddaten-IVA'!$N79)+F$12*LOG('Grunddaten-IVA'!$G79)+F$13*LOG('Grunddaten-IVA'!$L79) ->  | G52: =G$10+G$11*LOG('Grunddaten-IVA'!$N79)+G$12*LOG('Grunddaten-IVA'!$G79)+G$13*LOG('Grunddaten-IVA'!$L79) ->  | H52: =H$10+H$11*LOG('Grunddaten-IVA'!$N79)+H$12*LOG('Grunddaten-IVA'!$G79)+H$13*LOG('Grunddaten-IVA'!$L79) ->  | I52: =I$10+I$11*LOG('Grunddaten-IVA'!$N79)+I$12*LOG('Grunddaten-IVA'!$G79)+I$13*LOG('Grunddaten-IVA'!$L79) ->  | J52: =J$10+J$11*LOG('Grunddaten-IVA'!$N79)+J$12*LOG('Grunddaten-IVA'!$G79)+J$13*LOG('Grunddaten-IVA'!$L79) ->  | K52: =K$10+K$11*LOG('Grunddaten-IVA'!$N79)+K$12*LOG('Grunddaten-IVA'!$G79)+K$13*LOG('Grunddaten-IVA'!$L79) ->  | L52: =L$10+L$11*LOG('Grunddaten-IVA'!$N79)+L$12*LOG('Grunddaten-IVA'!$G79)+L$13*LOG('Grunddaten-IVA'!$L79) ->  | M52: =M$10+M$11*LOG('Grunddaten-IVA'!$N79)+M$12*LOG('Grunddaten-IVA'!$G79)+M$13*LOG('Grunddaten-IVA'!$L79) ->  | N52: =N$10+N$11*LOG('Grunddaten-IVA'!$N79)+N$12*LOG('Grunddaten-IVA'!$G79)+N$13*LOG('Grunddaten-IVA'!$L79) ->  | O52: =O$10+O$11*LOG('Grunddaten-IVA'!$N79)+O$12*LOG('Grunddaten-IVA'!$G79)+O$13*LOG('Grunddaten-IVA'!$L79) ->  | P52: =P$10+P$11*LOG('Grunddaten-IVA'!$N79)+P$12*LOG('Grunddaten-IVA'!$G79)+P$13*LOG('Grunddaten-IVA'!$L79) ->  | Q52: =Q$10+Q$11*LOG('Grunddaten-IVA'!$N79)+Q$12*LOG('Grunddaten-IVA'!$G79)+Q$13*LOG('Grunddaten-IVA'!$L79) ->  | R52: =R$10+R$11*LOG('Grunddaten-IVA'!$N79)+R$12*LOG('Grunddaten-IVA'!$G79)+R$13*LOG('Grunddaten-IVA'!$L79) ->  | S52: =S$10+S$11*LOG('Grunddaten-IVA'!$N79)+S$12*LOG('Grunddaten-IVA'!$G79)+S$13*LOG('Grunddaten-IVA'!$L79) ->  | T52: =T$10+T$11*LOG('Grunddaten-IVA'!$N79)+T$12*LOG('Grunddaten-IVA'!$G79)+T$13*LOG('Grunddaten-IVA'!$L79) ->  | U52: =U$10+U$11*LOG('Grunddaten-IVA'!$N79)+U$12*LOG('Grunddaten-IVA'!$G79)+U$13*LOG('Grunddaten-IVA'!$L79) ->  | V52: =V$10+V$11*LOG('Grunddaten-IVA'!$N79)+V$12*LOG('Grunddaten-IVA'!$G79)+V$13*LOG('Grunddaten-IVA'!$L79) ->  | W52: =W$10+W$11*LOG('Grunddaten-IVA'!$N79)+W$12*LOG('Grunddaten-IVA'!$G79)+W$13*LOG('Grunddaten-IVA'!$L79) ->  | X52: =X$10+X$11*LOG('Grunddaten-IVA'!$N79)+X$12*LOG('Grunddaten-IVA'!$G79)+X$13*LOG('Grunddaten-IVA'!$L79) ->  | Y52: =Y$10+Y$11*LOG('Grunddaten-IVA'!$N79)+Y$12*LOG('Grunddaten-IVA'!$G79)+Y$13*LOG('Grunddaten-IVA'!$L79) ->  | Z52: =Z$10+Z$11*LOG('Grunddaten-IVA'!$N79)+Z$12*LOG('Grunddaten-IVA'!$G79)+Z$13*LOG('Grunddaten-IVA'!$L79) -> 
F53: =F$10+F$11*LOG('Grunddaten-IVA'!$N80)+F$12*LOG('Grunddaten-IVA'!$G80)+F$13*LOG('Grunddaten-IVA'!$L80) ->  | G53: =G$10+G$11*LOG('Grunddaten-IVA'!$N80)+G$12*LOG('Grunddaten-IVA'!$G80)+G$13*LOG('Grunddaten-IVA'!$L80) ->  | H53: =H$10+H$11*LOG('Grunddaten-IVA'!$N80)+H$12*LOG('Grunddaten-IVA'!$G80)+H$13*LOG('Grunddaten-IVA'!$L80) ->  | I53: =I$10+I$11*LOG('Grunddaten-IVA'!$N80)+I$12*LOG('Grunddaten-IVA'!$G80)+I$13*LOG('Grunddaten-IVA'!$L80) ->  | J53: =J$10+J$11*LOG('Grunddaten-IVA'!$N80)+J$12*LOG('Grunddaten-IVA'!$G80)+J$13*LOG('Grunddaten-IVA'!$L80) ->  | K53: =K$10+K$11*LOG('Grunddaten-IVA'!$N80)+K$12*LOG('Grunddaten-IVA'!$G80)+K$13*LOG('Grunddaten-IVA'!$L80) ->  | L53: =L$10+L$11*LOG('Grunddaten-IVA'!$N80)+L$12*LOG('Grunddaten-IVA'!$G80)+L$13*LOG('Grunddaten-IVA'!$L80) ->  | M53: =M$10+M$11*LOG('Grunddaten-IVA'!$N80)+M$12*LOG('Grunddaten-IVA'!$G80)+M$13*LOG('Grunddaten-IVA'!$L80) ->  | N53: =N$10+N$11*LOG('Grunddaten-IVA'!$N80)+N$12*LOG('Grunddaten-IVA'!$G80)+N$13*LOG('Grunddaten-IVA'!$L80) ->  | O53: =O$10+O$11*LOG('Grunddaten-IVA'!$N80)+O$12*LOG('Grunddaten-IVA'!$G80)+O$13*LOG('Grunddaten-IVA'!$L80) ->  | P53: =P$10+P$11*LOG('Grunddaten-IVA'!$N80)+P$12*LOG('Grunddaten-IVA'!$G80)+P$13*LOG('Grunddaten-IVA'!$L80) ->  | Q53: =Q$10+Q$11*LOG('Grunddaten-IVA'!$N80)+Q$12*LOG('Grunddaten-IVA'!$G80)+Q$13*LOG('Grunddaten-IVA'!$L80) ->  | R53: =R$10+R$11*LOG('Grunddaten-IVA'!$N80)+R$12*LOG('Grunddaten-IVA'!$G80)+R$13*LOG('Grunddaten-IVA'!$L80) ->  | S53: =S$10+S$11*LOG('Grunddaten-IVA'!$N80)+S$12*LOG('Grunddaten-IVA'!$G80)+S$13*LOG('Grunddaten-IVA'!$L80) ->  | T53: =T$10+T$11*LOG('Grunddaten-IVA'!$N80)+T$12*LOG('Grunddaten-IVA'!$G80)+T$13*LOG('Grunddaten-IVA'!$L80) ->  | U53: =U$10+U$11*LOG('Grunddaten-IVA'!$N80)+U$12*LOG('Grunddaten-IVA'!$G80)+U$13*LOG('Grunddaten-IVA'!$L80) ->  | V53: =V$10+V$11*LOG('Grunddaten-IVA'!$N80)+V$12*LOG('Grunddaten-IVA'!$G80)+V$13*LOG('Grunddaten-IVA'!$L80) ->  | W53: =W$10+W$11*LOG('Grunddaten-IVA'!$N80)+W$12*LOG('Grunddaten-IVA'!$G80)+W$13*LOG('Grunddaten-IVA'!$L80) ->  | X53: =X$10+X$11*LOG('Grunddaten-IVA'!$N80)+X$12*LOG('Grunddaten-IVA'!$G80)+X$13*LOG('Grunddaten-IVA'!$L80) ->  | Y53: =Y$10+Y$11*LOG('Grunddaten-IVA'!$N80)+Y$12*LOG('Grunddaten-IVA'!$G80)+Y$13*LOG('Grunddaten-IVA'!$L80) ->  | Z53: =Z$10+Z$11*LOG('Grunddaten-IVA'!$N80)+Z$12*LOG('Grunddaten-IVA'!$G80)+Z$13*LOG('Grunddaten-IVA'!$L80) -> 
F54: =F$10+F$11*LOG('Grunddaten-IVA'!$N81)+F$12*LOG('Grunddaten-IVA'!$G81)+F$13*LOG('Grunddaten-IVA'!$L81) ->  | G54: =G$10+G$11*LOG('Grunddaten-IVA'!$N81)+G$12*LOG('Grunddaten-IVA'!$G81)+G$13*LOG('Grunddaten-IVA'!$L81) ->  | H54: =H$10+H$11*LOG('Grunddaten-IVA'!$N81)+H$12*LOG('Grunddaten-IVA'!$G81)+H$13*LOG('Grunddaten-IVA'!$L81) ->  | I54: =I$10+I$11*LOG('Grunddaten-IVA'!$N81)+I$12*LOG('Grunddaten-IVA'!$G81)+I$13*LOG('Grunddaten-IVA'!$L81) ->  | J54: =J$10+J$11*LOG('Grunddaten-IVA'!$N81)+J$12*LOG('Grunddaten-IVA'!$G81)+J$13*LOG('Grunddaten-IVA'!$L81) ->  | K54: =K$10+K$11*LOG('Grunddaten-IVA'!$N81)+K$12*LOG('Grunddaten-IVA'!$G81)+K$13*LOG('Grunddaten-IVA'!$L81) ->  | L54: =L$10+L$11*LOG('Grunddaten-IVA'!$N81)+L$12*LOG('Grunddaten-IVA'!$G81)+L$13*LOG('Grunddaten-IVA'!$L81) ->  | M54: =M$10+M$11*LOG('Grunddaten-IVA'!$N81)+M$12*LOG('Grunddaten-IVA'!$G81)+M$13*LOG('Grunddaten-IVA'!$L81) ->  | N54: =N$10+N$11*LOG('Grunddaten-IVA'!$N81)+N$12*LOG('Grunddaten-IVA'!$G81)+N$13*LOG('Grunddaten-IVA'!$L81) ->  | O54: =O$10+O$11*LOG('Grunddaten-IVA'!$N81)+O$12*LOG('Grunddaten-IVA'!$G81)+O$13*LOG('Grunddaten-IVA'!$L81) ->  | P54: =P$10+P$11*LOG('Grunddaten-IVA'!$N81)+P$12*LOG('Grunddaten-IVA'!$G81)+P$13*LOG('Grunddaten-IVA'!$L81) ->  | Q54: =Q$10+Q$11*LOG('Grunddaten-IVA'!$N81)+Q$12*LOG('Grunddaten-IVA'!$G81)+Q$13*LOG('Grunddaten-IVA'!$L81) ->  | R54: =R$10+R$11*LOG('Grunddaten-IVA'!$N81)+R$12*LOG('Grunddaten-IVA'!$G81)+R$13*LOG('Grunddaten-IVA'!$L81) ->  | S54: =S$10+S$11*LOG('Grunddaten-IVA'!$N81)+S$12*LOG('Grunddaten-IVA'!$G81)+S$13*LOG('Grunddaten-IVA'!$L81) ->  | T54: =T$10+T$11*LOG('Grunddaten-IVA'!$N81)+T$12*LOG('Grunddaten-IVA'!$G81)+T$13*LOG('Grunddaten-IVA'!$L81) ->  | U54: =U$10+U$11*LOG('Grunddaten-IVA'!$N81)+U$12*LOG('Grunddaten-IVA'!$G81)+U$13*LOG('Grunddaten-IVA'!$L81) ->  | V54: =V$10+V$11*LOG('Grunddaten-IVA'!$N81)+V$12*LOG('Grunddaten-IVA'!$G81)+V$13*LOG('Grunddaten-IVA'!$L81) ->  | W54: =W$10+W$11*LOG('Grunddaten-IVA'!$N81)+W$12*LOG('Grunddaten-IVA'!$G81)+W$13*LOG('Grunddaten-IVA'!$L81) ->  | X54: =X$10+X$11*LOG('Grunddaten-IVA'!$N81)+X$12*LOG('Grunddaten-IVA'!$G81)+X$13*LOG('Grunddaten-IVA'!$L81) ->  | Y54: =Y$10+Y$11*LOG('Grunddaten-IVA'!$N81)+Y$12*LOG('Grunddaten-IVA'!$G81)+Y$13*LOG('Grunddaten-IVA'!$L81) ->  | Z54: =Z$10+Z$11*LOG('Grunddaten-IVA'!$N81)+Z$12*LOG('Grunddaten-IVA'!$G81)+Z$13*LOG('Grunddaten-IVA'!$L81) -> 
F55: =F$10+F$11*LOG('Grunddaten-IVA'!$N82)+F$12*LOG('Grunddaten-IVA'!$G82)+F$13*LOG('Grunddaten-IVA'!$L82) ->  | G55: =G$10+G$11*LOG('Grunddaten-IVA'!$N82)+G$12*LOG('Grunddaten-IVA'!$G82)+G$13*LOG('Grunddaten-IVA'!$L82) ->  | H55: =H$10+H$11*LOG('Grunddaten-IVA'!$N82)+H$12*LOG('Grunddaten-IVA'!$G82)+H$13*LOG('Grunddaten-IVA'!$L82) ->  | I55: =I$10+I$11*LOG('Grunddaten-IVA'!$N82)+I$12*LOG('Grunddaten-IVA'!$G82)+I$13*LOG('Grunddaten-IVA'!$L82) ->  | J55: =J$10+J$11*LOG('Grunddaten-IVA'!$N82)+J$12*LOG('Grunddaten-IVA'!$G82)+J$13*LOG('Grunddaten-IVA'!$L82) ->  | K55: =K$10+K$11*LOG('Grunddaten-IVA'!$N82)+K$12*LOG('Grunddaten-IVA'!$G82)+K$13*LOG('Grunddaten-IVA'!$L82) ->  | L55: =L$10+L$11*LOG('Grunddaten-IVA'!$N82)+L$12*LOG('Grunddaten-IVA'!$G82)+L$13*LOG('Grunddaten-IVA'!$L82) ->  | M55: =M$10+M$11*LOG('Grunddaten-IVA'!$N82)+M$12*LOG('Grunddaten-IVA'!$G82)+M$13*LOG('Grunddaten-IVA'!$L82) ->  | N55: =N$10+N$11*LOG('Grunddaten-IVA'!$N82)+N$12*LOG('Grunddaten-IVA'!$G82)+N$13*LOG('Grunddaten-IVA'!$L82) ->  | O55: =O$10+O$11*LOG('Grunddaten-IVA'!$N82)+O$12*LOG('Grunddaten-IVA'!$G82)+O$13*LOG('Grunddaten-IVA'!$L82) ->  | P55: =P$10+P$11*LOG('Grunddaten-IVA'!$N82)+P$12*LOG('Grunddaten-IVA'!$G82)+P$13*LOG('Grunddaten-IVA'!$L82) ->  | Q55: =Q$10+Q$11*LOG('Grunddaten-IVA'!$N82)+Q$12*LOG('Grunddaten-IVA'!$G82)+Q$13*LOG('Grunddaten-IVA'!$L82) ->  | R55: =R$10+R$11*LOG('Grunddaten-IVA'!$N82)+R$12*LOG('Grunddaten-IVA'!$G82)+R$13*LOG('Grunddaten-IVA'!$L82) ->  | S55: =S$10+S$11*LOG('Grunddaten-IVA'!$N82)+S$12*LOG('Grunddaten-IVA'!$G82)+S$13*LOG('Grunddaten-IVA'!$L82) ->  | T55: =T$10+T$11*LOG('Grunddaten-IVA'!$N82)+T$12*LOG('Grunddaten-IVA'!$G82)+T$13*LOG('Grunddaten-IVA'!$L82) ->  | U55: =U$10+U$11*LOG('Grunddaten-IVA'!$N82)+U$12*LOG('Grunddaten-IVA'!$G82)+U$13*LOG('Grunddaten-IVA'!$L82) ->  | V55: =V$10+V$11*LOG('Grunddaten-IVA'!$N82)+V$12*LOG('Grunddaten-IVA'!$G82)+V$13*LOG('Grunddaten-IVA'!$L82) ->  | W55: =W$10+W$11*LOG('Grunddaten-IVA'!$N82)+W$12*LOG('Grunddaten-IVA'!$G82)+W$13*LOG('Grunddaten-IVA'!$L82) ->  | X55: =X$10+X$11*LOG('Grunddaten-IVA'!$N82)+X$12*LOG('Grunddaten-IVA'!$G82)+X$13*LOG('Grunddaten-IVA'!$L82) ->  | Y55: =Y$10+Y$11*LOG('Grunddaten-IVA'!$N82)+Y$12*LOG('Grunddaten-IVA'!$G82)+Y$13*LOG('Grunddaten-IVA'!$L82) ->  | Z55: =Z$10+Z$11*LOG('Grunddaten-IVA'!$N82)+Z$12*LOG('Grunddaten-IVA'!$G82)+Z$13*LOG('Grunddaten-IVA'!$L82) -> 
F56: =F$10+F$11*LOG('Grunddaten-IVA'!$N83)+F$12*LOG('Grunddaten-IVA'!$G83)+F$13*LOG('Grunddaten-IVA'!$L83) ->  | G56: =G$10+G$11*LOG('Grunddaten-IVA'!$N83)+G$12*LOG('Grunddaten-IVA'!$G83)+G$13*LOG('Grunddaten-IVA'!$L83) ->  | H56: =H$10+H$11*LOG('Grunddaten-IVA'!$N83)+H$12*LOG('Grunddaten-IVA'!$G83)+H$13*LOG('Grunddaten-IVA'!$L83) ->  | I56: =I$10+I$11*LOG('Grunddaten-IVA'!$N83)+I$12*LOG('Grunddaten-IVA'!$G83)+I$13*LOG('Grunddaten-IVA'!$L83) ->  | J56: =J$10+J$11*LOG('Grunddaten-IVA'!$N83)+J$12*LOG('Grunddaten-IVA'!$G83)+J$13*LOG('Grunddaten-IVA'!$L83) ->  | K56: =K$10+K$11*LOG('Grunddaten-IVA'!$N83)+K$12*LOG('Grunddaten-IVA'!$G83)+K$13*LOG('Grunddaten-IVA'!$L83) ->  | L56: =L$10+L$11*LOG('Grunddaten-IVA'!$N83)+L$12*LOG('Grunddaten-IVA'!$G83)+L$13*LOG('Grunddaten-IVA'!$L83) ->  | M56: =M$10+M$11*LOG('Grunddaten-IVA'!$N83)+M$12*LOG('Grunddaten-IVA'!$G83)+M$13*LOG('Grunddaten-IVA'!$L83) ->  | N56: =N$10+N$11*LOG('Grunddaten-IVA'!$N83)+N$12*LOG('Grunddaten-IVA'!$G83)+N$13*LOG('Grunddaten-IVA'!$L83) ->  | O56: =O$10+O$11*LOG('Grunddaten-IVA'!$N83)+O$12*LOG('Grunddaten-IVA'!$G83)+O$13*LOG('Grunddaten-IVA'!$L83) ->  | P56: =P$10+P$11*LOG('Grunddaten-IVA'!$N83)+P$12*LOG('Grunddaten-IVA'!$G83)+P$13*LOG('Grunddaten-IVA'!$L83) ->  | Q56: =Q$10+Q$11*LOG('Grunddaten-IVA'!$N83)+Q$12*LOG('Grunddaten-IVA'!$G83)+Q$13*LOG('Grunddaten-IVA'!$L83) ->  | R56: =R$10+R$11*LOG('Grunddaten-IVA'!$N83)+R$12*LOG('Grunddaten-IVA'!$G83)+R$13*LOG('Grunddaten-IVA'!$L83) ->  | S56: =S$10+S$11*LOG('Grunddaten-IVA'!$N83)+S$12*LOG('Grunddaten-IVA'!$G83)+S$13*LOG('Grunddaten-IVA'!$L83) ->  | T56: =T$10+T$11*LOG('Grunddaten-IVA'!$N83)+T$12*LOG('Grunddaten-IVA'!$G83)+T$13*LOG('Grunddaten-IVA'!$L83) ->  | U56: =U$10+U$11*LOG('Grunddaten-IVA'!$N83)+U$12*LOG('Grunddaten-IVA'!$G83)+U$13*LOG('Grunddaten-IVA'!$L83) ->  | V56: =V$10+V$11*LOG('Grunddaten-IVA'!$N83)+V$12*LOG('Grunddaten-IVA'!$G83)+V$13*LOG('Grunddaten-IVA'!$L83) ->  | W56: =W$10+W$11*LOG('Grunddaten-IVA'!$N83)+W$12*LOG('Grunddaten-IVA'!$G83)+W$13*LOG('Grunddaten-IVA'!$L83) ->  | X56: =X$10+X$11*LOG('Grunddaten-IVA'!$N83)+X$12*LOG('Grunddaten-IVA'!$G83)+X$13*LOG('Grunddaten-IVA'!$L83) ->  | Y56: =Y$10+Y$11*LOG('Grunddaten-IVA'!$N83)+Y$12*LOG('Grunddaten-IVA'!$G83)+Y$13*LOG('Grunddaten-IVA'!$L83) ->  | Z56: =Z$10+Z$11*LOG('Grunddaten-IVA'!$N83)+Z$12*LOG('Grunddaten-IVA'!$G83)+Z$13*LOG('Grunddaten-IVA'!$L83) -> 
F57: =F$10+F$11*LOG('Grunddaten-IVA'!$N84)+F$12*LOG('Grunddaten-IVA'!$G84)+F$13*LOG('Grunddaten-IVA'!$L84) ->  | G57: =G$10+G$11*LOG('Grunddaten-IVA'!$N84)+G$12*LOG('Grunddaten-IVA'!$G84)+G$13*LOG('Grunddaten-IVA'!$L84) ->  | H57: =H$10+H$11*LOG('Grunddaten-IVA'!$N84)+H$12*LOG('Grunddaten-IVA'!$G84)+H$13*LOG('Grunddaten-IVA'!$L84) ->  | I57: =I$10+I$11*LOG('Grunddaten-IVA'!$N84)+I$12*LOG('Grunddaten-IVA'!$G84)+I$13*LOG('Grunddaten-IVA'!$L84) ->  | J57: =J$10+J$11*LOG('Grunddaten-IVA'!$N84)+J$12*LOG('Grunddaten-IVA'!$G84)+J$13*LOG('Grunddaten-IVA'!$L84) ->  | K57: =K$10+K$11*LOG('Grunddaten-IVA'!$N84)+K$12*LOG('Grunddaten-IVA'!$G84)+K$13*LOG('Grunddaten-IVA'!$L84) ->  | L57: =L$10+L$11*LOG('Grunddaten-IVA'!$N84)+L$12*LOG('Grunddaten-IVA'!$G84)+L$13*LOG('Grunddaten-IVA'!$L84) ->  | M57: =M$10+M$11*LOG('Grunddaten-IVA'!$N84)+M$12*LOG('Grunddaten-IVA'!$G84)+M$13*LOG('Grunddaten-IVA'!$L84) ->  | N57: =N$10+N$11*LOG('Grunddaten-IVA'!$N84)+N$12*LOG('Grunddaten-IVA'!$G84)+N$13*LOG('Grunddaten-IVA'!$L84) ->  | O57: =O$10+O$11*LOG('Grunddaten-IVA'!$N84)+O$12*LOG('Grunddaten-IVA'!$G84)+O$13*LOG('Grunddaten-IVA'!$L84) ->  | P57: =P$10+P$11*LOG('Grunddaten-IVA'!$N84)+P$12*LOG('Grunddaten-IVA'!$G84)+P$13*LOG('Grunddaten-IVA'!$L84) ->  | Q57: =Q$10+Q$11*LOG('Grunddaten-IVA'!$N84)+Q$12*LOG('Grunddaten-IVA'!$G84)+Q$13*LOG('Grunddaten-IVA'!$L84) ->  | R57: =R$10+R$11*LOG('Grunddaten-IVA'!$N84)+R$12*LOG('Grunddaten-IVA'!$G84)+R$13*LOG('Grunddaten-IVA'!$L84) ->  | S57: =S$10+S$11*LOG('Grunddaten-IVA'!$N84)+S$12*LOG('Grunddaten-IVA'!$G84)+S$13*LOG('Grunddaten-IVA'!$L84) ->  | T57: =T$10+T$11*LOG('Grunddaten-IVA'!$N84)+T$12*LOG('Grunddaten-IVA'!$G84)+T$13*LOG('Grunddaten-IVA'!$L84) ->  | U57: =U$10+U$11*LOG('Grunddaten-IVA'!$N84)+U$12*LOG('Grunddaten-IVA'!$G84)+U$13*LOG('Grunddaten-IVA'!$L84) ->  | V57: =V$10+V$11*LOG('Grunddaten-IVA'!$N84)+V$12*LOG('Grunddaten-IVA'!$G84)+V$13*LOG('Grunddaten-IVA'!$L84) ->  | W57: =W$10+W$11*LOG('Grunddaten-IVA'!$N84)+W$12*LOG('Grunddaten-IVA'!$G84)+W$13*LOG('Grunddaten-IVA'!$L84) ->  | X57: =X$10+X$11*LOG('Grunddaten-IVA'!$N84)+X$12*LOG('Grunddaten-IVA'!$G84)+X$13*LOG('Grunddaten-IVA'!$L84) ->  | Y57: =Y$10+Y$11*LOG('Grunddaten-IVA'!$N84)+Y$12*LOG('Grunddaten-IVA'!$G84)+Y$13*LOG('Grunddaten-IVA'!$L84) ->  | Z57: =Z$10+Z$11*LOG('Grunddaten-IVA'!$N84)+Z$12*LOG('Grunddaten-IVA'!$G84)+Z$13*LOG('Grunddaten-IVA'!$L84) -> 
F58: =F$10+F$11*LOG('Grunddaten-IVA'!$N85)+F$12*LOG('Grunddaten-IVA'!$G85)+F$13*LOG('Grunddaten-IVA'!$L85) ->  | G58: =G$10+G$11*LOG('Grunddaten-IVA'!$N85)+G$12*LOG('Grunddaten-IVA'!$G85)+G$13*LOG('Grunddaten-IVA'!$L85) ->  | H58: =H$10+H$11*LOG('Grunddaten-IVA'!$N85)+H$12*LOG('Grunddaten-IVA'!$G85)+H$13*LOG('Grunddaten-IVA'!$L85) ->  | I58: =I$10+I$11*LOG('Grunddaten-IVA'!$N85)+I$12*LOG('Grunddaten-IVA'!$G85)+I$13*LOG('Grunddaten-IVA'!$L85) ->  | J58: =J$10+J$11*LOG('Grunddaten-IVA'!$N85)+J$12*LOG('Grunddaten-IVA'!$G85)+J$13*LOG('Grunddaten-IVA'!$L85) ->  | K58: =K$10+K$11*LOG('Grunddaten-IVA'!$N85)+K$12*LOG('Grunddaten-IVA'!$G85)+K$13*LOG('Grunddaten-IVA'!$L85) ->  | L58: =L$10+L$11*LOG('Grunddaten-IVA'!$N85)+L$12*LOG('Grunddaten-IVA'!$G85)+L$13*LOG('Grunddaten-IVA'!$L85) ->  | M58: =M$10+M$11*LOG('Grunddaten-IVA'!$N85)+M$12*LOG('Grunddaten-IVA'!$G85)+M$13*LOG('Grunddaten-IVA'!$L85) ->  | N58: =N$10+N$11*LOG('Grunddaten-IVA'!$N85)+N$12*LOG('Grunddaten-IVA'!$G85)+N$13*LOG('Grunddaten-IVA'!$L85) ->  | O58: =O$10+O$11*LOG('Grunddaten-IVA'!$N85)+O$12*LOG('Grunddaten-IVA'!$G85)+O$13*LOG('Grunddaten-IVA'!$L85) ->  | P58: =P$10+P$11*LOG('Grunddaten-IVA'!$N85)+P$12*LOG('Grunddaten-IVA'!$G85)+P$13*LOG('Grunddaten-IVA'!$L85) ->  | Q58: =Q$10+Q$11*LOG('Grunddaten-IVA'!$N85)+Q$12*LOG('Grunddaten-IVA'!$G85)+Q$13*LOG('Grunddaten-IVA'!$L85) ->  | R58: =R$10+R$11*LOG('Grunddaten-IVA'!$N85)+R$12*LOG('Grunddaten-IVA'!$G85)+R$13*LOG('Grunddaten-IVA'!$L85) ->  | S58: =S$10+S$11*LOG('Grunddaten-IVA'!$N85)+S$12*LOG('Grunddaten-IVA'!$G85)+S$13*LOG('Grunddaten-IVA'!$L85) ->  | T58: =T$10+T$11*LOG('Grunddaten-IVA'!$N85)+T$12*LOG('Grunddaten-IVA'!$G85)+T$13*LOG('Grunddaten-IVA'!$L85) ->  | U58: =U$10+U$11*LOG('Grunddaten-IVA'!$N85)+U$12*LOG('Grunddaten-IVA'!$G85)+U$13*LOG('Grunddaten-IVA'!$L85) ->  | V58: =V$10+V$11*LOG('Grunddaten-IVA'!$N85)+V$12*LOG('Grunddaten-IVA'!$G85)+V$13*LOG('Grunddaten-IVA'!$L85) ->  | W58: =W$10+W$11*LOG('Grunddaten-IVA'!$N85)+W$12*LOG('Grunddaten-IVA'!$G85)+W$13*LOG('Grunddaten-IVA'!$L85) ->  | X58: =X$10+X$11*LOG('Grunddaten-IVA'!$N85)+X$12*LOG('Grunddaten-IVA'!$G85)+X$13*LOG('Grunddaten-IVA'!$L85) ->  | Y58: =Y$10+Y$11*LOG('Grunddaten-IVA'!$N85)+Y$12*LOG('Grunddaten-IVA'!$G85)+Y$13*LOG('Grunddaten-IVA'!$L85) ->  | Z58: =Z$10+Z$11*LOG('Grunddaten-IVA'!$N85)+Z$12*LOG('Grunddaten-IVA'!$G85)+Z$13*LOG('Grunddaten-IVA'!$L85) -> 
F59: =F$10+F$11*LOG('Grunddaten-IVA'!$N86)+F$12*LOG('Grunddaten-IVA'!$G86)+F$13*LOG('Grunddaten-IVA'!$L86) ->  | G59: =G$10+G$11*LOG('Grunddaten-IVA'!$N86)+G$12*LOG('Grunddaten-IVA'!$G86)+G$13*LOG('Grunddaten-IVA'!$L86) ->  | H59: =H$10+H$11*LOG('Grunddaten-IVA'!$N86)+H$12*LOG('Grunddaten-IVA'!$G86)+H$13*LOG('Grunddaten-IVA'!$L86) ->  | I59: =I$10+I$11*LOG('Grunddaten-IVA'!$N86)+I$12*LOG('Grunddaten-IVA'!$G86)+I$13*LOG('Grunddaten-IVA'!$L86) ->  | J59: =J$10+J$11*LOG('Grunddaten-IVA'!$N86)+J$12*LOG('Grunddaten-IVA'!$G86)+J$13*LOG('Grunddaten-IVA'!$L86) ->  | K59: =K$10+K$11*LOG('Grunddaten-IVA'!$N86)+K$12*LOG('Grunddaten-IVA'!$G86)+K$13*LOG('Grunddaten-IVA'!$L86) ->  | L59: =L$10+L$11*LOG('Grunddaten-IVA'!$N86)+L$12*LOG('Grunddaten-IVA'!$G86)+L$13*LOG('Grunddaten-IVA'!$L86) ->  | M59: =M$10+M$11*LOG('Grunddaten-IVA'!$N86)+M$12*LOG('Grunddaten-IVA'!$G86)+M$13*LOG('Grunddaten-IVA'!$L86) ->  | N59: =N$10+N$11*LOG('Grunddaten-IVA'!$N86)+N$12*LOG('Grunddaten-IVA'!$G86)+N$13*LOG('Grunddaten-IVA'!$L86) ->  | O59: =O$10+O$11*LOG('Grunddaten-IVA'!$N86)+O$12*LOG('Grunddaten-IVA'!$G86)+O$13*LOG('Grunddaten-IVA'!$L86) ->  | P59: =P$10+P$11*LOG('Grunddaten-IVA'!$N86)+P$12*LOG('Grunddaten-IVA'!$G86)+P$13*LOG('Grunddaten-IVA'!$L86) ->  | Q59: =Q$10+Q$11*LOG('Grunddaten-IVA'!$N86)+Q$12*LOG('Grunddaten-IVA'!$G86)+Q$13*LOG('Grunddaten-IVA'!$L86) ->  | R59: =R$10+R$11*LOG('Grunddaten-IVA'!$N86)+R$12*LOG('Grunddaten-IVA'!$G86)+R$13*LOG('Grunddaten-IVA'!$L86) ->  | S59: =S$10+S$11*LOG('Grunddaten-IVA'!$N86)+S$12*LOG('Grunddaten-IVA'!$G86)+S$13*LOG('Grunddaten-IVA'!$L86) ->  | T59: =T$10+T$11*LOG('Grunddaten-IVA'!$N86)+T$12*LOG('Grunddaten-IVA'!$G86)+T$13*LOG('Grunddaten-IVA'!$L86) ->  | U59: =U$10+U$11*LOG('Grunddaten-IVA'!$N86)+U$12*LOG('Grunddaten-IVA'!$G86)+U$13*LOG('Grunddaten-IVA'!$L86) ->  | V59: =V$10+V$11*LOG('Grunddaten-IVA'!$N86)+V$12*LOG('Grunddaten-IVA'!$G86)+V$13*LOG('Grunddaten-IVA'!$L86) ->  | W59: =W$10+W$11*LOG('Grunddaten-IVA'!$N86)+W$12*LOG('Grunddaten-IVA'!$G86)+W$13*LOG('Grunddaten-IVA'!$L86) ->  | X59: =X$10+X$11*LOG('Grunddaten-IVA'!$N86)+X$12*LOG('Grunddaten-IVA'!$G86)+X$13*LOG('Grunddaten-IVA'!$L86) ->  | Y59: =Y$10+Y$11*LOG('Grunddaten-IVA'!$N86)+Y$12*LOG('Grunddaten-IVA'!$G86)+Y$13*LOG('Grunddaten-IVA'!$L86) ->  | Z59: =Z$10+Z$11*LOG('Grunddaten-IVA'!$N86)+Z$12*LOG('Grunddaten-IVA'!$G86)+Z$13*LOG('Grunddaten-IVA'!$L86) -> 
F60: =F$10+F$11*LOG('Grunddaten-IVA'!$N87)+F$12*LOG('Grunddaten-IVA'!$G87)+F$13*LOG('Grunddaten-IVA'!$L87) ->  | G60: =G$10+G$11*LOG('Grunddaten-IVA'!$N87)+G$12*LOG('Grunddaten-IVA'!$G87)+G$13*LOG('Grunddaten-IVA'!$L87) ->  | H60: =H$10+H$11*LOG('Grunddaten-IVA'!$N87)+H$12*LOG('Grunddaten-IVA'!$G87)+H$13*LOG('Grunddaten-IVA'!$L87) ->  | I60: =I$10+I$11*LOG('Grunddaten-IVA'!$N87)+I$12*LOG('Grunddaten-IVA'!$G87)+I$13*LOG('Grunddaten-IVA'!$L87) ->  | J60: =J$10+J$11*LOG('Grunddaten-IVA'!$N87)+J$12*LOG('Grunddaten-IVA'!$G87)+J$13*LOG('Grunddaten-IVA'!$L87) ->  | K60: =K$10+K$11*LOG('Grunddaten-IVA'!$N87)+K$12*LOG('Grunddaten-IVA'!$G87)+K$13*LOG('Grunddaten-IVA'!$L87) ->  | L60: =L$10+L$11*LOG('Grunddaten-IVA'!$N87)+L$12*LOG('Grunddaten-IVA'!$G87)+L$13*LOG('Grunddaten-IVA'!$L87) ->  | M60: =M$10+M$11*LOG('Grunddaten-IVA'!$N87)+M$12*LOG('Grunddaten-IVA'!$G87)+M$13*LOG('Grunddaten-IVA'!$L87) ->  | N60: =N$10+N$11*LOG('Grunddaten-IVA'!$N87)+N$12*LOG('Grunddaten-IVA'!$G87)+N$13*LOG('Grunddaten-IVA'!$L87) ->  | O60: =O$10+O$11*LOG('Grunddaten-IVA'!$N87)+O$12*LOG('Grunddaten-IVA'!$G87)+O$13*LOG('Grunddaten-IVA'!$L87) ->  | P60: =P$10+P$11*LOG('Grunddaten-IVA'!$N87)+P$12*LOG('Grunddaten-IVA'!$G87)+P$13*LOG('Grunddaten-IVA'!$L87) ->  | Q60: =Q$10+Q$11*LOG('Grunddaten-IVA'!$N87)+Q$12*LOG('Grunddaten-IVA'!$G87)+Q$13*LOG('Grunddaten-IVA'!$L87) ->  | R60: =R$10+R$11*LOG('Grunddaten-IVA'!$N87)+R$12*LOG('Grunddaten-IVA'!$G87)+R$13*LOG('Grunddaten-IVA'!$L87) ->  | S60: =S$10+S$11*LOG('Grunddaten-IVA'!$N87)+S$12*LOG('Grunddaten-IVA'!$G87)+S$13*LOG('Grunddaten-IVA'!$L87) ->  | T60: =T$10+T$11*LOG('Grunddaten-IVA'!$N87)+T$12*LOG('Grunddaten-IVA'!$G87)+T$13*LOG('Grunddaten-IVA'!$L87) ->  | U60: =U$10+U$11*LOG('Grunddaten-IVA'!$N87)+U$12*LOG('Grunddaten-IVA'!$G87)+U$13*LOG('Grunddaten-IVA'!$L87) ->  | V60: =V$10+V$11*LOG('Grunddaten-IVA'!$N87)+V$12*LOG('Grunddaten-IVA'!$G87)+V$13*LOG('Grunddaten-IVA'!$L87) ->  | W60: =W$10+W$11*LOG('Grunddaten-IVA'!$N87)+W$12*LOG('Grunddaten-IVA'!$G87)+W$13*LOG('Grunddaten-IVA'!$L87) ->  | X60: =X$10+X$11*LOG('Grunddaten-IVA'!$N87)+X$12*LOG('Grunddaten-IVA'!$G87)+X$13*LOG('Grunddaten-IVA'!$L87) ->  | Y60: =Y$10+Y$11*LOG('Grunddaten-IVA'!$N87)+Y$12*LOG('Grunddaten-IVA'!$G87)+Y$13*LOG('Grunddaten-IVA'!$L87) ->  | Z60: =Z$10+Z$11*LOG('Grunddaten-IVA'!$N87)+Z$12*LOG('Grunddaten-IVA'!$G87)+Z$13*LOG('Grunddaten-IVA'!$L87) -> 
F61: =F$10+F$11*LOG('Grunddaten-IVA'!$N88)+F$12*LOG('Grunddaten-IVA'!$G88)+F$13*LOG('Grunddaten-IVA'!$L88) ->  | G61: =G$10+G$11*LOG('Grunddaten-IVA'!$N88)+G$12*LOG('Grunddaten-IVA'!$G88)+G$13*LOG('Grunddaten-IVA'!$L88) ->  | H61: =H$10+H$11*LOG('Grunddaten-IVA'!$N88)+H$12*LOG('Grunddaten-IVA'!$G88)+H$13*LOG('Grunddaten-IVA'!$L88) ->  | I61: =I$10+I$11*LOG('Grunddaten-IVA'!$N88)+I$12*LOG('Grunddaten-IVA'!$G88)+I$13*LOG('Grunddaten-IVA'!$L88) ->  | J61: =J$10+J$11*LOG('Grunddaten-IVA'!$N88)+J$12*LOG('Grunddaten-IVA'!$G88)+J$13*LOG('Grunddaten-IVA'!$L88) ->  | K61: =K$10+K$11*LOG('Grunddaten-IVA'!$N88)+K$12*LOG('Grunddaten-IVA'!$G88)+K$13*LOG('Grunddaten-IVA'!$L88) ->  | L61: =L$10+L$11*LOG('Grunddaten-IVA'!$N88)+L$12*LOG('Grunddaten-IVA'!$G88)+L$13*LOG('Grunddaten-IVA'!$L88) ->  | M61: =M$10+M$11*LOG('Grunddaten-IVA'!$N88)+M$12*LOG('Grunddaten-IVA'!$G88)+M$13*LOG('Grunddaten-IVA'!$L88) ->  | N61: =N$10+N$11*LOG('Grunddaten-IVA'!$N88)+N$12*LOG('Grunddaten-IVA'!$G88)+N$13*LOG('Grunddaten-IVA'!$L88) ->  | O61: =O$10+O$11*LOG('Grunddaten-IVA'!$N88)+O$12*LOG('Grunddaten-IVA'!$G88)+O$13*LOG('Grunddaten-IVA'!$L88) ->  | P61: =P$10+P$11*LOG('Grunddaten-IVA'!$N88)+P$12*LOG('Grunddaten-IVA'!$G88)+P$13*LOG('Grunddaten-IVA'!$L88) ->  | Q61: =Q$10+Q$11*LOG('Grunddaten-IVA'!$N88)+Q$12*LOG('Grunddaten-IVA'!$G88)+Q$13*LOG('Grunddaten-IVA'!$L88) ->  | R61: =R$10+R$11*LOG('Grunddaten-IVA'!$N88)+R$12*LOG('Grunddaten-IVA'!$G88)+R$13*LOG('Grunddaten-IVA'!$L88) ->  | S61: =S$10+S$11*LOG('Grunddaten-IVA'!$N88)+S$12*LOG('Grunddaten-IVA'!$G88)+S$13*LOG('Grunddaten-IVA'!$L88) ->  | T61: =T$10+T$11*LOG('Grunddaten-IVA'!$N88)+T$12*LOG('Grunddaten-IVA'!$G88)+T$13*LOG('Grunddaten-IVA'!$L88) ->  | U61: =U$10+U$11*LOG('Grunddaten-IVA'!$N88)+U$12*LOG('Grunddaten-IVA'!$G88)+U$13*LOG('Grunddaten-IVA'!$L88) ->  | V61: =V$10+V$11*LOG('Grunddaten-IVA'!$N88)+V$12*LOG('Grunddaten-IVA'!$G88)+V$13*LOG('Grunddaten-IVA'!$L88) ->  | W61: =W$10+W$11*LOG('Grunddaten-IVA'!$N88)+W$12*LOG('Grunddaten-IVA'!$G88)+W$13*LOG('Grunddaten-IVA'!$L88) ->  | X61: =X$10+X$11*LOG('Grunddaten-IVA'!$N88)+X$12*LOG('Grunddaten-IVA'!$G88)+X$13*LOG('Grunddaten-IVA'!$L88) ->  | Y61: =Y$10+Y$11*LOG('Grunddaten-IVA'!$N88)+Y$12*LOG('Grunddaten-IVA'!$G88)+Y$13*LOG('Grunddaten-IVA'!$L88) ->  | Z61: =Z$10+Z$11*LOG('Grunddaten-IVA'!$N88)+Z$12*LOG('Grunddaten-IVA'!$G88)+Z$13*LOG('Grunddaten-IVA'!$L88) -> 
F62: =F$10+F$11*LOG('Grunddaten-IVA'!$N89)+F$12*LOG('Grunddaten-IVA'!$G89)+F$13*LOG('Grunddaten-IVA'!$L89) ->  | G62: =G$10+G$11*LOG('Grunddaten-IVA'!$N89)+G$12*LOG('Grunddaten-IVA'!$G89)+G$13*LOG('Grunddaten-IVA'!$L89) ->  | H62: =H$10+H$11*LOG('Grunddaten-IVA'!$N89)+H$12*LOG('Grunddaten-IVA'!$G89)+H$13*LOG('Grunddaten-IVA'!$L89) ->  | I62: =I$10+I$11*LOG('Grunddaten-IVA'!$N89)+I$12*LOG('Grunddaten-IVA'!$G89)+I$13*LOG('Grunddaten-IVA'!$L89) ->  | J62: =J$10+J$11*LOG('Grunddaten-IVA'!$N89)+J$12*LOG('Grunddaten-IVA'!$G89)+J$13*LOG('Grunddaten-IVA'!$L89) ->  | K62: =K$10+K$11*LOG('Grunddaten-IVA'!$N89)+K$12*LOG('Grunddaten-IVA'!$G89)+K$13*LOG('Grunddaten-IVA'!$L89) ->  | L62: =L$10+L$11*LOG('Grunddaten-IVA'!$N89)+L$12*LOG('Grunddaten-IVA'!$G89)+L$13*LOG('Grunddaten-IVA'!$L89) ->  | M62: =M$10+M$11*LOG('Grunddaten-IVA'!$N89)+M$12*LOG('Grunddaten-IVA'!$G89)+M$13*LOG('Grunddaten-IVA'!$L89) ->  | N62: =N$10+N$11*LOG('Grunddaten-IVA'!$N89)+N$12*LOG('Grunddaten-IVA'!$G89)+N$13*LOG('Grunddaten-IVA'!$L89) ->  | O62: =O$10+O$11*LOG('Grunddaten-IVA'!$N89)+O$12*LOG('Grunddaten-IVA'!$G89)+O$13*LOG('Grunddaten-IVA'!$L89) ->  | P62: =P$10+P$11*LOG('Grunddaten-IVA'!$N89)+P$12*LOG('Grunddaten-IVA'!$G89)+P$13*LOG('Grunddaten-IVA'!$L89) ->  | Q62: =Q$10+Q$11*LOG('Grunddaten-IVA'!$N89)+Q$12*LOG('Grunddaten-IVA'!$G89)+Q$13*LOG('Grunddaten-IVA'!$L89) ->  | R62: =R$10+R$11*LOG('Grunddaten-IVA'!$N89)+R$12*LOG('Grunddaten-IVA'!$G89)+R$13*LOG('Grunddaten-IVA'!$L89) ->  | S62: =S$10+S$11*LOG('Grunddaten-IVA'!$N89)+S$12*LOG('Grunddaten-IVA'!$G89)+S$13*LOG('Grunddaten-IVA'!$L89) ->  | T62: =T$10+T$11*LOG('Grunddaten-IVA'!$N89)+T$12*LOG('Grunddaten-IVA'!$G89)+T$13*LOG('Grunddaten-IVA'!$L89) ->  | U62: =U$10+U$11*LOG('Grunddaten-IVA'!$N89)+U$12*LOG('Grunddaten-IVA'!$G89)+U$13*LOG('Grunddaten-IVA'!$L89) ->  | V62: =V$10+V$11*LOG('Grunddaten-IVA'!$N89)+V$12*LOG('Grunddaten-IVA'!$G89)+V$13*LOG('Grunddaten-IVA'!$L89) ->  | W62: =W$10+W$11*LOG('Grunddaten-IVA'!$N89)+W$12*LOG('Grunddaten-IVA'!$G89)+W$13*LOG('Grunddaten-IVA'!$L89) ->  | X62: =X$10+X$11*LOG('Grunddaten-IVA'!$N89)+X$12*LOG('Grunddaten-IVA'!$G89)+X$13*LOG('Grunddaten-IVA'!$L89) ->  | Y62: =Y$10+Y$11*LOG('Grunddaten-IVA'!$N89)+Y$12*LOG('Grunddaten-IVA'!$G89)+Y$13*LOG('Grunddaten-IVA'!$L89) ->  | Z62: =Z$10+Z$11*LOG('Grunddaten-IVA'!$N89)+Z$12*LOG('Grunddaten-IVA'!$G89)+Z$13*LOG('Grunddaten-IVA'!$L89) -> 
F63: =F$10+F$11*LOG('Grunddaten-IVA'!$N90)+F$12*LOG('Grunddaten-IVA'!$G90)+F$13*LOG('Grunddaten-IVA'!$L90) ->  | G63: =G$10+G$11*LOG('Grunddaten-IVA'!$N90)+G$12*LOG('Grunddaten-IVA'!$G90)+G$13*LOG('Grunddaten-IVA'!$L90) ->  | H63: =H$10+H$11*LOG('Grunddaten-IVA'!$N90)+H$12*LOG('Grunddaten-IVA'!$G90)+H$13*LOG('Grunddaten-IVA'!$L90) ->  | I63: =I$10+I$11*LOG('Grunddaten-IVA'!$N90)+I$12*LOG('Grunddaten-IVA'!$G90)+I$13*LOG('Grunddaten-IVA'!$L90) ->  | J63: =J$10+J$11*LOG('Grunddaten-IVA'!$N90)+J$12*LOG('Grunddaten-IVA'!$G90)+J$13*LOG('Grunddaten-IVA'!$L90) ->  | K63: =K$10+K$11*LOG('Grunddaten-IVA'!$N90)+K$12*LOG('Grunddaten-IVA'!$G90)+K$13*LOG('Grunddaten-IVA'!$L90) ->  | L63: =L$10+L$11*LOG('Grunddaten-IVA'!$N90)+L$12*LOG('Grunddaten-IVA'!$G90)+L$13*LOG('Grunddaten-IVA'!$L90) ->  | M63: =M$10+M$11*LOG('Grunddaten-IVA'!$N90)+M$12*LOG('Grunddaten-IVA'!$G90)+M$13*LOG('Grunddaten-IVA'!$L90) ->  | N63: =N$10+N$11*LOG('Grunddaten-IVA'!$N90)+N$12*LOG('Grunddaten-IVA'!$G90)+N$13*LOG('Grunddaten-IVA'!$L90) ->  | O63: =O$10+O$11*LOG('Grunddaten-IVA'!$N90)+O$12*LOG('Grunddaten-IVA'!$G90)+O$13*LOG('Grunddaten-IVA'!$L90) ->  | P63: =P$10+P$11*LOG('Grunddaten-IVA'!$N90)+P$12*LOG('Grunddaten-IVA'!$G90)+P$13*LOG('Grunddaten-IVA'!$L90) ->  | Q63: =Q$10+Q$11*LOG('Grunddaten-IVA'!$N90)+Q$12*LOG('Grunddaten-IVA'!$G90)+Q$13*LOG('Grunddaten-IVA'!$L90) ->  | R63: =R$10+R$11*LOG('Grunddaten-IVA'!$N90)+R$12*LOG('Grunddaten-IVA'!$G90)+R$13*LOG('Grunddaten-IVA'!$L90) ->  | S63: =S$10+S$11*LOG('Grunddaten-IVA'!$N90)+S$12*LOG('Grunddaten-IVA'!$G90)+S$13*LOG('Grunddaten-IVA'!$L90) ->  | T63: =T$10+T$11*LOG('Grunddaten-IVA'!$N90)+T$12*LOG('Grunddaten-IVA'!$G90)+T$13*LOG('Grunddaten-IVA'!$L90) ->  | U63: =U$10+U$11*LOG('Grunddaten-IVA'!$N90)+U$12*LOG('Grunddaten-IVA'!$G90)+U$13*LOG('Grunddaten-IVA'!$L90) ->  | V63: =V$10+V$11*LOG('Grunddaten-IVA'!$N90)+V$12*LOG('Grunddaten-IVA'!$G90)+V$13*LOG('Grunddaten-IVA'!$L90) ->  | W63: =W$10+W$11*LOG('Grunddaten-IVA'!$N90)+W$12*LOG('Grunddaten-IVA'!$G90)+W$13*LOG('Grunddaten-IVA'!$L90) ->  | X63: =X$10+X$11*LOG('Grunddaten-IVA'!$N90)+X$12*LOG('Grunddaten-IVA'!$G90)+X$13*LOG('Grunddaten-IVA'!$L90) ->  | Y63: =Y$10+Y$11*LOG('Grunddaten-IVA'!$N90)+Y$12*LOG('Grunddaten-IVA'!$G90)+Y$13*LOG('Grunddaten-IVA'!$L90) ->  | Z63: =Z$10+Z$11*LOG('Grunddaten-IVA'!$N90)+Z$12*LOG('Grunddaten-IVA'!$G90)+Z$13*LOG('Grunddaten-IVA'!$L90) -> 
F64: =F$10+F$11*LOG('Grunddaten-IVA'!$N91)+F$12*LOG('Grunddaten-IVA'!$G91)+F$13*LOG('Grunddaten-IVA'!$L91) ->  | G64: =G$10+G$11*LOG('Grunddaten-IVA'!$N91)+G$12*LOG('Grunddaten-IVA'!$G91)+G$13*LOG('Grunddaten-IVA'!$L91) ->  | H64: =H$10+H$11*LOG('Grunddaten-IVA'!$N91)+H$12*LOG('Grunddaten-IVA'!$G91)+H$13*LOG('Grunddaten-IVA'!$L91) ->  | I64: =I$10+I$11*LOG('Grunddaten-IVA'!$N91)+I$12*LOG('Grunddaten-IVA'!$G91)+I$13*LOG('Grunddaten-IVA'!$L91) ->  | J64: =J$10+J$11*LOG('Grunddaten-IVA'!$N91)+J$12*LOG('Grunddaten-IVA'!$G91)+J$13*LOG('Grunddaten-IVA'!$L91) ->  | K64: =K$10+K$11*LOG('Grunddaten-IVA'!$N91)+K$12*LOG('Grunddaten-IVA'!$G91)+K$13*LOG('Grunddaten-IVA'!$L91) ->  | L64: =L$10+L$11*LOG('Grunddaten-IVA'!$N91)+L$12*LOG('Grunddaten-IVA'!$G91)+L$13*LOG('Grunddaten-IVA'!$L91) ->  | M64: =M$10+M$11*LOG('Grunddaten-IVA'!$N91)+M$12*LOG('Grunddaten-IVA'!$G91)+M$13*LOG('Grunddaten-IVA'!$L91) ->  | N64: =N$10+N$11*LOG('Grunddaten-IVA'!$N91)+N$12*LOG('Grunddaten-IVA'!$G91)+N$13*LOG('Grunddaten-IVA'!$L91) ->  | O64: =O$10+O$11*LOG('Grunddaten-IVA'!$N91)+O$12*LOG('Grunddaten-IVA'!$G91)+O$13*LOG('Grunddaten-IVA'!$L91) ->  | P64: =P$10+P$11*LOG('Grunddaten-IVA'!$N91)+P$12*LOG('Grunddaten-IVA'!$G91)+P$13*LOG('Grunddaten-IVA'!$L91) ->  | Q64: =Q$10+Q$11*LOG('Grunddaten-IVA'!$N91)+Q$12*LOG('Grunddaten-IVA'!$G91)+Q$13*LOG('Grunddaten-IVA'!$L91) ->  | R64: =R$10+R$11*LOG('Grunddaten-IVA'!$N91)+R$12*LOG('Grunddaten-IVA'!$G91)+R$13*LOG('Grunddaten-IVA'!$L91) ->  | S64: =S$10+S$11*LOG('Grunddaten-IVA'!$N91)+S$12*LOG('Grunddaten-IVA'!$G91)+S$13*LOG('Grunddaten-IVA'!$L91) ->  | T64: =T$10+T$11*LOG('Grunddaten-IVA'!$N91)+T$12*LOG('Grunddaten-IVA'!$G91)+T$13*LOG('Grunddaten-IVA'!$L91) ->  | U64: =U$10+U$11*LOG('Grunddaten-IVA'!$N91)+U$12*LOG('Grunddaten-IVA'!$G91)+U$13*LOG('Grunddaten-IVA'!$L91) ->  | V64: =V$10+V$11*LOG('Grunddaten-IVA'!$N91)+V$12*LOG('Grunddaten-IVA'!$G91)+V$13*LOG('Grunddaten-IVA'!$L91) ->  | W64: =W$10+W$11*LOG('Grunddaten-IVA'!$N91)+W$12*LOG('Grunddaten-IVA'!$G91)+W$13*LOG('Grunddaten-IVA'!$L91) ->  | X64: =X$10+X$11*LOG('Grunddaten-IVA'!$N91)+X$12*LOG('Grunddaten-IVA'!$G91)+X$13*LOG('Grunddaten-IVA'!$L91) ->  | Y64: =Y$10+Y$11*LOG('Grunddaten-IVA'!$N91)+Y$12*LOG('Grunddaten-IVA'!$G91)+Y$13*LOG('Grunddaten-IVA'!$L91) ->  | Z64: =Z$10+Z$11*LOG('Grunddaten-IVA'!$N91)+Z$12*LOG('Grunddaten-IVA'!$G91)+Z$13*LOG('Grunddaten-IVA'!$L91) -> 

Sheet Auslegung-IVA (hidden)
A1: =Übersetzung!F5 -> Auslegung Kampmann Industrieluftdurchlässe
A3: =Übersetzung!F6 -> Eingabefelder sind gelb gekennzeichnet
A4: =Übersetzung!F7 -> Ergebnisfelder sind blau gekennzeichnet
A6: =Übersetzung!F8 -> Vorgaben
A7: =Übersetzung!F9 -> Lüftungstechnik | B7: =Übersetzung!F10 -> Symbol | C7: =Übersetzung!F11 -> Einheit | D7: =Übersetzung!F12 -> Wert
A8: Bezeichung | B8: Symbol | C8: Einheit
B9: L | C9: mm
B10: L | C10: mm
B11: L | C11: mm
A12: =Übersetzung!F13 -> Durchlass Typ | D12: IVA
D13: IVA
D18: 630
A20: =Übersetzung!F46 -> Nenndurchmesser | B20: DN | C20: [-] | D20: 400
D21: 250
D22: 315
D23: 355
D24: 400
D25: 450
D26: 500
D27: 560
D28: 630
A29: =Übersetzung!F16 -> Luftvolumenstrom | B29: V·SUP | C29: =Einheiten!$L$7 -> m³/h | D29: 4000
A30: =Übersetzung!F82 -> Temperaturvorgabe Kühlfall / Heizfall | B30: aK / aH | C30: [°] | D30: Kühlfall | E30: Heizfall
D31: Kühlfall | E31: Heizfall
A37: max. Luftgeschwindigkeit im Aufenthaltsbereich | B37: vMax | C37: m/s | D37: 0.2
A38: =Übersetzung!F18 -> Temperatur Zuluft | B38: tSUP | C38: =Einheiten!$L$9 -> °C | D38: 18 | E38: 30
A39: =Übersetzung!F19 -> Temperatur Raum | B39: tRaum | C39: =Einheiten!$L$9 -> °C | D39: 26 | E39: 20
A40: =Übersetzung!F20 -> Raumdaten
A41: =Übersetzung!F21 -> Montagehöhe | B41: H1 | C41: =Einheiten!$L$5 -> m | D41: 3
A42: =Übersetzung!F22 -> Obergrenze Aufenthaltsbereich | B42: H2 | C42: =Einheiten!$L$5 -> m | D42: 1.8
A43: =Übersetzung!F23 -> Raumlänge | B43: LR | C43: =Einheiten!$L$5 -> m | D43: 100
A44: =Übersetzung!F24 -> Raumbreite | B44: BR | C44: =Einheiten!$L$5 -> m | D44: 100
A45: =Übersetzung!F25 -> Raumhöhe | B45: HR | C45: =Einheiten!$L$5 -> m | D45: 12
A46: Abstand Durchlass zur nächstgelegenen Wand | B46: a | C46: m | D46: 5
A47: kleinster Abstand zwischen 2 Durchlässen | B47: smin | C47: m | D47: 8
A49: Akustikdaten
A50: Raumart nach VDI 2081 | D50: Großraumbüro | I50: 7 | J50: Maximaler Volumenstrom | K50: ='Grunddaten-L'!$I$33 -> 1700 | L50: m³/h
C51: Einzelbüro | I51: 5 | J51: min. Abmessung Frontblende rund | L51: mm
C52: Großraumbüro
C53: Werkstätten
C54: Ruheraum, Pausenraum
C55: Untersuchungsraum Krankenhaus
C56: Rundfunk-, Fernsehstudio
C57: Chemielabor
C58: Wasch- und WC-Raum, Umkleide
C59: Schwimmbad
C60: EDV-Raum
C61: Konzertsaal
C62: Lesesaal
C63: Museum
C64: Küche
C65: Theater, Kino
C66: Klassen- Seminarraum
C67: Gaststätte
C68: kein Typ
C69: Konferenzraum
C70: Hotelzimmer
C71: Hörsaal
C72: Bettenzimmer Krankenhaus
C73: Verkaufsraum
C74: Sporthalle
A75: Betrachteter Durchlass | D75: Zuluft
D76: Zuluft
D77: Abluft
A78: Abstand zur Schallquelle | B78: r | C78: m | D78: 3
A79: =Übersetzung!F26 -> Berechnung strömungstechnische und Akustische Daten | D79: Kühlfall | E79: Heizfall
A80: =Übersetzung!F27 -> Totaldruckverlust | B80: Dpt | C80: =Einheiten!$L$8 -> Pa | D80: =IF(Einheiten!$F$2=3,FIXED(Einheiten!$E$69,3,TRUE),FIXED(Einheiten!$E$69,0,TRUE)) -> 82
A81: =Übersetzung!F83 -> Horizontale Wurfweite | B81: xhor | C81: =Einheiten!$L$5 -> m | D81: =Einheiten!$E$70 -> 3.149172085
A82: Laufweg bis Fußbodenbereich | B82: xx | C82: =Einheiten!$L$5 -> m | D82: =xkr._vx!L24 -> 18.5
A83: Laufweg bis Aufenthaltsbereich nach Stoßpunkt | B83: xx+y | C83: =Einheiten!$L$5 -> m
A84: Laufweg bis Aufenthaltsbereich nach xkrit | B84: xxkr | C84: =Einheiten!$L$5 -> m
A85: Geschwindigkeit im Aufenthaltsbereich | B85: vx1 | C85: =Einheiten!$L$5 -> m | D85: =IF('vx_vy LDI'!$E$32<0.12,"<0,12",'vx_vy LDI'!$E$32) -> 0.1671271525
A86: =IF(D38>D39,"","Zugluftrisiko am Fußboden**") -> Zugluftrisiko am Fußboden** | B86: DR1 | C86: =Einheiten!$L$5 -> m
A87: =Übersetzung!F54 -> Vertikale Eindringtiefe | B87: Ymax | C87: =Einheiten!$L$5 -> m | E87: =Einheiten!$E$71 -> 15.09930851
A88: =IF(D38>D39,"","Zugluftrisiko im Aufenthaltsbereich**") -> Zugluftrisiko im Aufenthaltsbereich** | B88: DR2 | C88: %
A89: =IF(D38>D39,"","Geschwindigkeit nach Ablösen an Xkr.") -> Geschwindigkeit nach Ablösen an Xkr. | B89: vx3 | C89: m/s
A90: =IF(D38>D39,"","Zugluftrisiko nach Ablösepunkt**") -> Zugluftrisiko nach Ablösepunkt** | B90: DR3 | C90: %
A91: Resultierende Raumkategorie | B91: RAL | C91: [-] | D91: =IF(D75="Zuluft",IF(D38>D39,"",IF(AND($D$86<9.95,$D$88<9.95,OR($D$90="",$D$90<9.95)),"A",IF(AND($D$86<19.95,$D$88<19.95,OR($D$90="",$D$90<19.95)),"B",IF(AND($D$86<29.95,$D$88<29.95,OR($D$90="",$D$90<29.95)),"C","Außerhalb C")))),"") -> A
A92: =Übersetzung!F33 -> Schallleistungspegel, Einzeldurchlass | B92: LWA_SUP/ETA | C92: dB(A) | D92: =IF('LW-IVA'!AA16<25,"<25",'LW-IVA'!AA16) -> 59.28879063 | E92: =IF('LW-IVA'!AA15<25,"<25",'LW-IVA'!AA15) -> 56.75136964
A96: =Übersetzung!F34 -> Oktavspektrum Schallleistung [dB] | B96: LW_Okt | C96: dB
B97: LW_125 | C97: dB | D97: =IF($D$92="<25","",'LW-IVA'!$G$22) -> 53.92967604 | E97: =IF($E$92="<25","",'LW-IVA'!$G$21) -> 53.85282531 | J97: =Übersetzung!F84 -> Abmessungen und Einsatzbereich
B98: LW_250 | C98: dB | D98: =IF($D$92="<25","",'LW-IVA'!$H$22) -> 55.21130154 | E98: =IF($E$92="<25","",'LW-IVA'!$H$21) -> 53.36293833 | I98: 1 | J98: =Übersetzung!F46 -> Nenndurchmesser | K98: =IF(Einheiten!$F$2=3,FIXED('Grunddaten-IVA'!$E$33,1,TRUE),FIXED('Grunddaten-IVA'!$E$33,0,TRUE)) -> 398 | L98: =Einheiten!$L$10 -> mm
B99: LW_500 | C99: dB | D99: =IF($D$92="<25","",'LW-IVA'!$I$22) -> 56.35579904 | E99: =IF($E$92="<25","",'LW-IVA'!$I$21) -> 53.40711466 | I99: 2 | J99: =Übersetzung!F42 -> Durchmesser Anschlussstutzen | K99: =IF(Einheiten!$F$2=3,FIXED('Grunddaten-IVA'!$J$33,1,TRUE),FIXED('Grunddaten-IVA'!$J$33,0,TRUE)) -> 398 | L99: =Einheiten!$L$10 -> mm
B100: LW_1000 | C100: dB | D100: =IF($D$92="<25","",'LW-IVA'!$J$22) -> 56.14910503 | E100: =IF($E$92="<25","",'LW-IVA'!$J$21) -> 53.61726888 | I100: 2 | J100: =Übersetzung!F39 -> Minimaler Volumenstrom | K100: ='Grunddaten-IVA'!$H$33 -> 1400 | L100: =Einheiten!$L$7 -> m³/h
B101: LW_2000 | C101: dB | D101: =IF($D$92="<25","",'LW-IVA'!$K$22) -> 50.61658814 | E101: =IF($E$92="<25","",'LW-IVA'!$K$21) -> 47.92039998 | I101: 4 | J101: =Übersetzung!F40 -> Maximaler Volumenstrom | K101: ='Grunddaten-IVA'!$I$33 -> 4500 | L101: =Einheiten!$L$7 -> m³/h
B102: LW_4000 | C102: dB | D102: =IF($D$92="<25","",'LW-IVA'!$L$22) -> 42.84144973 | E102: =IF($E$92="<25","",'LW-IVA'!$L$21) -> 41.55847218 | I102: 5 | J102: =Übersetzung!F85 -> Empfohlene minimale Einbauhöhe | K102: ='Grunddaten-IVA'!$L$33 -> 4 | L102: =Einheiten!$L$5 -> m
B103: LW_8000 | C103: dB | D103: =IF($D$92="<25","",'LW-IVA'!$M$22) -> 34.25739271 | E103: =IF($E$92="<25","",'LW-IVA'!$M$21) -> 35.60784062 | I103: 6 | J103: =Übersetzung!F41 -> Empfohlene maximale Einbauhöhe | K103: ='Grunddaten-IVA'!$M$33 -> 13 | L103: =Einheiten!$L$5 -> m
A105: =Übersetzung!F44 -> Änderungen vorbehalten
A106: =Übersetzung!F45 -> Stand:
A107: ='Grunddaten-IVA'!E36 -> 2020-10-30

Sheet Grunddaten-IVA (hidden)
A1: Typ | B1: DN | D1: Höhe IVA | E1: Durchmesser | F1: Düsendurchmesser | G1: Soll-Volumenstrom | H1: V° Auslegung min | I1: V° Auslegung max | J1: Durchmesser Anschluss | K1: Anströmgeschwindigkeit | L1: Montagehöhe minimal | M1: Montagehöhe maximal | N1: Düsengeschwindigkeit | O1: Totaldruckverlust | P1: Kritischer Strahlweg | Q1: Kritischer Strahlweg | R1: vertikale Eindringtiefe | Z1: Vorauswahl zur Anzeige
B2: Lochbild | D2: l | E2: d | F2: d2 | G2: V° | H2: V°min | I2: V°max | J2: d | K2: v | L2: hmin | M2: hmax | N2: v2 | O2: Dpt | P2: xkrit | Q2: x | R2: ymax | T2: Schallleistungspegel | Y2: Auslass freigegeben?
D3: mm | E3: mm | F3: mm | G3: m³/h | H3: m³/h | I3: m³/h | J3: mm | K3: m/s | L3: m | M3: m | N3: m/s | O3: Pa | P3: m | Q3: mm | R3: m | S3: kleiner als V°max? | T3: K021 | U3: K022 | V3: dB | W3: größer als 0dB(A)? | X3: kleiner als LW,Amax? | AB3: =IF(ROW(AA3)>COUNTA(AA:AA),"",INDEX(AA3:AA28,SMALL(IF(AA$4:AA$29<>"",ROW($4:$29)),ROW($AA3)))) -> 
A4: IVA | B4: 250 | C4: =CONCATENATE(A4,B4) -> IVA250 | D4: 785.5 | E4: 248 | F4: 158 | G4: =Einheiten!$E$58 -> 4000 | H4: 700 | I4: 2300 | J4: 248 | K4: =G4/(PI()/4*('Grunddaten-IVA'!J4/1000)^2*3600) -> 23.00192842 | L4: 3 | M4: 5 | N4: =G4/(PI()*(F4/1000)^2/4*3600) -> 56.67002905 | O4: =$N$39*N4^$N$40 -> 506.022551 | P4: =(($S$39*N4^$S$41)/((Einheiten!$E$60-Einheiten!$E$59)^'Grunddaten-IVA'!$S$40))*'Grunddaten-IVA'!B4^'Grunddaten-IVA'!$S$42 -> 1.253946183 | R4: =$V$39*N4^$V$41*(1/(Einheiten!$E$61-Einheiten!$E$62)^'Grunddaten-IVA'!$V$40)*'Grunddaten-IVA'!B4^'Grunddaten-IVA'!$V$42 -> 19.15163617 | S4: =IF(Vorauswahl!$D$8/Vorauswahl!$D$9<='Grunddaten-IVA'!$I4,"x","") ->  | V4: ='Lw LDI'!K126 -> 375.3040532 | W4: =IF(V4>0,"x","") -> x | X4: =IF(V4<=Vorauswahl!$D$12,"x","") ->  | Y4: x | Z4: =IF(AND(R4="x",S4="x",W4="x",X4="x",Y4="x"),"x","") ->  | AA4: =IF(Z4="x",CONCATENATE(A4," DN ",B4),"") ->  | AB4: =IF(ROW(AA1)>COUNTA(AA:AA),"",INDEX(AA:AA,SMALL(IF(AA$1:AA$29<>"",ROW($1:$29)),ROW($AA1)))) ->  | AC4: =IFERROR(AB4,"") -> 
A5: IVA | B5: 315 | C5: =CONCATENATE(A5,B5) -> IVA315 | D5: 785.5 | E5: 313 | F5: 198 | G5: =Einheiten!$E$58 -> 4000 | H5: 900 | I5: 2900 | J5: 313 | K5: =G5/(PI()/4*('Grunddaten-IVA'!J5/1000)^2*3600) -> 14.44039038 | L5: 3 | M5: 8 | N5: =G5/(PI()*(F5/1000)^2/4*3600) -> 36.08587402 | O5: =$N$39*N5^$N$40 -> 203.2665966 | P5: =(($S$39*N5^$S$41)/((Einheiten!$E$60-Einheiten!$E$59)^'Grunddaten-IVA'!$S$40))*'Grunddaten-IVA'!B5^'Grunddaten-IVA'!$S$42 -> 1.718168604 | R5: =$V$39*N5^$V$41*(1/(Einheiten!$E$61-Einheiten!$E$62)^'Grunddaten-IVA'!$V$40)*'Grunddaten-IVA'!B5^'Grunddaten-IVA'!$V$42 -> 16.92706595 | S5: =IF(Vorauswahl!$D$8/Vorauswahl!$D$9<='Grunddaten-IVA'!$I5,"x","") ->  | V5: ='Lw LDI'!K127 -> 52.78760442 | W5: =IF(V5>0,"x","") -> x | X5: =IF(V5<=Vorauswahl!$D$12,"x","") ->  | Y5: x | Z5: =IF(AND(R5="x",S5="x",W5="x",X5="x",Y5="x"),"x","") ->  | AA5: =IF(Z5="x",CONCATENATE(A5," DN ",B5),"") ->  | AB5: =IF(ROW(AA2)>COUNTA(AA:AA),"",INDEX(AA:AA,SMALL(IF(AA$1:AA$29<>"",ROW($1:$29)),ROW($AA2)))) ->  | AC5: =IFERROR(AB5,"") -> 
A6: IVA | B6: 355 | C6: IVA355 | D6: 843.5 | E6: 353 | F6: 223 | G6: =Einheiten!$E$58 -> 4000 | H6: 1100 | I6: 3800 | J6: 353 | K6: =G6/(PI()/4*('Grunddaten-IVA'!J6/1000)^2*3600) -> 11.35319764 | L6: 4 | M6: 10 | N6: 28.44840245 | O6: =$N$39*N6^$N$40 -> 125.7077677 | P6: =(($S$39*N6^$S$41)/((Einheiten!$E$60-Einheiten!$E$59)^'Grunddaten-IVA'!$S$40))*'Grunddaten-IVA'!B6^'Grunddaten-IVA'!$S$42 -> 2.018701964 | R6: =$V$39*N6^$V$41*(1/(Einheiten!$E$61-Einheiten!$E$62)^'Grunddaten-IVA'!$V$40)*'Grunddaten-IVA'!B6^'Grunddaten-IVA'!$V$42 -> 15.822965 | S6: =IF(Vorauswahl!$D$8/Vorauswahl!$D$9<='Grunddaten-IVA'!$I6,"x","") ->  | V6: ='Lw LDI'!K128 -> 41.71133067 | W6: x | X6: =IF(V6<=Vorauswahl!$D$12,"x","") ->  | Y6: x | AB6: =IF(ROW(AA3)>COUNTA(AA:AA),"",INDEX(AA:AA,SMALL(IF(AA$1:AA$29<>"",ROW($1:$29)),ROW($AA3)))) -> 
A7: IVA | B7: 400 | C7: IVA400 | D7: 843.5 | E7: 398 | F7: 248 | G7: =Einheiten!$E$58 -> 4000 | H7: 1400 | I7: 4500 | J7: 398 | K7: =G7/(PI()/4*('Grunddaten-IVA'!J7/1000)^2*3600) -> 8.93102829 | L7: 4 | M7: 13 | N7: 23.00192842 | O7: 81.81968757 | P7: =(($S$39*N7^$S$41)/((Einheiten!$E$60-Einheiten!$E$59)^'Grunddaten-IVA'!$S$40))*'Grunddaten-IVA'!B7^'Grunddaten-IVA'!$S$42 -> 2.394684367 | R7: =$V$39*N7^$V$41*(1/(Einheiten!$E$61-Einheiten!$E$62)^'Grunddaten-IVA'!$V$40)*'Grunddaten-IVA'!B7^'Grunddaten-IVA'!$V$42 -> 15.09930851 | S7: =IF(Vorauswahl!$D$8/Vorauswahl!$D$9<='Grunddaten-IVA'!$I7,"x","") ->  | V7: ='Lw LDI'!K129 -> 63.30357229 | W7: x | X7: =IF(V7<=Vorauswahl!$D$12,"x","") ->  | Y7: x | AB7: =IF(ROW(AA4)>COUNTA(AA:AA),"",INDEX(AA:AA,SMALL(IF(AA$1:AA$29<>"",ROW($1:$29)),ROW($AA4)))) -> 
A8: IVA | B8: 450 | C8: IVA450 | D8: 843.5 | E8: 448 | F8: 278 | G8: =Einheiten!$E$58 -> 4000 | H8: 1700 | I8: 5000 | J8: 448 | K8: =G8/(PI()/4*('Grunddaten-IVA'!J8/1000)^2*3600) -> 7.048741456 | L8: 4.5 | M8: 15 | N8: 18.30534917 | O8: 51.57332884 | P8: =(($S$39*N8^$S$41)/((Einheiten!$E$60-Einheiten!$E$59)^'Grunddaten-IVA'!$S$40))*'Grunddaten-IVA'!B8^'Grunddaten-IVA'!$S$42 -> 2.813465666 | R8: =$V$39*N8^$V$41*(1/(Einheiten!$E$61-Einheiten!$E$62)^'Grunddaten-IVA'!$V$40)*'Grunddaten-IVA'!B8^'Grunddaten-IVA'!$V$42 -> 14.19757434 | S8: =IF(Vorauswahl!$D$8/Vorauswahl!$D$9<='Grunddaten-IVA'!$I8,"x","") ->  | V8: ='Lw LDI'!K130 -> 39.03025199 | W8: x | X8: =IF(V8<=Vorauswahl!$D$12,"x","") ->  | Y8: x | AB8: =IF(ROW(AA5)>COUNTA(AA:AA),"",INDEX(AA:AA,SMALL(IF(AA$1:AA$29<>"",ROW($1:$29)),ROW($AA5)))) -> 
A9: IVA | B9: 500 | C9: IVA500 | D9: 951.5 | E9: 498 | F9: 313 | G9: =Einheiten!$E$58 -> 4000 | H9: 2100 | I9: 6500 | J9: 498 | K9: =G9/(PI()/4*('Grunddaten-IVA'!J9/1000)^2*3600) -> 5.704386241 | L9: 5 | M9: 18 | N9: 14.44039038 | O9: 31.93652132 | P9: =(($S$39*N9^$S$41)/((Einheiten!$E$60-Einheiten!$E$59)^'Grunddaten-IVA'!$S$40))*'Grunddaten-IVA'!B9^'Grunddaten-IVA'!$S$42 -> 3.207715677 | R9: =$V$39*N9^$V$41*(1/(Einheiten!$E$61-Einheiten!$E$62)^'Grunddaten-IVA'!$V$40)*'Grunddaten-IVA'!B9^'Grunddaten-IVA'!$V$42 -> 13.07752496 | S9: =IF(Vorauswahl!$D$8/Vorauswahl!$D$9<='Grunddaten-IVA'!$I9,"x","") ->  | V9: ='Lw LDI'!K131 -> 8.657649879 | W9: x | X9: =IF(V9<=Vorauswahl!$D$12,"x","") ->  | Y9: x | AB9: =IF(ROW(AA6)>COUNTA(AA:AA),"",INDEX(AA:AA,SMALL(IF(AA$1:AA$29<>"",ROW($1:$29)),ROW($AA6)))) -> 
A10: IVA | B10: 560 | C10: IVA560 | D10: 1059.5 | E10: 558 | F10: 352 | G10: =Einheiten!$E$58 -> 4000 | H10: 2600 | I10: 8500 | J10: 558 | K10: =G10/(PI()/4*('Grunddaten-IVA'!J10/1000)^2*3600) -> 4.543590798 | L10: 5 | M10: 21 | N10: 11.41779608 | O10: 19.86898756 | P10: =(($S$39*N10^$S$41)/((Einheiten!$E$60-Einheiten!$E$59)^'Grunddaten-IVA'!$S$40))*'Grunddaten-IVA'!B10^'Grunddaten-IVA'!$S$42 -> 3.72341804 | R10: =$V$39*N10^$V$41*(1/(Einheiten!$E$61-Einheiten!$E$62)^'Grunddaten-IVA'!$V$40)*'Grunddaten-IVA'!B10^'Grunddaten-IVA'!$V$42 -> 12.1726547 | AB10: =IF(ROW(AA7)>COUNTA(AA:AA),"",INDEX(AA:AA,SMALL(IF(AA$1:AA$29<>"",ROW($1:$29)),ROW($AA7)))) -> 
